Workbook

Sheet Title
B2: Central Hydrogen Production - Project Information
B5: Title: | C5: Current Central Hydrogen Production from Steam Methane Reforming (SMR) of Natural Gas
B6: Authors: | C6: M. Penev
B7: Contact: | C7: Michael Penev
B8: Contact phone: | C8: 303 275 3880
B9: Contact e-mail: | C9: mike.penev@nrel.gov
B10: Organization: | C10: NREL
B11: Date: | C11: 2022-03-15
B12: Web Site: | C12: www.nrel.gov
B14: Plant Design Capacity (kg/day): | C14: 483000
B15: Start-up Year: | C15: 2015
B16: Primary Product Feedstock Source: | C16: Industrial Natural Gas
B17: Secondary Feedstock Source: | C17: none
B18: Process Energy Source: | C18: Standard fossil energy sources
B19: Conversion Technology: | C19: Natural gas desulfurization, steam-methane-reformer, shift, pressure swing absorption, methyl diethanolamine CO₂ separation
B20: Primary By-Product: | C20: none
B21: Secondary By-Product: | C21: none
B22: Based on Number of Plants Installed per Year (per manufacturer): | C22: Nth plant
B23: H2 Onsite Storage Type | C23: none
B24: Assumed plant location: | C24: USA, average
B26: Reporting Spreadsheet Change History:
B27: Date spreadsheet created / modified | C27: Name | D27: Comments
B28: 2022-04-26 | C28: M. Penev | D28: Based on Case 2 of NETL 2022 Comparison of Commercial, State-of-the-Art, Fossil-Based Hydrogen Production Technologies ↓
D29: https://netl.doe.gov/energy-analysis/details?id=ed4825aa-8f04-4df7-abef-60e564f636c9
B30: 2022-04-05 | C30: M. Penev | D30: Based on August 12, 2021 NETL Comparison of Commercial, State-Of-The-Art, Fossil-Based Hydrogen Production Technologies
B31: 2022-04-05 | C31: M. Penev | D31: Updated CO₂ Sequestration tab to be based on: * FE/NETL CO₂ Transport Cost Model (2022) * FE/NETL CO₂ Saline Storage Cost Model (2017) See links below
D32: https://www.netl.doe.gov/energy-analysis/details?id=b37414b7-20d3-4fb2-bca6-b6146b26198a
D33: https://edx.netl.doe.gov/dataset/fe-netl-co2-saline-storage-cost-model-2017

Sheet Description
B2: Central Hydrogen Production - Description
B6: Purpose:
B7: Steam methane reforming (SMR) of natural gas continues to be the most efficient, economical, and widely used process for production of hydrogen and hydrogen/carbon monoxide mixtures. The purpose of this analysis is to assess the economic production of hydrogen from the steam reforming of natural gas while sequestering 96.3% of the carbon as CO2.
B10: System Description:
B11: Natural gas is fed into the steam methane reformer (SMR) plant via a pipeline at 435 psia. The gas is desulfurized, and mixed with steam at 395°C. The reformer reactor is fed with an overall steam to carbon (H₂O/C) ratio of 2.45. The endothermic steam methane reforming reaction is performed on the cold side of a tube-shell heat exchanger and heat is supplied on the hot side of the heat exchanger by combustion of pressure swing adsorber (PSA) effluent and supplemental natural gas. Product syngas exits the reactor at 870°C and is chilled to 204°C before entering a shift reactor. In the shift reactor, carbon monoxide from the syngas reacts with steam to produce more hydrogen and carbon dioxide. Shift effluent is cooled, and flown through an acid gas removal system which uses methyl diethanolamine (MDEA) to separate carbon dioxide. Overall carbon capture rate is 96%. Lastly, the resulting hydrogen rich product is further purified through a PSA system resulting in pure hydrogen at 340 psia.
B12: Note 1: while the process flow shows compression past 300 psia, H2A model framework excludes compression for transmission and distribution. Hence, entailed analysis does not include capital or energy use for the product hydrogen compressor.
B13: Note 2: CO₂ transport and sequestration are modeled explicitly in the "Carbon Sequestration" tab of this model, which is based on NETL's CO₂ transport and storage model. Thus, CO₂ compressor specified in the source study is preempted by H2A explicit transport and sequestration calculations.
B15: Analysis Methodology Summary:
B16: The methodology for developing the performance results presented in this report included performing steady-state simulations of the hydrogen plant configurations at the design capacity using the Aspen Plus® (Aspen) process modeling software. The major plant equipment performance and process limits were based on published reports, information obtained from vendors and users of the technology, performance data from design/build utility projects, and/or best engineering judgment. Mass and energy balance data from the Aspen models were used to size major pieces of equipment, which formed the basis for developing the cost estimates presented. Full, bottom-up estimates for each case in this study were not pursued. Instead, the capital and operation and maintenance (O&M) costs for each of the cases were estimated using a combined bottom-up and scaling approach. Black & Veatch (B&V) leveraged an in-house database and conceptual estimating models. Costs were further calibrated using a combination of adjusted vendor-furnished data and scaled estimates from previous design/build projects. In addition, cost scaling was performed on select plant areas using reference costs from prior NETL studies according to the 2019 revision of the QGESS document “Capital Cost Scaling Methodology: Revision 4 Report.”
B19: Plant Ownership and Entity Type Assumptions:
B20: Corporate ownership, with 1.5 debt to equity financing capital structure.
B22: References:
B23: Lewis, E. et al. 2022. Comparison of commercial, state-of-the-art, fossil-based hydrogen production technologies. National Energy Technology Laboratory (NETL).
B24: https://netl.doe.gov/energy-analysis/details?id=ed4825aa-8f04-4df7-abef-60e564f636c9

Sheet ProcessFlow
B2: Central Hydrogen Production - Process Flow Diagram
S5: Key parameters
B6: Process Flow Diagram | S6: Steam/carbon ratio (mol/mol) | V6: =+I78/(J70+J71+2*J72+3*J73+4*J74+J75+J76) -> 2.452651755
S7: Feed rate (kJ/h) | V7: =-(E70*AA70+E72*AA72+E73*AA73+E74*AA74)*1000 -> 3562464762 | W7: =-(E70*AB70+E72*AB72+E73*AB73+E74*AB74)*1000 -> 3946977698 | X7: LHV, HHV
S8: Feed rate (kW) | V8: =+V7*0.0002777778 -> 989573.6241 | W8: =+W7*0.0002777778 -> 1096382.782 | X8: LHV, HHV
S9: Feed rate (mmBTU/h) | V9: =+V8*3412.142/1000000 -> 3376.565725 | W9: =+W8*3412.142/1000000 -> 3741.013738 | X9: LHV, HHV
S10: Product rate (kJ/h) | V10: =-(N77*AA77)*1000 -> 2407863465 | W10: =-(N77*AB77)*1000 -> 2846011654 | X10: LHV, HHV
S11: Product rate (kW) | V11: =+V10*0.0002777778 -> 668851.016 | W11: =+W10*0.0002777778 -> 790558.856 | X11: LHV, HHV
S12: Product rate (kg/day) | V12: =+N48*24 -> 483000
S13: Carbon feed rate (mol/h) | V13: =+(E70+2*E72+3*E73+4*E74+E76)*1000 -> 4538952
S14: Carbon sequestering rate (mol/h) | V14: =+V76*1000 -> 4370813.5
S15: Carbon sequestration fraction (%) | V15: =+V14/V13 -> 0.9629565371
S16: SMR carbon reforming rate | V16: =+(J75+J76-F76)/(F70+F71+2*F72+3*F73+4*F74) -> 0.7885148532
S17: Shift CO conversion rate | V17: =+(K75-L75)/K75 -> 0.9720670391
S18: Fuel use (mmBTU, LHV/kg H₂) | V18: =+V9/N48 -> 0.1677796634
S19: Raw water withdrawal (gal/min) | V19: 2727
S20: Raw water withdrawal (gal/kg H₂) | V20: =+V19*60/N48 -> 8.130186335
S21: Electricity use (kW) | V21: =+D101 -> 30240
S22: Electricity use (kWh/kg H₂) | V22: =+V21/N48 -> 1.502608696
B29: Stream Summaries
C30: 1 | D30: 2 | E30: 3 | F30: 4 | G30: 5 | H30: 6 | I30: 7 | J30: 8 | K30: 9 | L30: 10 | M30: 11 | N30: 12 | O30: 13 | P30: 14 | Q30: 15 | R30: 16 | S30: 17 | T30: 18 | U30: 19 | V30: 20 | W30: 21
B31: V-L Mole Fraction
B32: Ar | C32: 0.0092 | D32: 0.0092 | E32: 0 | F32: 0 | G32: 0 | H32: 0 | I32: 0 | J32: 0 | K32: 0 | L32: 0 | M32: 0 | N32: 0 | O32: 0 | P32: 0 | Q32: 0 | R32: 0 | S32: 0.0082 | T32: 0 | U32: 0 | V32: 0 | W32: 0.011
B33: CH4 | C33: 0 | D33: 0 | E33: 0.931 | F33: 0.931 | G33: 0.931 | H33: 0 | I33: 0.2583 | J33: 0.0411 | K33: 0.0411 | L33: 0.0411 | M33: 0.0627 | N33: 0 | O33: 0 | P33: 0.2824 | Q33: 0.931 | R33: 0.4059 | S33: 0 | T33: 0 | U33: 0 | V33: 0 | W33: 0
B34: CH4S | C34: 0 | D34: 0 | E34: 0 | F34: 0 | G34: 0 | H34: 0 | I34: 0 | J34: 0 | K34: 0 | L34: 0 | M34: 0 | N34: 0 | O34: 0 | P34: 0 | Q34: 0 | R34: 0 | S34: 0 | T34: 0 | U34: 0 | V34: 0 | W34: 0
B35: C2H6 | C35: 0 | D35: 0 | E35: 0.032 | F35: 0.032 | G35: 0.032 | H35: 0 | I35: 0 | J35: 0 | K35: 0 | L35: 0 | M35: 0 | N35: 0 | O35: 0 | P35: 0 | Q35: 0.032 | R35: 0.0061 | S35: 0 | T35: 0 | U35: 0 | V35: 0 | W35: 0
B36: C3H8 | C36: 0 | D36: 0 | E36: 0.007 | F36: 0.007 | G36: 0.007 | H36: 0 | I36: 0 | J36: 0 | K36: 0 | L36: 0 | M36: 0 | N36: 0 | O36: 0 | P36: 0 | Q36: 0.007 | R36: 0.0013 | S36: 0 | T36: 0 | U36: 0 | V36: 0 | W36: 0
B37: C4H10 | C37: 0 | D37: 0 | E37: 0.004 | F37: 0.004 | G37: 0.004 | H37: 0 | I37: 0 | J37: 0 | K37: 0 | L37: 0 | M37: 0 | N37: 0 | O37: 0 | P37: 0 | Q37: 0.004 | R37: 0.0008 | S37: 0 | T37: 0 | U37: 0 | V37: 0 | W37: 0
B38: CO | C38: 0 | D38: 0 | E38: 0 | F38: 0 | G38: 0 | H38: 0 | I38: 0.0001 | J38: 0.1432 | K38: 0.1432 | L38: 0.004 | M38: 0.0061 | N38: 0 | O38: 0 | P38: 0.0274 | Q38: 0 | R38: 0.0222 | S38: 0 | T38: 0 | U38: 0 | V38: 0 | W38: 0
B39: CO2 | C39: 0.0003 | D39: 0.0003 | E39: 0.01 | F39: 0.01 | G39: 0.01 | H39: 0 | I39: 0.0174 | J39: 0.0124 | K39: 0.0124 | L39: 0.1517 | M39: 0.0116 | N39: 0 | O39: 0 | P39: 0.0521 | Q39: 0.01 | R39: 0.0441 | S39: 0.0746 | T39: 0.9835 | U39: 0.9728 | V39: 0.9995 | W39: 0.01
B40: H2 | C40: 0 | D40: 0 | E40: 0 | F40: 0 | G40: 0 | H40: 0 | I40: 0.044 | J40: 0.4609 | K40: 0.4609 | L40: 0.6001 | M40: 0.915 | N40: 0.9998 | O40: 0.9998 | P40: 0.618 | Q40: 0 | R40: 0.5003 | S40: 0 | T40: 0 | U40: 0.0002 | V40: 0 | W40: 0
B41: H2O | C41: 0.0099 | D41: 0.0099 | E41: 0 | F41: 0 | G41: 0 | H41: 1 | I41: 0.676 | J41: 0.3393 | K41: 0.3393 | L41: 0.2 | M41: 0 | N41: 0 | O41: 0 | P41: 0 | Q41: 0 | R41: 0 | S41: 0.2114 | T41: 0.0165 | U41: 0.027 | V41: 0.0005 | W41: 0.0358
B42: N2 | C42: 0.7732 | D42: 0.7732 | E42: 0.016 | F42: 0.016 | G42: 0.016 | H42: 0 | I42: 0.0042 | J42: 0.003 | K42: 0.003 | L42: 0.003 | M42: 0.0046 | N42: 0.0002 | O42: 0.0002 | P42: 0.0201 | Q42: 0.016 | R42: 0.0193 | S42: 0.689 | T42: 0 | U42: 0 | V42: 0 | W42: 0.9209
B43: O2 | C43: 0.2074 | D43: 0.2074 | E43: 0 | F43: 0 | G43: 0 | H43: 0 | I43: 0 | J43: 0 | K43: 0 | L43: 0 | M43: 0 | N43: 0 | O43: 0 | P43: 0 | Q43: 0 | R43: 0 | S43: 0.0167 | T43: 0 | U43: 0 | V43: 0 | W43: 0.0224
B44: SO2 | C44: 0 | D44: 0 | E44: 0 | F44: 0 | G44: 0 | H44: 0 | I44: 0 | J44: 0 | K44: 0 | L44: 0 | M44: 0 | N44: 0 | O44: 0 | P44: 0 | Q44: 0 | R44: 0 | S44: 0 | T44: 0 | U44: 0 | V44: 0 | W44: 0
B45: Total | C45: 1 | D45: 1 | E45: 1 | F45: 1 | G45: 1 | H45: 1 | I45: 1 | J45: 1 | K45: 1 | L45: 1 | M45: 1 | N45: 1 | O45: 1 | P45: 1 | Q45: 1 | R45: 1 | S45: 1 | T45: 1 | U45: 1 | V45: 1 | W45: 1
B47: V-L Flowrate (kgmol/hr) | C47: 20603 | D47: 20603 | E47: 4356 | F47: 3687 | G47: 3687 | H47: 9830 | I47: 13930 | J47: 19519 | K47: 19519 | L47: 19519 | M47: 12802 | N47: 9959 | O47: 9959 | P47: 2843 | Q47: 669 | R47: 3512 | S47: 23216 | T47: 1585 | U47: 2891 | V47: 4373 | W47: 17371
B48: V-L Flowrate (kg/hr) | C48: 594529 | D48: 594529 | E48: 75472 | F48: 63883 | G48: 63882 | H48: 177085 | I48: 240967 | J48: 240967 | K48: 240967 | L48: 240967 | M48: 46850 | N48: 20125 | O48: 20125 | P48: 26725 | Q48: 11588 | R48: 38313 | S48: 632842 | T48: 69097 | U48: 125180 | V48: 192413 | W48: 486994
B49: Solids Flowrate (kg/hr) | C49: 0 | D49: 0 | E49: 0 | F49: 0 | G49: 0 | H49: 0 | I49: 0 | J49: 0 | K49: 0 | L49: 0 | M49: 0 | N49: 0 | O49: 0 | P49: 0 | Q49: 0 | R49: 0 | S49: 0 | T49: 0 | U49: 0 | V49: 0 | W49: 0
B51: Temperature (°C) | C51: 15 | D51: 24 | E51: 15 | F51: 15 | G51: 370 | H51: 399 | I51: 395 | J51: 871 | K51: 204 | L51: 38 | M51: 38 | N51: 38 | O51: 30 | P51: 38 | Q51: 15 | R51: 29 | S51: 121 | T51: 30 | U51: 49 | V51: 30 | W51: 30
B52: Pressure (MPa, abs) | C52: 0.1 | D52: 0.11 | E52: 3.1 | F52: 3.1 | G52: 3 | H52: 3.1 | I52: 2.9 | J52: 2.83 | K52: 2.8 | L52: 2.45 | M52: 2.35 | N52: 2.28 | O52: 6.48 | P52: 0.14 | Q52: 3.1 | R52: 0.14 | S52: 0.1 | T52: 0.2 | U52: 0.14 | V52: 15.27 | W52: 0.1
B53: Steam Table Enthalpy (kJ/kg)A | C53: 30.23 | D53: 39.78 | E53: -6.77 | F53: -6.77 | G53: 969.07 | H53: 3216.15 | I53: 2587.78 | J53: 3639.94 | K53: 1740.54 | L53: 94.92 | M53: 302.69 | N53: 544.39 | O53: 446.67 | P53: 124.41 | Q53: -6.77 | R53: 84.73 | S53: 485.92 | T53: 41.78 | U53: 71.11 | V53: -231.09 | W53: 88.99
B54: AspenPlus Enthalpy (kJ/kg)B | C54: -97.58 | D54: -88.02 | E54: -4516 | F54: -4516 | G54: -3540.22 | H54: -12753.89 | I54: -10182.19 | J54: -6233.87 | K54: -8133.27 | L54: -9735.53 | M54: -2601.43 | N54: 188.79 | O54: 91.07 | P54: -4698.89 | Q54: -4516 | R54: -4643.57 | S54: -2844.39 | T54: -8969.58 | U54: -8972.06 | V54: -9194.65 | W54: -443.21
B55: Density (kg/m3) | C55: 1.2 | D55: 1.3 | E55: 24.4 | F55: 24.4 | G55: 9.7 | H55: 10.4 | I55: 9.3 | J55: 3.7 | K55: 8.8 | L55: 14.5 | M55: 3.3 | N55: 1.8 | O55: 5 | P55: 0.5 | Q55: 24.4 | R55: 0.6 | S55: 0.8 | T55: 3.5 | U55: 2.2 | V55: 630.1 | W55: 1.1
B56: V-L Molecular Weight | C56: 28.857 | D56: 28.857 | E56: 17.328 | F56: 17.328 | G56: 17.328 | H56: 18.015 | I56: 17.298 | J56: 12.345 | K56: 12.345 | L56: 12.345 | M56: 3.66 | N56: 2.021 | O56: 2.021 | P56: 9.4 | Q56: 17.328 | R56: 10.909 | S56: 27.258 | T56: 43.581 | U56: 43.301 | V56: 43.997 | W56: 28.035
B58: V-L Flowrate (lbmol/hr) | C58: 45421 | D58: 45421 | E58: 9602 | F58: 8128 | G58: 8128 | H58: 21671 | I58: 30711 | J58: 43033 | K58: 43033 | L58: 43033 | M58: 28223 | N58: 21955 | O58: 21955 | P58: 6268 | Q58: 1474 | R58: 7743 | S58: 51184 | T58: 3495 | U58: 6373 | V58: 9642 | W58: 38296
B59: V-L Flowrate (lb/hr) | C59: 1310711 | D59: 1310711 | E59: 166387 | F59: 140838 | G59: 140836 | H59: 390405 | I59: 531241 | J59: 531241 | K59: 531241 | L59: 531241 | M59: 103287 | N59: 44369 | O59: 44369 | P59: 58918 | Q59: 25548 | R59: 84466 | S59: 1395178 | T59: 152333 | U59: 275974 | V59: 424198 | W59: 1073638
B60: Solids Flowrate (lb/hr) | C60: 0 | D60: 0 | E60: 0 | F60: 0 | G60: 0 | H60: 0 | I60: 0 | J60: 0 | K60: 0 | L60: 0 | M60: 0 | N60: 0 | O60: 0 | P60: 0 | Q60: 0 | R60: 0 | S60: 0 | T60: 0 | U60: 0 | V60: 0 | W60: 0
B62: Temperature (°F) | C62: 59 | D62: 76 | E62: 59 | F62: 59 | G62: 698 | H62: 750 | I62: 743 | J62: 1600 | K62: 400 | L62: 100 | M62: 100 | N62: 100 | O62: 86 | P62: 100 | Q62: 59 | R62: 84 | S62: 250 | T62: 86 | U62: 120 | V62: 86 | W62: 87
B63: Pressure (psia) | C63: 14.7 | D63: 16 | E63: 450 | F63: 450 | G63: 435.3 | H63: 450 | I63: 421 | J63: 411 | K63: 406 | L63: 356 | M63: 341 | N63: 331 | O63: 939.7 | P63: 20 | Q63: 450 | R63: 20 | S63: 14.7 | T63: 28.9 | U63: 20 | V63: 2214.7 | W63: 14.8
B64: Steam Table Enthalpy (Btu/lb)A | C64: 13 | D64: 17.1 | E64: -2.9 | F64: -2.9 | G64: 416.6 | H64: 1382.7 | I64: 1112.5 | J64: 1564.9 | K64: 748.3 | L64: 40.8 | M64: 130.1 | N64: 234 | O64: 192 | P64: 53.5 | Q64: -2.9 | R64: 36.4 | S64: 208.9 | T64: 18 | U64: 30.6 | V64: -99.4 | W64: 38.3
B65: AspenPlus Enthalpy (Btu/lb)B | C65: -42 | D65: -37.8 | E65: -1941.5 | F65: -1941.5 | G65: -1522 | H65: -5483.2 | I65: -4377.6 | J65: -2680.1 | K65: -3496.7 | L65: -4185.5 | M65: -1118.4 | N65: 81.2 | O65: 39.2 | P65: -2020.2 | Q65: -1941.5 | R65: -1996.4 | S65: -1222.9 | T65: -3856.2 | U65: -3857.3 | V65: -3953 | W65: -190.5
B66: Density (lb/ft3) | C66: 0.076 | D66: 0.08 | E66: 1.525 | F66: 1.525 | G66: 0.605 | H66: 0.652 | I66: 0.578 | J66: 0.229 | K66: 0.549 | L66: 0.906 | M66: 0.206 | N66: 0.11 | O66: 0.314 | P66: 0.031 | Q66: 1.525 | R66: 0.037 | S66: 0.053 | T66: 0.217 | U66: 0.14 | V66: 39.338 | W66: 0.071
B68: Mol flow basis kmol/h | Y68: dHf (g, kJ/mol) | Z68: dHf (l, kJ/mol) | AA68: Heat of combustion (LHV, kJ/mol) | AB68: Heat of combustion (HHV, kJ/mol)
B69: Ar | C69: =+C32*C$47 -> 189.5476 | D69: =+D32*D$47 -> 189.5476 | E69: 0 | F69: 0 | G69: 0 | H69: 0 | I69: 0 | J69: 0 | K69: 0 | L69: 0 | M69: 0 | N69: 0 | O69: 0 | P69: 0 | Q69: 0 | R69: 0 | S69: 190.3712 | T69: 0 | U69: 0 | V69: 0 | W69: 191.081 | Y69: 0
B70: CH4 | C70: =+C33*C$47 -> 0 | D70: 0 | E70: 4055.436 | F70: 3432.597 | G70: 3432.597 | H70: 0 | I70: 3598.119 | J70: 802.2309 | K70: 802.2309 | L70: 802.2309 | M70: 802.6854 | N70: 0 | O70: 0 | P70: 802.8632 | Q70: 622.839 | R70: 1425.5208 | S70: 0 | T70: 0 | U70: 0 | V70: 0 | W70: 0 | Y70: -74.6 | AA70: =2*Y78+Y76-Y70 -> -802.562 | AB70: =2*Z78+Y76-Y70 -> -890.57
B71: CH4S | C71: 0 | D71: 0 | E71: 0 | F71: 0 | G71: 0 | H71: 0 | I71: 0 | J71: 0 | K71: 0 | L71: 0 | M71: 0 | N71: 0 | O71: 0 | P71: 0 | Q71: 0 | R71: 0 | S71: 0 | T71: 0 | U71: 0 | V71: 0 | W71: 0 | Y71: -22.8
B72: C2H6 | C72: 0 | D72: 0 | E72: 139.392 | F72: 117.984 | G72: 117.984 | H72: 0 | I72: 0 | J72: 0 | K72: 0 | L72: 0 | M72: 0 | N72: 0 | O72: 0 | P72: 0 | Q72: 21.408 | R72: 21.4232 | S72: 0 | T72: 0 | U72: 0 | V72: 0 | W72: 0 | Y72: -84 | AA72: =+(6*Y78+4*Y76-2*Y72)/2 -> -1428.498 | AB72: =+(6*Z78+4*Y76-2*Y72)/2 -> -1560.51
B73: C3H8 | C73: 0 | D73: 0 | E73: 30.492 | F73: 25.809 | G73: 25.809 | H73: 0 | I73: 0 | J73: 0 | K73: 0 | L73: 0 | M73: 0 | N73: 0 | O73: 0 | P73: 0 | Q73: 4.683 | R73: 4.5656 | S73: 0 | T73: 0 | U73: 0 | V73: 0 | W73: 0 | Y73: -104.7 | AA73: =3*Y76+4*Y78-Y73 -> -2043.134 | AB73: =3*Y76+4*Z78-Y73 -> -2219.15
B74: C4H10 | C74: 0 | D74: 0 | E74: 17.424 | F74: 14.748 | G74: 14.748 | H74: 0 | I74: 0 | J74: 0 | K74: 0 | L74: 0 | M74: 0 | N74: 0 | O74: 0 | P74: 0 | Q74: 2.676 | R74: 2.8096 | S74: 0 | T74: 0 | U74: 0 | V74: 0 | W74: 0 | Y74: -125.6 | AA74: =4*Y76+5*Y78-Y74 -> -2657.57 | AB74: =4*Y76+5*Z78-Y74 -> -2877.59
B75: CO | C75: 0 | D75: 0 | E75: 0 | F75: 0 | G75: 0 | H75: 0 | I75: 1.393 | J75: 2795.1208 | K75: 2795.1208 | L75: 78.076 | M75: 78.0922 | N75: 0 | O75: 0 | P75: 77.8982 | Q75: 0 | R75: 77.9664 | S75: 0 | T75: 0 | U75: 0 | V75: 0 | W75: 0 | Y75: -110.53
B76: CO2 | C76: 6.1809 | D76: 6.1809 | E76: 43.56 | F76: 36.87 | G76: 36.87 | H76: 0 | I76: 242.382 | J76: 242.0356 | K76: 242.0356 | L76: 2961.0323 | M76: 148.5032 | N76: 0 | O76: 0 | P76: 148.1203 | Q76: 6.69 | R76: 154.8792 | S76: 1731.9136 | T76: 1558.8475 | U76: 2812.3648 | V76: 4370.8135 | W76: 173.71 | Y76: -393.51
B77: H2 | C77: 0 | D77: 0 | E77: 0 | F77: 0 | G77: 0 | H77: 0 | I77: 612.92 | J77: 8996.3071 | K77: 8996.3071 | L77: 11713.3519 | M77: 11713.83 | N77: 9957.0082 | O77: 9957.0082 | P77: 1756.974 | Q77: 0 | R77: 1757.0536 | S77: 0 | T77: 0 | U77: 0.5782 | V77: 0 | W77: 0 | Y77: 0 | AA77: =Y78 -> -241.826 | AB77: =+Z78 -> -285.83
B78: H2O | C78: 203.9697 | D78: 203.9697 | E78: 0 | F78: 0 | G78: 0 | H78: 9830 | I78: 9416.68 | J78: 6622.7967 | K78: 6622.7967 | L78: 3903.8 | M78: 0 | N78: 0 | O78: 0 | P78: 0 | Q78: 0 | R78: 0 | S78: 4907.8624 | T78: 26.1525 | U78: 78.057 | V78: 2.1865 | W78: 621.8818 | Y78: -241.826 | Z78: -285.83
B79: N2 | C79: 15930.2396 | D79: 15930.2396 | E79: 69.696 | F79: 58.992 | G79: 58.992 | H79: 0 | I79: 58.506 | J79: 58.557 | K79: 58.557 | L79: 58.557 | M79: 58.8892 | N79: 1.9918 | O79: 1.9918 | P79: 57.1443 | Q79: 10.704 | R79: 67.7816 | S79: 15995.824 | T79: 0 | U79: 0 | V79: 0 | W79: 15996.9539 | Y79: 0
B80: O2 | C80: 4273.0622 | D80: 4273.0622 | E80: 0 | F80: 0 | G80: 0 | H80: 0 | I80: 0 | J80: 0 | K80: 0 | L80: 0 | M80: 0 | N80: 0 | O80: 0 | P80: 0 | Q80: 0 | R80: 0 | S80: 387.7072 | T80: 0 | U80: 0 | V80: 0 | W80: 389.1104 | Y80: 0
B81: SO2 | C81: 0 | D81: 0 | E81: 0 | F81: 0 | G81: 0 | H81: 0 | I81: 0 | J81: 0 | K81: 0 | L81: 0 | M81: 0 | N81: 0 | O81: 0 | P81: 0 | Q81: 0 | R81: 0 | S81: =+S44*S$47 -> 0 | T81: 0 | U81: 0 | V81: 0 | W81: 0 | Y81: -296.81
B82: Total | C82: 20603 | D82: 20603 | E82: 4356 | F82: 3687 | G82: 3687 | H82: 9830 | I82: 13930 | J82: 19519 | K82: 19519 | L82: 19519 | M82: 12802 | N82: 9959 | O82: 9959 | P82: 2843 | Q82: 669 | R82: 3512 | S82: 23216 | T82: 1585 | U82: 2891 | V82: 4373 | W82: 17371
B89: Power Summary
B90: Auxiliary Load Summary | D90: In-H2A scope
B91: Air Blower, kWe | C91: 1640 | D91: =+C91 -> 1640
B92: Circulating Water Pumps, kWe | C92: 2500 | D92: 2500
B93: Cooling Tower Fans, kWe | C93: 1290 | D93: 1290
B94: CO2 Capture/Removal Auxiliaries, kWe | C94: 6710 | D94: 6710
B95: CO2 Compression, kWe | C95: 16460 | D95: 16460
B96: Feedwater Pumps, kWe | C96: 140 | D96: 140
B97: Ground Water Pumps, kWe | C97: 250 | D97: 250
B98: Hydrogen Compressor, kWe | C98: 10430 | D98: =+C98*0 -> 0
B99: Miscellaneous Balance of PlantA, kWe | C99: 1000 | D99: =+C99 -> 1000
B100: Transformer Losses, kWe | C100: 250 | D100: =+C100 -> 250
B101: Total Auxiliaries, kWe | C101: =+SUM(C91:C100) -> 40670 | D101: =+SUM(D91:D100) -> 30240
B105: Description | C105: $/1,000 | D105: $/[kg H2/day]
B106: Pre-Production Costs
B107: 6 Months All Labor | C107: 4934 | D107: 10
B108: 1 Month Maintenance Materials | C108: 711 | D108: 1
B109: 1 Month Non-Fuel Consumables | C109: 2838 | D109: 6
B110: 1 Month Waste Disposal | C110: 5 | D110: 0
B111: 25% of 1 Months Fuel Cost at 100% CF | C111: 3018 | D111: 6
B112: 2% of TPC | C112: 13466 | D112: 28
B113: Total | C113: 24970 | D113: 52
B114: Inventory Capital
B115: 60-day supply of fuel and consumables at 100% CF | C115: 1191 | D115: 2
B116: 0.5% of TPC (spare parts) | C116: 3366 | D116: 7
B117: Total | C117: 4558 | D117: 9
B118: Other Costs
B119: Initial Cost for Catalyst and Chemicals | C119: 15867 | D119: 33
B120: Land | C120: 300 | D120: 1
B121: Other Owner’s Costs | C121: 100993 | D121: 209
B122: Financing Costs | C122: 18179 | D122: 38
B123: Total Overnight Costs (TOC) | C123: 838155 | D123: 1735
B124: TASC Multiplier (IOU, 35 year) | C124: 1.07
B125: Total As-Spent Cost (TASC) | C125: 896660 | D125: 1856

Sheet Input_Sheet_Template
A1: a
B2: H2A Hydrogen Production Cash Flow Analysis Tool v3.2018
A3: title | B3: Current Central Hydrogen Production from Natural Gas Steam Methane Reforming with CO₂ Capture and Sequestration.
B5: Table of Contents
B6: View and edit project information
B8: H2A cell color coding
B10: Use H2A default values
B14: Technical Operating Parameters and Specifications
B15: Financial Input Values
B16: Energy Feedstocks, Utilities and Byproducts | H16: Cash Flow NPV (Error if not 0)
B17: Capital Cost | H17: =+NPV -> 1.899000343e-06
B18: Fixed Operating Costs
B19: Variable Operating Costs - Other Materials and Byproducts
B20: Variable Operating Costs - Other Variable Operating Costs
B24: Technical Operating Parameters and Specifications | E24: Notes
A25: cap_factor | B25: Operating Capacity Factor (%) | C25: =0.9*sensitivity_01 -> 0.9
A26: design_cap | B26: Plant Design Capacity (kg of H2/day) | C26: =ProcessFlow!V12*sensitivity_02 -> 483000
B27: Plant Output (kg/day) | C27: =design_cap*cap_factor -> 434700
A28: Soutput_kgyear | B28: Plant Output (kg/year) | C28: =output_kgpday*365 -> 158665500
B29: Financial Input Values | E29: Notes
A30: ref_year | B30: Reference year | C30: 2016
A31: startup_year | B31: Assumed start-up year | C31: 2015
B32: Basis year | C32: 2018 | D32: Costs must be entered in basis year dollars
A33: construct | B33: Length of Construction Period (years) | C33: 3
A34: percent_cap1 | B34: % of Capital Spent in 1st Year of Construction | C34: 1
A35: percent_cap2 | B35: % of Capital Spent in 2nd Year of Construction | C35: 0
A36: percent_cap3 | B36: % of Capital Spent in 3rd Year of Construction | C36: 0
A37: percent_cap4 | B37: % of Capital Spent in 4th Year of Construction
A38: start_time | B38: Start-up Time (years) | C38: 1
A39: plant_life | B39: Plant life (years) | C39: 40
A40: anal_period | B40: Analysis period (years) | C40: 40
A41: depr_length | B41: Depreciation Schedule Length (years) | C41: 20
A42: depr_type | B42: Depreciation Type | C42: MACRS
A43: equity | B43: % Equity Financing | C43: 0.4
A44: debt_interest | B44: Interest rate on debt, if applicable (%) | C44: 0.037
A45: debt_period | B45: Debt period (years) | C45: 0 | E45: Enter 0 to enable constant outstanding debt.
A46: percnt_fixed | B46: % of Fixed Operating Costs During Start-up (%) | C46: 1
A47: percnt_revs | B47: % of Revenues During Start-up (%) | C47: 1
A48: percnt_var | B48: % of Variable Operating Costs During Start-up (%) | C48: 1
A49: decom_percent | B49: Decommissioning costs (% of depreciable capital investment) | C49: 0.1
A50: salvage_perct | B50: Salvage value (% of total capital investment) | C50: 0.1
A51: inflation_rate | B51: Inflation rate (%) | C51: 0.019
A52: real_irr | B52: After-tax Real IRR (%) | C52: =0.08*sensitivity_03 -> 0.08
A53: state_tax_rate | B53: State Taxes (%) | C53: 0.06
A54: fed_tax_rate | B54: Federal Taxes (%) | C54: 0.21
A55: Stotal_tax_rate | B55: Total Tax Rate (%) | C55: =fed_tax_rate+state_tax_rate*(1-fed_tax_rate) -> 0.2574
A56: WorkingCap | B56: WORKING CAPITAL (% of yearly change in operating costs) | C56: 0.15
B57: Energy Feedstocks, Utilities, and Byproducts
B58: Select the Price Table to Use
B59: AEO_2017_Reference_Case | F59: To use a new feedstock, utility or byproduct, select the price table and product from the dropdown lists and enter the usage (or byproduct) amount. Click the "Add" button to add the product to the "In Use" list. Important; only materials on the "In Use" list will be used in H2A calculations. To delete materials from the list, click the "Delete" button below
B60: Select the Use
B61: feedstock | C61: =IF(OR(TMP_FeedType="Feedstock",TMP_FeedType = "Utility")," Enter usage in","Enter production in") -> Enter usage in | D61: =VLOOKUP(TMP_FeedName,INDIRECT(TMP_PriceTable),4,FALSE) -> mmBtu
B62: Select the Feed Type
B63: Industrial Natural Gas
B65: =SELECTED_FEED -> feedstock | C65: =TMP_FeedName -> Industrial Natural Gas
B66: ="Price Conversion Factor (GJ/"&TMP_Units&")" -> Price Conversion Factor (GJ/mmBtu) | C66: =VLOOKUP(TMP_FeedName,MASTER_PROPERTY_TABLE,9,FALSE) -> 1.055
B67: ="Price in Startup Year ($" & ref_year & ")/" & TMP_Units -> Price in Startup Year ($2016)/mmBtu | C67: =HLOOKUP(startup_year,INDIRECT(TMP_PriceTable),MATCH(TMP_FeedName,INDIRECT(Energy_Feed_List),0),FALSE)*TMP_Conversion -> 3.733674814
B68: =IF(OR(TMP_FeedType="Feedstock",TMP_FeedType = "Utility"),"Usage ("&TMP_Units&"/kg H2)","Production ("&TMP_Units&"/kg H2)") -> Usage (mmBtu/kg H2) | C68: =+ProcessFlow!C30 -> 1
B69: =IF(OR(TMP_FeedType = "Feedstock",TMP_FeedType = "Utility"), "Cost in Startup Year","Income in Startup Year") -> Cost in Startup Year | C69: =design_cap*365*cap_factor*TMP_Usage*TMP_StartPrice -> 592405381.3
B70: Lookup Prices | C70: yes
B72: Energy feedstocks, utilities, and byproducts currently in use
A73: START_TOP
B74: feedstock | C74: Price Conversion Factor (GJ/kWh) | D74: Price in Startup Year ($2016)/kWh | E74: Usage (kWh/kg H2) | F74: Cost in Startup Year | G74: Lookup Prices
B75: Industrial Electricity | C75: 0.0036 | D75: 0.06998061126 | E75: =+ProcessFlow!V22 -> 1.502608696 | F75: =+output_kgyear*feedstockIndustrial_Electricity_Price*feedstockIndustrial_Electricity_Usage -> 16684228.69 | G75: yes
B76: feedstock | C76: Price Conversion Factor (GJ/mmBtu) | D76: Price in Startup Year ($2016)/mmBtu | E76: Usage (mmBtu/kg H2) | F76: Cost in Startup Year | G76: Lookup Prices
B77: Industrial Natural Gas | C77: 1.055 | D77: 3.733674814 | E77: =+ProcessFlow!V18 -> 0.1677796634 | F77: =+output_kgyear*feedstockIndustrial_Natural_Gas_Price*feedstockIndustrial_Natural_Gas_Usage -> 99393575.44 | G77: yes
A78: START_TOP
A79: START_UTILITY
A80: START_BYPROD
F81: Total
A82: Total_Energy_Feed_Cost | B82: Total Energy Feedstock Cost ($/year) | F82: =SUM(Dynamic_Feed_Total) -> 116077804.1
A83: Total_Energy_Utilities_Cost | B83: Total Energy Utilities Cost ($/year) | F83: =SUM(Dynamic_Utilities_Total) -> 0
A84: Total_Energy_Byproduct_Credit | B84: Total Energy Byproduct Credit ($/year) | F84: =SUM(Dynamic_Byproduct_Total) -> 0
D85: Notes:
B87: Capital Costs | E87: Notes
A88: direct_cap | B88: H2A Total Direct Capital Cost | C88: =Det_scaled_cap -> 378249572.3 | E88: Click to enter details on the Cost Detail Sheet
B90: Indirect Depreciable Capital Costs | C90: ="Enter values in basis year (" & BasisYear & ") dollars" -> Enter values in basis year (2018) dollars | D90: Combined Plant Scaling and Escalation Factor | E90: ="Reference Year ("& ref_year & ") Dollars" -> Reference Year (2016) Dollars
A91: Site_prep | B91: Site Preparation ($) (may change to construction costs) | C91: =0.0643491944473551*(direct_cap)/(CEPCIinflator*CPIinflator) -> 25394347.69 | D91: =CEPCIinflator*CPIinflator -> 0.9584831859 | E91: =C91*D91 -> 24340055.28 | F91: Includes buildings and other site improvements
A92: Engin | B92: Engineering & design ($) | C92: =0.137394766021756*(direct_cap)/(CEPCIinflator*CPIinflator) -> 54220577.11 | D92: 0.9584831859 | E92: =C92*D92 -> 51969511.49
A93: Process_cont | B93: Process contingency ($) | C93: =0.11079055690422*(direct_cap)/(CEPCIinflator*CPIinflator) -> 43721665 | D93: 0.9584831859 | E93: 41906480.77
A94: Project_cont | B94: Project contingency ($) | C94: =0.404009659162592*(direct_cap)/(CEPCIinflator*CPIinflator) -> 159435745 | D94: 0.9584831859 | E94: 152816480.8
A95: Other_indirect | B95: Other (Depreciable) capital ($) | C95: =+ProcessFlow!C121*1000 -> 100993000 | D95: 0.9584831859 | E95: 96800092.4
A96: Fees | B96: One-time Licensing Fees ($) | D96: 0.9584831859 | E96: 0
A97: Permitting | B97: Up-Front Permitting Costs ($) (legal and contractors fees included here) | C97: =0.137394766021756*(direct_cap)/(CEPCIinflator*CPIinflator) -> 54220577.11 | D97: 0.9584831859 | E97: 51969511.49
A98: Sdepr_cap | B98: Total Depreciable Capital Costs | E98: =direct_cap+SUM($E$91:$E$97) -> 798051704.5
D99: Combined Plant Scaling and Escalation Factor
B100: Non-Depreciable Capital Costs | C100: ="Enter values in basis year (" & BasisYear & ") dollars" -> Enter values in basis year (2018) dollars | E100: ="Reference Year ("& ref_year & ") Dollars" -> Reference Year (2016) Dollars
A101: acre_cost | B101: Cost of land ($/acre) | C101: 50000 | D101: =CPIinflator -> 0.9584831859 | E101: =C101*D101 -> 47924.1593
A102: acres | B102: Land required (acres) | C102: 100 | D102: =Scale_Factor *1 -> 1 | E102: =C102*D102 -> 100 | F102: Estimated based on site total cost in NETL report.
A103: Sland_cost | B103: Land Cost ($) | E103: =acre_cost*acres -> 4792415.93
B104: Other non depreciable capital costs | D104: =CPIinflator -> 0.9584831859 | E104: =C104*D104 -> 0
A105: Snon_dep_cap | B105: Total Non-Depreciable Capital Costs | E105: =land_cost+$E$104 -> 4792415.93
A107: Stotal_cap | B107: Total Capital Costs | C107: =(depr_cap+non_dep_cap)*sensitivity_06 -> 802844120.5
B109: Fixed Operating Costs | C109: ="Enter values in basis year (" & BasisYear & ") dollars" -> Enter values in basis year (2018) dollars | D109: Combined Plant Scaling and Escalation Factor | E109: ="Reference Year ("& ref_year & ") Dollars" -> Reference Year (2016) Dollars
A110: FTEs | B110: Total plant staff (number of FTEs employed by plant) | C110: 22 | D110: =Scale_Ratio^0.25 -> 1 | E110: =C110*D110 -> 22
A111: FTE_cost | B111: Burdened labor cost, including overhead ($/man-hr) | C111: 50 | D111: =VLOOKUP(ref_year,Tbl_labor_indexes,2,FALSE)/VLOOKUP(BasisYear,Tbl_labor_indexes,2,FALSE) -> 0.8920962199 | E111: =C111*D111 -> 44.604811 | F111: Using H2A default
A112: Slabor_cost | B112: Labor cost, $/year | E112: =FTEs*2080*FTE_cost -> 2041116.151
A113: overhead_rate | B113: G&A rate (% of labor cost) | C113: 0.2 | F113: Using H2A default
A114: Soverhead_GA | B114: G&A ($/year) | E114: =labor_cost*overhead_rate -> 408223.2302
A115: licensing | B115: Licensing, Permits and Fees ($/year) | C115: 0 | D115: =Scale_Factor *CEPCIinflator*CPIinflator -> 0.9584831859 | E115: =C115*D115 -> 0
A116: tax_ins_rate | B116: Property tax and insurance rate (% of total capital investment per year) | C116: 0.02
A117: Stax_insurance | B117: Property taxes and insurance ($/year) | E117: =tax_ins_rate*total_cap -> 16056882.41
A118: rent | B118: Rent ($/year) | C118: 0 | D118: =Scale_Factor *CPIinflator -> 0.9584831859 | E118: =C118*D118 -> 0
A119: material | B119: Material costs for maintenance and repairs ($/year) | C119: =7675489 -> 7675489 | D119: =Scale_Factor *CEPCIinflator*CPIinflator -> 0.9584831859 | E119: =C119*D119 -> 7356827.15
A120: prod_maint | B120: Production Maintenance and Repairs ($/year) | C120: 5116993 | D120: =Scale_Factor *CEPCIinflator*CPIinflator -> 0.9584831859 | E120: =C120*D120 -> 4904551.753 | F120: Maintenance labor
A121: other_fees | B121: Other Fees ($/year) | C121: 1973405 | D121: =Scale_Ratio * CEPCIinflator*CPIinflator -> 0.9584831859 | E121: =C121*D121 -> 1891475.512 | F121: Administrative & support labor
A122: other_fixed | B122: Other Fixed O&M Costs ($/year) | C122: 0 | D122: =Scale_Factor *CEPCIinflator*CPIinflator -> 0.9584831859 | E122: =C122*D122 -> 0
A123: Sfixed | B123: Total Fixed Operating Costs | E123: =(labor_cost+overhead_GA+tax_insurance+licensing+SUM(E118:E122))*sensitivity_07 -> 32659076.21
B125: Variable Operating Costs
B126: Other Materials and Byproducts
B128: Select the Material
B129: Process Water
B130: Feed or utility | C130: =B129 -> Process Water
B131: ="$(" & ref_year & ")/ " & VLOOKUP(TMP_NonE_Feed,Tbl_Other_Inputs_and_Byproducts,2,FALSE) -> $(2016)/ gal | C131: =HLOOKUP(startup_year,Tbl_Other_Inputs_and_Byproducts,MATCH(TMP_NonE_Feed,Other_Inputs_List,0),FALSE) -> 0.002374951095
B132: =IF(TMP_NonE_Type="Feed or utility","Usage per kg H2","Production per kg H2") -> Usage per kg H2
B133: =IF(TMP_NonE_Type = "Feed or utility", "Cost in Startup Year","Income in Startup Year") -> Cost in Startup Year | C133: =design_cap*365*cap_factor*TMP_NonE_Usage*TMP_NonE_StartPrice -> 0
B134: Lookup Prices | C134: Yes
A135: START_NONE_TOP
B136: Feed or utility | C136: $(2016)/ gal | D136: Usage per kg H2 | E136: Cost in Startup Year | F136: Lookup Prices
B137: Process Water | C137: 0.002374951095 | D137: =+ProcessFlow!V20 -> 8.130186335 | E137: =+output_kgyear*C137*D137 -> 3063639.603 | F137: Yes
A138: START_NONE_FEED
A139: START_NONE_BYPROD
B140: Total Non Energy Utility and Material Costs ($/year) | C140: =SUM(Dynamic_NonE_Feed_Total) -> 3063639.603
A141: total_non_energy_byproduct_credit | B141: Total Non Energy Byproduct Credits ($/year) | C141: =SUM(Dynamic_NonE_Byprod_Total) -> 0
A143: Stotal_feedstock | B143: Total Feedstock Costs ($/year) | C143: =Total_Energy_Feed_Cost -> 116077804.1
A144: Stotal_utilities | B144: Total Utility Costs ($/year) | C144: =Total_Energy_Utilities_Cost+Total_Non_Energy_Feed_Cost -> 3063639.603
A145: Stotal_byproducts | B145: Total Byproduct Credits ($/year) | C145: =Total_Energy_Byproduct_Credit+total_non_energy_byproduct_credit -> 0
B146: Other Variable operating costs (for the first year) | C146: ="Enter values in basis year (" & BasisYear & ") dollars" -> Enter values in basis year (2018) dollars | D146: Combined Plant Scaling and Escalation Factor | E146: ="Reference Year ("& ref_year & ") Dollars" -> Reference Year (2016) Dollars
A147: var_misc | B147: Other variable operating costs (e.g. environmental surcharges) ($/year) | C147: 0 | D147: =Scale_Ratio * VLOOKUP(ref_year,Chemical_price_indexes,2,FALSE)/VLOOKUP(BasisYear,Chemical_price_indexes,2,FALSE) -> 0.9205808476 | E147: =C147*D147 -> 0
A148: total_other_raw | B148: Other Material Costs ($/year) | C148: =30647681-1225337-22990051 -> 6432293 | D148: =Scale_Ratio * VLOOKUP(ref_year,Chemical_price_indexes,2,FALSE)/VLOOKUP(BasisYear,Chemical_price_indexes,2,FALSE) -> 0.9205808476 | E148: =C148*D148 -> 5921445.742
A149: waste_treat | B149: Waste treatment costs ($/year) | C149: =72448 -> 72448 | D149: =Scale_Ratio * VLOOKUP(ref_year,Chemical_price_indexes,2,FALSE)/VLOOKUP(BasisYear,Chemical_price_indexes,2,FALSE) -> 0.9205808476 | E149: =C149*D149 -> 66694.24124
A150: solidwaste_treat | B150: Solid waste disposal costs ($/year) | C150: 0 | D150: =Scale_Ratio * VLOOKUP(ref_year,Chemical_price_indexes,2,FALSE)/VLOOKUP(BasisYear,Chemical_price_indexes,2,FALSE) -> 0.9205808476 | E150: =C150*D150 -> 0
A151: replace_factor | B151: Total Unplanned Replacement Capital Cost Factor (% of total direct depreciable costs/year) | C151: 0.005 | E151: Value added to match other central cases. Use this value for all central cases
A152: royalties | B152: Royalties ($/year) | C152: 0 | D152: =Scale_Ratio * CPIinflator -> 0.9584831859 | E152: 0
A153: operator_profit | B153: Operator Profit ($/year) | C153: 0 | D153: =Scale_Ratio * CPIinflator -> 0.9584831859 | E153: 0
A154: tax_credit | B154: Subsidies, Tax Incentives ($/year) | C154: 0 | D154: =Scale_Ratio * CPIinflator -> 0.9584831859 | E154: 0
A155: CO2_seq | B155: CO2 sequestration O&M costs and credits ($/year) | E155: =+'Carbon Sequestration'!F39 -> 36130590.56
B156: Process Carbon Tax ($/metric ton carbon produced as CO2) | C156: 0 | D156: =CPIinflator -> 0.9584831859 | E156: 0
B157: Process Carbon Tax ($/year) | E157: =ROUND(Proc_CO2_tax*12/44*Proc_CO2_MTpY,-2) -> 0
B158: Upstream Carbon Tax ($/metric ton upstream GHG CO2 eq) | C158: 0 | D158: =CPIinflator -> 0.9584831859 | E158: 0
B159: Upstream Carbon Tax ($/year) | E159: =ROUND(Upstream_CO2_tax/1000*Upstream_GHG_total*output_kgyear,2) -> 0
A160: Stotal_var | B160: Total Variable Operating Costs ($/year) | E160: =ROUND(total_feedstock+total_utilities+total_other_raw-total_byproducts+var_misc+waste_treat+solidwaste_treat+royalties+operator_profit-tax_credit+CO2_OandMcost+Proc_CO2_taxpYear + Upstream_CO2_taxpYear,-2) -> 161260200

Sheet Replacement Costs
A2: Replacement Costs
C5: Color Key
A9: ="NOTE: Enter costs in year "&TEXT(BasisYear,"0")&" $ - Do not inflate" -> NOTE: Enter costs in year 2018 $ - Do not inflate
A10: NOTE: All replacement costs are assumed to be equity financed.
A13: Unplanned Yearly Replacement Capital (Depreciable)
C14: Comments | F14: Source | G14: Information
A15: Total Unplanned Replacement Capital Cost Factor (% of total depreciable capital costs/year) | B15: =replace_factor -> 0.005 | G15: Enter a fixed percentage. This input is meant to include, in the Cash Flow Analysis, a factor for unplanned capital expenditures.
A16: Actual Year | B16: Analysis Year | C16: Operations Year | D16: Specified Yearly Replacement Costs | E16: Carbon Sequestration Related Replacement Costs | F16: Specified Yearly Replacement Costs | G16: Unplanned Replacement Costs | H16: Total Yearly Replacement Costs | I16: Uninstalled costs | J16: Installation factor | K16: Comments: | L16: Data source:
D17: ="Year "&TEXT(BasisYear,"0")&" $" -> Year 2018 $ | E17: ="Year "&TEXT(ref_year,"0")&" $" -> Year 2016 $ | F17: ="Year "&TEXT(ref_year,"0")&" $" -> Year 2016 $ | G17: ="Year "&TEXT(ref_year,"0")&" $" -> Year 2016 $ | H17: Inflated to Start-up Year
A18: =IF(C18<>"",'Cash Flow Analysis'!A65,"") -> 2012 | B18: =construct+1 -> 4 | C18: 1 | E18: 0 | F18: =(D18)*CPIinflator*CEPCIinflator+E18 -> 0 | G18: =IF(C18>anal_period,0,IF(replace_factor<>"",replace_factor*depr_cap,0)) -> 3990258.523 | H18: =(F18+G18)*((1+inflation_rate)^(startup_year-ref_year)) -> 3915857.235
A19: =IF(C19<>"",'Cash Flow Analysis'!A66,"") -> 2013 | B19: =IF(B18<anal_period+construct,B18+1,"") -> 5 | C19: =IF(B19="","",C18+1) -> 2 | E19: 0 | F19: 0 | G19: =IF(C19>anal_period,0,IF(replace_factor<>"",replace_factor*depr_cap,0)) -> 3990258.523 | H19: =(F19+G19)*((1+inflation_rate)^(startup_year-ref_year)) -> 3915857.235
A20: =IF(C20<>"",'Cash Flow Analysis'!A67,"") -> 2014 | B20: 6 | C20: 3 | E20: 0 | F20: 0 | G20: 3990258.523 | H20: 3915857.235
A21: =IF(C21<>"",'Cash Flow Analysis'!A68,"") -> 2015 | B21: 7 | C21: 4 | E21: 0 | F21: 0 | G21: 3990258.523 | H21: 3915857.235
A22: =IF(C22<>"",'Cash Flow Analysis'!A69,"") -> 2016 | B22: 8 | C22: 5 | E22: 0 | F22: 0 | G22: 3990258.523 | H22: 3915857.235
A23: =IF(C23<>"",'Cash Flow Analysis'!A70,"") -> 2017 | B23: 9 | C23: 6 | E23: 0 | F23: 0 | G23: 3990258.523 | H23: 3915857.235
A24: =IF(C24<>"",'Cash Flow Analysis'!A71,"") -> 2018 | B24: 10 | C24: 7 | E24: 0 | F24: 0 | G24: 3990258.523 | H24: 3915857.235
A25: =IF(C25<>"",'Cash Flow Analysis'!A72,"") -> 2019 | B25: 11 | C25: 8 | E25: 0 | F25: 0 | G25: 3990258.523 | H25: 3915857.235
A26: =IF(C26<>"",'Cash Flow Analysis'!A73,"") -> 2020 | B26: 12 | C26: 9 | E26: 0 | F26: 0 | G26: 3990258.523 | H26: 3915857.235
A27: =IF(C27<>"",'Cash Flow Analysis'!A74,"") -> 2021 | B27: 13 | C27: 10 | E27: 0 | F27: 0 | G27: 3990258.523 | H27: 3915857.235
A28: =IF(C28<>"",'Cash Flow Analysis'!A75,"") -> 2022 | B28: 14 | C28: 11 | E28: 0 | F28: 0 | G28: 3990258.523 | H28: 3915857.235
A29: =IF(C29<>"",'Cash Flow Analysis'!A76,"") -> 2023 | B29: 15 | C29: 12 | E29: 0 | F29: 0 | G29: 3990258.523 | H29: 3915857.235
A30: =IF(C30<>"",'Cash Flow Analysis'!A77,"") -> 2024 | B30: 16 | C30: 13 | E30: 0 | F30: 0 | G30: 3990258.523 | H30: 3915857.235
A31: =IF(C31<>"",'Cash Flow Analysis'!A78,"") -> 2025 | B31: 17 | C31: 14 | E31: 0 | F31: 0 | G31: 3990258.523 | H31: 3915857.235
A32: =IF(C32<>"",'Cash Flow Analysis'!A79,"") -> 2026 | B32: 18 | C32: 15 | E32: 0 | F32: 0 | G32: 3990258.523 | H32: 3915857.235
A33: =IF(C33<>"",'Cash Flow Analysis'!A80,"") -> 2027 | B33: 19 | C33: 16 | E33: 0 | F33: 0 | G33: 3990258.523 | H33: 3915857.235
A34: =IF(C34<>"",'Cash Flow Analysis'!A81,"") -> 2028 | B34: 20 | C34: 17 | E34: 0 | F34: 0 | G34: 3990258.523 | H34: 3915857.235
A35: =IF(C35<>"",'Cash Flow Analysis'!A82,"") -> 2029 | B35: 21 | C35: 18 | E35: 0 | F35: 0 | G35: 3990258.523 | H35: 3915857.235
A36: =IF(C36<>"",'Cash Flow Analysis'!A83,"") -> 2030 | B36: 22 | C36: 19 | E36: 0 | F36: 0 | G36: 3990258.523 | H36: 3915857.235
A37: =IF(C37<>"",'Cash Flow Analysis'!A84,"") -> 2031 | B37: 23 | C37: 20 | E37: 0 | F37: 0 | G37: 3990258.523 | H37: 3915857.235
A38: =IF(C38<>"",'Cash Flow Analysis'!A85,"") -> 2032 | B38: 24 | C38: 21 | E38: 0 | F38: 0 | G38: 3990258.523 | H38: 3915857.235
A39: =IF(C39<>"",'Cash Flow Analysis'!A86,"") -> 2033 | B39: 25 | C39: 22 | E39: 0 | F39: 0 | G39: 3990258.523 | H39: 3915857.235
A40: =IF(C40<>"",'Cash Flow Analysis'!A87,"") -> 2034 | B40: 26 | C40: 23 | E40: 0 | F40: 0 | G40: 3990258.523 | H40: 3915857.235
A41: =IF(C41<>"",'Cash Flow Analysis'!A88,"") -> 2035 | B41: 27 | C41: 24 | E41: 0 | F41: 0 | G41: 3990258.523 | H41: 3915857.235
A42: =IF(C42<>"",'Cash Flow Analysis'!A89,"") -> 2036 | B42: 28 | C42: 25 | E42: 0 | F42: 0 | G42: 3990258.523 | H42: 3915857.235
A43: =IF(C43<>"",'Cash Flow Analysis'!A90,"") -> 2037 | B43: 29 | C43: 26 | E43: 0 | F43: 0 | G43: 3990258.523 | H43: 3915857.235
A44: =IF(C44<>"",'Cash Flow Analysis'!A91,"") -> 2038 | B44: 30 | C44: 27 | E44: 0 | F44: 0 | G44: 3990258.523 | H44: 3915857.235
A45: =IF(C45<>"",'Cash Flow Analysis'!A92,"") -> 2039 | B45: 31 | C45: 28 | E45: 0 | F45: 0 | G45: 3990258.523 | H45: 3915857.235
A46: =IF(C46<>"",'Cash Flow Analysis'!A93,"") -> 2040 | B46: 32 | C46: 29 | E46: 0 | F46: 0 | G46: 3990258.523 | H46: 3915857.235
A47: =IF(C47<>"",'Cash Flow Analysis'!A94,"") -> 2041 | B47: 33 | C47: 30 | E47: 0 | F47: 0 | G47: 3990258.523 | H47: 3915857.235
A48: =IF(C48<>"",'Cash Flow Analysis'!A95,"") -> 2042 | B48: 34 | C48: 31 | E48: 0 | F48: 0 | G48: 3990258.523 | H48: 3915857.235
A49: =IF(C49<>"",'Cash Flow Analysis'!A96,"") -> 2043 | B49: 35 | C49: 32 | E49: 0 | F49: 0 | G49: 3990258.523 | H49: 3915857.235
A50: =IF(C50<>"",'Cash Flow Analysis'!A97,"") -> 2044 | B50: 36 | C50: 33 | E50: 0 | F50: 0 | G50: 3990258.523 | H50: 3915857.235
A51: =IF(C51<>"",'Cash Flow Analysis'!A98,"") -> 2045 | B51: 37 | C51: 34 | E51: 0 | F51: 0 | G51: 3990258.523 | H51: 3915857.235
A52: =IF(C52<>"",'Cash Flow Analysis'!A99,"") -> 2046 | B52: 38 | C52: 35 | E52: 0 | F52: 0 | G52: 3990258.523 | H52: 3915857.235
A53: =IF(C53<>"",'Cash Flow Analysis'!A100,"") -> 2047 | B53: 39 | C53: 36 | E53: 0 | F53: 0 | G53: 3990258.523 | H53: 3915857.235
A54: =IF(C54<>"",'Cash Flow Analysis'!A101,"") -> 2048 | B54: 40 | C54: 37 | E54: 0 | F54: 0 | G54: 3990258.523 | H54: 3915857.235
A55: =IF(C55<>"",'Cash Flow Analysis'!A102,"") -> 2049 | B55: 41 | C55: 38 | E55: 0 | F55: 0 | G55: 3990258.523 | H55: 3915857.235
A56: =IF(C56<>"",'Cash Flow Analysis'!A103,"") -> 2050 | B56: 42 | C56: 39 | E56: 0 | F56: 0 | G56: 3990258.523 | H56: 3915857.235
A57: =IF(C57<>"",'Cash Flow Analysis'!A104,"") -> 2051 | B57: 43 | C57: 40 | E57: 0 | F57: 0 | G57: 3990258.523 | H57: 3915857.235

Sheet Capital Costs
B2: Capital Costs
C4: Color Key
B7: Design Plant Hydrogen Production (kg/day) | C7: 483000 | D7: Capital costs for the design plant (baseline) are entered on this sheet. Use the Plant Scaling sheet to set scaling parameters for scaling up or down in size from the baseline plant. Enter the output kg/day for the plant you wish to analyze on the Input Sheet
D8: Comments
B9: Basis year for capital costs | C9: =BasisYear -> 2018
B10: Enter current year for capital costs | C10: 2018
B11: ="CEPCI Inflator ("&BasisYear&" to "&CurrentYear&")" -> CEPCI Inflator (2018 to 2018) | C11: =VLOOKUP(CurrentYear,Tbl_PlantCostIndexes,2,FALSE)/VLOOKUP(BasisYear,Tbl_PlantCostIndexes,2,FALSE) -> 1 | D11: The Chemical Engineering Plant Cost Index (CEPCI) is used to adjust the capital cost of the H2 Production facility from the basis year to the current year.
B12: ="Consumer Price Inflator ("&CurrentYear&" to "&ref_year&")" -> Consumer Price Inflator (2018 to 2016) | C12: =VLOOKUP(ref_year,DeflatorTable,2,FALSE)/VLOOKUP(CurrentYear,DeflatorTable,2,FALSE) -> 0.9584831859 | D12: The Consumer Price Inflator (CPI) is used to deflate all dollars from the current year to the Reference Year.
B14: ="CAPITAL INVESTMENT (Inputs REQUIRED in Basis Year, (" & BasisYear & ") $)" -> CAPITAL INVESTMENT (Inputs REQUIRED in Basis Year, (2018) $)
B15: Major pieces/systems of equipment | C15: ="Baseline Uninstalled Costs $"&BasisYear&" Dollars" -> Baseline Uninstalled Costs $2018 Dollars | D15: ="Baseline Uninstalled Costs $"&ref_year&" Dollars" -> Baseline Uninstalled Costs $2016 Dollars | E15: Installation Cost Factor | F15: Baseline Installed Costs | G15: Comments | H15: Data Source
B16: Accessory Electric Plant | C16: 3270000 | D16: =C16*CEPCIinflator*CPIinflator -> 3134240.018 | E16: 2.099388379 | F16: =D16*E16 -> 6579987.071
B17: Cooling Water System | C17: 19401000 | D17: =C17*CEPCIinflator*CPIinflator -> 18595532.29 | E17: 1.346786248 | F17: =D17*E17 -> 25044207.16
B18: Feedwater & Miscellaneous BOP Systems | C18: 39465000 | D18: 37826538.93 | E18: 1.51693906 | F18: 57380554.41
B19: Flue Gas Cleanup | C19: 179884000 | D19: 172415789.4 | E19: 1.006301271 | F19: 173502228.1
B20: Hydrogen Production | C20: 16135000 | D20: 15465126.2 | E20: 1.080508212 | F20: 16710195.86
B21: Instrumentation & Control | C21: 10012000 | D21: 9596333.657 | E21: 1.14572513 | F21: 10994760.63 | G21: Removed H₂ compressor to pipeline pressure as it is out of scope for H2A production cases
B22: Reformer & Accessories | C22: 41908000 | D22: 40168113.36 | E22: 1.507683497 | F22: 60560801.62
B23: Syngas Cleanup | C23: 22779000 | D23: 21833288.49 | E23: 1.258483691 | F23: 27476837.49
D24: 0 | F24: 0
D25: 0 | F25: 0
D26: 0 | F26: 0
D27: 0 | F27: 0
D28: 0 | F28: 0
D29: 0 | F29: 0
D30: 0 | F30: 0
D31: 0 | F31: 0
D32: 0 | F32: 0
D33: 0 | F33: 0
D34: 0 | F34: 0
D35: 0 | F35: 0
C36: =SUM(C16:C35) -> 332854000 | D36: =SUM(D16:D35) -> 319034962.4 | F36: =SUM(F16:F35) -> 378249572.3

Sheet Plant Scaling
B1: leave this sheet as is for scaled costs
B2: Plant Scaling Factors
B3: Baseline Design Capacity (kg H2/day) | C3: =Baseline_Design_Capacity -> 483000 | D3: Design capacity for original H2A case. Imported from capital cost sheet
B4: Scale Ratio | C4: =design_cap/Baseline_Design_Capacity -> 1 | D4: Ratio of new design capacity (enter on Input Sheet) to the Baseline Design Capacity. Used for linear scaling
B5: Scale Factor | C5: =$G$27/Det_direct_cap -> 1 | D5: Ratio of total scaled installed capital capital cost to total baseline installed capital costs. Used for exponential scaling.
B6: Default Scaling Factor Exponent | C6: 0.6 | D6: Scaling factor exponent used for scaling all capital equipment where an individual factor has not been entered below.
B7: Lower Limit for Scaling Capacity (kg H2/day) | C7: =483000*0.5 -> 241500 | D7: http://www.chemicals-technology.com/projects/air-products-plant/
B8: Upper Limit for Scaling Capacity (kg H2/day) | C8: =483000*2 -> 966000 | D8: http://hydrogen.pnl.gov/filedownloads/hydrogen/datasheets/hydrogen_production_capacity_by_state.xls
B11: ="CAPITAL INVESTMENT (Inputs REQUIRED in Reference Year, (" & ref_year & ") $)" -> CAPITAL INVESTMENT (Inputs REQUIRED in Reference Year, (2016) $)
B12: Major pieces/systems of equipment | C12: Baseline Uninstalled Costs | D12: Scaling Factor Exponent | E12: Scaled Uninstalled Costs | F12: Installation Cost Factor | G12: Installed Cost (scaled) | H12: Installed Cost (baseline) | I12: Comments | J12: Data Source
B13: ='Capital Costs'!B16 -> Accessory Electric Plant | C13: ='Capital Costs'!D16 -> 3134240.018 | D13: 0.33 | E13: =IF($D13="",$C13*Scale_Ratio^Scaling_Factor_Exponent,$C13*Scale_Ratio^$D13) -> 3134240.018 | F13: ='Capital Costs'!E16 -> 2.099388379 | G13: =$E13*$F13 -> 6579987.071 | H13: =C13*F13 -> 6579987.071 | I13: Weighted average by sub-component list | J13: https://netl.doe.gov/projects/files/QualityGuidelinesforEnergySystemStudiesCapitalCostScalingMethodologyRevision4Report_110719.pdf
B14: ='Capital Costs'!B17 -> Cooling Water System | C14: ='Capital Costs'!D17 -> 18595532.29 | D14: 0.69 | E14: =IF($D14="",$C14*Scale_Ratio^Scaling_Factor_Exponent,$C14*Scale_Ratio^$D14) -> 18595532.29 | F14: ='Capital Costs'!E17 -> 1.346786248 | G14: =$E14*$F14 -> 25044207.16 | H14: =C14*F14 -> 25044207.16 | J14: https://netl.doe.gov/projects/files/QualityGuidelinesforEnergySystemStudiesCapitalCostScalingMethodologyRevision4Report_110719.pdf
B15: ='Capital Costs'!B18 -> Feedwater & Miscellaneous BOP Systems | C15: ='Capital Costs'!D18 -> 37826538.93 | D15: 0.54 | E15: 37826538.93 | F15: ='Capital Costs'!E18 -> 1.51693906 | G15: 57380554.41 | H15: 57380554.41 | J15: https://netl.doe.gov/projects/files/QualityGuidelinesforEnergySystemStudiesCapitalCostScalingMethodologyRevision4Report_110719.pdf
B16: ='Capital Costs'!B19 -> Flue Gas Cleanup | C16: ='Capital Costs'!D19 -> 172415789.4 | D16: 0.7 | E16: 172415789.4 | F16: ='Capital Costs'!E19 -> 1.006301271 | G16: 173502228.1 | H16: 173502228.1 | J16: https://netl.doe.gov/projects/files/QualityGuidelinesforEnergySystemStudiesCapitalCostScalingMethodologyRevision4Report_110719.pdf
B17: ='Capital Costs'!B20 -> Hydrogen Production | C17: ='Capital Costs'!D20 -> 15465126.2 | D17: 0.63 | E17: 15465126.2 | F17: ='Capital Costs'!E20 -> 1.080508212 | G17: 16710195.86 | H17: 16710195.86 | J17: https://netl.doe.gov/projects/files/QualityGuidelinesforEnergySystemStudiesCapitalCostScalingMethodologyRevision4Report_110719.pdf
B18: ='Capital Costs'!B21 -> Instrumentation & Control | C18: ='Capital Costs'!D21 -> 9596333.657 | D18: 0.6 | E18: 9596333.657 | F18: ='Capital Costs'!E21 -> 1.14572513 | G18: 10994760.63 | H18: 10994760.63 | J18: https://netl.doe.gov/projects/files/QualityGuidelinesforEnergySystemStudiesCapitalCostScalingMethodologyRevision4Report_110719.pdf
B19: ='Capital Costs'!B22 -> Reformer & Accessories | C19: ='Capital Costs'!D22 -> 40168113.36 | D19: 0.16 | E19: 40168113.36 | F19: ='Capital Costs'!E22 -> 1.507683497 | G19: 60560801.62 | H19: 60560801.62 | J19: https://netl.doe.gov/projects/files/QualityGuidelinesforEnergySystemStudiesCapitalCostScalingMethodologyRevision4Report_110719.pdf
B20: ='Capital Costs'!B23 -> Syngas Cleanup | C20: ='Capital Costs'!D23 -> 21833288.49 | D20: 0.68 | E20: 21833288.49 | F20: ='Capital Costs'!E23 -> 1.258483691 | G20: 27476837.49 | H20: 27476837.49 | J20: https://netl.doe.gov/projects/files/QualityGuidelinesforEnergySystemStudiesCapitalCostScalingMethodologyRevision4Report_110719.pdf
C21: ='Capital Costs'!D24 -> 0 | E21: 0 | F21: ='Capital Costs'!E24 -> 0 | G21: 0 | H21: 0 | J21: https://netl.doe.gov/projects/files/QualityGuidelinesforEnergySystemStudiesCapitalCostScalingMethodologyRevision4Report_110719.pdf
C22: ='Capital Costs'!D25 -> 0 | E22: 0 | F22: ='Capital Costs'!E25 -> 0 | G22: 0 | H22: 0 | J22: https://netl.doe.gov/projects/files/QualityGuidelinesforEnergySystemStudiesCapitalCostScalingMethodologyRevision4Report_110719.pdf
C23: ='Capital Costs'!D26 -> 0 | E23: 0 | F23: ='Capital Costs'!E26 -> 0 | G23: 0 | H23: 0
C24: ='Capital Costs'!D27 -> 0 | E24: 0 | F24: ='Capital Costs'!E27 -> 0 | G24: 0 | H24: 0
C25: ='Capital Costs'!D28 -> 0 | E25: 0 | F25: ='Capital Costs'!E28 -> 0 | G25: 0 | H25: 0
C26: ='Capital Costs'!D29 -> 0 | E26: 0 | F26: ='Capital Costs'!E29 -> 0 | G26: 0 | H26: 0
B27: TOTALS (including scaling) | C27: =SUM(C13:C26) -> 319034962.4 | E27: =SUM(E13:E26) -> 319034962.4 | G27: =SUM(G13:G26) -> 378249572.3 | H27: =SUM(H13:H26) -> 378249572.3

Sheet Carbon Sequestration
B2: Carbon Sequestration
B4: Carbon Sequestration Calculation Information
B5: Costs for carbon (CO₂) transport to the sequestration site and injection are calculated in this section. Costs for CO₂ compression to 2,200psia are to be included in the capital and operating costs for the production facility and are not included here. In scope of the sheet below is pipeline transport to an saline geologic formation, pumping to compensate for CO₂ pressure loss, injection into formation, and post-injection site care. Detailed description and accounting can be found in the referenced models by FE/NETL.
B7: Table of Contents
B8: Color Key
B11: Use default values (checkboxes)
B15: Carbon Sequestration Input Values
B16: Summary of Output Values
B17: Carbon Sequestration Calculations
B20: Carbon Sequestration Information
B21: CO₂ Produced from Feedstock (metric tonnes CO₂/year) | C21: =Feed_CO2_MTpY -> 1581600 | D21: CO2 emissions are based on the carbon content of the feed. See the Physical Properties Table for specific values
B22: CO₂ Produced from Feedstock (kg CO₂/kg H2) | C22: =Feed_CO2_kgpkgH2 -> 9.968239829
B23: CO₂ Mass Flowrate (metric tonnes/day) | C23: =Feed_CO2_MTpY/365*CO2_Capture_Efficiency -> 4172.635778
B24: CO₂ Mass Flowrate (million metric tonnes/year) | C24: =CO2_flowrate*365/1000000 -> 1.523012059
B26: Carbon Sequestration Input Values
B27: Process Design Parameters
B28: Carbon Capture Efficiency (%) | C28: =+ProcessFlow!V15 -> 0.9629565371 | E28: Set to 0 to turn off CCS
B29: Carbon transport and sequestration capacity factor | C29: =+cap_factor -> 0.9
B30: Pipeline Length (km) | C30: 160
B31: CO₂ capture credit ($/metric ton CO₂ captured) | C31: 0
B32: Approx Capital Charge Rate | C32: =+'Cash Flow Analysis'!E22 -> 0.0838601615
C35: Nominal cost in flow start year: | D35: Cost (nominal $/tonne CO₂) | E35: ="First year cost in basis year dollars ("&BasisYear&"$/tonne CO₂)" -> First year cost in basis year dollars (2018$/tonne CO₂) | F35: ="First year cost ("&BasisYear&"$/year)" -> First year cost (2018$/year) | G35: ="First year cost in reference year dollars ("&ref_year&"$/tonne CO₂)" -> First year cost in reference year dollars (2016$/tonne CO₂) | H35: ="First year cost in reference year dollars ("&ref_year&"$/kg H₂)" -> First year cost in reference year dollars (2016$/kg H₂)
B36: Transport | C36: 2015 | D36: =IF(CO2_Capture_Efficiency>0,(D43 +E43*CO2_flowrate_GTpY^E44*(1/C29)^E45+ +F43*CO2_flowrate_GTpY^F44*(1/C29)^F45+ +G43*CO2_flowrate_GTpY^G44*(1/C29)^G45)*CO2_PipeLength/1.609,0) -> 6.350641305 | E36: =+D36 *INDEX('HyARC Physical Property Data'!$B$94:$B$123,MATCH(BasisYear,'HyARC Physical Property Data'!A94:A123,0),0) /INDEX('HyARC Physical Property Data'!$B$94:$B$123,MATCH(C36,'HyARC Physical Property Data'!A94:A123,0),0) -> 6.691999763 | F36: =+E36*CO2_flowrate_GTpY*1000000 -> 10191996.34 | G36: =IF(CO2_Capture_Efficiency>0, E36 *INDEX('HyARC Physical Property Data'!$B$94:$B$123,MATCH(ref_year,'HyARC Physical Property Data'!$A$94:$A$123,0),0) /INDEX('HyARC Physical Property Data'!$B$94:$B$123,MATCH(BasisYear,'HyARC Physical Property Data'!$A$94:$A$123,0),0),0) -> 6.414169253 | H36: =+F36/output_kgyear *INDEX('HyARC Physical Property Data'!$B$94:$B$123,MATCH(ref_year,'HyARC Physical Property Data'!A94:A123,0),0) /INDEX('HyARC Physical Property Data'!$B$94:$B$123,MATCH(BasisYear,'HyARC Physical Property Data'!A94:A123,0),0) -> 0.06156887995
B37: Storage | C37: 2015 | D37: =IF(CO2_Capture_Efficiency>0,(D50 +E50*CO2_flowrate_GTpY^E51*(1/C29)^E52+ +F50*CO2_flowrate_GTpY^F51*(1/C29)^F52+ +G50*CO2_flowrate_GTpY^G51*(1/C29)^G52+ +H50*CO2_flowrate_GTpY^H51*(1/C29)^H52+ +I50*CO2_flowrate_GTpY^I51*(1/C29)^I52+ +J50*CO2_flowrate_GTpY^J51*(1/C29)^J52),0) -> 16.38408111 | E37: =+D37 *INDEX('HyARC Physical Property Data'!$B$94:$B$123,MATCH(BasisYear,'HyARC Physical Property Data'!A95:A124,0),0) /INDEX('HyARC Physical Property Data'!$B$94:$B$123,MATCH(C37,'HyARC Physical Property Data'!A95:A124,0),0) -> 17.03111546 | F37: =+E37*CO2_flowrate_GTpY*1000000 -> 25938594.22 | G37: =+E37 *INDEX('HyARC Physical Property Data'!$B$94:$B$123,MATCH(ref_year,'HyARC Physical Property Data'!$A$94:$A$123,0),0) /INDEX('HyARC Physical Property Data'!$B$94:$B$123,MATCH(BasisYear,'HyARC Physical Property Data'!$A$94:$A$123,0),0) -> 16.3240378 | H37: =+F37/output_kgyear *INDEX('HyARC Physical Property Data'!$B$94:$B$123,MATCH(ref_year,'HyARC Physical Property Data'!A95:A124,0),0) /INDEX('HyARC Physical Property Data'!$B$94:$B$123,MATCH(BasisYear,'HyARC Physical Property Data'!A95:A124,0),0) -> 0.1588484681
B38: CCS credit | E38: =+G38/INDEX('HyARC Physical Property Data'!$B$94:$B$123,MATCH(ref_year,'HyARC Physical Property Data'!$A$94:$A$123,0),0) *INDEX('HyARC Physical Property Data'!$B$94:$B$123,MATCH(BasisYear,'HyARC Physical Property Data'!$A$94:$A$123,0),0) -> 0 | F38: =+E38*CO2_flowrate_GTpY*1000000 -> 0 | G38: =-CO2_credit -> 0 | H38: =+F38/output_kgyear *INDEX('HyARC Physical Property Data'!$B$94:$B$123,MATCH(ref_year,'HyARC Physical Property Data'!A96:A125,0),0) /INDEX('HyARC Physical Property Data'!$B$94:$B$123,MATCH(BasisYear,'HyARC Physical Property Data'!A96:A125,0),0) -> 0
B39: ="Total ("&startup_year&"$/metric tonne)" -> Total (2015$/metric tonne) | D39: =+SUM(D36:D38) -> 22.73472241 | E39: =+SUM(E36:E38) -> 23.72311522 | F39: =IF(CO2_Capture_Efficiency>0,SUM(F36:F38),0) -> 36130590.56 | G39: =+SUM(G36:G38) -> 22.73820706 | H39: =+F39/output_kgyear *INDEX('HyARC Physical Property Data'!$B$94:$B$123,MATCH(ref_year,'HyARC Physical Property Data'!A96:A125,0),0) /INDEX('HyARC Physical Property Data'!$B$94:$B$123,MATCH(BasisYear,'HyARC Physical Property Data'!A96:A125,0),0) -> 0.2232182091
B43: Transport model linearization coefficients | C43: Coefficients | D43: 0.001293707977 | E43: 0.06878156982 | F43: 0.01731727172 | G43: -0.0001373944218
B44: Coefficients linearizing CO₂ transport cost per metric tonne-mile based on FE/NETL CO₂ Transport Cost Model (2022) with the following adjustments: - Operating life = 40 years - First transport year = 2015 - System capacity factor = variable; linearized between 10% and 100% - CO₂ flow = variable; linearized between 0.1 and 12 million metric tonnes / year - Linearization validity is for transport distance of 30 to 1,000 miles - Cost per transported tonne of CO₂ were linearized on 2015 nominal $ basis | C44: Term exponents | D44: A: transport quantity (MMT/y) | E44: -1 | F44: -0.1561183245 | G44: 0.4706623423
D45: B: 1/capacity factor | E45: -0.01665149642 | F45: 0.824934912 | G45: 1.752424871
B46: Reference: | C46: https://www.netl.doe.gov/energy-analysis/details?id=b37414b7-20d3-4fb2-bca6-b6146b26198a
B50: Saline storage model linearization coefficients | D50: 64.30915549 | E50: -60.15023706 | F50: -0.1168006208 | G50: 0.4108292523 | H50: 6.217192063 | I50: 8.568352384 | J50: 1.048414003
B51: Coefficients linearizing CO₂ injection cost per metric tonne based on * FE/NETL CO₂ Saline Storage Cost Model (2017) with the following adjustments: - Injection formation = Woodbine1 (in East Texas) - Operating life = 40 years - First transport year = 2015 - System capacity factor = variable; linearized between 10% and 100% - CO₂ flow = variable; linearized between 0.1 and 12 million metric tonnes / year - Cost per transported tonne of CO₂ were linearized on 2015 nominal $ basis | D51: A: transport quantity (MMT/y) | E51: 0.07123033628 | F51: 0 | G51: 0.04474941387 | H51: 0.4070881196 | I51: -0.935407651 | J51: -1.456581128
D52: B: 1/capacity factor | E52: -0.0002268514953 | F52: 1.924411181 | G52: 1.542903409 | H52: 0 | I52: -0.04393912935 | J52: 0.05187420906
B53: Reference: | C53: https://edx.netl.doe.gov/dataset/fe-netl-co2-saline-storage-cost-model-2017

Sheet Results
B2: Table of Contents
B3: Specific Item Cost Calculation
B4: Energy Data
B5: Production Process Energy Efficiency
B6: Upstream Energy Usage
B7: Emissions Summary
B8: Production Process GHG Emissions Summary
B9: Production Process GHG Emissions
B10: Upstream GHG Emissions
B12: H2a Analysis Results
B14: COST RESULTS
B15: Lang Factor | C15: =total_cap/(ProcEqpCap) -> 2.516476923
B17: Specific Item Cost Calculation | F17: =IF(('Carbon Sequestration'!C28>0),"CO₂ Transport & Sequestration costs*","Carbon Sequestration is not included in this case") -> CO₂ Transport & Sequestration costs*
B18: Cost Component | C18: Cost Contribution ($/kg) | D18: Percentage of H2 Cost | F18: Cost Component | G18: Cost Contribution ($/ kg H2) | H18: Cost Contribution ($/ tonne CO2 Sequestered)
B19: Capital Costs | C19: ='Cash Flow Analysis'!D119 -> 0.3861577511 | D19: ='Cash Flow Analysis'!C119 -> 0.2081015423 | F19: CO₂ Transport | G19: =+'Carbon Sequestration'!H36 -> 0.06156887995 | H19: =+'Carbon Sequestration'!G36 -> 6.414169253
B20: Decommissioning Costs | C20: ='Cash Flow Analysis'!D120 -> 0.001941574233 | D20: ='Cash Flow Analysis'!C120 -> 0.001046320037 | F20: CO₂ Injection | G20: =+'Carbon Sequestration'!H37 -> 0.1588484681 | H20: =+'Carbon Sequestration'!G37 -> 16.3240378
B21: Fixed O&M | C21: ='Cash Flow Analysis'!D121 -> 0.2058360274 | D21: ='Cash Flow Analysis'!C121 -> 0.1109256377
B22: Feedstock Costs | C22: ='Cash Flow Analysis'!D122 -> 0.9769214802 | D22: ='Cash Flow Analysis'!C122 -> 0.5264658452 | F22: Total | G22: =SUM(G19:G20) -> 0.220417348 | H22: =SUM(H19:H20) -> 22.73820706
B23: Other Raw Material Costs | C23: ='Cash Flow Analysis'!D123 -> 0.0373203106 | D23: ='Cash Flow Analysis'!C123 -> 0.02011202462 | F23: *Carbon sequestration costs presented in this table do not include carbon capture capital and operating costs.
B24: Byproduct Credits | C24: ='Cash Flow Analysis'!D124 -> 0 | D24: ='Cash Flow Analysis'!C124 -> 0
B25: Other Variable Costs (including utilities) | C25: ='Cash Flow Analysis'!D125 -> 0.2474446203 | D25: ='Cash Flow Analysis'!C125 -> 0.1333486302
B26: Total | C26: =SUM(C19:C25) -> 1.855621764
B28: ENERGY
B30: Energy Data
B31: Feedstock | C31: Energy Input (GJ/kg H2) | D31: Energy Input (kWh/kg H2) | E31: LHV (GJ/usage unit) | F31: Usage (/kg H2) | G31: Unit | H31: Unit System Conversion Factor | I31: Real levelized cost
B32: =IF('Cash Flow Analysis'!$B$131=0,"",'Cash Flow Analysis'!$B$131) -> Industrial Electricity | C32: =IF($B$32="","",$E$32*$F$32*$H$32) -> 0.005409391304 | D32: =IF($B32="","",$C32*1000*MJ_to_kWh) -> 1.502608696 | E32: =IF($B$32<>"",VLOOKUP($B$32,MASTER_PROPERTY_TABLE,MATCH("H2A LHV (GJ/ H2A usage input unit)",key_MPTable,0),FALSE),"") -> 0.0036 | F32: =IF('Cash Flow Analysis'!$B$133="","",'Cash Flow Analysis'!$B$133) -> 1.502608696 | G32: =IF($B$32<>"",VLOOKUP($B$32,MASTER_PROPERTY_TABLE,MATCH("H2A Usage Input Unit/ kg H2",key_MPTable,0),FALSE),"") -> kWh | H32: =IF($B32="","",IF(VLOOKUP($B32,MASTER_PROPERTY_TABLE,MATCH("Unit System",key_MPTable,0),FALSE)="English",mmBTU_to_GJ,1)) -> 1 | I32: =+'Cash Flow Analysis'!$B$233 -> 0.07785302043
B33: =IF('Cash Flow Analysis'!$C$131=0,"",'Cash Flow Analysis'!$C$131) -> Industrial Natural Gas | C33: =IF($B$33="","",$E$33*$F$33*$H$33) -> 0.1770075448 | D33: =IF($B33="","",$C33*1000*MJ_to_kWh) -> 49.16876245 | E33: =IF($B$33<>"",VLOOKUP($B$33,MASTER_PROPERTY_TABLE,MATCH("H2A LHV (GJ/ H2A usage input unit)",key_MPTable,0),FALSE),"") -> 1.055 | F33: =IF('Cash Flow Analysis'!$C$133="","",'Cash Flow Analysis'!$C$133) -> 0.1677796634 | G33: =IF($B$33<>"",VLOOKUP($B$33,MASTER_PROPERTY_TABLE,MATCH("H2A Usage Input Unit/ kg H2",key_MPTable,0),FALSE),"") -> mmBtu | H33: =IF($B$33="","",IF(VLOOKUP($B$33,MASTER_PROPERTY_TABLE,MATCH("Unit System",key_MPTable,0),FALSE)="English",mmBTU_to_GJ,1)) -> 1 | I33: =+'Cash Flow Analysis'!$C$233 -> 5.463642419
B34: =IF('Cash Flow Analysis'!$D$131=0,"",'Cash Flow Analysis'!$D$131) ->  | C34: =IF($B$34="","",$E$34*$F$34*$H$34) ->  | D34: =IF($B34="","",$C34*1000*MJ_to_kWh) ->  | E34: =IF($B$34<>"",VLOOKUP($B$34,MASTER_PROPERTY_TABLE,MATCH("H2A LHV (GJ/ H2A usage input unit)",key_MPTable,0),FALSE),"") ->  | F34: =IF('Cash Flow Analysis'!$D$133="","",'Cash Flow Analysis'!$D$133) ->  | G34: =IF($B$34<>"",VLOOKUP($B$34,MASTER_PROPERTY_TABLE,MATCH("H2A Usage Input Unit/ kg H2",key_MPTable,0),FALSE),"") ->  | H34: =IF($B$34="","",IF(VLOOKUP($B$34,MASTER_PROPERTY_TABLE,MATCH("Unit System",key_MPTable,0),FALSE)="English",mmBTU_to_GJ,1)) ->  | I34: =+'Cash Flow Analysis'!$D$233 -> 
B35: =IF('Cash Flow Analysis'!$E$131=0,"",'Cash Flow Analysis'!$E$131) ->  | C35: =IF($B$35="","",$E$35*$F$35*$H$35) ->  | D35: =IF($B35="","",$C35*1000*MJ_to_kWh) ->  | E35: =IF($B$35<>"",VLOOKUP($B$35,MASTER_PROPERTY_TABLE,MATCH("H2A LHV (GJ/ H2A usage input unit)",key_MPTable,0),FALSE),"") ->  | F35: =IF('Cash Flow Analysis'!$E$133="","",'Cash Flow Analysis'!$E$133) ->  | G35: =IF($B$35<>"",VLOOKUP($B$35,MASTER_PROPERTY_TABLE,MATCH("H2A Usage Input Unit/ kg H2",key_MPTable,0),FALSE),"") ->  | H35: =IF($B$35="","",IF(VLOOKUP($B$35,MASTER_PROPERTY_TABLE,MATCH("Unit System",key_MPTable,0),FALSE)="English",mmBTU_to_GJ,1)) ->  | I35: =+'Cash Flow Analysis'!$E$233 -> 
B36: Utility
B37: =IF('Cash Flow Analysis'!$F$131=0,"",'Cash Flow Analysis'!$F$131) ->  | C37: =IF($B$37="","",$E$37*$F$37*$H$37) ->  | D37: =IF($B37="","",$C37*1000*MJ_to_kWh) ->  | E37: =IF($B37<>"",VLOOKUP($B37,MASTER_PROPERTY_TABLE,MATCH("H2A LHV (GJ/ H2A usage input unit)",key_MPTable,0),FALSE),"") ->  | F37: =IF('Cash Flow Analysis'!$F$133="","",'Cash Flow Analysis'!$F$133) ->  | G37: =IF($B$37<>"",VLOOKUP($B$37,MASTER_PROPERTY_TABLE,MATCH("H2A Usage Input Unit/ kg H2",key_MPTable,0),FALSE),"") ->  | H37: =IF($B$37="","",IF(VLOOKUP($B$37,MASTER_PROPERTY_TABLE,MATCH("Unit System",key_MPTable,0),FALSE)="English",mmBTU_to_GJ,1)) ->  | I37: =+'Cash Flow Analysis'!$F$233 -> 
B38: =IF('Cash Flow Analysis'!$G$131=0,"",'Cash Flow Analysis'!$G$131) ->  | C38: =IF($B$38="","",$E$38*$F$38*$H$38) ->  | D38: =IF($B38="","",$C38*1000*MJ_to_kWh) ->  | E38: =IF($B38<>"",VLOOKUP($B38,MASTER_PROPERTY_TABLE,MATCH("H2A LHV (GJ/ H2A usage input unit)",key_MPTable,0),FALSE),"") ->  | F38: =IF('Cash Flow Analysis'!$G$133="","",'Cash Flow Analysis'!$G$133) ->  | G38: =IF($B$38<>"",VLOOKUP($B$38,MASTER_PROPERTY_TABLE,MATCH("H2A Usage Input Unit/ kg H2",key_MPTable,0),FALSE),"") ->  | H38: =IF($B$38="","",IF(VLOOKUP($B$38,MASTER_PROPERTY_TABLE,MATCH("Unit System",key_MPTable,0),FALSE)="English",mmBTU_to_GJ,1)) ->  | I38: =+'Cash Flow Analysis'!$G$233 -> 
B39: =IF('Cash Flow Analysis'!$H$131=0,"",'Cash Flow Analysis'!$H$131) ->  | C39: =IF($B$39="","",$E$39*$F$39*$H$39) ->  | D39: =IF($B39="","",$C39*1000*MJ_to_kWh) ->  | E39: =IF($B39<>"",VLOOKUP($B39,MASTER_PROPERTY_TABLE,MATCH("H2A LHV (GJ/ H2A usage input unit)",key_MPTable,0),FALSE),"") ->  | F39: =IF('Cash Flow Analysis'!$H$133="","",'Cash Flow Analysis'!$H$133) ->  | G39: =IF($B$39<>"",VLOOKUP($B$39,MASTER_PROPERTY_TABLE,MATCH("H2A Usage Input Unit/ kg H2",key_MPTable,0),FALSE),"") ->  | H39: =IF($B$39="","",IF(VLOOKUP($B$39,MASTER_PROPERTY_TABLE,MATCH("Unit System",key_MPTable,0),FALSE)="English",mmBTU_to_GJ,1)) ->  | I39: =+'Cash Flow Analysis'!$H$233 -> 
B40: =IF('Cash Flow Analysis'!$I$131=0,"",'Cash Flow Analysis'!$I$131) ->  | C40: =IF($B$40="","",$E$40*$F$40*$H$40) ->  | D40: =IF($B40="","",$C40*1000*MJ_to_kWh) ->  | E40: =IF($B40<>"",VLOOKUP($B40,MASTER_PROPERTY_TABLE,MATCH("H2A LHV (GJ/ H2A usage input unit)",key_MPTable,0),FALSE),"") ->  | F40: =IF('Cash Flow Analysis'!$I$133="","",'Cash Flow Analysis'!$I$133) ->  | G40: =IF($B$40<>"",VLOOKUP($B$40,MASTER_PROPERTY_TABLE,MATCH("H2A Usage Input Unit/ kg H2",key_MPTable,0),FALSE),"") ->  | H40: =IF($B$40="","",IF(VLOOKUP($B$40,MASTER_PROPERTY_TABLE,MATCH("Unit System",key_MPTable,0),FALSE)="English",mmBTU_to_GJ,1)) ->  | I40: =+'Cash Flow Analysis'!$I$233 -> 
B41: Carbon Sequestration
B42: =IF('Cash Flow Analysis'!$J$131=0,"",'Cash Flow Analysis'!$J$131) ->  | C42: =IF($B$42="","",$E$42*$F$42*$H$42) ->  | D42: =IF($B42="","",$C42*1000*MJ_to_kWh) ->  | E42: =IF($B42<>"",VLOOKUP($B42,MASTER_PROPERTY_TABLE,MATCH("H2A LHV (GJ/ H2A usage input unit)",key_MPTable,0),FALSE),"") ->  | F42: =CO2_CashFlow_eUse -> 0 | G42: =IF($B$42<>"",VLOOKUP($B$42,MASTER_PROPERTY_TABLE,MATCH("H2A Usage Input Unit/ kg H2",key_MPTable,0),FALSE),"") ->  | H42: =IF($B42="","",IF(VLOOKUP($B42,MASTER_PROPERTY_TABLE,MATCH("Unit System",key_MPTable,0),FALSE)="English",mmBTU_to_GJ,1)) -> 
C43: Energy Output (GJ/kg H2) | D43: Energy Output (kWh/kg H2) | E43: LHV (GJ/usage unit) | F43: Production (/kg H2) | G43: Unit | H43: Unit System Conversion Factor
B44: Hydrogen (1 kg) | C44: =kgH2_to_GJ -> 0.1202116383 | D44: =IF($B44="","",$C44*1000*MJ_to_kWh) -> 33.39212175 | E44: =kgH2_to_GJ -> 0.1202116383 | F44: 1 | G44: kg | H44: 1
B46: Byproducts
B47: =IF('Cash Flow Analysis'!$K$131=0,"",'Cash Flow Analysis'!$K$131) ->  | C47: =IF($B$47="","",$E$47*$F$47*$H$47) ->  | D47: =IF($B47="","",$C47*1000*MJ_to_kWh) ->  | E47: =IF($B47<>"",VLOOKUP($B47,MASTER_PROPERTY_TABLE,MATCH("H2A LHV (GJ/ H2A usage input unit)",key_MPTable,0),FALSE),"") ->  | F47: =IF('Cash Flow Analysis'!$K$133="","",'Cash Flow Analysis'!$K$133) ->  | G47: =IF($B$47<>"",VLOOKUP($B$47,MASTER_PROPERTY_TABLE,MATCH("H2A Usage Input Unit/ kg H2",key_MPTable,0),FALSE),"") ->  | H47: =IF($B$47="","",IF(VLOOKUP($B$47,MASTER_PROPERTY_TABLE,MATCH("Unit System",key_MPTable,0),FALSE)="English",mmBTU_to_GJ,1)) ->  | I47: =+'Cash Flow Analysis'!$K$233 -> 
B48: =IF('Cash Flow Analysis'!$L$131=0,"",'Cash Flow Analysis'!$L$131) ->  | C48: =IF($B$48="","",$E$48*$F$48*$H$48) ->  | D48: =IF($B48="","",$C48*1000*MJ_to_kWh) ->  | E48: =IF($B48<>"",VLOOKUP($B48,MASTER_PROPERTY_TABLE,MATCH("H2A LHV (GJ/ H2A usage input unit)",key_MPTable,0),FALSE),"") ->  | F48: =IF('Cash Flow Analysis'!$L$133="","",'Cash Flow Analysis'!$L$133) ->  | G48: =IF($B$48<>"",VLOOKUP($B$48,MASTER_PROPERTY_TABLE,MATCH("H2A Usage Input Unit/ kg H2",key_MPTable,0),FALSE),"") ->  | H48: =IF($B$48="","",IF(VLOOKUP($B$48,MASTER_PROPERTY_TABLE,MATCH("Unit System",key_MPTable,0),FALSE)="English",mmBTU_to_GJ,1)) ->  | I48: =+'Cash Flow Analysis'!$L$233 -> 
B49: =IF('Cash Flow Analysis'!$M$131=0,"",'Cash Flow Analysis'!$M$131) ->  | C49: =IF($B$49="","",$E$49*$F$49*$H$49) ->  | D49: =IF($B49="","",$C49*1000*MJ_to_kWh) ->  | E49: =IF($B49<>"",VLOOKUP($B49,MASTER_PROPERTY_TABLE,MATCH("H2A LHV (GJ/ H2A usage input unit)",key_MPTable,0),FALSE),"") ->  | F49: =IF('Cash Flow Analysis'!$M$133="","",'Cash Flow Analysis'!$M$133) ->  | G49: =IF($B$49<>"",VLOOKUP($B$49,MASTER_PROPERTY_TABLE,MATCH("H2A Usage Input Unit/ kg H2",key_MPTable,0),FALSE),"") ->  | H49: =IF($B$49="","",IF(VLOOKUP($B$49,MASTER_PROPERTY_TABLE,MATCH("Unit System",key_MPTable,0),FALSE)="English",mmBTU_to_GJ,1)) ->  | I49: =+'Cash Flow Analysis'!$M$233 -> 
B50: =IF('Cash Flow Analysis'!$N$131=0,"",'Cash Flow Analysis'!$N$131) ->  | C50: =IF($B$50="","",$E$50*$F$50*$H$50) ->  | D50: =IF($B50="","",$C50*1000*MJ_to_kWh) ->  | E50: =IF($B50<>"",VLOOKUP($B50,MASTER_PROPERTY_TABLE,MATCH("H2A LHV (GJ/ H2A usage input unit)",key_MPTable,0),FALSE),"") ->  | F50: =IF('Cash Flow Analysis'!$N$133="","",'Cash Flow Analysis'!$N$133) ->  | G50: =IF($B$50<>"",VLOOKUP($B$50,MASTER_PROPERTY_TABLE,MATCH("H2A Usage Input Unit/ kg H2",key_MPTable,0),FALSE),"") ->  | H50: =IF($B$50="","",IF(VLOOKUP($B$50,MASTER_PROPERTY_TABLE,MATCH("Unit System",key_MPTable,0),FALSE)="English",mmBTU_to_GJ,1)) ->  | I50: =+'Cash Flow Analysis'!$N$233 -> 
B52: Production Process Energy Efficiency | D52: =(C56+C57)/(C53+C54+C55) -> 0.6589938458
B53: Feedstock energy input (GJ)/kg H2 | C53: =SUM(C32:C35) -> 0.1824169361
B54: Utility energy input (GJ/kg H2) | C54: =SUM(C37:C40) -> 0
B55: Carbon sequestration energy input (GJ/kg H2) | C55: =IF(C42="",0,C42) -> 0
B56: Hydrogen energy output (GJ/kg) | C56: =C44 -> 0.1202116383
B57: Byproduct energy output (GJ/kg H2) | C57: =SUM(C47:C50) -> 0
B59: Upstream Energy Usage (GJ/kg H2)
B60: Feedstock | C60: Total Energy | D60: Fossil Fuels | E60: Petroleum
B61: =B32 -> Industrial Electricity | C61: =IF($B61="","",$C32/1000000*VLOOKUP($B61,Tbl_Emissions,3,FALSE)) -> 0.009666582261 | D61: =IF($B61="","",$C32/1000000*VLOOKUP($B61,Tbl_Emissions,4,FALSE)) -> 0.00741146713 | E61: =IF($B61="","",$C32/1000000*VLOOKUP($B61,Tbl_Emissions,5,FALSE)) -> 0.000114228313
B62: =B33 -> Industrial Natural Gas | C62: =IF($B62="","",$C33/1000000*VLOOKUP($B62,Tbl_Emissions,3,FALSE)) -> 0.1933512415 | D62: =IF($B62="","",$C33/1000000*VLOOKUP($B62,Tbl_Emissions,4,FALSE)) -> 0.193292239 | E62: =IF($B62="","",$C33/1000000*VLOOKUP($B62,Tbl_Emissions,5,FALSE)) -> 0.0007050407186
B63: =B34 ->  | C63: =IF($B63="","",$C34/1000000*VLOOKUP($B63,Tbl_Emissions,3,FALSE)) ->  | D63: =IF($B63="","",$C34/1000000*VLOOKUP($B63,Tbl_Emissions,4,FALSE)) ->  | E63: =IF($B63="","",$C34/1000000*VLOOKUP($B63,Tbl_Emissions,5,FALSE)) -> 
B64: =B35 ->  | C64: =IF($B64="","",$C35/1000000*VLOOKUP($B64,Tbl_Emissions,3,FALSE)) ->  | D64: =IF($B64="","",$C35/1000000*VLOOKUP($B64,Tbl_Emissions,4,FALSE)) ->  | E64: =IF($B64="","",$C35/1000000*VLOOKUP($B64,Tbl_Emissions,5,FALSE)) -> 
B65: Utility
B66: =B37 ->  | C66: =IF($B66="","",$C37/1000000*VLOOKUP($B66,Tbl_Emissions,3,FALSE)) ->  | D66: =IF($B66="","",$C37/1000000*VLOOKUP($B66,Tbl_Emissions,4,FALSE)) ->  | E66: =IF($B66="","",$C37/1000000*VLOOKUP($B66,Tbl_Emissions,5,FALSE)) -> 
B67: =B38 ->  | C67: =IF($B67="","",$C38/1000000*VLOOKUP($B67,Tbl_Emissions,3,FALSE)) ->  | D67: =IF($B67="","",$C38/1000000*VLOOKUP($B67,Tbl_Emissions,4,FALSE)) ->  | E67: =IF($B67="","",$C38/1000000*VLOOKUP($B67,Tbl_Emissions,5,FALSE)) -> 
B68: =B39 ->  | C68: =IF($B68="","",$C39/1000000*VLOOKUP($B68,Tbl_Emissions,3,FALSE)) ->  | D68: =IF($B68="","",$C39/1000000*VLOOKUP($B68,Tbl_Emissions,4,FALSE)) ->  | E68: =IF($B68="","",$C39/1000000*VLOOKUP($B68,Tbl_Emissions,5,FALSE)) -> 
B69: =B40 ->  | C69: =IF($B69="","",$C40/1000000*VLOOKUP($B69,Tbl_Emissions,3,FALSE)) ->  | D69: =IF($B69="","",$C40/1000000*VLOOKUP($B69,Tbl_Emissions,4,FALSE)) ->  | E69: =IF($B69="","",$C40/1000000*VLOOKUP($B69,Tbl_Emissions,5,FALSE)) -> 
B70: Carbon Sequestration
B71: =B42 ->  | C71: =IF($B71="","",$C42/1000000*VLOOKUP($B71,Tbl_Emissions,3,FALSE)) ->  | D71: =IF($B71="","",$C42/1000000*VLOOKUP($B71,Tbl_Emissions,4,FALSE)) ->  | E71: =IF($B71="","",$C42/1000000*VLOOKUP($B71,Tbl_Emissions,5,FALSE)) -> 
B74: EMISSIONS
B76: Emissions Summary | D76: CO2 | E76: CH4 | F76: N2O | G76: Total GHG (CO2 eq)
B77: Total upstream emissions (kg/kg H2) | D77: =C121 -> 1.778188306 | E77: =D121 -> 0.03383121404 | F77: =E121 -> 0.0001635704566 | G77: =F121 -> 2.672712653
B78: Total process emissions (kg/kg H2) | D78: =D89 -> 0.3692581223 | E78: =E89 -> 0 | F78: =F89 -> 0 | G78: =G89 -> 0.3692581223
B80: Total well to pump emissions (kg/kg H2) | D80: =SUM(D77:D79) -> 2.147446428 | E80: =SUM(E77:E79) -> 0.03383121404 | F80: =SUM(F77:F79) -> 0.0001635704566 | G80: =SUM(G77:G79) -> 3.041970775
B82: Production Process GHG Emissions Summary | D82: CO2 | E82: CH4 | F82: N2O | G82: Total GHG (CO2 eq)
B83: Total Process Pollutants Produced (kg /kg H2) | D83: =SUM(C95:C105) -> 9.968239829 | E83: =SUM(D95:D105) -> 0 | F83: =SUM(E95:E105) -> 0 | G83: =SUM(F95:F105) -> 9.968239829
B84: Total Process Pollutants Produced (metric tons/year) | D84: =ROUND(D83*output_kgyear/1000,-2) -> 1581600 | E84: =ROUND(E83*output_kgyear/1000,-2) -> 0 | F84: =ROUND(F83*output_kgyear/1000,-2) -> 0 | G84: =ROUND(G83*output_kgyear/1000,-2) -> 1581600
B85: Total Feedstock Pollutants Produced (kg /kg H2) | D85: =SUM(C95:C98) -> 9.968239829 | E85: =SUM(D95:D98) -> 0 | F85: =SUM(E95:E98) -> 0 | G85: =SUM(F95:F98) -> 9.968239829
B86: Total Feedstock Pollutants Produced (metric tons /year) | D86: =ROUND(D85*output_kgyear/1000,-2) -> 1581600 | E86: =ROUND(E85*output_kgyear/1000,-2) -> 0 | F86: =ROUND(F85*output_kgyear/1000,-2) -> 0 | G86: =ROUND(G85*output_kgyear/1000,-2) -> 1581600
B87: CO2 Captured (kg/kg H2)* | D87: =D85*CO2_Capture_Efficiency -> 9.598981707
B88: CO2 Captured (metric tons/year)* | D88: =ROUND(D87*output_kgyear/1000,-2) -> 1523000
B89: Total Process Emissions (kg/kg H2) | D89: =D83-D87 -> 0.3692581223 | E89: =E83-E87 -> 0 | F89: =F83-F87 -> 0 | G89: =D89*GHG_CO2_factor + E89*GHG_CH4_factor + F89*GHG_N2O_factor -> 0.3692581223
B90: Total Process Emissions (metric tons/year) | D90: =ROUND(D89*output_kgyear/1000,-2) -> 58600 | E90: =ROUND(E89*output_kgyear/1000,-2) -> 0 | F90: =ROUND(F89*output_kgyear/1000,-2) -> 0 | G90: =ROUND(G89*output_kgyear/1000,-2) -> 58600
B91: *Carbon sequestration values are only calculated if the detailed Carbon Sequestration sheet is used.
B93: Production Process GHG Emissions (/kg H2)
B94: Feedstock | C94: CO2 | D94: CH4 | E94: N2O | F94: Total GHG (CO2 eq)
B95: =B32 -> Industrial Electricity | C95: =IF($B95="","",VLOOKUP($B95,MASTER_PROPERTY_TABLE,MATCH("CO2 Emissions Factor (kg CO2 produced/GJ feed)",key_MPTable,0),FALSE)*$E32*$F32) -> 0 | D95: =IF($B95="","",VLOOKUP($B95,MASTER_PROPERTY_TABLE,MATCH("CH4 Emissions Factor (kg CH4 produced/GJ or mmBtu feed)",key_MPTable,0),FALSE)*$E32*$F32) -> 0 | E95: =IF($B95="","",VLOOKUP($B95,MASTER_PROPERTY_TABLE,MATCH("N2O Emissions Factor (kg N2O produced/GJ or mmBtu feed)",key_MPTable,0),FALSE)*$E32*$F32) -> 0 | F95: =IF($B95="","",$C95*GHG_CO2_factor+$D95*GHG_CH4_factor+$E95*GHG_N2O_factor) -> 0
B96: =B33 -> Industrial Natural Gas | C96: =IF($B96="","",VLOOKUP($B96,MASTER_PROPERTY_TABLE,MATCH("CO2 Emissions Factor (kg CO2 produced/GJ feed)",key_MPTable,0),FALSE)*$E33*$F33) -> 9.968239829 | D96: =IF($B96="","",VLOOKUP($B96,MASTER_PROPERTY_TABLE,MATCH("CH4 Emissions Factor (kg CH4 produced/GJ or mmBtu feed)",key_MPTable,0),FALSE)*$E33*$F33) -> 0 | E96: =IF($B96="","",VLOOKUP($B96,MASTER_PROPERTY_TABLE,MATCH("N2O Emissions Factor (kg N2O produced/GJ or mmBtu feed)",key_MPTable,0),FALSE)*$E33*$F33) -> 0 | F96: =IF($B96="","",$C96*GHG_CO2_factor+$D96*GHG_CH4_factor+$E96*GHG_N2O_factor) -> 9.968239829
B97: =B34 ->  | C97: =IF($B97="","",VLOOKUP($B97,MASTER_PROPERTY_TABLE,MATCH("CO2 Emissions Factor (kg CO2 produced/GJ feed)",key_MPTable,0),FALSE)*$E34*$F34) ->  | D97: =IF($B97="","",VLOOKUP($B97,MASTER_PROPERTY_TABLE,MATCH("CH4 Emissions Factor (kg CH4 produced/GJ or mmBtu feed)",key_MPTable,0),FALSE)*$E34*$F34) ->  | E97: =IF($B97="","",VLOOKUP($B97,MASTER_PROPERTY_TABLE,MATCH("N2O Emissions Factor (kg N2O produced/GJ or mmBtu feed)",key_MPTable,0),FALSE)*$E34*$F34) ->  | F97: =IF($B97="","",$C97*GHG_CO2_factor+$D97*GHG_CH4_factor+$E97*GHG_N2O_factor) -> 
B98: =B35 ->  | C98: =IF($B98="","",VLOOKUP($B98,MASTER_PROPERTY_TABLE,MATCH("CO2 Emissions Factor (kg CO2 produced/GJ feed)",key_MPTable,0),FALSE)*$E35*$F35) ->  | D98: =IF($B98="","",VLOOKUP($B98,MASTER_PROPERTY_TABLE,MATCH("CH4 Emissions Factor (kg CH4 produced/GJ or mmBtu feed)",key_MPTable,0),FALSE)*$E35*$F35) ->  | E98: =IF($B98="","",VLOOKUP($B98,MASTER_PROPERTY_TABLE,MATCH("N2O Emissions Factor (kg N2O produced/GJ or mmBtu feed)",key_MPTable,0),FALSE)*$E35*$F35) ->  | F98: =IF($B98="","",$C98*GHG_CO2_factor+$D98*GHG_CH4_factor+$E98*GHG_N2O_factor) -> 
B99: Utility
B100: =B37 ->  | C100: =IF($B100="","",VLOOKUP($B100,MASTER_PROPERTY_TABLE,MATCH("CO2 Emissions Factor (kg CO2 produced/GJ feed)",key_MPTable,0),FALSE)*$E37*$F37) ->  | D100: =IF($B100="","",VLOOKUP($B100,MASTER_PROPERTY_TABLE,MATCH("CH4 Emissions Factor (kg CH4 produced/GJ or mmBtu feed)",key_MPTable,0),FALSE)*$E37*$F37) ->  | E100: =IF($B100="","",VLOOKUP($B100,MASTER_PROPERTY_TABLE,MATCH("N2O Emissions Factor (kg N2O produced/GJ or mmBtu feed)",key_MPTable,0),FALSE)*$E37*$F37) ->  | F100: =IF($B100="","",$C100*GHG_CO2_factor+$D100*GHG_CH4_factor+$E100*GHG_N2O_factor) -> 
B101: =B38 ->  | C101: =IF($B101="","",VLOOKUP($B101,MASTER_PROPERTY_TABLE,MATCH("CO2 Emissions Factor (kg CO2 produced/GJ feed)",key_MPTable,0),FALSE)*$E38*$F38) ->  | D101: =IF($B101="","",VLOOKUP($B101,MASTER_PROPERTY_TABLE,MATCH("CH4 Emissions Factor (kg CH4 produced/GJ or mmBtu feed)",key_MPTable,0),FALSE)*$E38*$F38) ->  | E101: =IF($B101="","",VLOOKUP($B101,MASTER_PROPERTY_TABLE,MATCH("N2O Emissions Factor (kg N2O produced/GJ or mmBtu feed)",key_MPTable,0),FALSE)*$E38*$F38) ->  | F101: =IF($B101="","",$C101*GHG_CO2_factor+$D101*GHG_CH4_factor+$E101*GHG_N2O_factor) -> 
B102: =B39 ->  | C102: =IF($B102="","",VLOOKUP($B102,MASTER_PROPERTY_TABLE,MATCH("CO2 Emissions Factor (kg CO2 produced/GJ feed)",key_MPTable,0),FALSE)*$E39*$F39) ->  | D102: =IF($B102="","",VLOOKUP($B102,MASTER_PROPERTY_TABLE,MATCH("CH4 Emissions Factor (kg CH4 produced/GJ or mmBtu feed)",key_MPTable,0),FALSE)*$E39*$F39) ->  | E102: =IF($B102="","",VLOOKUP($B102,MASTER_PROPERTY_TABLE,MATCH("N2O Emissions Factor (kg N2O produced/GJ or mmBtu feed)",key_MPTable,0),FALSE)*$E39*$F39) ->  | F102: =IF($B102="","",$C102*GHG_CO2_factor+$D102*GHG_CH4_factor+$E102*GHG_N2O_factor) -> 
B103: =B40 ->  | C103: =IF($B103="","",VLOOKUP($B103,MASTER_PROPERTY_TABLE,MATCH("CO2 Emissions Factor (kg CO2 produced/GJ feed)",key_MPTable,0),FALSE)*$E40*$F40) ->  | D103: =IF($B103="","",VLOOKUP($B103,MASTER_PROPERTY_TABLE,MATCH("CH4 Emissions Factor (kg CH4 produced/GJ or mmBtu feed)",key_MPTable,0),FALSE)*$E40*$F40) ->  | E103: =IF($B103="","",VLOOKUP($B103,MASTER_PROPERTY_TABLE,MATCH("N2O Emissions Factor (kg N2O produced/GJ or mmBtu feed)",key_MPTable,0),FALSE)*$E40*$F40) ->  | F103: =IF($B103="","",$C103*GHG_CO2_factor+$D103*GHG_CH4_factor+$E103*GHG_N2O_factor) -> 
B104: Carbon Sequestration
B105: =B42 ->  | C105: =IF($B105="","",VLOOKUP($B105,MASTER_PROPERTY_TABLE,MATCH("CO2 Emissions Factor (kg CO2 produced/GJ feed)",key_MPTable,0),FALSE)*$E42*$F42) ->  | D105: =IF($B105="","",VLOOKUP($B105,MASTER_PROPERTY_TABLE,MATCH("CH4 Emissions Factor (kg CH4 produced/GJ or mmBtu feed)",key_MPTable,0),FALSE)*$E42*$F42) ->  | E105: =IF($B105="","",VLOOKUP($B105,MASTER_PROPERTY_TABLE,MATCH("N2O Emissions Factor (kg N2O produced/GJ or mmBtu feed)",key_MPTable,0),FALSE)*$E42*$F42) ->  | F105: =IF($B105="","",$C105*GHG_CO2_factor+$D105*GHG_CH4_factor+$E105*GHG_N2O_factor) -> 
B108: Upstream GHG Emissions (kg/kg H2) based on GREET.NET 2017
B109: Feedstock | C109: CO2 | D109: CH4 | E109: N2O | F109: Total GHG (CO2 eq)
B110: =B32 -> Industrial Electricity | C110: =IF($B110="","",$C32*VLOOKUP($B110,Tbl_Emissions,6,FALSE)) -> 0.75796992 | D110: =IF($B110="","",$C32*VLOOKUP($B110,Tbl_Emissions,7,FALSE)) -> 0.001149858682 | E110: =IF($B110="","",$C32*VLOOKUP($B110,Tbl_Emissions,8,FALSE)) -> 1.10882905e-05 | F110: =IF($B110="","",$C110*GHG_CO2_factor+$D110*GHG_CH4_factor+$E110*GHG_N2O_factor) -> 0.7900206976
B111: =B33 -> Industrial Natural Gas | C111: =IF($B111="","",$C33*VLOOKUP($B111,Tbl_Emissions,6,FALSE)) -> 1.020218386 | D111: =IF($B111="","",$C33*VLOOKUP($B111,Tbl_Emissions,7,FALSE)) -> 0.03268135536 | E111: =IF($B111="","",$C33*VLOOKUP($B111,Tbl_Emissions,8,FALSE)) -> 0.0001524821661 | F111: =IF($B111="","",$C111*GHG_CO2_factor+$D111*GHG_CH4_factor+$E111*GHG_N2O_factor) -> 1.882691956
B112: =B34 ->  | C112: =IF($B112="","",$C34*VLOOKUP($B112,Tbl_Emissions,6,FALSE)) ->  | D112: =IF($B112="","",$C34*VLOOKUP($B112,Tbl_Emissions,7,FALSE)) ->  | E112: =IF($B112="","",$C34*VLOOKUP($B112,Tbl_Emissions,8,FALSE)) ->  | F112: =IF($B112="","",$C112*GHG_CO2_factor+$D112*GHG_CH4_factor+$E112*GHG_N2O_factor) -> 
B113: =B35 ->  | C113: =IF($B113="","",$C35*VLOOKUP($B113,Tbl_Emissions,6,FALSE)) ->  | D113: =IF($B113="","",$C35*VLOOKUP($B113,Tbl_Emissions,7,FALSE)) ->  | E113: =IF($B113="","",$C35*VLOOKUP($B113,Tbl_Emissions,8,FALSE)) ->  | F113: =IF($B113="","",$C113*GHG_CO2_factor+$D113*GHG_CH4_factor+$E113*GHG_N2O_factor) -> 
B114: Utility
B115: =B37 ->  | C115: =IF($B115="","",$C37*VLOOKUP($B115,Tbl_Emissions,6,FALSE)) ->  | D115: =IF($B115="","",$C37*VLOOKUP($B115,Tbl_Emissions,7,FALSE)) ->  | E115: =IF($B115="","",$C37*VLOOKUP($B115,Tbl_Emissions,8,FALSE)) ->  | F115: =IF($B115="","",$C115*GHG_CO2_factor+$D115*GHG_CH4_factor+$E115*GHG_N2O_factor) -> 
B116: =B38 ->  | C116: =IF($B116="","",$C38*VLOOKUP($B116,Tbl_Emissions,6,FALSE)) ->  | D116: =IF($B116="","",$C38*VLOOKUP($B116,Tbl_Emissions,7,FALSE)) ->  | E116: =IF($B116="","",$C38*VLOOKUP($B116,Tbl_Emissions,8,FALSE)) ->  | F116: =IF($B116="","",$C116*GHG_CO2_factor+$D116*GHG_CH4_factor+$E116*GHG_N2O_factor) -> 
B117: =B39 ->  | C117: =IF($B117="","",$C39*VLOOKUP($B117,Tbl_Emissions,6,FALSE)) ->  | D117: =IF($B117="","",$C39*VLOOKUP($B117,Tbl_Emissions,7,FALSE)) ->  | E117: =IF($B117="","",$C39*VLOOKUP($B117,Tbl_Emissions,8,FALSE)) ->  | F117: =IF($B117="","",$C117*GHG_CO2_factor+$D117*GHG_CH4_factor+$E117*GHG_N2O_factor) -> 
B118: =B40 ->  | C118: =IF($B118="","",$C40*VLOOKUP($B118,Tbl_Emissions,6,FALSE)) ->  | D118: =IF($B118="","",$C40*VLOOKUP($B118,Tbl_Emissions,7,FALSE)) ->  | E118: =IF($B118="","",$C40*VLOOKUP($B118,Tbl_Emissions,8,FALSE)) ->  | F118: =IF($B118="","",$C118*GHG_CO2_factor+$D118*GHG_CH4_factor+$E118*GHG_N2O_factor) -> 
B119: Carbon Sequestration
B120: =B42 ->  | C120: =IF($B120="","",$C42*VLOOKUP($B120,Tbl_Emissions,6,FALSE)) ->  | D120: =IF($B120="","",$C42*VLOOKUP($B120,Tbl_Emissions,7,FALSE)) ->  | E120: =IF($B120="","",$C42*VLOOKUP($B120,Tbl_Emissions,8,FALSE)) ->  | F120: =IF($B120="","",$C120*GHG_CO2_factor+$D120*GHG_CH4_factor+$E120*GHG_N2O_factor) -> 
B121: TOTAL | C121: =SUM(C110:C120) -> 1.778188306 | D121: =SUM(D110:D120) -> 0.03383121404 | E121: =SUM(E110:E120) -> 0.0001635704566 | F121: =SUM(F110:F120) -> 2.672712653

Sheet Tornado Charts & Risk Analysis
B2: Parameter | C2: Nominal | D2: Enter deviation % for lowering H2 cost | E2: Enter deviation % for increasing H2 cost | F2: Price-decreasing factor | G2: Price-increasing factor | H2: Price-decreasing value | I2: Price-increasing value
B3: Operating Capacity Factor | C3: =+cap_factor -> 0.9 | D3: 0.05 | E3: 0.05 | F3: =1+D3 -> 1.05 | G3: =1-E3 -> 0.95 | H3: =+C3*F3 -> 0.945 | I3: =+C3*G3 -> 0.855
B4: =+Input_Sheet_Template!B26 -> Plant Design Capacity (kg of H2/day) | C4: =+design_cap -> 483000 | D4: 0.05 | E4: 0.05 | F4: =1+D4 -> 1.05 | G4: =1-E4 -> 0.95 | H4: 507150 | I4: 458850
B5: After-tax Real IRR | C5: =+real_irr -> 0.08 | D5: 0.05 | E5: 0.05 | F5: =1-D5 -> 0.95 | G5: =1+E5 -> 1.05 | H5: 0.076 | I5: 0.084
B6: Feedstock Consumption (% of baseline) | C6: 1 | D6: 0.05 | E6: 0.05 | F6: =1-D6 -> 0.95 | G6: =1+E6 -> 1.05 | H6: 0.95 | I6: 1.05
B7: Utilities Consumption (% of baseline) | C7: 1 | D7: 0.05 | E7: 0.05 | F7: =1-D7 -> 0.95 | G7: 1.05 | H7: 0.95 | I7: 1.05
B8: Total Capital Investment | C8: =+total_cap -> 802844120.5 | D8: 0.05 | E8: 0.05 | F8: =1-D8 -> 0.95 | G8: 1.05 | H8: 762701914.4 | I8: 842986326.5
B9: Total Fixed Operating Cost | C9: =+fixed -> 32659076.21 | D9: 0.05 | E9: 0.05 | F9: =1-D9 -> 0.95 | G9: 1.05 | H9: 31026122.39 | I9: 34292030.02
B11: Run Risk Analysis (note: Risk analysis could take ~5 min to run)? | D11: Yes | E11: =IF(RunRiskAnalysis="Yes"," Please click Update Charts and Risk Analysis button before using results below","") -> Please click Update Charts and Risk Analysis button before using results below
P12: Risk variable to plot | R12: Cost of hydrogen ($/kg)
V13: Percentile | W13: Value
V14: 0 | W14: =+MIN(OFFSET($B$251:$B$2250,0,$C$194))*$C$198 -> 1.879805453
V15: 0.05 | W15: =+PERCENTILE(OFFSET($B$251:$B$2250,0,$C$194),V15)*$C$198 -> 1.907207722
V16: =+V15+0.05 -> 0.1 | W16: 1.913511607
V17: 0.15 | W17: 1.918259273
V18: 0.2 | W18: 1.92227467
V19: 0.25 | W19: 1.925739396
V20: 0.3 | W20: 1.928356088
V21: 0.35 | W21: 1.931103497
V22: 0.4 | W22: 1.933933452
V23: 0.45 | W23: 1.936546919
V24: 0.5 | W24: 1.939403351
V25: 0.55 | W25: 1.941642406
V26: 0.6 | W26: 1.944342635
V27: 0.65 | W27: 1.946972456
V28: 0.7 | W28: 1.950110304
V29: 0.75 | W29: 1.953560282
V30: 0.8 | W30: 1.957403043
V31: 0.85 | W31: 1.9620275
V32: 0.9 | W32: 1.965863339
V33: 0.95 | W33: 1.97319386
V34: 1 | W34: =+MAX(OFFSET($B$251:$B$2250,0,$C$194))*$C$198 -> 2.017528905
B45: No user interactions below this row
B47: Displayed case
B48: 1 | C48: =+OFFSET(C50,$B$48,0) -> 1 | D48: 1 | E48: 1 | F48: =+OFFSET(F50,$B$48,0) -> 1 | G48: =+OFFSET(G50,$B$48,0) -> 1 | H48: =+OFFSET(H50,$B$48,0) -> 1 | I48: =+OFFSET(I50,$B$48,0) -> 1 | K48: =+'Cash Flow Analysis'!F118 -> 1.855621764 | L48: =+'Cash Flow Analysis'!Q118 -> 0 | M48: =+'Cash Flow Analysis'!L118 -> 0.001953233668 | N48: =+'Cash Flow Analysis'!H117 -> 0.1967939404 | O48: =+'Cash Flow Analysis'!I117 -> 0.02514887309 | P48: =+'Cash Flow Analysis'!J117 -> 0.02001421698 | Q48: =+'Cash Flow Analysis'!K117 -> 0.002954440199 | R48: =+'Cash Flow Analysis'!M117 -> 0.001941574233 | S48: =+'Cash Flow Analysis'!N117 -> 0.2058360274 | T48: =+'Cash Flow Analysis'!O117 -> 0.9769214802 | U48: =+'Cash Flow Analysis'!P117 -> 0.0373203106 | V48: =+'Cash Flow Analysis'!R117 -> 0.2474446203 | W48: =+'Cash Flow Analysis'!S117 -> 0.1176326055 | X48: =+'Cash Flow Analysis'!X117 -> 0.02028258354 | Y48: =+'Cash Flow Analysis'!Z117 -> 0.005284325024
B50: Case | C50: Operating capacity factor | D50: Plant design capacity (kg of H2/day) | E50: After-tax real IRR (%) | F50: Feedstock consumption (% of most likely value) | G50: Utilities consumption (% of most likely value) | H50: Total capital investment ($) | I50: Total fixed operating cost ($/year) | K50: Cost of hydrogen ($/kg) | L50: Revenue from byproduct sales ($/kg) | M50: Salvage value ($/kg) | N50: Initial equity depreciable capital ($/kg) | O50: Yearly replacement costs ($/kg) | P50: Cash from working capital reserve ($/kg) | Q50: Other non-depreciable capital costs ($/kg) | R50: Decommissioning costs ($/kg) | S50: Fixed operating cost ($/kg) | T50: Feedstock cost ($/kg) | U50: Other raw material cost ($/kg) | V50: Other variable operating costs ($/kg) | W50: Debt interest ($/kg) | X50: Taxes ($/kg) | Y50: Principal payment ($/kg)
B51: 1 | C51: 1 | D51: 1 | E51: 1 | F51: 1 | G51: 1 | H51: 1 | I51: 1 | K51: 1.938937028 | L51: 0 | M51: 0.001953233668 | N51: 0.1967939404 | O51: 0.02514887309 | P51: 0.02113041182 | Q51: 0.002954440199 | R51: 0.001941574233 | S51: 0.2058360274 | T51: 1.058372328 | U51: 0.0373203106 | V51: 0.2478059464 | W51: 0.1176326055 | X51: 0.02066947898 | Y51: 0.005284325024
B52: =+B51+1 -> 2 | C52: =+F3 -> 1.05 | D52: 1 | E52: 1 | F52: 1 | G52: 1 | H52: 1 | I52: 1 | K52: 1.90309583 | L52: 0 | M52: 0.00186022254 | N52: 0.1874228004 | O52: 0.0239513077 | P52: 0.0208805565 | Q52: 0.002813752571 | R52: 0.001849118318 | S52: 0.1960343118 | T52: 1.058372328 | U52: 0.03554315295 | V52: 0.2410775957 | W52: 0.1120310529 | X52: 0.01994738575 | Y52: 0.005032690499
B53: =+B52+1 -> 3 | C53: =+G3 -> 0.95 | D53: 1 | E53: 1 | F53: 1 | G53: 1 | H53: 1 | I53: 1 | K53: 1.978533817 | L53: 0 | M53: 0.002056035439 | N53: 0.2071515162 | O53: 0.02647249799 | P53: 0.02140633766 | Q53: 0.003109937052 | R53: 0.002043762351 | S53: 0.2166695025 | T53: 1.058372328 | U53: 0.03928453747 | V53: 0.2552256888 | W53: 0.1238237953 | X53: 0.02146750228 | Y53: 0.005562447393
B54: 4 | C54: 1 | D54: =+F4 -> 1.05 | E54: 1 | F54: 1 | G54: 1 | H54: 1 | I54: 1 | K54: 1.919697265 | L54: 0 | M54: 0.001906819688 | N54: 0.1921137324 | O54: 0.02455077563 | P54: 0.02098749845 | Q54: 0.002893898189 | R54: 0.001895399178 | S54: 0.2012930098 | T54: 1.058372328 | U54: 0.0373203106 | V54: 0.2418775157 | W54: 0.1148350343 | X54: 0.02030593137 | Y54: 0.005158651743
B55: 5 | C55: 1 | D55: =+G4 -> 0.95 | E55: 1 | F55: 1 | G55: 1 | H55: 1 | I55: 1 | K55: 1.959910504 | L55: 0 | M55: 0.002003598688 | N55: 0.2018727116 | O55: 0.02579790411 | P55: 0.02128677938 | Q55: 0.003019747501 | R55: 0.001991681525 | S55: 0.2107591597 | T55: 1.058372328 | U55: 0.0373203106 | V55: 0.254340068 | W55: 0.1206684159 | X55: 0.0210642957 | Y55: 0.005420700553
B56: 6 | C56: 1 | D56: 1 | E56: =+F5 -> 0.95 | F56: 1 | G56: 1 | H56: 1 | I56: 1 | K56: 1.929076691 | L56: 0 | M56: 0.002169217773 | N56: 0.1870158173 | O56: 0.02514887309 | P56: 0.02039989903 | Q56: 0.002807642591 | R56: 0.002156269066 | S56: 0.2058360274 | T56: 1.063013705 | U56: 0.0373203106 | V56: 0.2478059464 | W56: 0.1157486873 | X56: 0.01812407791 | Y56: 0.005868653583
B57: 7 | C57: 1 | D57: 1 | E57: =+G5 -> 1.05 | F57: 1 | G57: 1 | H57: 1 | I57: 1 | K57: 1.949301365 | L57: 0 | M57: 0.001757322118 | N57: 0.2067954683 | O57: 0.02514887309 | P57: 0.02185161172 | Q57: 0.003104591753 | R57: 0.001746832138 | S57: 0.2058360274 | T57: 1.053828295 | U57: 0.0373203106 | V57: 0.2478059464 | W57: 0.1195237214 | X57: 0.02334270762 | Y57: 0.004754301237
B58: 8 | C58: 1 | D58: 1 | E58: 1 | F58: =+F6 -> 0.95 | G58: 1 | H58: 1 | I58: 1 | K58: 1.938937028 | L58: 0 | M58: 0.001953233668 | N58: 0.1967939404 | O58: 0.02514887309 | P58: 0.02113041182 | Q58: 0.002954440199 | R58: 0.001941574233 | S58: 0.2058360274 | T58: 1.058372328 | U58: 0.0373203106 | V58: 0.2478059464 | W58: 0.1176326055 | X58: 0.02066947898 | Y58: 0.005284325024
B59: 9 | C59: 1 | D59: 1 | E59: 1 | F59: =+G6 -> 1.05 | G59: 1 | H59: 1 | I59: 1 | K59: 1.938937028 | L59: 0 | M59: 0.001953233668 | N59: 0.1967939404 | O59: 0.02514887309 | P59: 0.02113041182 | Q59: 0.002954440199 | R59: 0.001941574233 | S59: 0.2058360274 | T59: 1.058372328 | U59: 0.0373203106 | V59: 0.2478059464 | W59: 0.1176326055 | X59: 0.02066947898 | Y59: 0.005284325024
B60: 10 | C60: 1 | D60: 1 | E60: 1 | F60: 1 | G60: =+F7 -> 0.95 | H60: 1 | I60: 1 | K60: 1.938937028 | L60: 0 | M60: 0.001953233668 | N60: 0.1967939404 | O60: 0.02514887309 | P60: 0.02113041182 | Q60: 0.002954440199 | R60: 0.001941574233 | S60: 0.2058360274 | T60: 1.058372328 | U60: 0.0373203106 | V60: 0.2478059464 | W60: 0.1176326055 | X60: 0.02066947898 | Y60: 0.005284325024
B61: 11 | C61: 1 | D61: 1 | E61: 1 | F61: 1 | G61: =+G6 -> 1.05 | H61: 1 | I61: 1 | K61: 1.938937028 | L61: 0 | M61: 0.001953233668 | N61: 0.1967939404 | O61: 0.02514887309 | P61: 0.02113041182 | Q61: 0.002954440199 | R61: 0.001941574233 | S61: 0.2058360274 | T61: 1.058372328 | U61: 0.0373203106 | V61: 0.2478059464 | W61: 0.1176326055 | X61: 0.02066947898 | Y61: 0.005284325024
B62: 12 | C62: 1 | D62: 1 | E62: 1 | F62: 1 | G62: 1 | H62: =+F8 -> 0.95 | I62: 1 | K62: 1.9173022 | L62: 0 | M62: 0.001855571984 | N62: 0.1868951546 | O62: 0.02514887309 | P62: 0.02106135369 | Q62: 0.002954440199 | R62: 0.00184391255 | S62: 0.2007760483 | T62: 1.058372328 | U62: 0.0373203106 | V62: 0.2478059464 | W62: 0.1117156552 | X62: 0.02024522741 | Y62: 0.005018522116
B63: 13 | C63: 1 | D63: 1 | E63: 1 | F63: 1 | G63: 1 | H63: =+G8 -> 1.05 | I63: 1 | K63: 1.960571855 | L63: 0 | M63: 0.002050895351 | N63: 0.2066927262 | O63: 0.02514887309 | P63: 0.02119946996 | Q63: 0.002954440199 | R63: 0.002039235917 | S63: 0.2108960065 | T63: 1.058372328 | U63: 0.0373203106 | V63: 0.2478059464 | W63: 0.1235495558 | X63: 0.02109373054 | Y63: 0.005550127931
B64: 14 | C64: 1 | D64: 1 | E64: 1 | F64: 1 | G64: 1 | H64: 1 | I64: =+F9 -> 0.95 | K64: 1.928456078 | L64: 0 | M64: 0.001953233668 | N64: 0.1967939404 | O64: 0.02514887309 | P64: 0.02098995026 | Q64: 0.002954440199 | R64: 0.001941574233 | S64: 0.195544226 | T64: 1.058372328 | U64: 0.0373203106 | V64: 0.2478059464 | W64: 0.1176326055 | X64: 0.02062079219 | Y64: 0.005284325024
B65: 15 | C65: 1 | D65: 1 | E65: 1 | F65: 1 | G65: 1 | H65: 1 | I65: =+G9 -> 1.05 | K65: 1.949417977 | L65: 0 | M65: 0.001953233668 | N65: 0.1967939404 | O65: 0.02514887309 | P65: 0.02127087339 | Q65: 0.002954440199 | R65: 0.001941574233 | S65: 0.2161278288 | T65: 1.058372328 | U65: 0.0373203106 | V65: 0.2478059464 | W65: 0.1176326055 | X65: 0.02071816576 | Y65: 0.005284325024
B66: 16 | C66: =(C$72=1)*$F$3 +(C$72=2) +(C$72=3) +(C$72=4) +(C$72=5) -> 1.05 | D66: 1 | E66: 1 | F66: =(F$72=1)*$F$6 +(F$72=2) +(F$72=3) +(F$72=4) +(F$72=5) -> 1 | G66: =(G$72=1)*$F$7 +(G$72=2) +(G$72=3) +(G$72=4) +(G$72=5) -> 1 | H66: =(H$72=1)*$F$8 +(H$72=2) +(H$72=3) +(H$72=4) +(H$72=5) -> 1 | I66: =(I$72=1)*$F$9 +(I$72=2) +(I$72=3) +(I$72=4) +(I$72=5) -> 1 | K66: 1.90309583 | L66: 0 | M66: 0.00186022254 | N66: 0.1874228004 | O66: 0.0239513077 | P66: 0.0208805565 | Q66: 0.002813752571 | R66: 0.001849118318 | S66: 0.1960343118 | T66: 1.058372328 | U66: 0.03554315295 | V66: 0.2410775957 | W66: 0.1120310529 | X66: 0.01994738575 | Y66: 0.005032690499
B67: 17 | C67: =(C$72=1)*$F$3 +(C$72=2)*$F$3 +(C$72=3) +(C$72=4) +(C$72=5) -> 1.05 | D67: 1 | E67: 1 | F67: =(F$72=1)*$F$6 +(F$72=2)*$F$6 +(F$72=3) +(F$72=4) +(F$72=5) -> 1 | G67: =(G$72=1)*$F$7 +(G$72=2)*$F$7 +(G$72=3) +(G$72=4) +(G$72=5) -> 1 | H67: =(H$72=1)*$F$8 +(H$72=2)*$F$8 +(H$72=3) +(H$72=4) +(H$72=5) -> 0.95 | I67: =(I$72=1)*$F$9 +(I$72=2)*$F$9 +(I$72=3) +(I$72=4) +(I$72=5) -> 1 | K67: 1.882491232 | L67: 0 | M67: 0.001767211413 | N67: 0.1779953853 | O67: 0.0239513077 | P67: 0.02081478685 | Q67: 0.002813752571 | R67: 0.00175610719 | S67: 0.1912152841 | T67: 1.058372328 | U67: 0.03554315295 | V67: 0.2410775957 | W67: 0.1063958621 | X67: 0.01954333664 | Y67: 0.004779544872
B68: 18 | C68: =(C$72=1)*$F$3 +(C$72=2)*$F$3 +(C$72=3)*$F$3 +(C$72=4) +(C$72=5) -> 1.05 | D68: 1 | E68: 1 | F68: =(F$72=1)*$F$6 +(F$72=2)*$F$6 +(F$72=3)*$F$6 +(F$72=4) +(F$72=5) -> 1 | G68: =(G$72=1)*$F$7 +(G$72=2)*$F$7 +(G$72=3)*$F$7 +(G$72=4) +(G$72=5) -> 1 | H68: =(H$72=1)*$F$8 +(H$72=2)*$F$8 +(H$72=3)*$F$8 +(H$72=4) +(H$72=5) -> 0.95 | I68: =(I$72=1)*$F$9 +(I$72=2)*$F$9 +(I$72=3)*$F$9 +(I$72=4) +(I$72=5) -> 0.95 | K68: 1.872754755 | L68: 0 | M68: 0.001767211413 | N68: 0.1779953853 | O68: 0.0239513077 | P68: 0.02068430242 | Q68: 0.002813752571 | R68: 0.00175610719 | S68: 0.1816545199 | T68: 1.058372328 | U68: 0.03554315295 | V68: 0.2410775957 | W68: 0.1063958621 | X68: 0.01949810813 | Y68: 0.004779544872
B69: 19 | C69: =(C$72=1)*$F$3 +(C$72=2)*$F$3 +(C$72=3)*$F$3 +(C$72=4)*$F$3 +(C$72=5) -> 1.05 | D69: 1 | E69: 1 | F69: =(F$72=1)*$F$6 +(F$72=2)*$F$6 +(F$72=3)*$F$6 +(F$72=4)*$F$6 +(F$72=5) -> 1 | G69: =(G$72=1)*$F$7 +(G$72=2)*$F$7 +(G$72=3)*$F$7 +(G$72=4)*$F$7 +(G$72=5) -> 1 | H69: =(H$72=1)*$F$8 +(H$72=2)*$F$8 +(H$72=3)*$F$8 +(H$72=4)*$F$8 +(H$72=5) -> 0.95 | I69: =(I$72=1)*$F$9 +(I$72=2)*$F$9 +(I$72=3)*$F$9 +(I$72=4)*$F$9 +(I$72=5) -> 0.95 | K69: 1.872754755 | L69: 0 | M69: 0.001767211413 | N69: 0.1779953853 | O69: 0.0239513077 | P69: 0.02068430242 | Q69: 0.002813752571 | R69: 0.00175610719 | S69: 0.1816545199 | T69: 1.058372328 | U69: 0.03554315295 | V69: 0.2410775957 | W69: 0.1063958621 | X69: 0.01949810813 | Y69: 0.004779544872
B70: 20 | C70: =(C$72=1)*$F$3 +(C$72=2)*$F$3 +(C$72=3)*$F$3 +(C$72=4)*$F$3 +(C$72=5)*$F$3 -> 1.05 | D70: 1 | E70: 1 | F70: =(F$72=1)*$F$6 +(F$72=2)*$F$6 +(F$72=3)*$F$6 +(F$72=4)*$F$6 +(F$72=5)*$F$6 -> 0.95 | G70: =(G$72=1)*$F$7 +(G$72=2)*$F$7 +(G$72=3)*$F$7 +(G$72=4)*$F$7 +(G$72=5)*$F$7 -> 0.95 | H70: =(H$72=1)*$F$8 +(H$72=2)*$F$8 +(H$72=3)*$F$8 +(H$72=4)*$F$8 +(H$72=5)*$F$8 -> 0.95 | I70: =(I$72=1)*$F$9 +(I$72=2)*$F$9 +(I$72=3)*$F$9 +(I$72=4)*$F$9 +(I$72=5)*$F$9 -> 0.95 | K70: 1.872754755 | L70: 0 | M70: 0.001767211413 | N70: 0.1779953853 | O70: 0.0239513077 | P70: 0.02068430242 | Q70: 0.002813752571 | R70: 0.00175610719 | S70: 0.1816545199 | T70: 1.058372328 | U70: 0.03554315295 | V70: 0.2410775957 | W70: 0.1063958621 | X70: 0.01949810813 | Y70: 0.004779544872
B72: Waterfall Chart Priority | C72: =6-RANK($N$101,($N$101,$N$104:$N$107)) -> 1 | F72: =6-RANK($N$104,($N$101,$N$104:$N$107)) -> 5 | G72: =6-RANK($N$105,($N$101,$N$104:$N$107)) -> 5 | H72: =6-RANK($N$106,($N$101,$N$104:$N$107)) -> 2 | I72: =6-RANK($N$107,($N$101,$N$104:$N$107)) -> 3
B74: Visualization data formatting
B76: parameter | C76: level | D76: Chart titles | E76: Revenue from Hydrogen Sales | F76: Revenue from Byproduct Sales | G76: Salvage Value | H76: Initial Equity Depreciable Capital | I76: Yearly Replacement Costs | J76: Cash for Working Capital Reserve | K76: Other Non-Depreciable Capital Costs | L76: Decommissioning Costs | M76: Fixed Operating Cost | N76: Feedstock Cost | O76: Other Raw Material Cost | P76: Other Variable Operating Costs | Q76: Debt Interest | R76: Taxes | S76: Principal Payment
B77: =+$B$3 -> Operating Capacity Factor | C77: =+H3 -> 0.945 | D77: =+B77&" = "&C77*100&"%" -> Operating Capacity Factor = 94.5% | E77: =+K52 -> 1.90309583 | F77: 0 | G77: 0.00186022254 | H77: 0.1874228004 | I77: 0.0239513077 | J77: 0.0208805565 | K77: 0.002813752571 | L77: 0.001849118318 | M77: 0.1960343118 | N77: 1.058372328 | O77: 0.03554315295 | P77: 0.2410775957 | Q77: 0.1120310529 | R77: 0.01994738575 | S77: 0.005032690499
B78: =+$B$3 -> Operating Capacity Factor | C78: =+C3 -> 0.9 | D78: =+B78&" = "&C78*100&"%" -> Operating Capacity Factor = 90% | E78: =+K$51 -> 1.938937028 | F78: 0 | G78: 0.001953233668 | H78: 0.1967939404 | I78: 0.02514887309 | J78: 0.02113041182 | K78: 0.002954440199 | L78: 0.001941574233 | M78: 0.2058360274 | N78: 1.058372328 | O78: 0.0373203106 | P78: 0.2478059464 | Q78: 0.1176326055 | R78: 0.02066947898 | S78: 0.005284325024
B79: Operating Capacity Factor | C79: =+I3 -> 0.855 | D79: Operating Capacity Factor = 85.5% | E79: =+K53 -> 1.978533817 | F79: 0 | G79: 0.002056035439 | H79: 0.2071515162 | I79: 0.02647249799 | J79: 0.02140633766 | K79: 0.003109937052 | L79: 0.002043762351 | M79: 0.2166695025 | N79: 1.058372328 | O79: 0.03928453747 | P79: 0.2552256888 | Q79: 0.1238237953 | R79: 0.02146750228 | S79: 0.005562447393
B80: =+$B$4 -> Plant Design Capacity (kg of H2/day) | C80: =ROUND(H4,0) -> 507150 | D80: =+B80&" = "&TEXT(C80,"0,000") -> Plant Design Capacity (kg of H2/day) = 507,150 | E80: 1.919697265 | F80: 0 | G80: 0.001906819688 | H80: 0.1921137324 | I80: 0.02455077563 | J80: 0.02098749845 | K80: 0.002893898189 | L80: 0.001895399178 | M80: 0.2012930098 | N80: 1.058372328 | O80: 0.0373203106 | P80: 0.2418775157 | Q80: 0.1148350343 | R80: 0.02030593137 | S80: 0.005158651743
B81: =+$B$4 -> Plant Design Capacity (kg of H2/day) | C81: =+ROUND(C4,0) -> 483000 | D81: =+B81&" = "&TEXT(C81,"0,000") -> Plant Design Capacity (kg of H2/day) = 483,000 | E81: =+K$51 -> 1.938937028 | F81: 0 | G81: 0.001953233668 | H81: 0.1967939404 | I81: 0.02514887309 | J81: 0.02113041182 | K81: 0.002954440199 | L81: 0.001941574233 | M81: 0.2058360274 | N81: 1.058372328 | O81: 0.0373203106 | P81: 0.2478059464 | Q81: 0.1176326055 | R81: 0.02066947898 | S81: 0.005284325024
B82: Plant Design Capacity (kg of H2/day) | C82: =ROUND(I4,0) -> 458850 | D82: Plant Design Capacity (kg of H2/day) = 458,850 | E82: =+K55 -> 1.959910504 | F82: 0 | G82: 0.002003598688 | H82: 0.2018727116 | I82: 0.02579790411 | J82: 0.02128677938 | K82: 0.003019747501 | L82: 0.001991681525 | M82: 0.2107591597 | N82: 1.058372328 | O82: 0.0373203106 | P82: 0.254340068 | Q82: 0.1206684159 | R82: 0.0210642957 | S82: 0.005420700553
B83: =+$B$5 -> After-tax Real IRR | C83: =+ROUND(H5,2) -> 0.08 | D83: =+B83&" = "&C83*100&"%" -> After-tax Real IRR = 8% | E83: 1.929076691 | F83: 0 | G83: 0.002169217773 | H83: 0.1870158173 | I83: 0.02514887309 | J83: 0.02039989903 | K83: 0.002807642591 | L83: 0.002156269066 | M83: 0.2058360274 | N83: 1.063013705 | O83: 0.0373203106 | P83: 0.2478059464 | Q83: 0.1157486873 | R83: 0.01812407791 | S83: 0.005868653583
B84: =+$B$5 -> After-tax Real IRR | C84: =ROUND(C5,2) -> 0.08 | D84: After-tax Real IRR = 8% | E84: =+K$51 -> 1.938937028 | F84: 0 | G84: 0.001953233668 | H84: 0.1967939404 | I84: 0.02514887309 | J84: 0.02113041182 | K84: 0.002954440199 | L84: 0.001941574233 | M84: 0.2058360274 | N84: 1.058372328 | O84: 0.0373203106 | P84: 0.2478059464 | Q84: 0.1176326055 | R84: 0.02066947898 | S84: 0.005284325024
B85: After-tax Real IRR | C85: =ROUND(I5,2) -> 0.08 | D85: After-tax Real IRR = 8% | E85: =+K57 -> 1.949301365 | F85: 0 | G85: 0.001757322118 | H85: 0.2067954683 | I85: 0.02514887309 | J85: 0.02185161172 | K85: 0.003104591753 | L85: 0.001746832138 | M85: 0.2058360274 | N85: 1.053828295 | O85: 0.0373203106 | P85: 0.2478059464 | Q85: 0.1195237214 | R85: 0.02334270762 | S85: 0.004754301237
B86: =+$B$6 -> Feedstock Consumption (% of baseline) | C86: =+ROUND(H6,3) -> 0.95 | D86: =+B86&" = "&C86*100&"%" -> Feedstock Consumption (% of baseline) = 95% | E86: 1.938937028 | F86: 0 | G86: 0.001953233668 | H86: 0.1967939404 | I86: 0.02514887309 | J86: 0.02113041182 | K86: 0.002954440199 | L86: 0.001941574233 | M86: 0.2058360274 | N86: 1.058372328 | O86: 0.0373203106 | P86: 0.2478059464 | Q86: 0.1176326055 | R86: 0.02066947898 | S86: 0.005284325024
B87: =+$B$6 -> Feedstock Consumption (% of baseline) | C87: =+ROUND(C6,3) -> 1 | D87: =+B87&" = "&C87*100&"%" -> Feedstock Consumption (% of baseline) = 100% | E87: =+K$51 -> 1.938937028 | F87: 0 | G87: 0.001953233668 | H87: 0.1967939404 | I87: 0.02514887309 | J87: 0.02113041182 | K87: 0.002954440199 | L87: 0.001941574233 | M87: 0.2058360274 | N87: 1.058372328 | O87: 0.0373203106 | P87: 0.2478059464 | Q87: 0.1176326055 | R87: 0.02066947898 | S87: 0.005284325024
B88: Feedstock Consumption (% of baseline) | C88: =+ROUND(I6,3) -> 1.05 | D88: =+B88&" = "&C88*100&"%" -> Feedstock Consumption (% of baseline) = 105% | E88: =+K59 -> 1.938937028 | F88: 0 | G88: 0.001953233668 | H88: 0.1967939404 | I88: 0.02514887309 | J88: 0.02113041182 | K88: 0.002954440199 | L88: 0.001941574233 | M88: 0.2058360274 | N88: 1.058372328 | O88: 0.0373203106 | P88: 0.2478059464 | Q88: 0.1176326055 | R88: 0.02066947898 | S88: 0.005284325024
B89: =+$B$7 -> Utilities Consumption (% of baseline) | C89: =+ROUND(H7,3) -> 0.95 | D89: =+B89&" = "&C89*100&"%" -> Utilities Consumption (% of baseline) = 95% | E89: 1.938937028 | F89: 0 | G89: 0.001953233668 | H89: 0.1967939404 | I89: 0.02514887309 | J89: 0.02113041182 | K89: 0.002954440199 | L89: 0.001941574233 | M89: 0.2058360274 | N89: 1.058372328 | O89: 0.0373203106 | P89: 0.2478059464 | Q89: 0.1176326055 | R89: 0.02066947898 | S89: 0.005284325024
B90: =+$B$7 -> Utilities Consumption (% of baseline) | C90: =+ROUND(C7,3) -> 1 | D90: Utilities Consumption (% of baseline) = 100% | E90: =+K$51 -> 1.938937028 | F90: =+L$51 -> 0 | G90: 0.001953233668 | H90: 0.1967939404 | I90: 0.02514887309 | J90: 0.02113041182 | K90: 0.002954440199 | L90: 0.001941574233 | M90: 0.2058360274 | N90: 1.058372328 | O90: 0.0373203106 | P90: 0.2478059464 | Q90: 0.1176326055 | R90: 0.02066947898 | S90: 0.005284325024
B91: Utilities Consumption (% of baseline) | C91: =+ROUND(I7,3) -> 1.05 | D91: Utilities Consumption (% of baseline) = 105% | E91: =+K61 -> 1.938937028 | F91: 0 | G91: 0.001953233668 | H91: 0.1967939404 | I91: 0.02514887309 | J91: 0.02113041182 | K91: 0.002954440199 | L91: 0.001941574233 | M91: 0.2058360274 | N91: 1.058372328 | O91: 0.0373203106 | P91: 0.2478059464 | Q91: 0.1176326055 | R91: 0.02066947898 | S91: 0.005284325024
B92: =+$B$8 -> Total Capital Investment | C92: =+ROUND(H8,0) -> 762701914 | D92: =+B92&" = "&TEXT(C92/1000,"$0,000K") -> Total Capital Investment = $762,702K | E92: 1.9173022 | F92: 0 | G92: 0.001855571984 | H92: 0.1868951546 | I92: 0.02514887309 | J92: 0.02106135369 | K92: 0.002954440199 | L92: 0.00184391255 | M92: 0.2007760483 | N92: 1.058372328 | O92: 0.0373203106 | P92: 0.2478059464 | Q92: 0.1117156552 | R92: 0.02024522741 | S92: 0.005018522116
B93: =+$B$8 -> Total Capital Investment | C93: =+ROUND(C8,0) -> 802844120 | D93: Total Capital Investment = $802,844K | E93: =+K$51 -> 1.938937028 | F93: 0 | G93: 0.001953233668 | H93: 0.1967939404 | I93: 0.02514887309 | J93: 0.02113041182 | K93: 0.002954440199 | L93: 0.001941574233 | M93: 0.2058360274 | N93: 1.058372328 | O93: 0.0373203106 | P93: 0.2478059464 | Q93: 0.1176326055 | R93: 0.02066947898 | S93: 0.005284325024
B94: Total Capital Investment | C94: =+ROUND(I8,0) -> 842986326 | D94: Total Capital Investment = $842,986K | E94: =+K63 -> 1.960571855 | F94: 0 | G94: 0.002050895351 | H94: 0.2066927262 | I94: 0.02514887309 | J94: 0.02119946996 | K94: 0.002954440199 | L94: 0.002039235917 | M94: 0.2108960065 | N94: 1.058372328 | O94: 0.0373203106 | P94: 0.2478059464 | Q94: 0.1235495558 | R94: 0.02109373054 | S94: 0.005550127931
B95: =+$B$9 -> Total Fixed Operating Cost | C95: =+ROUND(H9,0) -> 31026122 | D95: Total Fixed Operating Cost = $31,026K | E95: 1.928456078 | F95: 0 | G95: 0.001953233668 | H95: 0.1967939404 | I95: 0.02514887309 | J95: 0.02098995026 | K95: 0.002954440199 | L95: 0.001941574233 | M95: 0.195544226 | N95: 1.058372328 | O95: 0.0373203106 | P95: 0.2478059464 | Q95: 0.1176326055 | R95: 0.02062079219 | S95: 0.005284325024
B96: =+$B$9 -> Total Fixed Operating Cost | C96: =+ROUND(C9,0) -> 32659076 | D96: Total Fixed Operating Cost = $32,659K | E96: =+K$51 -> 1.938937028 | F96: 0 | G96: 0.001953233668 | H96: 0.1967939404 | I96: 0.02514887309 | J96: 0.02113041182 | K96: 0.002954440199 | L96: 0.001941574233 | M96: 0.2058360274 | N96: 1.058372328 | O96: 0.0373203106 | P96: 0.2478059464 | Q96: 0.1176326055 | R96: 0.02066947898 | S96: 0.005284325024
B97: Total Fixed Operating Cost | C97: =+ROUND(I9,0) -> 34292030 | D97: Total Fixed Operating Cost = $34,292K | E97: =+K65 -> 1.949417977 | F97: 0 | G97: 0.001953233668 | H97: 0.1967939404 | I97: 0.02514887309 | J97: 0.02127087339 | K97: 0.002954440199 | L97: 0.001941574233 | M97: 0.2161278288 | N97: 1.058372328 | O97: 0.0373203106 | P97: 0.2478059464 | Q97: 0.1176326055 | R97: 0.02071816576 | S97: 0.005284325024
B100: Standard Toranado | C100: Rank | D100: Titles | E100: Low cost price | F100: Default price | G100: High price | H100: dL0 | I100: dL1 | J100: dL2 | L100: Unsorted titles | M100: Results spread ($/kg) | N100: Importance ranking
C101: 1 | D101: =OFFSET(L$100,MATCH($C101,$N$101:$N$107,0),0) -> Operating Capacity Factor (95%, 90%, 86%) | E101: =OFFSET(E$76,MATCH($C101,$N$101:$N$107,0)*3-2,0) -> 1.90309583 | F101: =+$K$51 -> 1.938937028 | G101: =OFFSET(E$76,MATCH($C101,$N$101:$N$107,0)*3,0) -> 1.978533817 | H101: =+E101 -> 1.90309583 | I101: =+F101-E101 -> 0.03584119746 | J101: =+G101-F101 -> 0.03959678965 | L101: =+B3&" ("&TEXT(H3,"0%, ")&TEXT(C3,"0%, ")&TEXT(I3,"0%)") -> Operating Capacity Factor (95%, 90%, 86%) | M101: =ABS(K52-K53)+0.000000001 -> 0.07543798811 | N101: =+RANK(M101,$M$101:$M$107) -> 1
C102: 2 | D102: Total Capital Investment ($762,702K, $802,844K, $842,986K) | E102: 1.9173022 | F102: 1.938937028 | G102: 1.960571855 | H102: =+E102 -> 1.9173022 | I102: =+F102-E102 -> 0.02163482789 | J102: =+G102-F102 -> 0.02163482789 | L102: =+B4&" ("&TEXT(H4,"0,000")&", "&TEXT(C4,"0,000")&", "&TEXT(I4,"0,000")&") " -> Plant Design Capacity (kg of H2/day) (507,150, 483,000, 458,850) | M102: =+ABS(K54-K55)+0.000000002 -> 0.04021324018 | N102: 3
C103: 3 | D103: Plant Design Capacity (kg of H2/day) (507,150, 483,000, 458,850) | E103: 1.919697265 | F103: 1.938937028 | G103: 1.959910504 | H103: 1.919697265 | I103: 0.01923976225 | J103: 0.02097347593 | L103: =+B5&" ("&TEXT(H5,"0%, ")&TEXT(C5,"0%, ")&TEXT(I5,"0%)") -> After-tax Real IRR (8%, 8%, 8%) | M103: =+ABS(K56-K57)+0.000000003 -> 0.02022467636 | N103: 5
C104: 4 | D104: Total Fixed Operating Cost ($31,026K, $32,659K, $34,292K) | E104: 1.928456078 | F104: 1.938937028 | G104: 1.949417977 | H104: 1.928456078 | I104: 0.01048094972 | J104: 0.01048094972 | L104: =+B6&" ("&TEXT(H6,"0%, ")&TEXT(C6,"0%, ")&TEXT(I6,"0%)") -> Feedstock Consumption (% of baseline) (95%, 100%, 105%) | M104: =+ABS(K58-K59)+0.000000004 -> 4e-09 | N104: 6
C105: 5 | D105: After-tax Real IRR (8%, 8%, 8%) | E105: 1.929076691 | F105: 1.938937028 | G105: 1.949301365 | H105: =+E105 -> 1.929076691 | I105: =+F105-E105 -> 0.009860336259 | J105: =+G105-F105 -> 0.0103643371 | L105: =+B7&" ("&TEXT(H7,"0%, ")&TEXT(C7,"0%, ")&TEXT(I7,"0%)") -> Utilities Consumption (% of baseline) (95%, 100%, 105%) | M105: =+ABS(K60-K61)+0.000000004 -> 4e-09 | N105: 6
C106: 6 | D106: Feedstock Consumption (% of baseline) (95%, 100%, 105%) | E106: 1.938937028 | F106: 1.938937028 | G106: 1.938937028 | H106: 1.938937028 | I106: 0 | J106: 0 | L106: =+B8&" ("&TEXT(H8/1000,"$0,000K")&", "&TEXT(C8/1000,"$0,000K")&", "&TEXT(I8/1000,"$0,000K")&") " -> Total Capital Investment ($762,702K, $802,844K, $842,986K) | M106: =+ABS(K62-K63)+0.000000006 -> 0.04326966177 | N106: 2
C107: 7 | F107: 1.938937028 | L107: =+B9&" ("&TEXT(H9/1000,"$0,000K")&", "&TEXT(C9/1000,"$0,000K")&", "&TEXT(I9/1000,"$0,000K")&") " -> Total Fixed Operating Cost ($31,026K, $32,659K, $34,292K) | M107: =+ABS(K64-K65)+0.00000007 -> 0.02096196944 | N107: 4
B110: Simple bar chart | C110: Rank | D110: =+D76 -> Chart titles | E110: Hydrogen Sales | F110: Byproduct Sales | G110: Salvage Value | H110: =+H76 -> Initial Equity Depreciable Capital | I110: Yearly Replacement Costs | J110: Cash for Working Capital Reserve | K110: Other Non-Depreciable Capital Costs | L110: Decommissioning Costs | M110: Fixed Operating Cost | N110: Feedstock Cost | O110: Other Raw Material Cost | P110: Other Variable Operating Costs | Q110: Debt Interest | R110: Taxes | S110: Principal Payment
C111: 1 | D111: Base case | E111: =OFFSET(E$76,MATCH($C111,$N$101:$N$107,0)*3-1,0) -> 1.938937028 | F111: =OFFSET(F$76,MATCH($C111,$N$101:$N$107,0)*3-1,0) -> 0 | G111: =OFFSET(G$76,MATCH($C111,$N$101:$N$107,0)*3-1,0) -> 0.001953233668
H112: =OFFSET(H$76,MATCH($C111,$N$101:$N$107,0)*3-1,0) -> 0.1967939404 | I112: 0.02514887309 | J112: 0.02113041182 | K112: 0.002954440199 | L112: 0.001941574233 | M112: 0.2058360274 | N112: 1.058372328 | O112: 0.0373203106 | P112: 0.2478059464 | Q112: 0.1176326055 | R112: 0.02066947898 | S112: 0.005284325024
C115: 1 | D115: =OFFSET(D$76,MATCH($C115,$N$101:$N$107,0)*3-2,0) -> Operating Capacity Factor = 94.5% | E115: 1.90309583 | F115: 0 | G115: 0.00186022254
H116: =OFFSET(H$76,MATCH($C115,$N$101:$N$107,0)*3-2,0) -> 0.1874228004 | I116: 0.0239513077 | J116: 0.0208805565 | K116: 0.002813752571 | L116: 0.001849118318 | M116: 0.1960343118 | N116: 1.058372328 | O116: 0.03554315295 | P116: 0.2410775957 | Q116: 0.1120310529 | R116: 0.01994738575 | S116: 0.005032690499
C117: 1 | D117: =OFFSET(D$76,MATCH($C117,$N$101:$N$107,0)*3,0) -> Operating Capacity Factor = 85.5% | E117: 1.978533817 | F117: 0 | G117: 0.002056035439
H118: =OFFSET(H$76,MATCH($C117,$N$101:$N$107,0)*3,0) -> 0.2071515162 | I118: 0.02647249799 | J118: 0.02140633766 | K118: 0.003109937052 | L118: 0.002043762351 | M118: 0.2166695025 | N118: 1.058372328 | O118: 0.03928453747 | P118: 0.2552256888 | Q118: 0.1238237953 | R118: 0.02146750228 | S118: 0.005562447393
C120: 2 | D120: =OFFSET(D$76,MATCH($C120,$N$101:$N$107,0)*3-2,0) -> Total Capital Investment = $762,702K | E120: 1.9173022 | F120: 0 | G120: 0.001855571984
H121: =OFFSET(H$76,MATCH($C120,$N$101:$N$107,0)*3-2,0) -> 0.1868951546 | I121: 0.02514887309 | J121: 0.02106135369 | K121: 0.002954440199 | L121: 0.00184391255 | M121: 0.2007760483 | N121: 1.058372328 | O121: 0.0373203106 | P121: 0.2478059464 | Q121: 0.1117156552 | R121: 0.02024522741 | S121: 0.005018522116
C122: 2 | D122: =OFFSET(D$76,MATCH($C122,$N$101:$N$107,0)*3,0) -> Total Capital Investment = $842,986K | E122: 1.960571855 | F122: 0 | G122: 0.002050895351
H123: =OFFSET(H$76,MATCH($C122,$N$101:$N$107,0)*3,0) -> 0.2066927262 | I123: 0.02514887309 | J123: 0.02119946996 | K123: 0.002954440199 | L123: 0.002039235917 | M123: 0.2108960065 | N123: 1.058372328 | O123: 0.0373203106 | P123: 0.2478059464 | Q123: 0.1235495558 | R123: 0.02109373054 | S123: 0.005550127931
C125: 3 | D125: =OFFSET(D$76,MATCH($C125,$N$101:$N$107,0)*3-2,0) -> Plant Design Capacity (kg of H2/day) = 507,150 | E125: 1.919697265 | F125: 0 | G125: 0.001906819688
H126: =OFFSET(H$76,MATCH($C125,$N$101:$N$107,0)*3-2,0) -> 0.1921137324 | I126: 0.02455077563 | J126: 0.02098749845 | K126: 0.002893898189 | L126: 0.001895399178 | M126: 0.2012930098 | N126: 1.058372328 | O126: 0.0373203106 | P126: 0.2418775157 | Q126: 0.1148350343 | R126: 0.02030593137 | S126: 0.005158651743
C127: 3 | D127: =OFFSET(D$76,MATCH($C127,$N$101:$N$107,0)*3,0) -> Plant Design Capacity (kg of H2/day) = 458,850 | E127: 1.959910504 | F127: 0 | G127: 0.002003598688
H128: =OFFSET(H$76,MATCH($C127,$N$101:$N$107,0)*3,0) -> 0.2018727116 | I128: 0.02579790411 | J128: 0.02128677938 | K128: 0.003019747501 | L128: 0.001991681525 | M128: 0.2107591597 | N128: 1.058372328 | O128: 0.0373203106 | P128: 0.254340068 | Q128: 0.1206684159 | R128: 0.0210642957 | S128: 0.005420700553
C130: 4 | D130: =OFFSET(D$76,MATCH($C130,$N$101:$N$107,0)*3-2,0) -> Total Fixed Operating Cost = $31,026K | E130: 1.928456078 | F130: 0 | G130: 0.001953233668
H131: =OFFSET(H$76,MATCH($C130,$N$101:$N$107,0)*3-2,0) -> 0.1967939404 | I131: 0.02514887309 | J131: 0.02098995026 | K131: 0.002954440199 | L131: 0.001941574233 | M131: 0.195544226 | N131: 1.058372328 | O131: 0.0373203106 | P131: 0.2478059464 | Q131: 0.1176326055 | R131: 0.02062079219 | S131: 0.005284325024
C132: 4 | D132: =OFFSET(D$76,MATCH($C132,$N$101:$N$107,0)*3,0) -> Total Fixed Operating Cost = $34,292K | E132: 1.949417977 | F132: 0 | G132: 0.001953233668
H133: =OFFSET(H$76,MATCH($C132,$N$101:$N$107,0)*3,0) -> 0.1967939404 | I133: 0.02514887309 | J133: 0.02127087339 | K133: 0.002954440199 | L133: 0.001941574233 | M133: 0.2161278288 | N133: 1.058372328 | O133: 0.0373203106 | P133: 0.2478059464 | Q133: 0.1176326055 | R133: 0.02071816576 | S133: 0.005284325024
C135: 5 | D135: =OFFSET(D$76,MATCH($C135,$N$101:$N$107,0)*3-2,0) -> After-tax Real IRR = 8% | E135: 1.929076691 | F135: 0 | G135: 0.002169217773
H136: =OFFSET(H$76,MATCH($C135,$N$101:$N$107,0)*3-2,0) -> 0.1870158173 | I136: 0.02514887309 | J136: 0.02039989903 | K136: 0.002807642591 | L136: 0.002156269066 | M136: 0.2058360274 | N136: 1.063013705 | O136: 0.0373203106 | P136: 0.2478059464 | Q136: 0.1157486873 | R136: 0.01812407791 | S136: 0.005868653583
C137: 5 | D137: =OFFSET(D$76,MATCH($C137,$N$101:$N$107,0)*3,0) -> After-tax Real IRR = 8% | E137: 1.949301365 | F137: 0 | G137: 0.001757322118
H138: =OFFSET(H$76,MATCH($C137,$N$101:$N$107,0)*3,0) -> 0.2067954683 | I138: 0.02514887309 | J138: 0.02185161172 | K138: 0.003104591753 | L138: 0.001746832138 | M138: 0.2058360274 | N138: 1.053828295 | O138: 0.0373203106 | P138: 0.2478059464 | Q138: 0.1195237214 | R138: 0.02334270762 | S138: 0.004754301237
C140: 6 | D140: =OFFSET(D$76,MATCH($C140,$N$101:$N$107,0)*3-2,0) -> Feedstock Consumption (% of baseline) = 95% | E140: 1.938937028 | F140: 0 | G140: 0.001953233668
H141: =OFFSET(H$76,MATCH($C140,$N$101:$N$107,0)*3-2,0) -> 0.1967939404 | I141: 0.02514887309 | J141: 0.02113041182 | K141: 0.002954440199 | L141: 0.001941574233 | M141: 0.2058360274 | N141: 1.058372328 | O141: 0.0373203106 | P141: 0.2478059464 | Q141: 0.1176326055 | R141: 0.02066947898 | S141: 0.005284325024
C142: 6 | D142: =OFFSET(D$76,MATCH($C142,$N$101:$N$107,0)*3,0) -> Feedstock Consumption (% of baseline) = 105% | E142: 1.938937028 | F142: 0 | G142: 0.001953233668
H143: =OFFSET(H$76,MATCH($C142,$N$101:$N$107,0)*3,0) -> 0.1967939404 | I143: 0.02514887309 | J143: 0.02113041182 | K143: 0.002954440199 | L143: 0.001941574233 | M143: 0.2058360274 | N143: 1.058372328 | O143: 0.0373203106 | P143: 0.2478059464 | Q143: 0.1176326055 | R143: 0.02066947898 | S143: 0.005284325024
C145: 7 | D145: =OFFSET(D$76,MATCH($C145,$N$101:$N$107,0)*3-2,0) -> 
H146: =OFFSET(H$76,MATCH($C145,$N$101:$N$107,0)*3-2,0) -> 
C147: 7 | D147: =OFFSET(D$76,MATCH($C147,$N$101:$N$107,0)*3,0) -> 
H148: =OFFSET(H$76,MATCH($C147,$N$101:$N$107,0)*3,0) -> 
B152: Parado chart
D153: Unsorted
D154: Title | E154: Unsorted values | F154: Unsorted Ranking | G154: Sorted ranking | H154: Sorted titles | I154: Sorted values | K154: Grayed Titles | L154: Revenues $/kg H2 | M154: Expenses $/kg H2 | N154: Colored titles
B155: Revenues | C155: 1 | D155: Cost of Hydrogen | E155: =+K48+C155/10000000000 -> 1.855621764 | F155: =+RANK(E155,$E$155:$E$157) -> 1 | G155: 1 | H155: =OFFSET($D$154,MATCH($G155,$F$155:$F$157,0),0) -> Cost of Hydrogen | I155: =OFFSET($E$154,MATCH($G155,$F$155:$F$157,0),0)-OFFSET($C$154,MATCH($G155,$F$155:$F$157,0),0)/10000000000 -> 1.855621764 | K155: =+H155 -> Cost of Hydrogen | L155: =+I155 -> 1.855621764 | N155: =+IF(L155>0,K155,"") -> Cost of Hydrogen
C156: 2 | D156: =+F110 -> Byproduct Sales | E156: =+L48+C156/10000000000 -> 2e-10 | F156: =+RANK(E156,$E$155:$E$157) -> 3 | G156: 2 | H156: =OFFSET($D$154,MATCH($G156,$F$155:$F$157,0),0) -> Salvage Value | I156: =OFFSET($E$154,MATCH($G156,$F$155:$F$157,0),0)-OFFSET($C$154,MATCH($G156,$F$155:$F$157,0),0)/10000000000 -> 0.001953233668 | K156: =+H156 -> Salvage Value | L156: =+I156 -> 0.001953233668 | N156: =+IF(L156>0,K156,"") -> Salvage Value
C157: 3 | D157: =+G110 -> Salvage Value | E157: =+M48+C157/10000000000 -> 0.001953233968 | F157: =+RANK(E157,$E$155:$E$157) -> 2 | G157: 3 | H157: =OFFSET($D$154,MATCH($G157,$F$155:$F$157,0),0) -> Byproduct Sales | I157: =OFFSET($E$154,MATCH($G157,$F$155:$F$157,0),0)-OFFSET($C$154,MATCH($G157,$F$155:$F$157,0),0)/10000000000 -> 0 | K157: Byproduct Sales | L157: 0
N158: =+IF(L158>0.01,K158,"") -> 
B159: Expenses | C159: 1 | D159: =+H110 -> Initial Equity Depreciable Capital | E159: =+N48+C159/10000000000 -> 0.1967939405 | F159: =+RANK(E159,$E$159:$E$170) -> 4 | G159: 1 | H159: =OFFSET($D$158,MATCH($G159,$F$159:$F$170,0),0) -> Feedstock Cost | I159: =OFFSET($E$158,MATCH($G159,$F$159:$F$170,0),0)-OFFSET($C$158,MATCH($G159,$F$159:$F$170,0),0)/10000000000 -> 0.9769214802 | K159: Feedstock Cost | M159: =+I159 -> 0.9769214802 | N159: =+IF(M159>0,K159,"") -> Feedstock Cost
C160: =+C159+1 -> 2 | D160: =+I110 -> Yearly Replacement Costs | E160: =+O48+C160/10000000000 -> 0.02514887329 | F160: 7 | G160: 2 | H160: Other Variable Operating Costs | I160: 0.2474446203 | K160: Other Variable Operating Costs | M160: =+I160 -> 0.2474446203 | N160: =+IF(M160>0,K160,"") -> Other Variable Operating Costs
C161: =+C160+1 -> 3 | D161: =+J110 -> Cash for Working Capital Reserve | E161: =+P48+C161/10000000000 -> 0.02001421728 | F161: 9 | G161: 3 | H161: Fixed Operating Cost | I161: 0.2058360274 | K161: Fixed Operating Cost | M161: 0.2058360274 | N161: Fixed Operating Cost
C162: 4 | D162: =+K110 -> Other Non-Depreciable Capital Costs | E162: =+Q48+C162/10000000000 -> 0.002954440599 | F162: 11 | G162: 4 | H162: Initial Equity Depreciable Capital | I162: 0.1967939404 | K162: Initial Equity Depreciable Capital | M162: 0.1967939404 | N162: Initial Equity Depreciable Capital
C163: 5 | D163: =+L110 -> Decommissioning Costs | E163: =+R48+C163/10000000000 -> 0.001941574733 | F163: 12 | G163: 5 | H163: Debt Interest | I163: 0.1176326055 | K163: Debt Interest | M163: 0.1176326055 | N163: Debt Interest
C164: 6 | D164: =+M110 -> Fixed Operating Cost | E164: =+S48+C164/10000000000 -> 0.205836028 | F164: 3 | G164: 6 | H164: Other Raw Material Cost | I164: 0.0373203106 | K164: Other Raw Material Cost | M164: 0.0373203106 | N164: Other Raw Material Cost
C165: 7 | D165: =+N110 -> Feedstock Cost | E165: =+T48+C165/10000000000 -> 0.9769214809 | F165: 1 | G165: 7 | H165: Yearly Replacement Costs | I165: 0.02514887309 | K165: Yearly Replacement Costs | M165: 0.02514887309 | N165: Yearly Replacement Costs
C166: 8 | D166: =+O110 -> Other Raw Material Cost | E166: =+U48+C166/10000000000 -> 0.0373203114 | F166: 6 | G166: 8 | H166: Taxes | I166: 0.02028258354 | K166: Taxes | M166: 0.02028258354 | N166: Taxes
C167: 9 | D167: =+P110 -> Other Variable Operating Costs | E167: =+V48+C167/10000000000 -> 0.2474446212 | F167: 2 | G167: 9 | H167: Cash for Working Capital Reserve | I167: 0.02001421698 | K167: Cash for Working Capital Reserve | M167: 0.02001421698 | N167: Cash for Working Capital Reserve
C168: 10 | D168: =+Q110 -> Debt Interest | E168: =+W48+C168/10000000000 -> 0.1176326065 | F168: 5 | G168: 10 | H168: Principal Payment | I168: 0.005284325024 | K168: Principal Payment | M168: 0.005284325024 | N168: Principal Payment
C169: 11 | D169: =+R110 -> Taxes | E169: =+X48+C169/10000000000 -> 0.02028258464 | F169: 8 | G169: 11 | H169: Other Non-Depreciable Capital Costs | I169: 0.002954440199 | K169: Other Non-Depreciable Capital Costs | M169: 0.002954440199 | N169: Other Non-Depreciable Capital Costs
C170: 12 | D170: =+S110 -> Principal Payment | E170: =+Y48+C170/10000000000 -> 0.005284326224 | F170: 10 | G170: 12 | H170: Decommissioning Costs | I170: 0.001941574233 | K170: Decommissioning Costs | M170: 0.001941574233 | N170: Decommissioning Costs
K171: Total | L171: =+SUM(L155:L170) -> 1.857574998 | M171: =+SUM(M155:M170) -> 1.857574998 | N171: =+IF(M171<0.01,K171,"") -> 
B174: Waterfall Chart | D174: Values | E174: Base | F174: Decrease | G174: Increase
B175: 0 | C175: Baseline | D175: =+K51 -> 1.938937028 | E175: =+D175 -> 1.938937028
B176: 1 | C176: =OFFSET($B$50,0,MATCH($B176,$C$72:$I$72,0))& IF(OFFSET($F$2,MATCH($B176,$C$72:$I$72,0),0)<1, " = "&OFFSET($F$2,MATCH($B176,$C$72:$I$72,0),0)*100-100, " = +"&OFFSET($F$2,MATCH($B176,$C$72:$I$72,0),0)*100-100) &"%" -> Operating capacity factor = +5% | D176: =+K66 -> 1.90309583 | E176: =+E175+G175-F176 -> 1.90309583 | F176: =+MAX(D175-D176,0) -> 0.03584119746 | G176: =+MAX(D176-D175,0) -> 0
B177: 2 | C177: =OFFSET($B$50,0,MATCH($B177,$C$72:$I$72,0))& IF(OFFSET($F$2,MATCH($B177,$C$72:$I$72,0),0)<1, " = "&OFFSET($F$2,MATCH($B177,$C$72:$I$72,0),0)*100-100, " = +"&OFFSET($F$2,MATCH($B177,$C$72:$I$72,0),0)*100-100) &"%" -> Total capital investment ($) = -5% | D177: =+K67 -> 1.882491232 | E177: 1.882491232 | F177: =+MAX(D176-D177,0) -> 0.02060459799 | G177: =+MAX(D177-D176,0) -> 0
B178: 3 | C178: =OFFSET($B$50,0,MATCH($B178,$C$72:$I$72,0))& IF(OFFSET($F$2,MATCH($B178,$C$72:$I$72,0),0)<1, " = "&OFFSET($F$2,MATCH($B178,$C$72:$I$72,0),0)*100-100, " = +"&OFFSET($F$2,MATCH($B178,$C$72:$I$72,0),0)*100-100) &"%" -> Total fixed operating cost ($/year) = -5% | D178: =+K68 -> 1.872754755 | E178: 1.872754755 | F178: =+MAX(D177-D178,0) -> 0.009736477153 | G178: =+MAX(D178-D177,0) -> 0
B179: 4 | C179: =OFFSET($B$50,0,MATCH($B179,$C$72:$I$72,0))& IF(OFFSET($F$2,MATCH($B179,$C$72:$I$72,0),0)<1, " = "&OFFSET($F$2,MATCH($B179,$C$72:$I$72,0),0)*100-100, " = +"&OFFSET($F$2,MATCH($B179,$C$72:$I$72,0),0)*100-100) &"%" ->  | D179: =+K69 -> 1.872754755 | E179: 1.872754755 | F179: =+MAX(D178-D179,0) -> 0 | G179: =+MAX(D179-D178,0) -> 0
B180: 5 | C180: =OFFSET($B$50,0,MATCH($B180,$C$72:$I$72,0))& IF(OFFSET($F$2,MATCH($B180,$C$72:$I$72,0),0)<1, " = "&OFFSET($F$2,MATCH($B180,$C$72:$I$72,0),0)*100-100, " = +"&OFFSET($F$2,MATCH($B180,$C$72:$I$72,0),0)*100-100) &"%" -> Feedstock consumption (% of most likely value) = -5% | D180: =+K70 -> 1.872754755 | E180: 1.872754755 | F180: =+MAX(D179-D180,0) -> 0 | G180: =+MAX(D180-D179,0) -> 0
B181: 6 | C181: Adjusted | D181: =+K70 -> 1.872754755 | E181: 1.872754755
B189: Min factor | C189: =+MIN(F3:G3) -> 0.95 | D189: =+MIN(F4:G4) -> 0.95 | E189: =+MIN(F5:G5) -> 0.95 | F189: =+MIN(F6:G6) -> 0.95 | G189: =+MIN(F7:G7) -> 0.95 | H189: =+MIN(F8:G8) -> 0.95 | I189: =+MIN(F9:G9) -> 0.95
B190: Nominal factor | C190: 1 | D190: 1 | E190: 1 | F190: 1 | G190: 1 | H190: 1 | I190: 1
B191: Max factor | C191: =+MAX(F3:G3) -> 1.05 | D191: =+MAX(F4:G4) -> 1.05 | E191: =+MAX(F5:G5) -> 1.05 | F191: =+MAX(F6:G6) -> 1.05 | G191: =+MAX(F7:G7) -> 1.05 | H191: =+MAX(F8:G8) -> 1.05 | I191: =+MAX(F9:G9) -> 1.05
B194: Variable | C194: =+MATCH(R12,C50:Y50,0) -> 9
B195: Min | C195: =+MIN(OFFSET($B$251:$B$2250,0,C194)) -> 1.879805453
B196: max | C196: =+MAX(OFFSET($B$251:$B$2250,0,C194)) -> 2.017528905
B197: max-min | C197: =+C196-C195 -> 0.1377234526
B198: gain | C198: =+OFFSET(B199,0,C194) -> 1
B199: gain | C199: =+C3 -> 0.9 | D199: =+C4 -> 483000 | E199: =+C5 -> 0.08 | F199: =+C6 -> 1 | G199: =+C7 -> 1 | H199: =+C8 -> 802844120.5 | I199: =+C9 -> 32659076.21 | K199: 1 | L199: 1 | M199: 1 | N199: 1 | O199: 1 | P199: 1 | Q199: 1 | R199: 1 | S199: 1 | T199: 1 | U199: 1 | V199: 1 | W199: 1 | X199: 1
B200: Range to plot
B201: Min | C201: Max | E201: Min*gain | F201: Max*gain | G201: Average | H201: Probability | I201: Cumulative probability
B202: =+C195 -> 1.879805453 | C202: =+B202+($C$197/20) -> 1.886691625 | D202: =+COUNTIFS(OFFSET(B$251:B$2250,0,$C$194),">="&$B202, OFFSET(B$251:B$2250,0,$C$194),"<="&$C202) -> 2 | E202: =+B202*$C$198 -> 1.879805453 | F202: =+C202*$C$198 -> 1.886691625 | G202: =+AVERAGE(E202:F202) -> 1.883248539 | H202: =+D202/$D$223 -> 0.001 | I202: =+H202 -> 0.001
B203: =+C202 -> 1.886691625 | C203: =+B203+($C$197/20) -> 1.893577798 | D203: 12 | E203: =+B203*$C$198 -> 1.886691625 | F203: =+C203*$C$198 -> 1.893577798 | G203: =+AVERAGE(E203:F203) -> 1.890134712 | H203: =+D203/$D$223 -> 0.006 | I203: =+I202+H203 -> 0.007
B204: =+C203 -> 1.893577798 | C204: 1.900463971 | D204: 22 | E204: 1.893577798 | F204: 1.900463971 | G204: 1.897020884 | H204: 0.011 | I204: =+I203+H204 -> 0.018
B205: 1.900463971 | C205: 1.907350143 | D205: 66 | E205: 1.900463971 | F205: 1.907350143 | G205: 1.903907057 | H205: 0.033 | I205: 0.051
B206: 1.907350143 | C206: 1.914236316 | D206: 117 | E206: 1.907350143 | F206: 1.914236316 | G206: 1.91079323 | H206: 0.0585 | I206: 0.1095
B207: 1.914236316 | C207: 1.921122489 | D207: 141 | E207: 1.914236316 | F207: 1.921122489 | G207: 1.917679402 | H207: 0.0705 | I207: 0.18
B208: 1.921122489 | C208: 1.928008661 | D208: 224 | E208: 1.921122489 | F208: 1.928008661 | G208: 1.924565575 | H208: 0.112 | I208: 0.292
B209: 1.928008661 | C209: 1.934894834 | D209: 257 | E209: 1.928008661 | F209: 1.934894834 | G209: 1.931451747 | H209: 0.1285 | I209: 0.4205
B210: 1.934894834 | C210: 1.941781006 | D210: 263 | E210: 1.934894834 | F210: 1.941781006 | G210: 1.93833792 | H210: 0.1315 | I210: 0.552
B211: 1.941781006 | C211: 1.948667179 | D211: 251 | E211: 1.941781006 | F211: 1.948667179 | G211: 1.945224093 | H211: 0.1255 | I211: 0.6775
B212: 1.948667179 | C212: 1.955553352 | D212: 191 | E212: 1.948667179 | F212: 1.955553352 | G212: 1.952110265 | H212: 0.0955 | I212: 0.773
B213: 1.955553352 | C213: 1.962439524 | D213: 168 | E213: 1.955553352 | F213: 1.962439524 | G213: 1.958996438 | H213: 0.084 | I213: 0.857
B214: 1.962439524 | C214: 1.969325697 | D214: 133 | E214: 1.962439524 | F214: 1.969325697 | G214: 1.965882611 | H214: 0.0665 | I214: 0.9235
B215: 1.969325697 | C215: 1.97621187 | D215: 76 | E215: 1.969325697 | F215: 1.97621187 | G215: 1.972768783 | H215: 0.038 | I215: 0.9615
B216: 1.97621187 | C216: 1.983098042 | D216: 44 | E216: 1.97621187 | F216: 1.983098042 | G216: 1.979654956 | H216: 0.022 | I216: 0.9835
B217: 1.983098042 | C217: 1.989984215 | D217: 19 | E217: 1.983098042 | F217: 1.989984215 | G217: 1.986541128 | H217: 0.0095 | I217: 0.993
B218: 1.989984215 | C218: 1.996870387 | D218: 7 | E218: 1.989984215 | F218: 1.996870387 | G218: 1.993427301 | H218: 0.0035 | I218: 0.9965
B219: 1.996870387 | C219: 2.00375656 | D219: 6 | E219: 1.996870387 | F219: 2.00375656 | G219: 2.000313474 | H219: 0.003 | I219: 0.9995
B220: 2.00375656 | C220: 2.010642733 | D220: 0 | E220: 2.00375656 | F220: 2.010642733 | G220: 2.007199646 | H220: 0 | I220: 0.9995
B221: 2.010642733 | C221: =+B221+($C$197/20)+0.000001 -> 2.017529905 | D221: 1 | E221: 2.010642733 | F221: 2.017529905 | G221: 2.014086319 | H221: 0.0005 | I221: 1
F222: 0 | G222: 0
B223: Variable to plot | D223: =+SUM(D202:D221) -> 2000
B224: =+TRANSPOSE(Sensitivity_output) -> Cost of hydrogen ($/kg)
B225: Revenue from byproduct sales ($/kg)
B226: Salvage value ($/kg)
B227: Initial equity depreciable capital ($/kg)
B228: Yearly replacement costs ($/kg)
B229: Cash from working capital reserve ($/kg)
B230: Other non-depreciable capital costs ($/kg)
B231: Decommissioning costs ($/kg)
B232: Fixed operating cost ($/kg)
B233: Feedstock cost ($/kg)
B234: Other raw material cost ($/kg)
B235: Other variable operating costs ($/kg)
B236: Debt interest ($/kg)
B237: Taxes ($/kg)
B238: Principal payment ($/kg)
B239: =+TRANSPOSE(C50:I50) -> Operating capacity factor
B240: Plant design capacity (kg of H2/day)
B241: After-tax real IRR (%)
B242: Feedstock consumption (% of most likely value)
B243: Utilities consumption (% of most likely value)
... 2004 more rows

Sheet Cash Flow Analysis
A2: TABLE OF CONTENTS
A3: DCF Calculations
A4: Yearly Cash Flow Calculations
A5: Specific Item Cost Calculation
A6: Feedstock, Utility, and Byproduct Cost Information
A15: DCF CALCULATION INPUTS: | D15: DCF CALCULATION OUTPUTS:
A16: Process | D16: ="Hydrogen Cost (Year "&TEXT(ref_year,"0")&" Real $/kg)" -> Hydrogen Cost (Year 2016 Real $/kg) | E16: =H2_price_nominal/INFLATION_FACTOR -> 1.855621764
A17: Actual Hydrogen Produced (kg/yr) | B17: =output_kgyear -> 158665500 | D17: Hydrogen Cost (Start-up Year Nominal $/kg) | E17: =+SUM(X57:AB57)/AC57*(1+inflation_rate)^construct -> 1.821022339
A18: Actual Hydrogen Energy Produced (MMBtu(LHV)/yr) | B18: =B17*H2_LHV_MJ_p_kg/1000/mmBTU_to_GJ -> 18079089.76 | D18: After Tax Real IRR | E18: =((E20+1)/(1+B30))-1 -> 0.08
A19: Actual Hydrogen Energy Produced (MJ(LHV)/yr) | B19: =B17*H2_LHV_MJ_p_kg -> 1.90734397e+10 | D19: Pre Tax Real IRR | E19: =((E21+1)/(1+B30))-1 -> 0.09007399737
A20: Design Capacity (kg/day) | B20: =design_cap -> 483000 | D20: After Tax Nominal IRR | E20: =IRR(AA65:AA113) -> 0.10052
A21: Design Capacity (kg/yr) | B21: =B20*365 -> 176295000 | D21: Pre Tax Nominal IRR | E21: =IRR(AC65:AC113) -> 0.1107854033
A22: Capacity Factor | B22: =cap_factor -> 0.9 | D22: After Tax Real Capital Recovery Factor | E22: =(real_irr*(1+real_irr)^anal_period)/(((1+real_irr)^anal_period)-1) -> 0.0838601615
D23: After Tax Nominal Capital Recovery Factor | E23: =(nominal_irr*(1+nominal_irr)^anal_period)/(((1+nominal_irr)^anal_period)-1) -> 0.1027476886
A24: Financial | D24: Total Real Fixed Charge Rate | E24: =(E22*(1-total_tax_rate*INDEX(Depreciation!B12:H37,MATCH("NPV - Real IRR",Depreciation!B12:B37,0),MATCH(depr_length,recovery_period,0))))/(1-total_tax_rate) -> 0.09821253181
A25: Start-up Year | B25: =startup_year -> 2015 | D25: Total Nominal Fixed Charge Rate | E25: =(E23*(1-total_tax_rate*INDEX(Depreciation!B12:H37,MATCH("NPV - Nominal IRR",Depreciation!B12:B37,0),MATCH(depr_length,recovery_period,0))))/(1-total_tax_rate) -> 0.1226581394
A26: After-Tax Real IRR | B26: =real_irr -> 0.08 | D26: NPV | E26: =NPV(nominal_irr,AA65:AA113) -> 1.899000343e-06
A27: After-Tax Nominal IRR | B27: =((1+B26)*(1+B30))-1 -> 0.10052
A28: Analysis Period (yrs) | B28: =anal_period -> 40
A29: Plant Life (yrs) | B29: =plant_life -> 40
A30: Inflation Rate | B30: =inflation_rate -> 0.019
A31: Debt Financing | B31: =100%-equity -> 0.6
A32: Equity Financing | B32: =equity -> 0.4
A33: Total Tax Rate | B33: =total_tax_rate -> 0.2574
A35: Cost of Debt Financing
A36: Debt Financing Period (yrs) | B36: =debt_period -> 0
A37: Interest Rate on Debt | B37: =debt_interest -> 0.037
A39: Construction/Start Up Information
A40: Construction Period (yrs) | B40: =construct -> 3
A41: Start-up Period (yrs) | B41: =start_time -> 1
A42: % Revenue During Start-up | B42: =percnt_revs -> 1
A43: % Variable Costs During Start-up | B43: =percnt_var -> 1
A44: % Fixed Costs During Start-up | B44: =percnt_fixed -> 1
A46: Depreciation Parameters
A47: Depreciation Type | B47: =depr_type -> MACRS
A48: Depreciation Period (yrs) | B48: =depr_length -> 20
A50: Plant Costs (Inflated to Start-up Year $)
A51: Total Depreciable Capital Costs | B51: =(total_cap-non_dep_cap)*INFLATION_FACTOR -> 783171447
A52: Total Non-Depreciable Capital Costs | B52: =non_dep_cap*INFLATION_FACTOR -> 4703057.831
A53: Total Capital Investment | B53: =SUM(B51:B52) -> 787874504.9 | W53: Closed form formulas for calculating price of hydrogen.
A54: Decommissioning | B54: =decom_percent*depr_cap_infl -> 78317144.7 | X54: Capital Costs | Y54: Depr | Z54: Principal | AA54: Op costs | AB54: Tax incentives | AC54: H2 sales (kg)
A55: Salvage Value | B55: =salvage_perct*B53 -> 78787450.49 | W55: Discounted values | X55: =-SUM(H116:K116) -> 368461138.2 | Y55: =-U116 -> 288376863.4 | Z55: =-Z116 -> 7950090.732 | AA55: =-SUM(L116:S116) -> 2384795348 | AB55: =+AF116 -> 0 | AC55: =+AE116 -> 1622106256
A56: Fixed Operating Costs ($/year) | B56: =fixed*INFLATION_FACTOR -> 32050123.85 | W56: Tax coefficient | X56: 1 | Y56: =-total_tax_rate -> -0.2574 | Z56: 1 | AA56: =1-total_tax_rate -> 0.7426 | AB56: -1 | AC56: =1-total_tax_rate -> 0.7426
A57: Other Raw Material ($/year) | B57: =total_other_raw*INFLATION_FACTOR -> 5811036.057 | W57: LCOE cost contribution factors | X57: =+X55*X56 -> 368461138.2 | Y57: -74228204.63 | Z57: 7950090.732 | AA57: =+AA55*AA56 -> 1770949025 | AB57: =+AB55*AB56 -> 0 | AC57: =+AC55*AC56 -> 1204576106
A58: Other Variable O&M Costs (not including tax credits and incentives) | B58: =(var_misc+royalties+operator_profit+CO2_OandMcost+waste_treat+solidwaste_treat)*INFLATION_FACTOR -> 35522359.96
W59: Target after-tax nominal IRR | X59: =+(1+real_irr)*(1+inflation_rate)-1 -> 0.10052
W60: =+D16 -> Hydrogen Cost (Year 2016 Real $/kg) | X60: =+SUM(X57:AB57)/AC57*(1+inflation_rate)^construct/INFLATION_FACTOR -> 1.855621764
A63: CASH FLOW ANALYSIS
A64: Actual Year (beginning of year) | B64: Analysis Year | C64: Operation Year | D64: Plant Life | E64: Inflation Price Increase Factor | F64: Revenue from Hydrogen Sales | G64: Portion of Initial Depreciable Capital Investment Financed with Debt (value ONLY used in debt financing calculations) | H64: Initial Equity Depreciable Capital | I64: Yearly Replacement Costs | J64: Cash from Working Capital Reserve | K64: Other Non-Depreciable Capital Costs | L64: Salvage Value | M64: Decommissioning Costs | N64: Fixed Operating Cost | O64: Feedstock Cost | P64: Other Raw Material Cost | Q64: Revenue from Byproduct Sales | R64: Other Variable Operating Costs | S64: Debt Interest | T64: Pre-Depreciation Income | U64: Depreciation Charge | V64: Taxable Income | W64: Tax Rate | X64: Total Taxes | Y64: After-Tax Income | Z64: Principal Payment | AA64: After-Tax Post-Depreciation Cash Flow | AB64: Cumulative Cash Flow | AC64: Pre-Tax Cash Flow | AE64: H2 sales (kg/year) | AF64: Tax Credit
A65: =startup_year-construct -> 2012 | B65: 1 | C65: =IF(construct=0,1,-construct) -> -3 | D65: =IF(C65="","",IF(C65<=plant_life,C65,IF(D64=plant_life,1,D64+1))) -> -3 | E65: =IF(C65="","",(1+inflation_rate)^(A65-$B$25)) -> 0.9450993141 | F65: =IF(C65="","",IF(C65<0,0,IF(AND(C65=1,start_time<1),E65*(H2_price_nominal*output_kgyear*start_time*percnt_revs+H2_price_nominal*output_kgyear*(1-start_time)),IF(C65<=start_time,H2_price_nominal*E65*output_kgyear*percnt_revs,H2_price_nominal*output_kgyear*E65)))) -> 0 | G65: =-$B$31*depr_cap_infl*E65 -> -444104878.4 | H65: =IF(C65<0,-E65*equity*depr_cap_infl*percent_cap1,IF(C65=1,-E65*equity*depr_cap_infl,0)) -> -296069919 | I65: =IF(OR(C65<0,C65=""),"",-E65*INDEX('Replacement Costs'!$A$16:$H$57,MATCH(C65,'Replacement Costs'!$C$16:$C$57,0),MATCH("Total Yearly Replacement Costs",'Replacement Costs'!$A$16:$H$16,0))) ->  | J65: =IF(AND(C65>=1,C65<anal_period),WorkingCap*SUM(N65:R65)-WorkingCap*SUM(N64:R64),0) -> 0 | K65: =IF(C65=-construct,-E65*non_dep_infl,"") -> -4444856.73 | L65: =IF(C65=anal_period,salvage*E65,"") ->  | M65: =IF(D65=plant_life,-E65*decom,"") ->  | N65: =IF(C65="","",IF(C65<0,0,IF(AND(C65=1,start_time<1),-(inflated_fixed*percnt_fixed*start_time+(inflated_fixed*(1-start_time))),IF(C65<=start_time,-inflated_fixed*percnt_fixed*E65,-inflated_fixed*E65)))) -> 0 | O65: =IF(C65="","",IF(C65<0,0,IF(AND(C65=1,start_time<1),-(SUM(B139:E139)*output_kgyear*E65*percnt_var*start_time+SUM(B139:E139)*output_kgyear*E65*(1-start_time)),IF(C65<=start_time,-SUM(B139:E139)*output_kgyear*E65*percnt_var,-SUM(B139:E139)*output_kgyear*E65)))) -> 0 | P65: =IF(C65="","",IF(C65<0,0,IF(AND(C65=1,start_time<1),-(inflated_otherraw*E65*percnt_var*start_time+inflated_otherraw*E65*(1-start_time)),IF(C65<=start_time,-inflated_otherraw*E65*percnt_var,-(inflated_otherraw*E65))))) -> 0 | Q65: =IF(C65="","",IF(C65<0,0,IF(AND(C65=1,start_time<1),SUM(K139:N139,T139:V139)*output_kgyear*E65*percnt_revs*start_time+SUM(K139:N139,T139:V139)*output_kgyear*E65*(1-start_time),IF(C65<=start_time,SUM(K139:N139,T139:V139)*output_kgyear*E65*percnt_revs,SUM(K139:N139,T139:V139)*output_kgyear*E65)))) -> 0 | R65: =IF(C65="","",IF(C65<0,0,IF(AND(C65=1,start_time<1),-((SUM(F139:J139,P139:R139)*output_kgyear+inflated_othervar)*E65*percnt_var*start_time+(SUM(F139:J139,P139:R139)*output_kgyear+inflated_othervar)*E65*(1-start_time)),IF(C65<=start_time,-(SUM(F139:J139,P139:R139)*output_kgyear+inflated_othervar)*E65*percnt_var,-E65*(SUM(F139:J139,P139:R139)*output_kgyear+inflated_othervar))))) -> 0 | S65: =IF(B65="","",IF($B$31=0,"",-'Debt Financing Calculations'!E14)) -> -16431880.5 | T65: =IF(C65="","",F65+SUM(L65:S65)) -> -16431880.5 | U65: =IF(C65="","",IF(C65<-1,0,IF(C65=anal_period,-LOOKUP(C65,depr_yr,depr_cost)-Depreciation!$C$141-Depreciation!$B$166,-LOOKUP(C65,depr_yr,depr_cost)))) -> 0 | V65: =IF(C65="","",SUM(T65:U65)) -> -16431880.5 | W65: =IF(C65="","",$B$33) -> 0.2574 | X65: =IF(C65="","",tax_credit-(V65*W65 +Upstream_CO2_taxpYear + Proc_CO2_taxpYear)) -> 4229566.041 | Y65: =IF(C65="","",SUM(T65,X65)) -> -12202314.46 | Z65: =IF(C65="","",IF($B$31=0,"",-'Debt Financing Calculations'!F14)) -> 0 | AA65: =IF(C65="","",SUM(H65,I65,J65,K65,T65,X65,Z65)) -> -312717090.2 | AB65: =AA65 -> -312717090.2 | AC65: =IF(C65="","",SUM(H65,I65,J65,K65,T65,Z65)) -> -316946656.2 | AE65: =IF(C65="","",IF(C65<0,0,IF(AND(C65=1,start_time<1),(output_kgyear*start_time*percnt_revs+output_kgyear*(1-start_time)),IF(C65<=start_time,output_kgyear*percnt_revs,output_kgyear)))) -> 0 | AF65: =IF(C65="","",tax_credit) -> 0
A66: =IF(B66<>"",A65+1,"") -> 2013 | B66: =IF(MAX($B$65:B65)<(construct+anal_period),B65+1,"") -> 2 | C66: =IF(B66="","",IF(C65=-1,1,C65+1)) -> -2 | D66: -2 | E66: 0.9630562011 | F66: 0 | H66: =IF(C66<0,-E66*equity*depr_cap_infl*percent_cap2,0) -> 0 | I66: =IF(OR(C66<0,C66=""),"",-E66*INDEX('Replacement Costs'!$A$16:$H$57,MATCH(C66,'Replacement Costs'!$C$16:$C$57,0),MATCH("Total Yearly Replacement Costs",'Replacement Costs'!$A$16:$H$16,0))) ->  | J66: =IF(AND(C66>=1,C66<anal_period),WorkingCap*SUM(N66:R66)-WorkingCap*SUM(N65:R65),IF(C66<0,0,IF(B66="","",-SUM(J$65:J65)))) -> 0 | N66: 0 | O66: 0 | P66: 0 | Q66: 0 | R66: 0 | S66: =IF(B66="","",IF($B$31=0,"",-'Debt Financing Calculations'!E15)) -> -16431880.5 | T66: -16431880.5 | U66: =IF(C66="","",IF(C66<-1,0,IF(C66=anal_period,-LOOKUP(C66,depr_yr,depr_cost)-Depreciation!$C$141-Depreciation!$B$166,-LOOKUP(C66,depr_yr,depr_cost)))) -> 0 | V66: -16431880.5 | W66: 0.2574 | X66: 4229566.041 | Y66: -12202314.46 | Z66: =IF(C66="","",IF($B$31=0,"",-'Debt Financing Calculations'!F15)) -> 0 | AA66: -12202314.46 | AB66: =IF(C66="","",AB65+AA66) -> -324919404.6 | AC66: -16431880.5 | AE66: 0 | AF66: 0
A67: 2014 | B67: =IF(MAX($B$65:B66)<(construct+anal_period),B66+1,"") -> 3 | C67: -1 | D67: -1 | E67: 0.9813542689 | F67: 0 | H67: =IF(C67<0,-E67*equity*depr_cap_infl*percent_cap3,0) -> 0 | I67: =IF(OR(C67<0,C67=""),"",-E67*INDEX('Replacement Costs'!$A$16:$H$57,MATCH(C67,'Replacement Costs'!$C$16:$C$57,0),MATCH("Total Yearly Replacement Costs",'Replacement Costs'!$A$16:$H$16,0))) ->  | J67: =IF(AND(C67>=1,C67<anal_period),WorkingCap*SUM(N67:R67)-WorkingCap*SUM(N66:R66),IF(C67<0,0,IF(B67="","",-SUM(J$65:J66)))) -> 0 | N67: 0 | O67: 0 | P67: 0 | Q67: 0 | R67: 0 | S67: =IF(B67="","",IF($B$31=0,"",-'Debt Financing Calculations'!E16)) -> -16431880.5 | T67: -16431880.5 | U67: =IF(C67="","",IF(C67<-1,0,IF(C67=anal_period,-LOOKUP(C67,depr_yr,depr_cost)-Depreciation!$C$141-Depreciation!$B$166,-LOOKUP(C67,depr_yr,depr_cost)))) -> 0 | V67: -16431880.5 | W67: 0.2574 | X67: 4229566.041 | Y67: -12202314.46 | Z67: =IF(C67="","",IF($B$31=0,"",-'Debt Financing Calculations'!F16)) -> 0 | AA67: -12202314.46 | AB67: -337121719.1 | AC67: -16431880.5 | AE67: 0 | AF67: 0
A68: 2015 | B68: =IF(MAX($B$65:B67)<(construct+anal_period),B67+1,"") -> 4 | C68: 1 | D68: 1 | E68: 1 | F68: 288933420 | H68: =IF(C68<0,-E68*equity*depr_cap_infl*percent_cap4,0) -> 0 | I68: =IF(OR(C68<0,C68=""),"",-E68*INDEX('Replacement Costs'!$A$16:$H$57,MATCH(C68,'Replacement Costs'!$C$16:$C$57,0),MATCH("Total Yearly Replacement Costs",'Replacement Costs'!$A$16:$H$16,0))) -> -3915857.235 | J68: =IF(AND(C68>=1,C68<anal_period),WorkingCap*SUM(N68:R68)-WorkingCap*SUM(N67:R67),IF(C68<0,0,IF(B68="","",-SUM(J$65:J67)))) -> -28545522.64 | N68: -32050123.85 | O68: -113913448.6 | P68: -5811036.057 | Q68: 0 | R68: -38528875.76 | S68: =IF(B68="","",IF($B$31=0,"",-'Debt Financing Calculations'!E17)) -> -16431880.5 | T68: 82198055.21 | U68: =IF(C68="","",IF(C68<-1,0,IF(C68=anal_period,-LOOKUP(C68,depr_yr,depr_cost)-Depreciation!$C$141-Depreciation!$B$166,-LOOKUP(C68,depr_yr,depr_cost)))) -> -27903399.55 | V68: 54294655.66 | W68: 0.2574 | X68: -13975444.37 | Y68: =IF(C68="","",SUM(T68,X68)) -> 68222610.85 | Z68: =IF(C68="","",IF($B$31=0,"",-'Debt Financing Calculations'!F17)) -> 0 | AA68: 35761230.97 | AB68: -301360488.1 | AC68: 49736675.34 | AE68: 158665500 | AF68: 0
A69: 2016 | B69: =IF(MAX($B$65:B68)<(construct+anal_period),B68+1,"") -> 5 | C69: 2 | D69: 2 | E69: 1.019 | F69: 294423155 | H69: =IF(C69="","",0) -> 0 | I69: =IF(OR(C69<0,C69=""),"",-E69*INDEX('Replacement Costs'!$A$16:$H$57,MATCH(C69,'Replacement Costs'!$C$16:$C$57,0),MATCH("Total Yearly Replacement Costs",'Replacement Costs'!$A$16:$H$16,0))) -> -3990258.523 | J69: =IF(AND(C69>=1,C69<anal_period),WorkingCap*SUM(N69:R69)-WorkingCap*SUM(N68:R68),IF(C69<0,0,IF(B69="","",-SUM(J$65:J68)))) -> 478793.7997 | N69: -32659076.21 | O69: -109270079.3 | P69: -5921445.742 | Q69: 0 | R69: -39260924.4 | S69: =IF(B69="","",IF($B$31=0,"",-'Debt Financing Calculations'!E18)) -> -16431880.5 | T69: 90879748.86 | U69: =IF(C69="","",IF(C69<-1,0,IF(C69=anal_period,-LOOKUP(C69,depr_yr,depr_cost)-Depreciation!$C$141-Depreciation!$B$166,-LOOKUP(C69,depr_yr,depr_cost)))) -> -53865539.05 | V69: 37014209.81 | W69: 0.2574 | X69: -9527457.604 | Y69: 81352291.25 | Z69: =IF(C69="","",IF($B$31=0,"",-'Debt Financing Calculations'!F18)) -> 0 | AA69: 77840826.53 | AB69: -223519661.6 | AC69: 87368284.14 | AE69: 158665500 | AF69: 0
A70: 2017 | B70: =IF(MAX($B$65:B69)<(construct+anal_period),B69+1,"") -> 6 | C70: 3 | D70: 3 | E70: 1.038361 | F70: 300017194.9 | H70: 0 | I70: =IF(OR(C70<0,C70=""),"",-E70*INDEX('Replacement Costs'!$A$16:$H$57,MATCH(C70,'Replacement Costs'!$C$16:$C$57,0),MATCH("Total Yearly Replacement Costs",'Replacement Costs'!$A$16:$H$16,0))) -> -4066073.435 | J70: =IF(AND(C70>=1,C70<anal_period),WorkingCap*SUM(N70:R70)-WorkingCap*SUM(N69:R69),IF(C70<0,0,IF(B70="","",-SUM(J$65:J69)))) -> -3001770.282 | N70: -33279598.65 | O70: -127802893.7 | P70: -6033953.211 | Q70: 0 | R70: -40006881.97 | S70: =IF(B70="","",IF($B$31=0,"",-'Debt Financing Calculations'!E19)) -> -16431880.5 | T70: 76461986.92 | U70: =IF(C70="","",IF(C70<-1,0,IF(C70=anal_period,-LOOKUP(C70,depr_yr,depr_cost)-Depreciation!$C$141-Depreciation!$B$166,-LOOKUP(C70,depr_yr,depr_cost)))) -> -50123467.53 | V70: 26338519.4 | W70: 0.2574 | X70: -6779534.893 | Y70: 69682452.03 | Z70: =IF(C70="","",IF($B$31=0,"",-'Debt Financing Calculations'!F19)) -> 0 | AA70: 62614608.32 | AB70: -160905053.3 | AC70: 69394143.21 | AE70: 158665500 | AF70: 0
A71: 2018 | B71: =IF(MAX($B$65:B70)<(construct+anal_period),B70+1,"") -> 7 | C71: 4 | D71: 4 | E71: 1.058089859 | F71: 305717521.6 | H71: 0 | I71: =IF(OR(C71<0,C71=""),"",-E71*INDEX('Replacement Costs'!$A$16:$H$57,MATCH(C71,'Replacement Costs'!$C$16:$C$57,0),MATCH("Total Yearly Replacement Costs",'Replacement Costs'!$A$16:$H$16,0))) -> -4143328.83 | J71: =IF(AND(C71>=1,C71<anal_period),WorkingCap*SUM(N71:R71)-WorkingCap*SUM(N70:R70),IF(C71<0,0,IF(B71="","",-SUM(J$65:J70)))) -> -2113605.933 | N71: -33911911.03 | O71: -140386511.6 | P71: -6148598.322 | Q71: 0 | R71: -40767012.73 | S71: =IF(B71="","",IF($B$31=0,"",-'Debt Financing Calculations'!E20)) -> -16431880.5 | T71: 68071607.41 | U71: =IF(C71="","",IF(C71<-1,0,IF(C71=anal_period,-LOOKUP(C71,depr_yr,depr_cost)-Depreciation!$C$141-Depreciation!$B$166,-LOOKUP(C71,depr_yr,depr_cost)))) -> -46677813.97 | V71: 21393793.44 | W71: 0.2574 | X71: -5506762.431 | Y71: 62564844.98 | Z71: =IF(C71="","",IF($B$31=0,"",-'Debt Financing Calculations'!F20)) -> 0 | AA71: 56307910.21 | AB71: -104597143 | AC71: 61814672.65 | AE71: 158665500 | AF71: 0
A72: 2019 | B72: =IF(MAX($B$65:B71)<(construct+anal_period),B71+1,"") -> 8 | C72: 5 | D72: 5 | E72: 1.078193566 | F72: 311526154.5 | H72: 0 | I72: =IF(OR(C72<0,C72=""),"",-E72*INDEX('Replacement Costs'!$A$16:$H$57,MATCH(C72,'Replacement Costs'!$C$16:$C$57,0),MATCH("Total Yearly Replacement Costs",'Replacement Costs'!$A$16:$H$16,0))) -> -4222052.078 | J72: =IF(AND(C72>=1,C72<anal_period),WorkingCap*SUM(N72:R72)-WorkingCap*SUM(N71:R71),IF(C72<0,0,IF(B72="","",-SUM(J$65:J71)))) -> -2478477.807 | N72: -34556237.34 | O72: -155373974.1 | P72: -6265421.69 | Q72: 0 | R72: -41541585.97 | S72: =IF(B72="","",IF($B$31=0,"",-'Debt Financing Calculations'!E21)) -> -16431880.5 | T72: 57357054.94 | U72: =IF(C72="","",IF(C72<-1,0,IF(C72=anal_period,-LOOKUP(C72,depr_yr,depr_cost)-Depreciation!$C$141-Depreciation!$B$166,-LOOKUP(C72,depr_yr,depr_cost)))) -> -43485302.95 | V72: 13871751.98 | W72: 0.2574 | X72: -3570588.961 | Y72: 53786465.98 | Z72: =IF(C72="","",IF($B$31=0,"",-'Debt Financing Calculations'!F21)) -> 0 | AA72: 47085936.09 | AB72: -57511206.95 | AC72: 50656525.05 | AE72: 158665500 | AF72: 0
A73: 2020 | B73: =IF(MAX($B$65:B72)<(construct+anal_period),B72+1,"") -> 9 | C73: 6 | D73: 6 | E73: 1.098679244 | F73: 317445151.5 | H73: 0 | I73: =IF(OR(C73<0,C73=""),"",-E73*INDEX('Replacement Costs'!$A$16:$H$57,MATCH(C73,'Replacement Costs'!$C$16:$C$57,0),MATCH("Total Yearly Replacement Costs",'Replacement Costs'!$A$16:$H$16,0))) -> -4302271.067 | J73: =IF(AND(C73>=1,C73<anal_period),WorkingCap*SUM(N73:R73)-WorkingCap*SUM(N72:R72),IF(C73<0,0,IF(B73="","",-SUM(J$65:J72)))) -> -2555207.41 | N73: -35212805.85 | O73: -170843788.5 | P73: -6384464.702 | Q73: 0 | R73: -42330876.1 | S73: =IF(B73="","",IF($B$31=0,"",-'Debt Financing Calculations'!E22)) -> -16431880.5 | T73: 46241335.81 | U73: =IF(C73="","",IF(C73<-1,0,IF(C73=anal_period,-LOOKUP(C73,depr_yr,depr_cost)-Depreciation!$C$141-Depreciation!$B$166,-LOOKUP(C73,depr_yr,depr_cost)))) -> -40547091.09 | V73: 5694244.715 | W73: 0.2574 | X73: -1465698.59 | Y73: 44775637.22 | Z73: =IF(C73="","",IF($B$31=0,"",-'Debt Financing Calculations'!F22)) -> 0 | AA73: 37918158.74 | AB73: -19593048.21 | AC73: 39383857.33 | AE73: 158665500 | AF73: 0
A74: 2021 | B74: =IF(MAX($B$65:B73)<(construct+anal_period),B73+1,"") -> 10 | C74: 7 | D74: 7 | E74: 1.11955415 | F74: 323476609.3 | H74: 0 | I74: =IF(OR(C74<0,C74=""),"",-E74*INDEX('Replacement Costs'!$A$16:$H$57,MATCH(C74,'Replacement Costs'!$C$16:$C$57,0),MATCH("Total Yearly Replacement Costs",'Replacement Costs'!$A$16:$H$16,0))) -> -4384014.217 | J74: =IF(AND(C74>=1,C74<anal_period),WorkingCap*SUM(N74:R74)-WorkingCap*SUM(N73:R73),IF(C74<0,0,IF(B74="","",-SUM(J$65:J73)))) -> -766185.6309 | N74: -35881849.16 | O74: -174357057.9 | P74: -6505769.531 | Q74: 0 | R74: -43135162.75 | S74: =IF(B74="","",IF($B$31=0,"",-'Debt Financing Calculations'!E23)) -> -16431880.5 | T74: 47164889.48 | U74: =IF(C74="","",IF(C74<-1,0,IF(C74=anal_period,-LOOKUP(C74,depr_yr,depr_cost)-Depreciation!$C$141-Depreciation!$B$166,-LOOKUP(C74,depr_yr,depr_cost)))) -> -37827152.46 | V74: 9337737.023 | W74: 0.2574 | X74: -2403533.51 | Y74: 44761355.97 | Z74: =IF(C74="","",IF($B$31=0,"",-'Debt Financing Calculations'!F23)) -> 0 | AA74: 39611156.12 | AB74: 20018107.91 | AC74: 42014689.63 | AE74: 158665500 | AF74: 0
A75: 2022 | B75: =IF(MAX($B$65:B74)<(construct+anal_period),B74+1,"") -> 11 | C75: 8 | D75: 8 | E75: 1.140825679 | F75: 329622664.9 | H75: 0 | I75: =IF(OR(C75<0,C75=""),"",-E75*INDEX('Replacement Costs'!$A$16:$H$57,MATCH(C75,'Replacement Costs'!$C$16:$C$57,0),MATCH("Total Yearly Replacement Costs",'Replacement Costs'!$A$16:$H$16,0))) -> -4467310.487 | J75: =IF(AND(C75>=1,C75<anal_period),WorkingCap*SUM(N75:R75)-WorkingCap*SUM(N74:R74),IF(C75<0,0,IF(B75="","",-SUM(J$65:J74)))) -> -569762.6035 | N75: -36563604.29 | O75: -176530542.4 | P75: -6629379.152 | Q75: 0 | R75: -43954730.84 | S75: =IF(B75="","",IF($B$31=0,"",-'Debt Financing Calculations'!E24)) -> -16431880.5 | T75: 49512527.7 | U75: =IF(C75="","",IF(C75<-1,0,IF(C75=anal_period,-LOOKUP(C75,depr_yr,depr_cost)-Depreciation!$C$141-Depreciation!$B$166,-LOOKUP(C75,depr_yr,depr_cost)))) -> -35326488.52 | V75: 14186039.18 | W75: 0.2574 | X75: -3651486.485 | Y75: 45861041.22 | Z75: =IF(C75="","",IF($B$31=0,"",-'Debt Financing Calculations'!F24)) -> 0 | AA75: 40823968.13 | AB75: 60842076.04 | AC75: 44475454.61 | AE75: 158665500 | AF75: 0
A76: 2023 | B76: =IF(MAX($B$65:B75)<(construct+anal_period),B75+1,"") -> 12 | C76: 9 | D76: 9 | E76: 1.162501366 | F76: 335885495.6 | H76: 0 | I76: =IF(OR(C76<0,C76=""),"",-E76*INDEX('Replacement Costs'!$A$16:$H$57,MATCH(C76,'Replacement Costs'!$C$16:$C$57,0),MATCH("Total Yearly Replacement Costs",'Replacement Costs'!$A$16:$H$16,0))) -> -4552189.387 | J76: =IF(AND(C76>=1,C76<anal_period),WorkingCap*SUM(N76:R76)-WorkingCap*SUM(N75:R75),IF(C76<0,0,IF(B76="","",-SUM(J$65:J75)))) -> -815924.1172 | N76: -37258312.77 | O76: -180314230 | P76: -6755337.356 | Q76: 0 | R76: -44789870.72 | S76: =IF(B76="","",IF($B$31=0,"",-'Debt Financing Calculations'!E25)) -> -16431880.5 | T76: 50335864.22 | U76: =IF(C76="","",IF(C76<-1,0,IF(C76=anal_period,-LOOKUP(C76,depr_yr,depr_cost)-Depreciation!$C$141-Depreciation!$B$166,-LOOKUP(C76,depr_yr,depr_cost)))) -> -35092369.09 | V76: 15243495.13 | W76: 0.2574 | X76: -3923675.646 | Y76: 46412188.57 | Z76: =IF(C76="","",IF($B$31=0,"",-'Debt Financing Calculations'!F25)) -> 0 | AA76: 41044075.07 | AB76: 101886151.1 | AC76: 44967750.72 | AE76: 158665500 | AF76: 0
A77: 2024 | B77: =IF(MAX($B$65:B76)<(construct+anal_period),B76+1,"") -> 13 | C77: 10 | D77: 10 | E77: 1.184588892 | F77: 342267320 | H77: 0 | I77: =IF(OR(C77<0,C77=""),"",-E77*INDEX('Replacement Costs'!$A$16:$H$57,MATCH(C77,'Replacement Costs'!$C$16:$C$57,0),MATCH("Total Yearly Replacement Costs",'Replacement Costs'!$A$16:$H$16,0))) -> -4638680.985 | J77: =IF(AND(C77>=1,C77<anal_period),WorkingCap*SUM(N77:R77)-WorkingCap*SUM(N76:R76),IF(C77<0,0,IF(B77="","",-SUM(J$65:J76)))) -> -1178921.293 | N77: -37966220.72 | O77: -186486438.4 | P77: -6883688.766 | Q77: 0 | R77: -45640878.27 | S77: =IF(B77="","",IF($B$31=0,"",-'Debt Financing Calculations'!E26)) -> -16431880.5 | T77: 48858213.35 | U77: =IF(C77="","",IF(C77<-1,0,IF(C77=anal_period,-LOOKUP(C77,depr_yr,depr_cost)-Depreciation!$C$141-Depreciation!$B$166,-LOOKUP(C77,depr_yr,depr_cost)))) -> -35298903.36 | V77: 13559309.99 | W77: 0.2574 | X77: -3490166.391 | Y77: 45368046.96 | Z77: =IF(C77="","",IF($B$31=0,"",-'Debt Financing Calculations'!F26)) -> 0 | AA77: 39550444.68 | AB77: 141436595.8 | AC77: 43040611.07 | AE77: 158665500 | AF77: 0
A78: 2025 | B78: =IF(MAX($B$65:B77)<(construct+anal_period),B77+1,"") -> 14 | C78: 11 | D78: 11 | E78: 1.207096081 | F78: 348770399 | H78: 0 | I78: =IF(OR(C78<0,C78=""),"",-E78*INDEX('Replacement Costs'!$A$16:$H$57,MATCH(C78,'Replacement Costs'!$C$16:$C$57,0),MATCH("Total Yearly Replacement Costs",'Replacement Costs'!$A$16:$H$16,0))) -> -4726815.924 | J78: =IF(AND(C78>=1,C78<anal_period),WorkingCap*SUM(N78:R78)-WorkingCap*SUM(N77:R77),IF(C78<0,0,IF(B78="","",-SUM(J$65:J77)))) -> -1422786.71 | N78: -38687578.91 | O78: -194252358.1 | P78: -7014478.853 | Q78: 0 | R78: -46508054.96 | S78: =IF(B78="","",IF($B$31=0,"",-'Debt Financing Calculations'!E27)) -> -16431880.5 | T78: 45876047.69 | U78: =IF(C78="","",IF(C78<-1,0,IF(C78=anal_period,-LOOKUP(C78,depr_yr,depr_cost)-Depreciation!$C$141-Depreciation!$B$166,-LOOKUP(C78,depr_yr,depr_cost)))) -> -35524345.06 | V78: 10351702.63 | W78: 0.2574 | X78: -2664528.256 | Y78: 43211519.44 | Z78: =IF(C78="","",IF($B$31=0,"",-'Debt Financing Calculations'!F27)) -> 0 | AA78: 37061916.8 | AB78: 178498512.6 | AC78: 39726445.06 | AE78: 158665500 | AF78: 0
A79: 2026 | B79: =IF(MAX($B$65:B78)<(construct+anal_period),B78+1,"") -> 15 | C79: 12 | D79: 12 | E79: 1.230030907 | F79: 355397036.6 | H79: 0 | I79: =IF(OR(C79<0,C79=""),"",-E79*INDEX('Replacement Costs'!$A$16:$H$57,MATCH(C79,'Replacement Costs'!$C$16:$C$57,0),MATCH("Total Yearly Replacement Costs",'Replacement Costs'!$A$16:$H$16,0))) -> -4816625.426 | J79: =IF(AND(C79>=1,C79<anal_period),WorkingCap*SUM(N79:R79)-WorkingCap*SUM(N78:R78),IF(C79<0,0,IF(B79="","",-SUM(J$65:J78)))) -> -1437940.339 | N79: -39422642.91 | O79: -202086634.9 | P79: -7147753.951 | Q79: 0 | R79: -47391708 | S79: =IF(B79="","",IF($B$31=0,"",-'Debt Financing Calculations'!E28)) -> -16431880.5 | T79: 42916416.35 | U79: =IF(C79="","",IF(C79<-1,0,IF(C79=anal_period,-LOOKUP(C79,depr_yr,depr_cost)-Depreciation!$C$141-Depreciation!$B$166,-LOOKUP(C79,depr_yr,depr_cost)))) -> -35739086.87 | V79: 7177329.473 | W79: 0.2574 | X79: -1847444.606 | Y79: 41068971.74 | Z79: =IF(C79="","",IF($B$31=0,"",-'Debt Financing Calculations'!F28)) -> 0 | AA79: 34814405.98 | AB79: 213312918.6 | AC79: 36661850.58 | AE79: 158665500 | AF79: 0
A80: 2027 | B80: =IF(MAX($B$65:B79)<(construct+anal_period),B79+1,"") -> 16 | C80: 13 | D80: 13 | E80: 1.253401494 | F80: 362149580.3 | H80: 0 | I80: =IF(OR(C80<0,C80=""),"",-E80*INDEX('Replacement Costs'!$A$16:$H$57,MATCH(C80,'Replacement Costs'!$C$16:$C$57,0),MATCH("Total Yearly Replacement Costs",'Replacement Costs'!$A$16:$H$16,0))) -> -4908141.309 | J80: =IF(AND(C80>=1,C80<anal_period),WorkingCap*SUM(N80:R80)-WorkingCap*SUM(N79:R79),IF(C80<0,0,IF(B80="","",-SUM(J$65:J79)))) -> -1343413.839 | N80: -40171673.12 | O80: -209257447.2 | P80: -7283561.276 | Q80: 0 | R80: -48292150.45 | S80: =IF(B80="","",IF($B$31=0,"",-'Debt Financing Calculations'!E29)) -> -16431880.5 | T80: 40712867.79 | U80: =IF(C80="","",IF(C80<-1,0,IF(C80=anal_period,-LOOKUP(C80,depr_yr,depr_cost)-Depreciation!$C$141-Depreciation!$B$166,-LOOKUP(C80,depr_yr,depr_cost)))) -> -35972892.07 | V80: 4739975.719 | W80: 0.2574 | X80: -1220069.75 | Y80: 39492798.04 | Z80: =IF(C80="","",IF($B$31=0,"",-'Debt Financing Calculations'!F29)) -> 0 | AA80: 33241242.89 | AB80: 246554161.4 | AC80: 34461312.64 | AE80: 158665500 | AF80: 0
A81: 2028 | B81: =IF(MAX($B$65:B80)<(construct+anal_period),B80+1,"") -> 17 | C81: 14 | D81: 14 | E81: 1.277216123 | F81: 369030422.4 | H81: 0 | I81: =IF(OR(C81<0,C81=""),"",-E81*INDEX('Replacement Costs'!$A$16:$H$57,MATCH(C81,'Replacement Costs'!$C$16:$C$57,0),MATCH("Total Yearly Replacement Costs",'Replacement Costs'!$A$16:$H$16,0))) -> -5001395.994 | J81: =IF(AND(C81>=1,C81<anal_period),WorkingCap*SUM(N81:R81)-WorkingCap*SUM(N80:R80),IF(C81<0,0,IF(B81="","",-SUM(J$65:J80)))) -> -1376874.166 | N81: -40934934.91 | O81: -216617408 | P81: -7421948.94 | Q81: 0 | R81: -49209701.31 | S81: =IF(B81="","",IF($B$31=0,"",-'Debt Financing Calculations'!E30)) -> -16431880.5 | T81: 38414548.71 | U81: =IF(C81="","",IF(C81<-1,0,IF(C81=anal_period,-LOOKUP(C81,depr_yr,depr_cost)-Depreciation!$C$141-Depreciation!$B$166,-LOOKUP(C81,depr_yr,depr_cost)))) -> -36196156.27 | V81: 2218392.436 | W81: 0.2574 | X81: -571014.2131 | Y81: 37843534.49 | Z81: =IF(C81="","",IF($B$31=0,"",-'Debt Financing Calculations'!F30)) -> 0 | AA81: 31465264.33 | AB81: 278019425.8 | AC81: 32036278.55 | AE81: 158665500 | AF81: 0
A82: 2029 | B82: =IF(MAX($B$65:B81)<(construct+anal_period),B81+1,"") -> 18 | C82: 15 | D82: 15 | E82: 1.301483229 | F82: 376042000.4 | H82: 0 | I82: =IF(OR(C82<0,C82=""),"",-E82*INDEX('Replacement Costs'!$A$16:$H$57,MATCH(C82,'Replacement Costs'!$C$16:$C$57,0),MATCH("Total Yearly Replacement Costs",'Replacement Costs'!$A$16:$H$16,0))) -> -5096422.518 | J82: =IF(AND(C82>=1,C82<anal_period),WorkingCap*SUM(N82:R82)-WorkingCap*SUM(N81:R81),IF(C82<0,0,IF(B82="","",-SUM(J$65:J81)))) -> -1328803.882 | N82: -41712698.68 | O82: -223622335.4 | P82: -7562965.97 | Q82: 0 | R82: -50144685.63 | S82: =IF(B82="","",IF($B$31=0,"",-'Debt Financing Calculations'!E31)) -> -16431880.5 | T82: 36567434.18 | U82: =IF(C82="","",IF(C82<-1,0,IF(C82=anal_period,-LOOKUP(C82,depr_yr,depr_cost)-Depreciation!$C$141-Depreciation!$B$166,-LOOKUP(C82,depr_yr,depr_cost)))) -> -36438645.78 | V82: 128788.4042 | W82: 0.2574 | X82: -33150.13525 | Y82: 36534284.05 | Z82: =IF(C82="","",IF($B$31=0,"",-'Debt Financing Calculations'!F31)) -> 0 | AA82: 30109057.65 | AB82: 308128483.4 | AC82: 30142207.78 | AE82: 158665500 | AF82: 0
A83: 2030 | B83: =IF(MAX($B$65:B82)<(construct+anal_period),B82+1,"") -> 19 | C83: 16 | D83: 16 | E83: 1.32621141 | F83: 383186798.4 | H83: 0 | I83: =IF(OR(C83<0,C83=""),"",-E83*INDEX('Replacement Costs'!$A$16:$H$57,MATCH(C83,'Replacement Costs'!$C$16:$C$57,0),MATCH("Total Yearly Replacement Costs",'Replacement Costs'!$A$16:$H$16,0))) -> -5193254.546 | J83: =IF(AND(C83>=1,C83<anal_period),WorkingCap*SUM(N83:R83)-WorkingCap*SUM(N82:R82),IF(C83<0,0,IF(B83="","",-SUM(J$65:J82)))) -> -1039083.764 | N83: -42505239.95 | O83: -228660573.8 | P83: -7706662.323 | Q83: 0 | R83: -51097434.66 | S83: =IF(B83="","",IF($B$31=0,"",-'Debt Financing Calculations'!E32)) -> -16431880.5 | T83: 36785007.1 | U83: =IF(C83="","",IF(C83<-1,0,IF(C83=anal_period,-LOOKUP(C83,depr_yr,depr_cost)-Depreciation!$C$141-Depreciation!$B$166,-LOOKUP(C83,depr_yr,depr_cost)))) -> -36670759.3 | V83: 114247.7955 | W83: 0.2574 | X83: -29407.38255 | Y83: 36755599.72 | Z83: =IF(C83="","",IF($B$31=0,"",-'Debt Financing Calculations'!F32)) -> 0 | AA83: 30523261.41 | AB83: 338651744.8 | AC83: 30552668.79 | AE83: 158665500 | AF83: 0
A84: 2031 | B84: =IF(MAX($B$65:B83)<(construct+anal_period),B83+1,"") -> 20 | C84: 17 | D84: 17 | E84: 1.351409427 | F84: 390467347.6 | H84: 0 | I84: =IF(OR(C84<0,C84=""),"",-E84*INDEX('Replacement Costs'!$A$16:$H$57,MATCH(C84,'Replacement Costs'!$C$16:$C$57,0),MATCH("Total Yearly Replacement Costs",'Replacement Costs'!$A$16:$H$16,0))) -> -5291926.382 | J84: =IF(AND(C84>=1,C84<anal_period),WorkingCap*SUM(N84:R84)-WorkingCap*SUM(N83:R83),IF(C84<0,0,IF(B84="","",-SUM(J$65:J83)))) -> -1079253.558 | N84: -43312839.51 | O84: -233930720.2 | P84: -7853088.908 | Q84: 0 | R84: -52068285.92 | S84: =IF(B84="","",IF($B$31=0,"",-'Debt Financing Calculations'!E33)) -> -16431880.5 | T84: 36870532.55 | U84: =IF(C84="","",IF(C84<-1,0,IF(C84=anal_period,-LOOKUP(C84,depr_yr,depr_cost)-Depreciation!$C$141-Depreciation!$B$166,-LOOKUP(C84,depr_yr,depr_cost)))) -> -36922266.27 | V84: -51733.72396 | W84: 0.2574 | X84: 13316.26055 | Y84: 36883848.81 | Z84: =IF(C84="","",IF($B$31=0,"",-'Debt Financing Calculations'!F33)) -> 0 | AA84: 30512668.87 | AB84: 369164413.7 | AC84: 30499352.61 | AE84: 158665500 | AF84: 0
A85: 2032 | B85: =IF(MAX($B$65:B84)<(construct+anal_period),B84+1,"") -> 21 | C85: 18 | D85: 18 | E85: 1.377086206 | F85: 397886227.2 | H85: 0 | I85: =IF(OR(C85<0,C85=""),"",-E85*INDEX('Replacement Costs'!$A$16:$H$57,MATCH(C85,'Replacement Costs'!$C$16:$C$57,0),MATCH("Total Yearly Replacement Costs",'Replacement Costs'!$A$16:$H$16,0))) -> -5392472.984 | J85: =IF(AND(C85>=1,C85<anal_period),WorkingCap*SUM(N85:R85)-WorkingCap*SUM(N84:R84),IF(C85<0,0,IF(B85="","",-SUM(J$65:J84)))) -> -872162.8441 | N85: -44135783.46 | O85: -237783689.1 | P85: -8002297.597 | Q85: 0 | R85: -53057583.35 | S85: =IF(B85="","",IF($B$31=0,"",-'Debt Financing Calculations'!E34)) -> -16431880.5 | T85: 38474993.19 | U85: =IF(C85="","",IF(C85<-1,0,IF(C85=anal_period,-LOOKUP(C85,depr_yr,depr_cost)-Depreciation!$C$141-Depreciation!$B$166,-LOOKUP(C85,depr_yr,depr_cost)))) -> -37163568.58 | V85: 1311424.606 | W85: 0.2574 | X85: -337560.6936 | Y85: 38137432.5 | Z85: =IF(C85="","",IF($B$31=0,"",-'Debt Financing Calculations'!F34)) -> 0 | AA85: 31872796.67 | AB85: 401037210.4 | AC85: 32210357.36 | AE85: 158665500 | AF85: 0
A86: 2033 | B86: =IF(MAX($B$65:B85)<(construct+anal_period),B85+1,"") -> 22 | C86: 19 | D86: 19 | E86: 1.403250844 | F86: 405446065.5 | H86: 0 | I86: =IF(OR(C86<0,C86=""),"",-E86*INDEX('Replacement Costs'!$A$16:$H$57,MATCH(C86,'Replacement Costs'!$C$16:$C$57,0),MATCH("Total Yearly Replacement Costs",'Replacement Costs'!$A$16:$H$16,0))) -> -5494929.97 | J86: =IF(AND(C86>=1,C86<anal_period),WorkingCap*SUM(N86:R86)-WorkingCap*SUM(N85:R85),IF(C86<0,0,IF(B86="","",-SUM(J$65:J85)))) -> -640869.1289 | N86: -44974363.35 | O86: -240057432.3 | P86: -8154341.251 | Q86: 0 | R86: -54065677.44 | S86: =IF(B86="","",IF($B$31=0,"",-'Debt Financing Calculations'!E35)) -> -16431880.5 | T86: 41762370.65 | U86: =IF(C86="","",IF(C86<-1,0,IF(C86=anal_period,-LOOKUP(C86,depr_yr,depr_cost)-Depreciation!$C$141-Depreciation!$B$166,-LOOKUP(C86,depr_yr,depr_cost)))) -> -37424438.93 | V86: 4337931.718 | W86: 0.2574 | X86: -1116583.624 | Y86: 40645787.02 | Z86: =IF(C86="","",IF($B$31=0,"",-'Debt Financing Calculations'!F35)) -> 0 | AA86: 34509987.92 | AB86: 435547198.3 | AC86: 35626571.55 | AE86: 158665500 | AF86: 0
A87: 2034 | B87: =IF(MAX($B$65:B86)<(construct+anal_period),B86+1,"") -> 23 | C87: 20 | D87: 20 | E87: 1.42991261 | F87: 413149540.7 | H87: 0 | I87: =IF(OR(C87<0,C87=""),"",-E87*INDEX('Replacement Costs'!$A$16:$H$57,MATCH(C87,'Replacement Costs'!$C$16:$C$57,0),MATCH("Total Yearly Replacement Costs",'Replacement Costs'!$A$16:$H$16,0))) -> -5599333.64 | J87: =IF(AND(C87>=1,C87<anal_period),WorkingCap*SUM(N87:R87)-WorkingCap*SUM(N86:R86),IF(C87<0,0,IF(B87="","",-SUM(J$65:J86)))) -> -970009.2852 | N87: -45828876.25 | O87: -244487467.6 | P87: -8309273.735 | Q87: 0 | R87: -55092925.31 | S87: =IF(B87="","",IF($B$31=0,"",-'Debt Financing Calculations'!E36)) -> -16431880.5 | T87: 42999117.32 | U87: =IF(C87="","",IF(C87<-1,0,IF(C87=anal_period,-LOOKUP(C87,depr_yr,depr_cost)-Depreciation!$C$141-Depreciation!$B$166,-LOOKUP(C87,depr_yr,depr_cost)))) -> -37675282.52 | V87: 5323834.801 | W87: 0.2574 | X87: -1370355.078 | Y87: 41628762.24 | Z87: =IF(C87="","",IF($B$31=0,"",-'Debt Financing Calculations'!F36)) -> 0 | AA87: 35059419.32 | AB87: 470606617.6 | AC87: 36429774.4 | AE87: 158665500 | AF87: 0
A88: 2035 | B88: =IF(MAX($B$65:B87)<(construct+anal_period),B87+1,"") -> 24 | C88: 21 | D88: 21 | E88: 1.45708095 | F88: 420999382 | H88: 0 | I88: =IF(OR(C88<0,C88=""),"",-E88*INDEX('Replacement Costs'!$A$16:$H$57,MATCH(C88,'Replacement Costs'!$C$16:$C$57,0),MATCH("Total Yearly Replacement Costs",'Replacement Costs'!$A$16:$H$16,0))) -> -5705720.979 | J88: =IF(AND(C88>=1,C88<anal_period),WorkingCap*SUM(N88:R88)-WorkingCap*SUM(N87:R87),IF(C88<0,0,IF(B88="","",-SUM(J$65:J87)))) -> -1541338.913 | N88: -46699624.9 | O88: -252687669.9 | P88: -8467149.936 | Q88: 0 | R88: -56139690.89 | S88: =IF(B88="","",IF($B$31=0,"",-'Debt Financing Calculations'!E37)) -> -16431880.5 | T88: 40573365.84 | U88: =IF(C88="","",IF(C88<-1,0,IF(C88=anal_period,-LOOKUP(C88,depr_yr,depr_cost)-Depreciation!$C$141-Depreciation!$B$166,-LOOKUP(C88,depr_yr,depr_cost)))) -> -21345212.93 | V88: 19228152.92 | W88: 0.2574 | X88: -4949326.562 | Y88: 35624039.28 | Z88: =IF(C88="","",IF($B$31=0,"",-'Debt Financing Calculations'!F37)) -> 0 | AA88: 28376979.39 | AB88: 498983597 | AC88: 33326305.95 | AE88: 158665500 | AF88: 0
A89: 2036 | B89: =IF(MAX($B$65:B88)<(construct+anal_period),B88+1,"") -> 25 | C89: 22 | D89: 22 | E89: 1.484765488 | F89: 428998370.3 | H89: 0 | I89: =IF(OR(C89<0,C89=""),"",-E89*INDEX('Replacement Costs'!$A$16:$H$57,MATCH(C89,'Replacement Costs'!$C$16:$C$57,0),MATCH("Total Yearly Replacement Costs",'Replacement Costs'!$A$16:$H$16,0))) -> -5814129.678 | J89: =IF(AND(C89>=1,C89<anal_period),WorkingCap*SUM(N89:R89)-WorkingCap*SUM(N88:R88),IF(C89<0,0,IF(B89="","",-SUM(J$65:J88)))) -> -1075037.688 | N89: -47586917.77 | O89: -257739765 | P89: -8628025.785 | Q89: 0 | R89: -57206345.02 | S89: =IF(B89="","",IF($B$31=0,"",-'Debt Financing Calculations'!E38)) -> -16431880.5 | T89: 41405436.18 | U89: =IF(C89="","",IF(C89<-1,0,IF(C89=anal_period,-LOOKUP(C89,depr_yr,depr_cost)-Depreciation!$C$141-Depreciation!$B$166,-LOOKUP(C89,depr_yr,depr_cost)))) -> -4923719.545 | V89: 36481716.64 | W89: 0.2574 | X89: -9390393.862 | Y89: 32015042.32 | Z89: =IF(C89="","",IF($B$31=0,"",-'Debt Financing Calculations'!F38)) -> 0 | AA89: 25125874.95 | AB89: 524109472 | AC89: 34516268.82 | AE89: 158665500 | AF89: 0
A90: 2037 | B90: =IF(MAX($B$65:B89)<(construct+anal_period),B89+1,"") -> 26 | C90: 23 | D90: 23 | E90: 1.512976032 | F90: 437149339.3 | H90: 0 | I90: =IF(OR(C90<0,C90=""),"",-E90*INDEX('Replacement Costs'!$A$16:$H$57,MATCH(C90,'Replacement Costs'!$C$16:$C$57,0),MATCH("Total Yearly Replacement Costs",'Replacement Costs'!$A$16:$H$16,0))) -> -5924598.141 | J90: =IF(AND(C90>=1,C90<anal_period),WorkingCap*SUM(N90:R90)-WorkingCap*SUM(N89:R89),IF(C90<0,0,IF(B90="","",-SUM(J$65:J89)))) -> -1119248.953 | N90: -48491069.21 | O90: -263046420.2 | P90: -8791958.275 | Q90: 0 | R90: -58293265.57 | S90: =IF(B90="","",IF($B$31=0,"",-'Debt Financing Calculations'!E39)) -> -16431880.5 | T90: 42094745.53 | U90: =IF(C90="","",IF(C90<-1,0,IF(C90=anal_period,-LOOKUP(C90,depr_yr,depr_cost)-Depreciation!$C$141-Depreciation!$B$166,-LOOKUP(C90,depr_yr,depr_cost)))) -> -5017270.217 | V90: 37077475.31 | W90: 0.2574 | X90: -9543742.146 | Y90: 32551003.39 | Z90: =IF(C90="","",IF($B$31=0,"",-'Debt Financing Calculations'!F39)) -> 0 | AA90: 25507156.29 | AB90: 549616628.3 | AC90: 35050898.44 | AE90: 158665500 | AF90: 0
A91: 2038 | B91: =IF(MAX($B$65:B90)<(construct+anal_period),B90+1,"") -> 27 | C91: 24 | D91: 24 | E91: 1.541722577 | F91: 445455176.7 | H91: 0 | I91: =IF(OR(C91<0,C91=""),"",-E91*INDEX('Replacement Costs'!$A$16:$H$57,MATCH(C91,'Replacement Costs'!$C$16:$C$57,0),MATCH("Total Yearly Replacement Costs",'Replacement Costs'!$A$16:$H$16,0))) -> -6037165.506 | J91: =IF(AND(C91>=1,C91<anal_period),WorkingCap*SUM(N91:R91)-WorkingCap*SUM(N90:R90),IF(C91<0,0,IF(B91="","",-SUM(J$65:J90)))) -> -1044927.384 | N91: -49412399.52 | O91: -267816653.2 | P91: -8959005.482 | Q91: 0 | R91: -59400837.62 | S91: =IF(B91="","",IF($B$31=0,"",-'Debt Financing Calculations'!E40)) -> -16431880.5 | T91: 43434400.42 | U91: =IF(C91="","",IF(C91<-1,0,IF(C91=anal_period,-LOOKUP(C91,depr_yr,depr_cost)-Depreciation!$C$141-Depreciation!$B$166,-LOOKUP(C91,depr_yr,depr_cost)))) -> -5112598.351 | V91: 38321802.07 | W91: 0.2574 | X91: -9864031.852 | Y91: 33570368.57 | Z91: =IF(C91="","",IF($B$31=0,"",-'Debt Financing Calculations'!F40)) -> 0 | AA91: 26488275.68 | AB91: 576104903.9 | AC91: 36352307.53 | AE91: 158665500 | AF91: 0
A92: 2039 | B92: =IF(MAX($B$65:B91)<(construct+anal_period),B91+1,"") -> 28 | C92: 25 | D92: 25 | E92: 1.571015306 | F92: 453918825.1 | H92: 0 | I92: =IF(OR(C92<0,C92=""),"",-E92*INDEX('Replacement Costs'!$A$16:$H$57,MATCH(C92,'Replacement Costs'!$C$16:$C$57,0),MATCH("Total Yearly Replacement Costs",'Replacement Costs'!$A$16:$H$16,0))) -> -6151871.651 | J92: =IF(AND(C92>=1,C92<anal_period),WorkingCap*SUM(N92:R92)-WorkingCap*SUM(N91:R91),IF(C92<0,0,IF(B92="","",-SUM(J$65:J91)))) -> -1241406.453 | N92: -50351235.12 | O92: -273855023.6 | P92: -9129226.586 | Q92: 0 | R92: -60529453.53 | S92: =IF(B92="","",IF($B$31=0,"",-'Debt Financing Calculations'!E41)) -> -16431880.5 | T92: 43622005.76 | U92: =IF(C92="","",IF(C92<-1,0,IF(C92=anal_period,-LOOKUP(C92,depr_yr,depr_cost)-Depreciation!$C$141-Depreciation!$B$166,-LOOKUP(C92,depr_yr,depr_cost)))) -> -5209737.72 | V92: 38412268.04 | W92: 0.2574 | X92: -9887317.793 | Y92: 33734687.97 | Z92: =IF(C92="","",IF($B$31=0,"",-'Debt Financing Calculations'!F41)) -> 0 | AA92: 26341409.86 | AB92: 602446313.8 | AC92: 36228727.66 | AE92: 158665500 | AF92: 0
A93: 2040 | B93: =IF(MAX($B$65:B92)<(construct+anal_period),B92+1,"") -> 29 | C93: 26 | D93: 26 | E93: 1.600864596 | F93: 462543282.8 | H93: 0 | I93: =IF(OR(C93<0,C93=""),"",-E93*INDEX('Replacement Costs'!$A$16:$H$57,MATCH(C93,'Replacement Costs'!$C$16:$C$57,0),MATCH("Total Yearly Replacement Costs",'Replacement Costs'!$A$16:$H$16,0))) -> -6268757.212 | J93: =IF(AND(C93>=1,C93<anal_period),WorkingCap*SUM(N93:R93)-WorkingCap*SUM(N92:R92),IF(C93<0,0,IF(B93="","",-SUM(J$65:J92)))) -> -828287.1597 | N93: -51307908.58 | O93: -277096749.6 | P93: -9302681.891 | Q93: 0 | R93: -61679513.15 | S93: =IF(B93="","",IF($B$31=0,"",-'Debt Financing Calculations'!E42)) -> -16431880.5 | T93: 46724549.04 | U93: =IF(C93="","",IF(C93<-1,0,IF(C93=anal_period,-LOOKUP(C93,depr_yr,depr_cost)-Depreciation!$C$141-Depreciation!$B$166,-LOOKUP(C93,depr_yr,depr_cost)))) -> -5308722.736 | V93: 41415826.3 | W93: 0.2574 | X93: -10660433.69 | Y93: 36064115.35 | Z93: =IF(C93="","",IF($B$31=0,"",-'Debt Financing Calculations'!F42)) -> 0 | AA93: 28967070.98 | AB93: 631413384.8 | AC93: 39627504.67 | AE93: 158665500 | AF93: 0
A94: 2041 | B94: =IF(MAX($B$65:B93)<(construct+anal_period),B93+1,"") -> 30 | C94: 27 | D94: 27 | E94: 1.631281024 | F94: 471331605.1 | H94: 0 | I94: =IF(OR(C94<0,C94=""),"",-E94*INDEX('Replacement Costs'!$A$16:$H$57,MATCH(C94,'Replacement Costs'!$C$16:$C$57,0),MATCH("Total Yearly Replacement Costs",'Replacement Costs'!$A$16:$H$16,0))) -> -6387863.599 | J94: =IF(AND(C94>=1,C94<anal_period),WorkingCap*SUM(N94:R94)-WorkingCap*SUM(N93:R93),IF(C94<0,0,IF(B94="","",-SUM(J$65:J93)))) -> -1155850.674 | N94: -52282758.85 | O94: -282478908.8 | P94: -9479432.847 | Q94: 0 | R94: -62851423.9 | S94: =IF(B94="","",IF($B$31=0,"",-'Debt Financing Calculations'!E43)) -> -16431880.5 | T94: 47807200.25 | U94: =IF(C94="","",IF(C94<-1,0,IF(C94=anal_period,-LOOKUP(C94,depr_yr,depr_cost)-Depreciation!$C$141-Depreciation!$B$166,-LOOKUP(C94,depr_yr,depr_cost)))) -> -5409588.468 | V94: 42397611.79 | W94: 0.2574 | X94: -10913145.27 | Y94: 36894054.98 | Z94: =IF(C94="","",IF($B$31=0,"",-'Debt Financing Calculations'!F43)) -> 0 | AA94: 29350340.71 | AB94: 660763725.5 | AC94: 40263485.98 | AE94: 158665500 | AF94: 0
A95: 2042 | B95: =IF(MAX($B$65:B94)<(construct+anal_period),B94+1,"") -> 31 | C95: 28 | D95: 28 | E95: 1.662275363 | F95: 480286905.6 | H95: 0 | I95: =IF(OR(C95<0,C95=""),"",-E95*INDEX('Replacement Costs'!$A$16:$H$57,MATCH(C95,'Replacement Costs'!$C$16:$C$57,0),MATCH("Total Yearly Replacement Costs",'Replacement Costs'!$A$16:$H$16,0))) -> -6509233.008 | J95: =IF(AND(C95>=1,C95<anal_period),WorkingCap*SUM(N95:R95)-WorkingCap*SUM(N94:R94),IF(C95<0,0,IF(B95="","",-SUM(J$65:J94)))) -> -1537718.505 | N95: -53276131.26 | O95: -290362706.8 | P95: -9659542.071 | Q95: 0 | R95: -64045600.95 | S95: =IF(B95="","",IF($B$31=0,"",-'Debt Financing Calculations'!E44)) -> -16431880.5 | T95: 46511044.05 | U95: =IF(C95="","",IF(C95<-1,0,IF(C95=anal_period,-LOOKUP(C95,depr_yr,depr_cost)-Depreciation!$C$141-Depreciation!$B$166,-LOOKUP(C95,depr_yr,depr_cost)))) -> -5512370.649 | V95: 40998673.4 | W95: 0.2574 | X95: -10553058.53 | Y95: 35957985.52 | Z95: =IF(C95="","",IF($B$31=0,"",-'Debt Financing Calculations'!F44)) -> 0 | AA95: 27911034.01 | AB95: 688674759.5 | AC95: 38464092.54 | AE95: 158665500 | AF95: 0
A96: 2043 | B96: =IF(MAX($B$65:B95)<(construct+anal_period),B95+1,"") -> 32 | C96: 29 | D96: 29 | E96: 1.693858595 | F96: 489412356.8 | H96: 0 | I96: =IF(OR(C96<0,C96=""),"",-E96*INDEX('Replacement Costs'!$A$16:$H$57,MATCH(C96,'Replacement Costs'!$C$16:$C$57,0),MATCH("Total Yearly Replacement Costs",'Replacement Costs'!$A$16:$H$16,0))) -> -6632908.435 | J96: =IF(AND(C96>=1,C96<anal_period),WorkingCap*SUM(N96:R96)-WorkingCap*SUM(N95:R95),IF(C96<0,0,IF(B96="","",-SUM(J$65:J95)))) -> -1784115.644 | N96: -54288377.76 | O96: -299844166.9 | P96: -9843073.37 | Q96: 0 | R96: -65262467.37 | S96: =IF(B96="","",IF($B$31=0,"",-'Debt Financing Calculations'!E45)) -> -16431880.5 | T96: 43742390.97 | U96: =IF(C96="","",IF(C96<-1,0,IF(C96=anal_period,-LOOKUP(C96,depr_yr,depr_cost)-Depreciation!$C$141-Depreciation!$B$166,-LOOKUP(C96,depr_yr,depr_cost)))) -> -5617105.692 | V96: 38125285.28 | W96: 0.2574 | X96: -9813448.43 | Y96: 33928942.54 | Z96: =IF(C96="","",IF($B$31=0,"",-'Debt Financing Calculations'!F45)) -> 0 | AA96: 25511918.46 | AB96: 714186677.9 | AC96: 35325366.89 | AE96: 158665500 | AF96: 0
A97: 2044 | B97: =IF(MAX($B$65:B96)<(construct+anal_period),B96+1,"") -> 33 | C97: 30 | D97: =IF(C97="","",IF(C97<=plant_life,C97,IF(D96=plant_life,1,D96+1))) -> 30 | E97: =IF(C97="","",(1+inflation_rate)^(A97-$B$25)) -> 1.726041908 | F97: =IF(C97="","",IF(C97<0,0,IF(AND(C97=1,start_time<1),E97*(H2_price_nominal*output_kgyear*start_time*percnt_revs+H2_price_nominal*output_kgyear*(1-start_time)),IF(C97<=start_time,H2_price_nominal*E97*output_kgyear*percnt_revs,H2_price_nominal*output_kgyear*E97)))) -> 498711191.6 | H97: 0 | I97: =IF(OR(C97<0,C97=""),"",-E97*INDEX('Replacement Costs'!$A$16:$H$57,MATCH(C97,'Replacement Costs'!$C$16:$C$57,0),MATCH("Total Yearly Replacement Costs",'Replacement Costs'!$A$16:$H$16,0))) -> -6758933.695 | J97: =IF(AND(C97>=1,C97<anal_period),WorkingCap*SUM(N97:R97)-WorkingCap*SUM(N96:R96),IF(C97<0,0,IF(B97="","",-SUM(J$65:J96)))) -> -1646583.596 | K97: =IF(C97=-construct,-E97*non_dep_infl,"") ->  | L97: =IF(C97=anal_period,salvage*E97,"") ->  | M97: =IF(D97=plant_life,-E97*decom,"") ->  | N97: =IF(C97="","",IF(C97<0,0,IF(AND(C97=1,start_time<1),-(inflated_fixed*percnt_fixed*start_time+(inflated_fixed*(1-start_time))),IF(C97<=start_time,-inflated_fixed*percnt_fixed*E97,-inflated_fixed*E97)))) -> -55319856.94 | O97: =IF(C97="","",IF(C97<0,0,IF(AND(C97=1,start_time<1),-(SUM(B171:E171)*output_kgyear*E97*percnt_var*start_time+SUM(B171:E171)*output_kgyear*E97*(1-start_time)),IF(C97<=start_time,-SUM(B171:E171)*output_kgyear*E97*percnt_var,-SUM(B171:E171)*output_kgyear*E97)))) -> -308362906.4 | P97: =IF(C97="","",IF(C97<0,0,IF(AND(C97=1,start_time<1),-(inflated_otherraw*E97*percnt_var*start_time+inflated_otherraw*E97*(1-start_time)),IF(C97<=start_time,-inflated_otherraw*E97*percnt_var,-(inflated_otherraw*E97))))) -> -10030091.76 | Q97: 0 | R97: =IF(C97="","",IF(C97<0,0,IF(AND(C97=1,start_time<1),-((SUM(F171:J171,P171:R171)*output_kgyear+inflated_othervar)*E97*percnt_var*start_time+(SUM(F171:J171,P171:R171)*output_kgyear+inflated_othervar)*E97*(1-start_time)),IF(C97<=start_time,-(SUM(F171:J171,P171:R171)*output_kgyear+inflated_othervar)*E97*percnt_var,-E97*(SUM(F171:J171,P171:R171)*output_kgyear+inflated_othervar))))) -> -66502454.25 | S97: =IF(B97="","",IF($B$31=0,"",-'Debt Financing Calculations'!E46)) -> -16431880.5 | T97: =IF(C97="","",F97+SUM(L97:S97)) -> 42064001.77 | U97: =IF(C97="","",IF(C97<-1,0,IF(C97=anal_period,-LOOKUP(C97,depr_yr,depr_cost)-Depreciation!$C$141-Depreciation!$B$166,-LOOKUP(C97,depr_yr,depr_cost)))) -> -5723830.7 | V97: =IF(C97="","",SUM(T97:U97)) -> 36340171.07 | W97: =IF(C97="","",$B$33) -> 0.2574 | X97: =IF(C97="","",tax_credit-(V97*W97 +Upstream_CO2_taxpYear + Proc_CO2_taxpYear)) -> -9353960.035 | Y97: =IF(C97="","",SUM(T97,X97)) -> 32710041.74 | Z97: =IF(C97="","",IF($B$31=0,"",-'Debt Financing Calculations'!F46)) -> 0 | AA97: =IF(C97="","",SUM(H97,I97,J97,K97,T97,X97,Z97)) -> 24304524.45 | AB97: 738491202.4 | AC97: =IF(C97="","",SUM(H97,I97,J97,K97,T97,Z97)) -> 33658484.48 | AE97: =IF(C97="","",IF(C97<0,0,IF(AND(C97=1,start_time<1),(output_kgyear*start_time*percnt_revs+output_kgyear*(1-start_time)),IF(C97<=start_time,output_kgyear*percnt_revs,output_kgyear)))) -> 158665500 | AF97: =IF(C97="","",tax_credit) -> 0
A98: 2045 | B98: =IF(MAX($B$65:B97)<(construct+anal_period),B97+1,"") -> 34 | C98: 31 | D98: 31 | E98: 1.758836705 | F98: 508186704.3 | H98: 0 | I98: =IF(OR(C98<0,C98=""),"",-E98*INDEX('Replacement Costs'!$A$16:$H$57,MATCH(C98,'Replacement Costs'!$C$16:$C$57,0),MATCH("Total Yearly Replacement Costs",'Replacement Costs'!$A$16:$H$16,0))) -> -6887353.435 | J98: =IF(AND(C98>=1,C98<anal_period),WorkingCap*SUM(N98:R98)-WorkingCap*SUM(N97:R97),IF(C98<0,0,IF(B98="","",-SUM(J$65:J97)))) -> -1815607.292 | N98: -56370934.22 | O98: -317961759.4 | P98: -10220663.51 | Q98: 0 | R98: -67766000.88 | S98: =IF(B98="","",IF($B$31=0,"",-'Debt Financing Calculations'!E47)) -> -16431880.5 | T98: 39435465.8 | U98: =IF(C98="","",IF(C98<-1,0,IF(C98=anal_period,-LOOKUP(C98,depr_yr,depr_cost)-Depreciation!$C$141-Depreciation!$B$166,-LOOKUP(C98,depr_yr,depr_cost)))) -> -5832583.483 | V98: 33602882.32 | W98: 0.2574 | X98: -8649381.908 | Y98: 30786083.89 | Z98: =IF(C98="","",IF($B$31=0,"",-'Debt Financing Calculations'!F47)) -> 0 | AA98: 22083123.16 | AB98: 760574325.6 | AC98: 30732505.07 | AE98: 158665500 | AF98: 0
A99: 2046 | B99: =IF(MAX($B$65:B98)<(construct+anal_period),B98+1,"") -> 35 | C99: 32 | D99: 32 | E99: 1.792254602 | F99: 517842251.6 | H99: 0 | I99: =IF(OR(C99<0,C99=""),"",-E99*INDEX('Replacement Costs'!$A$16:$H$57,MATCH(C99,'Replacement Costs'!$C$16:$C$57,0),MATCH("Total Yearly Replacement Costs",'Replacement Costs'!$A$16:$H$16,0))) -> -7018213.15 | J99: =IF(AND(C99>=1,C99<anal_period),WorkingCap*SUM(N99:R99)-WorkingCap*SUM(N98:R98),IF(C99<0,0,IF(B99="","",-SUM(J$65:J98)))) -> -1730640.111 | N99: -57441981.97 | O99: -326946565.7 | P99: -10414856.11 | Q99: 0 | R99: -69053554.9 | S99: =IF(B99="","",IF($B$31=0,"",-'Debt Financing Calculations'!E48)) -> -16431880.5 | T99: 37553412.44 | U99: =IF(C99="","",IF(C99<-1,0,IF(C99=anal_period,-LOOKUP(C99,depr_yr,depr_cost)-Depreciation!$C$141-Depreciation!$B$166,-LOOKUP(C99,depr_yr,depr_cost)))) -> -5943402.569 | V99: 31610009.87 | W99: 0.2574 | X99: -8136416.54 | Y99: 29416995.9 | Z99: =IF(C99="","",IF($B$31=0,"",-'Debt Financing Calculations'!F48)) -> 0 | AA99: 20668142.64 | AB99: 781242468.2 | AC99: 28804559.18 | AE99: 158665500 | AF99: 0
A100: 2047 | B100: =IF(MAX($B$65:B99)<(construct+anal_period),B99+1,"") -> 36 | C100: 33 | D100: 33 | E100: 1.826307439 | F100: 527681254.4 | H100: 0 | I100: =IF(OR(C100<0,C100=""),"",-E100*INDEX('Replacement Costs'!$A$16:$H$57,MATCH(C100,'Replacement Costs'!$C$16:$C$57,0),MATCH("Total Yearly Replacement Costs",'Replacement Costs'!$A$16:$H$16,0))) -> -7151559.2 | J100: =IF(AND(C100>=1,C100<anal_period),WorkingCap*SUM(N100:R100)-WorkingCap*SUM(N99:R99),IF(C100<0,0,IF(B100="","",-SUM(J$65:J99)))) -> -1811784.633 | N100: -58533379.63 | O100: -336423832.5 | P100: -10612738.38 | Q100: 0 | R100: -70365572.44 | S100: =IF(B100="","",IF($B$31=0,"",-'Debt Financing Calculations'!E49)) -> -16431880.5 | T100: 35313851 | U100: =IF(C100="","",IF(C100<-1,0,IF(C100=anal_period,-LOOKUP(C100,depr_yr,depr_cost)-Depreciation!$C$141-Depreciation!$B$166,-LOOKUP(C100,depr_yr,depr_cost)))) -> -6056327.218 | V100: 29257523.78 | W100: 0.2574 | X100: -7530886.621 | Y100: 27782964.38 | Z100: =IF(C100="","",IF($B$31=0,"",-'Debt Financing Calculations'!F49)) -> 0 | AA100: 18819620.55 | AB100: 800062088.7 | AC100: 26350507.17 | AE100: 158665500 | AF100: 0
A101: 2048 | B101: =IF(MAX($B$65:B100)<(construct+anal_period),B100+1,"") -> 37 | C101: 34 | D101: 34 | E101: 1.861007281 | F101: 537707198.3 | H101: 0 | I101: =IF(OR(C101<0,C101=""),"",-E101*INDEX('Replacement Costs'!$A$16:$H$57,MATCH(C101,'Replacement Costs'!$C$16:$C$57,0),MATCH("Total Yearly Replacement Costs",'Replacement Costs'!$A$16:$H$16,0))) -> -7287438.825 | J101: =IF(AND(C101>=1,C101<anal_period),WorkingCap*SUM(N101:R101)-WorkingCap*SUM(N100:R100),IF(C101<0,0,IF(B101="","",-SUM(J$65:J100)))) -> -2223699.815 | N101: -59645513.84 | O101: -348597775.8 | P101: -10814380.41 | Q101: 0 | R101: -71702518.32 | S101: =IF(B101="","",IF($B$31=0,"",-'Debt Financing Calculations'!E50)) -> -16431880.5 | T101: 30515129.4 | U101: =IF(C101="","",IF(C101<-1,0,IF(C101=anal_period,-LOOKUP(C101,depr_yr,depr_cost)-Depreciation!$C$141-Depreciation!$B$166,-LOOKUP(C101,depr_yr,depr_cost)))) -> -6171397.435 | V101: 24343731.97 | W101: 0.2574 | X101: -6266076.609 | Y101: 24249052.79 | Z101: =IF(C101="","",IF($B$31=0,"",-'Debt Financing Calculations'!F50)) -> 0 | AA101: 14737914.15 | AB101: 814800002.9 | AC101: 21003990.76 | AE101: 158665500 | AF101: 0
A102: 2049 | B102: =IF(MAX($B$65:B101)<(construct+anal_period),B101+1,"") -> 38 | C102: 35 | D102: 35 | E102: 1.896366419 | F102: 547923635 | H102: 0 | I102: =IF(OR(C102<0,C102=""),"",-E102*INDEX('Replacement Costs'!$A$16:$H$57,MATCH(C102,'Replacement Costs'!$C$16:$C$57,0),MATCH("Total Yearly Replacement Costs",'Replacement Costs'!$A$16:$H$16,0))) -> -7425900.163 | J102: =IF(AND(C102>=1,C102<anal_period),WorkingCap*SUM(N102:R102)-WorkingCap*SUM(N101:R101),IF(C102<0,0,IF(B102="","",-SUM(J$65:J101)))) -> -1696745.381 | N102: -60778778.6 | O102: -357208325.8 | P102: -11019853.64 | Q102: 0 | R102: -73064866.17 | S102: =IF(B102="","",IF($B$31=0,"",-'Debt Financing Calculations'!E51)) -> -16431880.5 | T102: 29419930.3 | U102: =IF(C102="","",IF(C102<-1,0,IF(C102=anal_period,-LOOKUP(C102,depr_yr,depr_cost)-Depreciation!$C$141-Depreciation!$B$166,-LOOKUP(C102,depr_yr,depr_cost)))) -> -6288653.986 | V102: 23131276.31 | W102: 0.2574 | X102: -5953990.522 | Y102: 23465939.77 | Z102: =IF(C102="","",IF($B$31=0,"",-'Debt Financing Calculations'!F51)) -> 0 | AA102: 14343294.23 | AB102: 829143297.1 | AC102: 20297284.75 | AE102: 158665500 | AF102: 0
A103: 2050 | B103: =IF(MAX($B$65:B102)<(construct+anal_period),B102+1,"") -> 39 | C103: 36 | D103: 36 | E103: 1.932397381 | F103: 558334184.1 | H103: 0 | I103: =IF(OR(C103<0,C103=""),"",-E103*INDEX('Replacement Costs'!$A$16:$H$57,MATCH(C103,'Replacement Costs'!$C$16:$C$57,0),MATCH("Total Yearly Replacement Costs",'Replacement Costs'!$A$16:$H$16,0))) -> -7566992.266 | J103: =IF(AND(C103>=1,C103<anal_period),WorkingCap*SUM(N103:R103)-WorkingCap*SUM(N102:R102),IF(C103<0,0,IF(B103="","",-SUM(J$65:J102)))) -> -2070706.957 | N103: -61933575.39 | O103: -368260632.4 | P103: -11229230.86 | Q103: 0 | R103: -74453098.62 | S103: =IF(B103="","",IF($B$31=0,"",-'Debt Financing Calculations'!E52)) -> -16431880.5 | T103: 26025766.31 | U103: =IF(C103="","",IF(C103<-1,0,IF(C103=anal_period,-LOOKUP(C103,depr_yr,depr_cost)-Depreciation!$C$141-Depreciation!$B$166,-LOOKUP(C103,depr_yr,depr_cost)))) -> -6408138.412 | V103: 19617627.9 | W103: 0.2574 | X103: -5049577.422 | Y103: 20976188.89 | Z103: =IF(C103="","",IF($B$31=0,"",-'Debt Financing Calculations'!F52)) -> 0 | AA103: 11338489.67 | AB103: 840481786.8 | AC103: 16388067.09 | AE103: 158665500 | AF103: 0
A104: 2051 | B104: =IF(MAX($B$65:B103)<(construct+anal_period),B103+1,"") -> 40 | C104: 37 | D104: 37 | E104: 1.969112931 | F104: 568942533.6 | H104: 0 | I104: =IF(OR(C104<0,C104=""),"",-E104*INDEX('Replacement Costs'!$A$16:$H$57,MATCH(C104,'Replacement Costs'!$C$16:$C$57,0),MATCH("Total Yearly Replacement Costs",'Replacement Costs'!$A$16:$H$16,0))) -> -7710765.119 | J104: =IF(AND(C104>=1,C104<anal_period),WorkingCap*SUM(N104:R104)-WorkingCap*SUM(N103:R103),IF(C104<0,0,IF(B104="","",-SUM(J$65:J103)))) -> -1757579.549 | N104: -63110313.33 | O104: -377173127.2 | P104: -11442586.24 | Q104: 0 | R104: -75867707.5 | S104: =IF(B104="","",IF($B$31=0,"",-'Debt Financing Calculations'!E53)) -> -16431880.5 | T104: 24916918.82 | U104: =IF(C104="","",IF(C104<-1,0,IF(C104=anal_period,-LOOKUP(C104,depr_yr,depr_cost)-Depreciation!$C$141-Depreciation!$B$166,-LOOKUP(C104,depr_yr,depr_cost)))) -> -6529893.042 | V104: 18387025.77 | W104: 0.2574 | X104: -4732820.434 | Y104: 20184098.38 | Z104: =IF(C104="","",IF($B$31=0,"",-'Debt Financing Calculations'!F53)) -> 0 | AA104: 10715753.71 | AB104: 851197540.5 | AC104: 15448574.15 | AE104: 158665500 | AF104: 0
A105: 2052 | B105: =IF(MAX($B$65:B104)<(construct+anal_period),B104+1,"") -> 41 | C105: 38 | D105: 38 | E105: 2.006526077 | F105: 579752441.7 | H105: 0 | I105: =IF(OR(C105<0,C105=""),"",-E105*INDEX('Replacement Costs'!$A$16:$H$57,MATCH(C105,'Replacement Costs'!$C$16:$C$57,0),MATCH("Total Yearly Replacement Costs",'Replacement Costs'!$A$16:$H$16,0))) -> -7857269.656 | J105: =IF(AND(C105>=1,C105<anal_period),WorkingCap*SUM(N105:R105)-WorkingCap*SUM(N104:R104),IF(C105<0,0,IF(B105="","",-SUM(J$65:J104)))) -> -1798036.926 | N105: -64309409.28 | O105: -386302048.5 | P105: -11659995.38 | Q105: 0 | R105: -77309193.94 | S105: =IF(B105="","",IF($B$31=0,"",-'Debt Financing Calculations'!E54)) -> -16431880.5 | T105: 23739914.12 | U105: =IF(C105="","",IF(C105<-1,0,IF(C105=anal_period,-LOOKUP(C105,depr_yr,depr_cost)-Depreciation!$C$141-Depreciation!$B$166,-LOOKUP(C105,depr_yr,depr_cost)))) -> -6653961.01 | V105: 17085953.11 | W105: 0.2574 | X105: -4397924.33 | Y105: 19341989.79 | Z105: =IF(C105="","",IF($B$31=0,"",-'Debt Financing Calculations'!F54)) -> 0 | AA105: 9686683.205 | AB105: 860884223.7 | AC105: 14084607.54 | AE105: 158665500 | AF105: 0
A106: 2053 | B106: =IF(MAX($B$65:B105)<(construct+anal_period),B105+1,"") -> 42 | C106: 39 | D106: 39 | E106: 2.044650072 | F106: 590767738.1 | H106: 0 | I106: =IF(OR(C106<0,C106=""),"",-E106*INDEX('Replacement Costs'!$A$16:$H$57,MATCH(C106,'Replacement Costs'!$C$16:$C$57,0),MATCH("Total Yearly Replacement Costs",'Replacement Costs'!$A$16:$H$16,0))) -> -8006557.78 | J106: =IF(AND(C106>=1,C106<anal_period),WorkingCap*SUM(N106:R106)-WorkingCap*SUM(N105:R105),IF(C106<0,0,IF(B106="","",-SUM(J$65:J105)))) -> -1839436.738 | N106: -65531288.06 | O106: -395652666.7 | P106: -11881535.29 | Q106: 0 | R106: -78778068.62 | S106: =IF(B106="","",IF($B$31=0,"",-'Debt Financing Calculations'!E55)) -> -16431880.5 | T106: =IF(C106="","",F106+SUM(L106:S106)) -> 22492298.92 | U106: =IF(C106="","",IF(C106<-1,0,IF(C106=anal_period,-LOOKUP(C106,depr_yr,depr_cost)-Depreciation!$C$141-Depreciation!$B$166,-LOOKUP(C106,depr_yr,depr_cost)))) -> -6780386.269 | V106: 15711912.65 | W106: 0.2574 | X106: -4044246.317 | Y106: 18448052.61 | Z106: =IF(C106="","",IF($B$31=0,"",-'Debt Financing Calculations'!F55)) -> 0 | AA106: 8602058.087 | AB106: 869486281.8 | AC106: =IF(C106="","",SUM(H106,I106,J106,K106,T106,Z106)) -> 12646304.4 | AE106: 158665500 | AF106: 0
A107: 2054 | B107: =IF(MAX($B$65:B106)<(construct+anal_period),B106+1,"") -> 43 | C107: 40 | D107: 40 | E107: 2.083498424 | F107: 601992325.1 | H107: 0 | I107: =IF(OR(C107<0,C107=""),"",-E107*INDEX('Replacement Costs'!$A$16:$H$57,MATCH(C107,'Replacement Costs'!$C$16:$C$57,0),MATCH("Total Yearly Replacement Costs",'Replacement Costs'!$A$16:$H$16,0))) -> -8158682.377 | J107: =IF(AND(C107>=1,C107<anal_period),WorkingCap*SUM(N107:R107)-WorkingCap*SUM(N106:R106),IF(C107<0,0,IF(B107="","",-SUM(J$65:J106)))) -> 82776533.8 | L107: 164153528.9 | M107: -163173647.5 | N107: -66776382.53 | O107: -405230380.9 | P107: -12107284.46 | Q107: 0 | R107: -80274851.93 | S107: =IF(B107="","",IF($B$31=0,"",-'Debt Financing Calculations'!E56)) -> -16431880.5 | T107: 22151426.17 | U107: =IF(C107="","",IF(C107<-1,0,IF(C107=anal_period,-LOOKUP(C107,depr_yr,depr_cost)-Depreciation!$C$141-Depreciation!$B$166,-LOOKUP(C107,depr_yr,depr_cost)))) -> -73920196.55 | V107: -51768770.38 | W107: 0.2574 | X107: 13325281.5 | Y107: 35476707.67 | Z107: =IF(C107="","",IF($B$31=0,"",-'Debt Financing Calculations'!F56)) -> -444104878.4 | AA107: -334010319.4 | AB107: 535475962.4 | AC107: -347335600.8 | AE107: 158665500 | AF107: 0
B108: =IF(MAX($B$65:B107)<(construct+anal_period),B107+1,"") ->  | I108: =IF(OR(C108<0,C108=""),"",-E108*INDEX('Replacement Costs'!$A$16:$H$57,MATCH(C108,'Replacement Costs'!$C$16:$C$57,0),MATCH("Total Yearly Replacement Costs",'Replacement Costs'!$A$16:$H$16,0))) ->  | J108: =IF(AND(C108>=1,C108<anal_period),WorkingCap*SUM(N108:R108)-WorkingCap*SUM(N107:R107),IF(C108<0,0,IF(B108="","",-SUM(J$65:J107)))) ->  | S108: =IF(B108="","",IF($B$31=0,"",-'Debt Financing Calculations'!E57)) ->  | U108: =IF(C108="","",IF(C108<-1,0,IF(C108=anal_period,-LOOKUP(C108,depr_yr,depr_cost)-Depreciation!$C$141-Depreciation!$B$166,-LOOKUP(C108,depr_yr,depr_cost)))) ->  | Z108: =IF(C108="","",IF($B$31=0,"",-'Debt Financing Calculations'!F57)) -> 
B109: =IF(MAX($B$65:B108)<(construct+anal_period),B108+1,"") ->  | I109: =IF(OR(C109<0,C109=""),"",-E109*INDEX('Replacement Costs'!$A$16:$H$57,MATCH(C109,'Replacement Costs'!$C$16:$C$57,0),MATCH("Total Yearly Replacement Costs",'Replacement Costs'!$A$16:$H$16,0))) ->  | J109: =IF(AND(C109>=1,C109<anal_period),WorkingCap*SUM(N109:R109)-WorkingCap*SUM(N108:R108),IF(C109<0,0,IF(B109="","",-SUM(J$65:J108)))) ->  | S109: =IF(B109="","",IF($B$31=0,"",-'Debt Financing Calculations'!E58)) ->  | U109: =IF(C109="","",IF(C109<-1,0,IF(C109=anal_period,-LOOKUP(C109,depr_yr,depr_cost)-Depreciation!$C$141-Depreciation!$B$166,-LOOKUP(C109,depr_yr,depr_cost)))) ->  | Z109: =IF(C109="","",IF($B$31=0,"",-'Debt Financing Calculations'!F58)) -> 
B110: =IF(MAX($B$65:B109)<(construct+anal_period),B109+1,"") ->  | I110: =IF(OR(C110<0,C110=""),"",-E110*INDEX('Replacement Costs'!$A$16:$H$57,MATCH(C110,'Replacement Costs'!$C$16:$C$57,0),MATCH("Total Yearly Replacement Costs",'Replacement Costs'!$A$16:$H$16,0))) ->  | J110: =IF(AND(C110>=1,C110<anal_period),WorkingCap*SUM(N110:R110)-WorkingCap*SUM(N109:R109),IF(C110<0,0,IF(B110="","",-SUM(J$65:J109)))) ->  | O110: =IF(C110="","",IF(C110<0,0,IF(AND(C110=1,start_time<1),-(SUM(B185:E185)*output_kgyear*E110*percnt_var*start_time+SUM(B185:E185)*output_kgyear*E110*(1-start_time)),IF(C110<=start_time,-SUM(B185:E185)*output_kgyear*E110*percnt_var,-SUM(B185:E185)*output_kgyear*E110)))) ->  | Q110: =IF(C110="","",IF(C110<0,0,IF(AND(C110=1,start_time<1),SUM(K185:N185,T185:V185)*output_kgyear*E110*percnt_revs*start_time+SUM(K185:N185,T185:V185)*output_kgyear*E110*(1-start_time),IF(C110<=start_time,SUM(K185:N185,T185:V185)*output_kgyear*E110*percnt_revs,SUM(K185:N185,T185:V185)*output_kgyear*E110)))) ->  | R110: =IF(C110="","",IF(C110<0,0,IF(AND(C110=1,start_time<1),-((SUM(F185:J185,P185:R185)*output_kgyear+inflated_othervar)*E110*percnt_var*start_time+(SUM(F185:J185,P185:R185)*output_kgyear+inflated_othervar)*E110*(1-start_time)),IF(C110<=start_time,-(SUM(F185:J185,P185:R185)*output_kgyear+inflated_othervar)*E110*percnt_var,-E110*(SUM(F185:J185,P185:R185)*output_kgyear+inflated_othervar))))) ->  | S110: =IF(B110="","",IF($B$31=0,"",-'Debt Financing Calculations'!E59)) ->  | U110: =IF(C110="","",IF(C110<-1,0,IF(C110=anal_period,-LOOKUP(C110,depr_yr,depr_cost)-Depreciation!$C$141-Depreciation!$B$166,-LOOKUP(C110,depr_yr,depr_cost)))) ->  | Z110: =IF(C110="","",IF($B$31=0,"",-'Debt Financing Calculations'!F59)) -> 
B111: =IF(MAX($B$65:B110)<(construct+anal_period),B110+1,"") ->  | I111: =IF(OR(C111<0,C111=""),"",-E111*INDEX('Replacement Costs'!$A$16:$H$57,MATCH(C111,'Replacement Costs'!$C$16:$C$57,0),MATCH("Total Yearly Replacement Costs",'Replacement Costs'!$A$16:$H$16,0))) ->  | J111: =IF(AND(C111>=1,C111<anal_period),WorkingCap*SUM(N111:R111)-WorkingCap*SUM(N110:R110),IF(C111<0,0,IF(B111="","",-SUM(J$65:J110)))) ->  | O111: =IF(C111="","",IF(C111<0,0,IF(AND(C111=1,start_time<1),-(SUM(B278:E278)*output_kgyear*E111*percnt_var*start_time+SUM(B278:E278)*output_kgyear*E111*(1-start_time)),IF(C111<=start_time,-SUM(B278:E278)*output_kgyear*E111*percnt_var,-SUM(B278:E278)*output_kgyear*E111)))) ->  | Q111: =IF(C111="","",IF(C111<0,0,IF(AND(C111=1,start_time<1),SUM(K278:N278,T278:V278)*output_kgyear*E111*percnt_revs*start_time+SUM(K278:N278,T278:V278)*output_kgyear*E111*(1-start_time),IF(C111<=start_time,SUM(K278:N278,T278:V278)*output_kgyear*E111*percnt_revs,SUM(K278:N278,T278:V278)*output_kgyear*E111)))) ->  | R111: =IF(C111="","",IF(C111<0,0,IF(AND(C111=1,start_time<1),-((SUM(F278:J278,P278:R278)*output_kgyear+inflated_othervar)*E111*percnt_var*start_time+(SUM(F278:J278,P278:R278)*output_kgyear+inflated_othervar)*E111*(1-start_time)),IF(C111<=start_time,-(SUM(F278:J278,P278:R278)*output_kgyear+inflated_othervar)*E111*percnt_var,-E111*(SUM(F278:J278,P278:R278)*output_kgyear+inflated_othervar))))) ->  | S111: =IF(B111="","",IF($B$31=0,"",-'Debt Financing Calculations'!E60)) ->  | U111: =IF(C111="","",IF(C111<-1,0,IF(C111=anal_period,-LOOKUP(C111,depr_yr,depr_cost)-Depreciation!$C$141-Depreciation!$B$166,-LOOKUP(C111,depr_yr,depr_cost)))) ->  | Z111: =IF(C111="","",IF($B$31=0,"",-'Debt Financing Calculations'!F60)) -> 
B112: =IF(MAX($B$65:B111)<(construct+anal_period),B111+1,"") ->  | I112: =IF(OR(C112<0,C112=""),"",-E112*INDEX('Replacement Costs'!$A$16:$H$57,MATCH(C112,'Replacement Costs'!$C$16:$C$57,0),MATCH("Total Yearly Replacement Costs",'Replacement Costs'!$A$16:$H$16,0))) ->  | J112: =IF(AND(C112>=1,C112<anal_period),WorkingCap*SUM(N112:R112)-WorkingCap*SUM(N111:R111),IF(C112<0,0,IF(B112="","",-SUM(J$65:J111)))) ->  | O112: =IF(C112="","",IF(C112<0,0,IF(AND(C112=1,start_time<1),-(SUM(B279:E279)*output_kgyear*E112*percnt_var*start_time+SUM(B279:E279)*output_kgyear*E112*(1-start_time)),IF(C112<=start_time,-SUM(B279:E279)*output_kgyear*E112*percnt_var,-SUM(B279:E279)*output_kgyear*E112)))) ->  | Q112: =IF(C112="","",IF(C112<0,0,IF(AND(C112=1,start_time<1),SUM(K279:N279,T279:V279)*output_kgyear*E112*percnt_revs*start_time+SUM(K279:N279,T279:V279)*output_kgyear*E112*(1-start_time),IF(C112<=start_time,SUM(K279:N279,T279:V279)*output_kgyear*E112*percnt_revs,SUM(K279:N279,T279:V279)*output_kgyear*E112)))) ->  | R112: =IF(C112="","",IF(C112<0,0,IF(AND(C112=1,start_time<1),-((SUM(F279:J279,P279:R279)*output_kgyear+inflated_othervar)*E112*percnt_var*start_time+(SUM(F279:J279,P279:R279)*output_kgyear+inflated_othervar)*E112*(1-start_time)),IF(C112<=start_time,-(SUM(F279:J279,P279:R279)*output_kgyear+inflated_othervar)*E112*percnt_var,-E112*(SUM(F279:J279,P279:R279)*output_kgyear+inflated_othervar))))) ->  | S112: =IF(B112="","",IF($B$31=0,"",-'Debt Financing Calculations'!E61)) ->  | U112: =IF(C112="","",IF(C112<-1,0,IF(C112=anal_period,-LOOKUP(C112,depr_yr,depr_cost)-Depreciation!$C$141-Depreciation!$B$166,-LOOKUP(C112,depr_yr,depr_cost)))) ->  | Z112: =IF(C112="","",IF($B$31=0,"",-'Debt Financing Calculations'!F61)) -> 
B113: =IF(MAX($B$65:B112)<(construct+anal_period),B112+1,"") ->  | I113: =IF(OR(C113<0,C113=""),"",-E113*INDEX('Replacement Costs'!$A$16:$H$57,MATCH(C113,'Replacement Costs'!$C$16:$C$57,0),MATCH("Total Yearly Replacement Costs",'Replacement Costs'!$A$16:$H$16,0))) ->  | J113: =IF(AND(C113>=1,C113<anal_period),WorkingCap*SUM(N113:R113)-WorkingCap*SUM(N112:R112),IF(C113<0,0,IF(B113="","",-SUM(J$65:J112)))) ->  | O113: =IF(C113="","",IF(C113<0,0,IF(AND(C113=1,start_time<1),-(SUM(B280:E280)*output_kgyear*E113*percnt_var*start_time+SUM(B280:E280)*output_kgyear*E113*(1-start_time)),IF(C113<=start_time,-SUM(B280:E280)*output_kgyear*E113*percnt_var,-SUM(B280:E280)*output_kgyear*E113)))) ->  | Q113: =IF(C113="","",IF(C113<0,0,IF(AND(C113=1,start_time<1),SUM(K280:N280,T280:V280)*output_kgyear*E113*percnt_revs*start_time+SUM(K280:N280,T280:V280)*output_kgyear*E113*(1-start_time),IF(C113<=start_time,SUM(K280:N280,T280:V280)*output_kgyear*E113*percnt_revs,SUM(K280:N280,T280:V280)*output_kgyear*E113)))) ->  | R113: =IF(C113="","",IF(C113<0,0,IF(AND(C113=1,start_time<1),-((SUM(F280:J280,P280:R280)*output_kgyear+inflated_othervar)*E113*percnt_var*start_time+(SUM(F280:J280,P280:R280)*output_kgyear+inflated_othervar)*E113*(1-start_time)),IF(C113<=start_time,-(SUM(F280:J280,P280:R280)*output_kgyear+inflated_othervar)*E113*percnt_var,-E113*(SUM(F280:J280,P280:R280)*output_kgyear+inflated_othervar))))) ->  | S113: =IF(B113="","",IF($B$31=0,"",-'Debt Financing Calculations'!E62)) ->  | U113: =IF(C113="","",IF(C113<-1,0,IF(C113=anal_period,-LOOKUP(C113,depr_yr,depr_cost)-Depreciation!$C$141-Depreciation!$B$166,-LOOKUP(C113,depr_yr,depr_cost)))) ->  | Z113: =IF(C113="","",IF($B$31=0,"",-'Debt Financing Calculations'!F62)) -> 
E114: Cumulative Total | F114: =SUM(F65:F113) -> 1.707877681e+10 | G114: -444104878.4 | H114: -296069919 | I114: -231465268.8 | J114: 0 | K114: -4444856.73 | L114: 164153528.9 | M114: -163173647.5 | N114: -1894474208 | O114: -1.015908312e+10 | P114: -343488779.6 | Q114: 0 | R114: -2277431492 | S114: -706570861.6 | T114: 1698708231 | U114: -971640066.2 | V114: 727068164.8 | W114: 11.0682 | X114: -187147345.6 | Y114: 1511560885 | Z114: -444104878.4 | AA114: 535475962.4 | AB114: 1.584959745e+10 | AC114: 722623308.1
E115: PV of Cash Flow | F115: =NPV(nominal_irr,F65:F113) -> 2536729043 | G115: -403540942.9 | H115: -269027295.2 | I115: -34379784.72 | J115: -27360449.46 | K115: -4038869.562 | L115: 2670169.465 | M115: -2654230.428 | N115: -281388286.7 | O115: -1335501200 | P115: -51018756.98 | Q115: 0 | R115: -338269343 | S115: -160809736.5 | T115: 369757659.4 | U115: -262036912.9 | V115: 107720746.5 | W115: 2.519031596 | X115: -27727320.16 | Y115: 342030339.2 | Z115: -7223940.257 | AA115: 1.899000343e-06 | AB115: -86651503.37 | AC115: 27727320.16
E116: Discounted Values | F116: =+F65+NPV($X$59,F66:F113) -> 2791721047 | G116: -444104878.4 | H116: =+H65+NPV($X$59,H66:H113) -> -296069919 | I116: -37835640.68 | J116: -30110721.84 | K116: -4444856.73 | L116: 2938574.9 | M116: -2921033.67 | N116: -309673437.3 | O116: -1469745780 | P116: -56147162.43 | Q116: 0 | R116: -372272177.4 | S116: -176974331.2 | T116: 406925699.3 | U116: -288376863.4 | V116: 118548836 | W116: 2.772244653 | X116: -30514470.38 | Y116: 376411228.9 | Z116: -7950090.732 | AA116: 2.086162567e-06 | AB116: -95361712.49 | AC116: 30514470.38 | AE116: =+AE65+NPV(real_irr,AE66:AE113) -> 1622106256 | AF116: =+AF65+NPV($X$59,AF66:AF113) -> 0
A117: Specific Item Cost Calculation | E117: Expenses $/kg H2 | H117: =-H116/$AE$116*(1+inflation_rate)^construct/INFLATION_FACTOR -> 0.1967939404 | I117: =-I116/$AE$116*(1+inflation_rate)^construct/INFLATION_FACTOR -> 0.02514887309 | J117: =-J116/$AE$116*(1+inflation_rate)^construct/INFLATION_FACTOR -> 0.02001421698 | K117: =-K116/$AE$116*(1+inflation_rate)^construct/INFLATION_FACTOR -> 0.002954440199 | M117: =-M116/$AE$116*(1+inflation_rate)^construct/INFLATION_FACTOR -> 0.001941574233 | N117: =-N116/$AE$116*(1+inflation_rate)^construct/INFLATION_FACTOR -> 0.2058360274 | O117: =-O116/$AE$116*(1+inflation_rate)^construct/INFLATION_FACTOR -> 0.9769214802 | P117: =-P116/$AE$116*(1+inflation_rate)^construct/INFLATION_FACTOR -> 0.0373203106 | R117: =-R116/$AE$116*(1+inflation_rate)^construct/INFLATION_FACTOR -> 0.2474446203 | S117: =-S116/$AE$116*(1+inflation_rate)^construct/INFLATION_FACTOR -> 0.1176326055 | X117: =-X116/$AE$116*(1+inflation_rate)^construct/INFLATION_FACTOR -> 0.02028258354 | Z117: =-Z116/$AE$116*(1+inflation_rate)^construct/INFLATION_FACTOR -> 0.005284325024 | AG117: =+SUM(F117:AC117) -> 1.857574998
A118: Cost Component | B118: After Tax Present Value | C118: % of Total | D118: $/kg of H2 | E118: Revenues $/kg H2 | F118: =F116/$AE$116*(1+inflation_rate)^construct/INFLATION_FACTOR -> 1.855621764 | L118: =L116/$AE$116*(1+inflation_rate)^construct/INFLATION_FACTOR -> 0.001953233668 | Q118: =Q116/$AE$116*(1+inflation_rate)^construct/INFLATION_FACTOR -> 0 | AG118: =+SUM(F118:AC118) -> 1.857574998
A119: Capital-Related Costs | B119: =(SUM(H115:K115)+L115*(1-total_tax_rate)+S115*(1-total_tax_rate)+U115*(-total_tax_rate)+Z115)/(1-total_tax_rate) -> -527897226.4 | C119: =B119/SUM($B$118:$B$125) -> 0.2081015423 | D119: =H2_price_real*C119 -> 0.3861577511
A120: Decommissioning Costs | B120: =M115 -> -2654230.428 | C120: 0.001046320037 | D120: 0.001941574233
A121: Fixed O&M | B121: =N115 -> -281388286.7 | C121: 0.1109256377 | D121: 0.2058360274
A122: Feedstock Costs | B122: =O115 -> -1335501200 | C122: 0.5264658452 | D122: 0.9769214802
A123: Other Raw Material Costs | B123: =P115 -> -51018756.98 | C123: 0.02011202462 | D123: 0.0373203106
A124: Byproduct Credits | B124: =Q115 -> 0 | C124: 0 | D124: 0
A125: Other Variable Costs (including utilities) | B125: =R115 -> -338269343 | C125: 0.1333486302 | D125: 0.2474446203
A128: INFLATION FACTOR (1 + inflation rate)^(startup year - reference year) = | B128: =(1+inflation_rate)^(startup_year-ref_year) -> 0.9813542689
A129: Feedstock, Utility and Byproduct Cost Information (Start-Up Year $)
B130: Energy Feedstocks | F130: Energy Utilities | J130: Carbon Sequestration Electricity Usage | K130: Energy Byproducts | O130: Other Material Inputs | S130: Other Material Byproducts
A131: Feedstock Name | B131: =Input_Sheet_Template!$B$75 -> Industrial Electricity | C131: =Input_Sheet_Template!$B$77 -> Industrial Natural Gas | J131: =IF(CO2_CashFlow_eUse>0,'HyARC Physical Property Data'!A77,"") ->  | O131: Type | P131: =Input_Sheet_Template!$B$137 -> Process Water | S131: Type
A132: LHV (GJ or mmBtu/usage unit) | B132: =Input_Sheet_Template!$C$75 -> 0.0036 | C132: =Input_Sheet_Template!$C$77 -> 1.055 | J132: =IF(J131="",0,VLOOKUP(J131,MASTER_PROPERTY_TABLE,9,FALSE)) -> 0 | O132: Usage (/kg H2) | P132: =Input_Sheet_Template!$D$137 -> 8.130186335 | S132: Usage (/kg H2)
A133: Usage (/kg H2) | B133: =feedstockIndustrial_Electricity_Usage -> 1.502608696 | C133: =feedstockIndustrial_Natural_Gas_Usage -> 0.1677796634 | J133: 0 | O133: Cost (/usage unit) | P133: =Input_Sheet_Template!$C$137 -> 0.002374951095 | S133: Price (/usage unit)
A134: Price ($/ usage unit) | B134: =feedstockIndustrial_Electricity_Price -> 0.06998061126 | C134: =feedstockIndustrial_Natural_Gas_Price -> 3.733674814 | O134: Lookup Price? | P134: =Input_Sheet_Template!$F$137 -> Yes | S134: Lookup Price?
A135: Lookup Price? | B135: =Input_Sheet_Template!$G$75 -> yes | C135: =Input_Sheet_Template!$G$77 -> yes | J135: =IF(J131="","","yes") -> 
A136: CO2 Emissions (kg CO2/kg H2) | B136: =IF(B131="",0,VLOOKUP(B131,MASTER_PROPERTY_TABLE,11,FALSE)*B132*B133) -> 0 | C136: =IF(C131="",0,VLOOKUP(C131,MASTER_PROPERTY_TABLE,11,FALSE)*C132*C133) -> 9.968239829 | D136: =IF(D131="",0,VLOOKUP(D131,MASTER_PROPERTY_TABLE,11,FALSE)*D132*D133) -> 0 | E136: =IF(E131="",0,VLOOKUP(E131,MASTER_PROPERTY_TABLE,11,FALSE)*E132*E133) -> 0 | F136: =IF(F131="",,VLOOKUP(F131,MASTER_PROPERTY_TABLE,11,FALSE)*F132*F133) -> 0 | G136: =IF(G131="",,VLOOKUP(G131,MASTER_PROPERTY_TABLE,11,FALSE)*G132*G133) -> 0 | H136: =IF(H131="",,VLOOKUP(H131,MASTER_PROPERTY_TABLE,11,FALSE)*H132*H133) -> 0 | I136: =IF(I131="",,VLOOKUP(I131,MASTER_PROPERTY_TABLE,11,FALSE)*I132*I133) -> 0 | J136: =IF($J$131="",0,VLOOKUP($J$131,MASTER_PROPERTY_TABLE,12,FALSE)*$J$132*$J$133) -> 0
A137: Unit System Conversion Factor | B137: =IF(B131="",0,IF(VLOOKUP(B131,MASTER_PROPERTY_TABLE,12,FALSE)="English",mmBTU_to_GJ,1)) -> 1 | C137: =IF(C131="",0,IF(VLOOKUP(C131,MASTER_PROPERTY_TABLE,12,FALSE)="English",mmBTU_to_GJ,1)) -> 1 | D137: =IF(D131="",0,IF(VLOOKUP(D131,MASTER_PROPERTY_TABLE,12,FALSE)="English",mmBTU_to_GJ,1)) -> 0 | E137: =IF(E131="",,IF(VLOOKUP(E131,MASTER_PROPERTY_TABLE,12,FALSE)="English",mmBTU_to_GJ,1)) -> 0 | F137: =IF(F131="",,IF(VLOOKUP(F131,MASTER_PROPERTY_TABLE,12,FALSE)="English",mmBTU_to_GJ,1)) -> 0 | G137: =IF(G131="",,IF(VLOOKUP(G131,MASTER_PROPERTY_TABLE,12,FALSE)="English",mmBTU_to_GJ,1)) -> 0 | H137: =IF(H131="",,IF(VLOOKUP(H131,MASTER_PROPERTY_TABLE,12,FALSE)="English",mmBTU_to_GJ,1)) -> 0 | I137: =IF(I131="",,IF(VLOOKUP(I131,MASTER_PROPERTY_TABLE,12,FALSE)="English",mmBTU_to_GJ,1)) -> 0 | J137: =IF($J$131="",0,IF(VLOOKUP($J$131,MASTER_PROPERTY_TABLE,12,FALSE)="English",mmBTU_to_GJ,1)) -> 0 | K137: =IF(K131="",,IF(VLOOKUP(K131,MASTER_PROPERTY_TABLE,12,FALSE)="English",mmBTU_to_GJ,1)) -> 0 | L137: =IF(L131="",,IF(VLOOKUP(L131,MASTER_PROPERTY_TABLE,12,FALSE)="English",mmBTU_to_GJ,1)) -> 0 | M137: =IF(M131="",,IF(VLOOKUP(M131,MASTER_PROPERTY_TABLE,12,FALSE)="English",mmBTU_to_GJ,1)) -> 0 | N137: =IF(N131="",,IF(VLOOKUP(N131,MASTER_PROPERTY_TABLE,12,FALSE)="English",mmBTU_to_GJ,1)) -> 0
A138: Actual Year | B138: =IF(B$131="","",B$131&" ($/kg of H2)") -> Industrial Electricity ($/kg of H2) | C138: Industrial Natural Gas ($/kg of H2) | P138: =IF(P$131="","",P$131&" ($/kg of H2)") -> Process Water ($/kg of H2) | Q138: =IF(Q$131="","",Q$131&" ($/kg of H2)") ->  | R138: =IF(R$131="","",R$131&" ($/kg of H2)") ->  | T138: =IF(T$131="","",T$131&" ($/kg of H2)") ->  | U138: =IF(U$131="","",U$131&" ($/kg of H2)") ->  | V138: =IF(V$131="","",V$131&" ($/kg of H2)") -> 
A139: =IF(A65="","",A65) -> 2012 | B139: =IF($A139="","",IF($B$131="","",IF($B$135="no",INFLATION_FACTOR*$B$133*$B$134,INFLATION_FACTOR*$B$133*$B$132*INDEX(FEEDPRICETABLE,MATCH($B$131,List_Energy_Feedstocks,0),MATCH($A139,Feedstock_Year,0))))) -> 0.1041501722 | C139: =IF($A139="","",IF($C$131="","",IF($C$135="no",INFLATION_FACTOR*$C$133*$C$134,INFLATION_FACTOR*$C$133*$C$132*INDEX(FEEDPRICETABLE,MATCH($C$131,List_Energy_Feedstocks,0),MATCH($A139,Feedstock_Year,0))))) -> 0.7224569044 | D139: =IF($A139="","",IF($D$131="","",IF($D$135="no",INFLATION_FACTOR*$D$133*$D$134,INFLATION_FACTOR*$D$133*$D$132*INDEX(FEEDPRICETABLE,MATCH($D$131,List_Energy_Feedstocks,0),MATCH($A139,Feedstock_Year,0))))) ->  | E139: =IF($A139="","",IF($E$131="","",IF($E$135="no",INFLATION_FACTOR*$E$133*$E$134,INFLATION_FACTOR*$E$133*$E$132*INDEX(FEEDPRICETABLE,MATCH($E$131,List_Energy_Feedstocks,0),MATCH($A139,Feedstock_Year,0))))) ->  | F139: =IF($A139="","",IF($F$131="","",IF($F$135="no",INFLATION_FACTOR*$F$133*$F$134,INFLATION_FACTOR*$F$133*$F$132*INDEX(FEEDPRICETABLE,MATCH($F$131,List_Energy_Feedstocks,0),MATCH($A139,Feedstock_Year,0))))) ->  | G139: =IF($A139="","",IF($G$131="","",IF($G$135="no",INFLATION_FACTOR*$G$133*$G$134,INFLATION_FACTOR*$G$133*$G$132*INDEX(FEEDPRICETABLE,MATCH($G$131,List_Energy_Feedstocks,0),MATCH($A139,Feedstock_Year,0))))) ->  | H139: =IF($A139="","",IF($H$131="","",IF($H$135="no",INFLATION_FACTOR*$H$133*$H$134,INFLATION_FACTOR*$H$133*$H$132*INDEX(FEEDPRICETABLE,MATCH(H$131,List_Energy_Feedstocks,0),MATCH($A139,Feedstock_Year,0))))) ->  | I139: =IF($A139="","",IF($I$131="","",IF($I$135="no",INFLATION_FACTOR*$I$133*$I$134,INFLATION_FACTOR*$I$133*$I$132*INDEX(FEEDPRICETABLE,MATCH($I$131,List_Energy_Feedstocks,0),MATCH($A139,Feedstock_Year,0))))) ->  | J139: =IF($A139="","",IF($J$131="","",IF($J$135="no",INFLATION_FACTOR*$J$133*$J$134,INFLATION_FACTOR*$J$133*$J$132*INDEX(FEEDPRICETABLE,MATCH($J$131,List_Energy_Feedstocks,0),MATCH($A139,Feedstock_Year,0))))) ->  | K139: =IF($A139="","",IF($K$131="","",IF($K$135="no",INFLATION_FACTOR*$K$133*$K$134,INFLATION_FACTOR*$K$133*$K$132*INDEX(FEEDPRICETABLE,MATCH($K$131,List_Energy_Feedstocks,0),MATCH($A139,Feedstock_Year,0))))) ->  | L139: =IF($A139="","",IF($L$131="","",IF($L$135="no",INFLATION_FACTOR*$L$133*$L$134,INFLATION_FACTOR*$L$133*$L$132*INDEX(FEEDPRICETABLE,MATCH($L$131,List_Energy_Feedstocks,0),MATCH($A139,Feedstock_Year,0))))) ->  | M139: =IF($A139="","",IF(M$131="","",IF($M$135="no",INFLATION_FACTOR*$M$133*$M$134,INFLATION_FACTOR*$M$133*$M$132*INDEX(FEEDPRICETABLE,MATCH($M$131,List_Energy_Feedstocks,0),MATCH($A139,Feedstock_Year,0))))) ->  | N139: =IF($A139="","",IF($N$131="","",IF($N$135="no",INFLATION_FACTOR*$N$133*$N$134,INFLATION_FACTOR*$N$133*$N$132*INDEX(FEEDPRICETABLE,MATCH($N$131,List_Energy_Feedstocks,0),MATCH($A139,Feedstock_Year,0))))) ->  | P139: =IF(OR($A139="",$P$131=""),"",IF($P$134="No",INFLATION_FACTOR*$P$132*$P$133,INFLATION_FACTOR*$P$132*INDEX(Tbl_Other_Inputs_and_Byproducts,MATCH($P$131,Other_Inputs_List,0),MATCH($A139,Other_Inputs_years,0)))) -> 0.01894876834 | Q139: =IF(OR($A139="",$Q$131=""),"",IF($Q$134="No",INFLATION_FACTOR*$Q$132*$Q$133,INFLATION_FACTOR*$Q$132*INDEX(Tbl_Other_Inputs_and_Byproducts,MATCH($Q$131,Other_Inputs_List,0),MATCH($A139,Other_Inputs_years,0)))) ->  | R139: =IF(OR($A139="",$R$131=""),"",IF($R$134="No",INFLATION_FACTOR*$R$132*$R$133,INFLATION_FACTOR*$R$132*INDEX(Tbl_Other_Inputs_and_Byproducts,MATCH($R$131,Other_Inputs_List,0),MATCH($A139,Other_Inputs_years,0)))) ->  | T139: =IF(OR($A139="",$T$131=""),"",IF($T$134="No",INFLATION_FACTOR*$T$132*$T$133,INFLATION_FACTOR*$T$132*INDEX(Tbl_Other_Inputs_and_Byproducts,MATCH($T$131,Other_Inputs_List,0),MATCH($A139,Other_Inputs_years,0)))) ->  | U139: =IF(OR($A139="",$U$131=""),"",IF($U$134="No",INFLATION_FACTOR*$U$132*$U$133,INFLATION_FACTOR*$U$132*INDEX(Tbl_Other_Inputs_and_Byproducts,MATCH($U$131,Other_Inputs_List,0),MATCH($A139,Other_Inputs_years,0)))) ->  | V139: =IF(OR($A139="",$V$131=""),"",IF($V$134="No",INFLATION_FACTOR*$V$132*$V$133,INFLATION_FACTOR*$V$132*INDEX(Tbl_Other_Inputs_and_Byproducts,MATCH($V$131,Other_Inputs_List,0),MATCH($A139,Other_Inputs_years,0)))) -> 
A140: 2013 | B140: =IF($A140="","",IF($B$131="","",IF($B$135="no",INFLATION_FACTOR*$B$133*$B$134,INFLATION_FACTOR*$B$133*$B$132*INDEX(FEEDPRICETABLE,MATCH($B$131,List_Energy_Feedstocks,0),MATCH($A140,Feedstock_Year,0))))) -> 0.1058776894 | C140: 0.8502551583 | F140: =IF($A140="","",IF($F$131="","",IF($F$135="no",INFLATION_FACTOR*$F$133*$F$134,INFLATION_FACTOR*$F$133*$F$132*INDEX(FEEDPRICETABLE,MATCH($F$131,List_Energy_Feedstocks,0),MATCH($A140,Feedstock_Year,0))))) ->  | P140: =IF(OR($A140="",$P$131=""),"",IF($P$134="No",INFLATION_FACTOR*$P$132*$P$133,INFLATION_FACTOR*$P$132*INDEX(Tbl_Other_Inputs_and_Byproducts,MATCH($P$131,Other_Inputs_List,0),MATCH($A140,Other_Inputs_years,0)))) -> 0.01894876834 | Q140: =IF(OR($A140="",$Q$131=""),"",IF($Q$134="No",INFLATION_FACTOR*$Q$132*$Q$133,INFLATION_FACTOR*$Q$132*INDEX(Tbl_Other_Inputs_and_Byproducts,MATCH($Q$131,Other_Inputs_List,0),MATCH($A140,Other_Inputs_years,0)))) -> 
A141: 2014 | B141: 0.1071828385 | C141: 1.011694252 | P141: 0.01894876834
A142: 2015 | B142: 0.1031928116 | C142: 0.6147543704 | P142: 0.01894876834
A143: 2016 | B143: 0.09968235465 | C143: 0.5761586993 | P143: 0.01894876834
A144: 2017 | B144: 0.103715357 | C144: 0.6720132623 | P144: 0.01894876834
A145: 2018 | B145: 0.1013647141 | C145: 0.7348548539 | P145: 0.01894876834
A146: 2019 | B146: 0.1026716297 | C146: 0.8055650421 | P146: 0.01894876834
A147: 2020 | B147: 0.1045818844 | C147: 0.8754625547 | P147: 0.01894876834
A148: 2021 | B148: 0.1051578871 | C148: 0.8763909741 | P148: 0.01894876834
A149: 2022 | B149: 0.1085521415 | C149: 0.8667025833 | P149: 0.01894876834
A150: 2023 | B150: 0.1088961864 | C150: 0.8686876785 | P150: 0.01894876834
A151: 2024 | B151: 0.1086091184 | C151: 0.8835860181 | P151: 0.01894876834
A152: 2025 | B152: 0.1112169925 | C152: 0.9030258579 | P152: 0.01894876834
A153: 2026 | B153: 0.1123464466 | C153: 0.9231272314 | P153: 0.01894876834
A154: 2027 | B154: 0.112993756 | C154: 0.9392302606 | P154: 0.01894876834
A155: 2028 | B155: 0.1137279344 | C155: 0.9551951547 | P155: 0.01894876834
A156: 2029 | B156: 0.1143047522 | C156: 0.9686095711 | P156: 0.01894876834
A157: 2030 | B157: 0.1147054872 | C157: 0.9719603762 | P157: 0.01894876834
A158: 2031 | B158: 0.1148508023 | C158: 0.9761317599 | P158: 0.01894876834
A159: 2032 | B159: 0.1145887711 | C159: 0.9736856655 | P159: 0.01894876834
A160: 2033 | B160: 0.1141791858 | C160: 0.9640158793 | P160: 0.01894876834
A161: 2034 | B161: 0.1138473473 | C161: 0.963770068 | P161: 0.01894876834
A162: 2035 | B162: 0.1142499137 | C162: 0.9787443079 | P162: 0.01894876834
A163: 2036 | B163: 0.1146653156 | C163: 0.9793944813 | P163: 0.01894876834
A164: 2037 | B164: 0.1145786175 | C164: 0.9811874387 | P164: 0.01894876834
A165: 2038 | B165: 0.1146040669 | C165: 0.9802313594 | P165: 0.01894876834
A166: 2039 | B166: 0.1146927625 | C166: 0.9839532688 | P166: 0.01894876834
A167: 2040 | B167: 0.1144238381 | C167: 0.976499736 | P167: 0.01894876834
A168: 2041 | B168: 0.1140873254 | C168: 0.9772895263 | P168: 0.01894876834
A169: 2042 | B169: 0.1142196492 | C169: 0.9866993419 | P169: 0.01894876834
A170: 2043 | B170: 0.1145682224 | C170: 1.001102272 | P170: 0.01894876834
A171: 2044 | B171: 0.1149999012 | C171: 1.01097391 | P171: 0.01894876834
A172: 2045 | B172: 0.1154199924 | C172: 1.023955481 | P172: 0.01894876834
A173: 2046 | B173: 0.1158471025 | C173: 1.033879476 | P173: 0.01894876834
A174: 2047 | B174: 0.1162303781 | C174: 1.044764653 | P174: 0.01894876834
A175: 2048 | B175: 0.1166615084 | C175: 1.063914722 | P175: 0.01894876834
A176: 2049 | B176: 0.117035038 | C176: 1.070145619 | P176: 0.01894876834
A177: 2050 | B177: 0.1173971661 | C177: 1.083695042 | P177: 0.01894876834
A178: 2051 | B178: 0.1175036401 | C178: 1.089719673 | P178: 0.01894876834
A179: 2052 | B179: 0.1176102107 | C179: 1.095777797 | P179: 0.01894876834
A180: 2053 | B180: 0.1177168779 | C180: 1.1018696 | P180: 0.01894876834
A181: 2054 | B181: 0.1178236419 | C181: 1.107995269 | P181: 0.01894876834
A184: Tables to calculate equivalent price in startup year
A185: Actual Year | B185: =IF(B$131="","",B$131&" ($/year)") -> Industrial Electricity ($/year) | C185: =IF(C$131="","",C$131&" ($/year)") -> Industrial Natural Gas ($/year)
A186: =+A139 -> 2012 | B186: =IF($C65="","",IF($C65<0,0,IF(AND($C65=1,start_time<1),-(SUM(B139)*output_kgyear*$E65*percnt_var*start_time+SUM(B139)*output_kgyear*$E65*(1-start_time)),IF($C65<=start_time,-SUM(B139)*output_kgyear*$E65*percnt_var,-SUM(B139)*output_kgyear*$E65)))) -> 0 | C186: =IF($C65="","",IF($C65<0,0,IF(AND($C65=1,start_time<1),-(SUM(C139)*output_kgyear*$E65*percnt_var*start_time+SUM(C139)*output_kgyear*$E65*(1-start_time)),IF($C65<=start_time,-SUM(C139)*output_kgyear*$E65*percnt_var,-SUM(C139)*output_kgyear*$E65)))) -> 0 | D186: 0 | E186: 0 | F186: 0 | G186: 0 | H186: 0 | I186: 0 | J186: 0 | K186: 0 | L186: 0 | M186: 0 | N186: 0
A187: =+A140 -> 2013 | B187: =IF($C66="","",IF($C66<0,0,IF(AND($C66=1,start_time<1),-(SUM(B140)*output_kgyear*$E66*percnt_var*start_time+SUM(B140)*output_kgyear*$E66*(1-start_time)),IF($C66<=start_time,-SUM(B140)*output_kgyear*$E66*percnt_var,-SUM(B140)*output_kgyear*$E66)))) -> 0 | C187: 0 | D187: 0 | E187: 0 | F187: 0 | G187: 0 | H187: 0 | I187: 0 | J187: 0 | K187: 0 | L187: 0 | M187: 0 | N187: 0
A188: 2014 | B188: =IF($C67="","",IF($C67<0,0,IF(AND($C67=1,start_time<1),-(SUM(B141)*output_kgyear*$E67*percnt_var*start_time+SUM(B141)*output_kgyear*$E67*(1-start_time)),IF($C67<=start_time,-SUM(B141)*output_kgyear*$E67*percnt_var,-SUM(B141)*output_kgyear*$E67)))) -> 0 | C188: 0 | D188: 0 | E188: 0 | F188: 0 | G188: 0 | H188: 0 | I188: 0 | J188: 0 | K188: 0 | L188: 0 | M188: 0 | N188: 0
A189: 2015 | B189: =IF($C68="","",IF($C68<0,0,IF(AND($C68=1,start_time<1),-(SUM(B142)*output_kgyear*$E68*percnt_var*start_time+SUM(B142)*output_kgyear*$E68*(1-start_time)),IF($C68<=start_time,-SUM(B142)*output_kgyear*$E68*percnt_var,-SUM(B142)*output_kgyear*$E68)))) -> -16373139.05 | C189: -97540309.56 | D189: 0 | E189: 0 | F189: =IF($C68="","",IF($C68<0,0,IF(AND($C68=1,start_time<1),-(SUM(F142)*output_kgyear*$E68*percnt_var*start_time+SUM(F142)*output_kgyear*$E68*(1-start_time)),IF($C68<=start_time,-SUM(F142)*output_kgyear*$E68*percnt_var,-SUM(F142)*output_kgyear*$E68)))) -> 0 | G189: 0 | H189: 0 | I189: 0 | J189: 0 | K189: 0 | L189: 0 | M189: 0 | N189: 0
A190: 2016 | B190: =IF($C69="","",IF($C69<0,0,IF(AND($C69=1,start_time<1),-(SUM(B143)*output_kgyear*$E69*percnt_var*start_time+SUM(B143)*output_kgyear*$E69*(1-start_time)),IF($C69<=start_time,-SUM(B143)*output_kgyear*$E69*percnt_var,-SUM(B143)*output_kgyear*$E69)))) -> -16116657.5 | C190: -93153421.76 | D190: 0 | E190: 0 | F190: 0 | G190: 0 | H190: 0 | I190: 0 | J190: 0 | K190: 0 | L190: 0 | M190: 0 | N190: 0
A191: 2017 | B191: =IF($C70="","",IF($C70<0,0,IF(AND($C70=1,start_time<1),-(SUM(B144)*output_kgyear*$E70*percnt_var*start_time+SUM(B144)*output_kgyear*$E70*(1-start_time)),IF($C70<=start_time,-SUM(B144)*output_kgyear*$E70*percnt_var,-SUM(B144)*output_kgyear*$E70)))) -> -17087319.47 | C191: -110715574.2 | D191: 0 | E191: 0 | F191: 0 | G191: 0 | H191: 0 | I191: 0 | J191: 0 | K191: 0 | L191: 0 | M191: 0 | N191: 0
A192: 2018 | B192: =IF($C71="","",IF($C71<0,0,IF(AND($C71=1,start_time<1),-(SUM(B145)*output_kgyear*$E71*percnt_var*start_time+SUM(B145)*output_kgyear*$E71*(1-start_time)),IF($C71<=start_time,-SUM(B145)*output_kgyear*$E71*percnt_var,-SUM(B145)*output_kgyear*$E71)))) -> -17017347.06 | C192: -123369164.6 | D192: 0 | E192: 0 | F192: 0 | G192: 0 | H192: 0 | I192: 0 | J192: 0 | K192: 0 | L192: 0 | M192: 0 | N192: 0
A193: 2019 | B193: =IF($C72="","",IF($C72<0,0,IF(AND($C72=1,start_time<1),-(SUM(B146)*output_kgyear*$E72*percnt_var*start_time+SUM(B146)*output_kgyear*$E72*(1-start_time)),IF($C72<=start_time,-SUM(B146)*output_kgyear*$E72*percnt_var,-SUM(B146)*output_kgyear*$E72)))) -> -17564253.5 | C193: -137809720.6 | D193: 0 | E193: 0 | F193: 0 | G193: 0 | H193: 0 | I193: 0 | J193: 0 | K193: 0 | L193: 0 | M193: 0 | N193: 0
A194: 2020 | B194: =IF($C73="","",IF($C73<0,0,IF(AND($C73=1,start_time<1),-(SUM(B147)*output_kgyear*$E73*percnt_var*start_time+SUM(B147)*output_kgyear*$E73*(1-start_time)),IF($C73<=start_time,-SUM(B147)*output_kgyear*$E73*percnt_var,-SUM(B147)*output_kgyear*$E73)))) -> -18230974.66 | C194: -152612813.8 | D194: 0 | E194: 0 | F194: 0 | G194: 0 | H194: 0 | I194: 0 | J194: 0 | K194: 0 | L194: 0 | M194: 0 | N194: 0
A195: 2021 | B195: =IF($C74="","",IF($C74<0,0,IF(AND($C74=1,start_time<1),-(SUM(B148)*output_kgyear*$E74*percnt_var*start_time+SUM(B148)*output_kgyear*$E74*(1-start_time)),IF($C74<=start_time,-SUM(B148)*output_kgyear*$E74*percnt_var,-SUM(B148)*output_kgyear*$E74)))) -> -18679681.2 | C195: -155677376.7 | D195: 0 | E195: 0 | F195: 0 | G195: 0 | H195: 0 | I195: 0 | J195: 0 | K195: 0 | L195: 0 | M195: 0 | N195: 0
A196: 2022 | B196: =IF($C75="","",IF($C75<0,0,IF(AND($C75=1,start_time<1),-(SUM(B149)*output_kgyear*$E75*percnt_var*start_time+SUM(B149)*output_kgyear*$E75*(1-start_time)),IF($C75<=start_time,-SUM(B149)*output_kgyear*$E75*percnt_var,-SUM(B149)*output_kgyear*$E75)))) -> -19648988.04 | C196: -156881554.4 | D196: 0 | E196: 0 | F196: 0 | G196: 0 | H196: 0 | I196: 0 | J196: 0 | K196: 0 | L196: 0 | M196: 0 | N196: 0
A197: 2023 | B197: =IF($C76="","",IF($C76<0,0,IF(AND($C76=1,start_time<1),-(SUM(B150)*output_kgyear*$E76*percnt_var*start_time+SUM(B150)*output_kgyear*$E76*(1-start_time)),IF($C76<=start_time,-SUM(B150)*output_kgyear*$E76*percnt_var,-SUM(B150)*output_kgyear*$E76)))) -> -20085777.5 | C197: -160228452.5 | D197: 0 | E197: 0 | F197: 0 | G197: 0 | H197: 0 | I197: 0 | J197: 0 | K197: 0 | L197: 0 | M197: 0 | N197: 0
A198: 2024 | B198: =IF($C77="","",IF($C77<0,0,IF(AND($C77=1,start_time<1),-(SUM(B151)*output_kgyear*$E77*percnt_var*start_time+SUM(B151)*output_kgyear*$E77*(1-start_time)),IF($C77<=start_time,-SUM(B151)*output_kgyear*$E77*percnt_var,-SUM(B151)*output_kgyear*$E77)))) -> -20413451.87 | C198: -166072986.5 | D198: 0 | E198: 0 | F198: 0 | G198: 0 | H198: 0 | I198: 0 | J198: 0 | K198: 0 | L198: 0 | M198: 0 | N198: 0
A199: 2025 | B199: =IF($C78="","",IF($C78<0,0,IF(AND($C78=1,start_time<1),-(SUM(B152)*output_kgyear*$E78*percnt_var*start_time+SUM(B152)*output_kgyear*$E78*(1-start_time)),IF($C78<=start_time,-SUM(B152)*output_kgyear*$E78*percnt_var,-SUM(B152)*output_kgyear*$E78)))) -> -21300779.24 | C199: -172951578.9 | D199: 0 | E199: 0 | F199: 0 | G199: 0 | H199: 0 | I199: 0 | J199: 0 | K199: 0 | L199: 0 | M199: 0 | N199: 0
A200: 2026 | B200: =IF($C79="","",IF($C79<0,0,IF(AND($C79=1,start_time<1),-(SUM(B153)*output_kgyear*$E79*percnt_var*start_time+SUM(B153)*output_kgyear*$E79*(1-start_time)),IF($C79<=start_time,-SUM(B153)*output_kgyear*$E79*percnt_var,-SUM(B153)*output_kgyear*$E79)))) -> -21925922.24 | C200: -180160712.7 | D200: 0 | E200: 0 | F200: 0 | G200: 0 | H200: 0 | I200: 0 | J200: 0 | K200: 0 | L200: 0 | M200: 0 | N200: 0
A201: 2027 | B201: =IF($C80="","",IF($C80<0,0,IF(AND($C80=1,start_time<1),-(SUM(B154)*output_kgyear*$E80*percnt_var*start_time+SUM(B154)*output_kgyear*$E80*(1-start_time)),IF($C80<=start_time,-SUM(B154)*output_kgyear*$E80*percnt_var,-SUM(B154)*output_kgyear*$E80)))) -> -22471246.19 | C201: -186786201 | D201: 0 | E201: 0 | F201: 0 | G201: 0 | H201: 0 | I201: 0 | J201: 0 | K201: 0 | L201: 0 | M201: 0 | N201: 0
A202: 2028 | B202: =IF($C81="","",IF($C81<0,0,IF(AND($C81=1,start_time<1),-(SUM(B155)*output_kgyear*$E81*percnt_var*start_time+SUM(B155)*output_kgyear*$E81*(1-start_time)),IF($C81<=start_time,-SUM(B155)*output_kgyear*$E81*percnt_var,-SUM(B155)*output_kgyear*$E81)))) -> -23046981.22 | C202: -193570426.8 | D202: 0 | E202: 0 | F202: 0 | G202: 0 | H202: 0 | I202: 0 | J202: 0 | K202: 0 | L202: 0 | M202: 0 | N202: 0
A203: 2029 | B203: =IF($C82="","",IF($C82<0,0,IF(AND($C82=1,start_time<1),-(SUM(B156)*output_kgyear*$E82*percnt_var*start_time+SUM(B156)*output_kgyear*$E82*(1-start_time)),IF($C82<=start_time,-SUM(B156)*output_kgyear*$E82*percnt_var,-SUM(B156)*output_kgyear*$E82)))) -> -23603987.03 | C203: -200018348.4 | D203: 0 | E203: 0 | F203: 0 | G203: 0 | H203: 0 | I203: 0 | J203: 0 | K203: 0 | L203: 0 | M203: 0 | N203: 0
A204: 2030 | B204: =IF($C83="","",IF($C83<0,0,IF(AND($C83=1,start_time<1),-(SUM(B157)*output_kgyear*$E83*percnt_var*start_time+SUM(B157)*output_kgyear*$E83*(1-start_time)),IF($C83<=start_time,-SUM(B157)*output_kgyear*$E83*percnt_var,-SUM(B157)*output_kgyear*$E83)))) -> -24136787.03 | C204: -204523786.8 | D204: 0 | E204: 0 | F204: 0 | G204: 0 | H204: 0 | I204: 0 | J204: 0 | K204: 0 | L204: 0 | M204: 0 | N204: 0
A205: 2031 | B205: =IF($C84="","",IF($C84<0,0,IF(AND($C84=1,start_time<1),-(SUM(B158)*output_kgyear*$E84*percnt_var*start_time+SUM(B158)*output_kgyear*$E84*(1-start_time)),IF($C84<=start_time,-SUM(B158)*output_kgyear*$E84*percnt_var,-SUM(B158)*output_kgyear*$E84)))) -> -24626544.76 | C205: -209304175.4 | D205: 0 | E205: 0 | F205: 0 | G205: 0 | H205: 0 | I205: 0 | J205: 0 | K205: 0 | L205: 0 | M205: 0 | N205: 0
A206: 2032 | B206: =IF($C85="","",IF($C85<0,0,IF(AND($C85=1,start_time<1),-(SUM(B159)*output_kgyear*$E85*percnt_var*start_time+SUM(B159)*output_kgyear*$E85*(1-start_time)),IF($C85<=start_time,-SUM(B159)*output_kgyear*$E85*percnt_var,-SUM(B159)*output_kgyear*$E85)))) -> -25037196.32 | C206: -212746492.7 | D206: 0 | E206: 0 | F206: 0 | G206: 0 | H206: 0 | I206: 0 | J206: 0 | K206: 0 | L206: 0 | M206: 0 | N206: 0
A207: 2033 | B207: =IF($C86="","",IF($C86<0,0,IF(AND($C86=1,start_time<1),-(SUM(B160)*output_kgyear*$E86*percnt_var*start_time+SUM(B160)*output_kgyear*$E86*(1-start_time)),IF($C86<=start_time,-SUM(B160)*output_kgyear*$E86*percnt_var,-SUM(B160)*output_kgyear*$E86)))) -> -25421709.89 | C207: -214635722.4 | D207: 0 | E207: 0 | F207: 0 | G207: 0 | H207: 0 | I207: 0 | J207: 0 | K207: 0 | L207: 0 | M207: 0 | N207: 0
A208: 2034 | B208: =IF($C87="","",IF($C87<0,0,IF(AND($C87=1,start_time<1),-(SUM(B161)*output_kgyear*$E87*percnt_var*start_time+SUM(B161)*output_kgyear*$E87*(1-start_time)),IF($C87<=start_time,-SUM(B161)*output_kgyear*$E87*percnt_var,-SUM(B161)*output_kgyear*$E87)))) -> -25829435.61 | C208: -218658032 | D208: 0 | E208: 0 | F208: 0 | G208: 0 | H208: 0 | I208: 0 | J208: 0 | K208: 0 | L208: 0 | M208: 0 | N208: 0
A209: 2035 | B209: =IF($C88="","",IF($C88<0,0,IF(AND($C88=1,start_time<1),-(SUM(B162)*output_kgyear*$E88*percnt_var*start_time+SUM(B162)*output_kgyear*$E88*(1-start_time)),IF($C88<=start_time,-SUM(B162)*output_kgyear*$E88*percnt_var,-SUM(B162)*output_kgyear*$E88)))) -> -26413263.6 | C209: -226274406.3 | D209: 0 | E209: 0 | F209: 0 | G209: 0 | H209: 0 | I209: 0 | J209: 0 | K209: 0 | L209: 0 | M209: 0 | N209: 0
A210: 2036 | B210: =IF($C89="","",IF($C89<0,0,IF(AND($C89=1,start_time<1),-(SUM(B163)*output_kgyear*$E89*percnt_var*start_time+SUM(B163)*output_kgyear*$E89*(1-start_time)),IF($C89<=start_time,-SUM(B163)*output_kgyear*$E89*percnt_var,-SUM(B163)*output_kgyear*$E89)))) -> -27012976.41 | C210: -230726788.6 | D210: 0 | E210: 0 | F210: 0 | G210: 0 | H210: 0 | I210: 0 | J210: 0 | K210: 0 | L210: 0 | M210: 0 | N210: 0
A211: 2037 | B211: =IF($C90="","",IF($C90<0,0,IF(AND($C90=1,start_time<1),-(SUM(B164)*output_kgyear*$E90*percnt_var*start_time+SUM(B164)*output_kgyear*$E90*(1-start_time)),IF($C90<=start_time,-SUM(B164)*output_kgyear*$E90*percnt_var,-SUM(B164)*output_kgyear*$E90)))) -> -27505410.49 | C211: -235541009.7 | D211: 0 | E211: 0 | F211: 0 | G211: 0 | H211: 0 | I211: 0 | J211: 0 | K211: 0 | L211: 0 | M211: 0 | N211: 0
A212: 2038 | B212: =IF($C91="","",IF($C91<0,0,IF(AND($C91=1,start_time<1),-(SUM(B165)*output_kgyear*$E91*percnt_var*start_time+SUM(B165)*output_kgyear*$E91*(1-start_time)),IF($C91<=start_time,-SUM(B165)*output_kgyear*$E91*percnt_var,-SUM(B165)*output_kgyear*$E91)))) -> -28034238.67 | C212: -239782414.5 | D212: 0 | E212: 0 | F212: 0 | G212: 0 | H212: 0 | I212: 0 | J212: 0 | K212: 0 | L212: 0 | M212: 0 | N212: 0
A213: 2039 | B213: =IF($C92="","",IF($C92<0,0,IF(AND($C92=1,start_time<1),-(SUM(B166)*output_kgyear*$E92*percnt_var*start_time+SUM(B166)*output_kgyear*$E92*(1-start_time)),IF($C92<=start_time,-SUM(B166)*output_kgyear*$E92*percnt_var,-SUM(B166)*output_kgyear*$E92)))) -> -28588997.98 | C213: -245266025.6 | D213: 0 | E213: 0 | F213: 0 | G213: 0 | H213: 0 | I213: 0 | J213: 0 | K213: 0 | L213: 0 | M213: 0 | N213: 0
A214: 2040 | B214: =IF($C93="","",IF($C93<0,0,IF(AND($C93=1,start_time<1),-(SUM(B167)*output_kgyear*$E93*percnt_var*start_time+SUM(B167)*output_kgyear*$E93*(1-start_time)),IF($C93<=start_time,-SUM(B167)*output_kgyear*$E93*percnt_var,-SUM(B167)*output_kgyear*$E93)))) -> -29063881.62 | C214: -248032868 | D214: 0 | E214: 0 | F214: 0 | G214: 0 | H214: 0 | I214: 0 | J214: 0 | K214: 0 | L214: 0 | M214: 0 | N214: 0
A215: 2041 | B215: =IF($C94="","",IF($C94<0,0,IF(AND($C94=1,start_time<1),-(SUM(B168)*output_kgyear*$E94*percnt_var*start_time+SUM(B168)*output_kgyear*$E94*(1-start_time)),IF($C94<=start_time,-SUM(B168)*output_kgyear*$E94*percnt_var,-SUM(B168)*output_kgyear*$E94)))) -> -29528996.46 | C215: -252949912.3 | D215: 0 | E215: 0 | F215: 0 | G215: 0 | H215: 0 | I215: 0 | J215: 0 | K215: 0 | L215: 0 | M215: 0 | N215: 0
A216: 2042 | B216: =IF($C95="","",IF($C95<0,0,IF(AND($C95=1,start_time<1),-(SUM(B169)*output_kgyear*$E95*percnt_var*start_time+SUM(B169)*output_kgyear*$E95*(1-start_time)),IF($C95<=start_time,-SUM(B169)*output_kgyear*$E95*percnt_var,-SUM(B169)*output_kgyear*$E95)))) -> -30124947.23 | C216: -260237759.6 | D216: 0 | E216: 0 | F216: 0 | G216: 0 | H216: 0 | I216: 0 | J216: 0 | K216: 0 | L216: 0 | M216: 0 | N216: 0
A217: 2043 | B217: =IF($C96="","",IF($C96<0,0,IF(AND($C96=1,start_time<1),-(SUM(B170)*output_kgyear*$E96*percnt_var*start_time+SUM(B170)*output_kgyear*$E96*(1-start_time)),IF($C96<=start_time,-SUM(B170)*output_kgyear*$E96*percnt_var,-SUM(B170)*output_kgyear*$E96)))) -> -30791002.69 | C217: -269053164.2 | D217: 0 | E217: 0 | F217: 0 | G217: 0 | H217: 0 | I217: 0 | J217: 0 | K217: 0 | L217: 0 | M217: 0 | N217: 0
A218: 2044 | B218: =IF($C97="","",IF($C97<0,0,IF(AND($C97=1,start_time<1),-(SUM(B171)*output_kgyear*$E97*percnt_var*start_time+SUM(B171)*output_kgyear*$E97*(1-start_time)),IF($C97<=start_time,-SUM(B171)*output_kgyear*$E97*percnt_var,-SUM(B171)*output_kgyear*$E97)))) -> -31494252.72 | C218: -276868653.7 | D218: 0 | E218: 0 | F218: 0 | G218: 0 | H218: 0 | I218: 0 | J218: 0 | K218: 0 | L218: 0 | M218: 0 | N218: 0
A219: 2045 | B219: =IF($C98="","",IF($C98<0,0,IF(AND($C98=1,start_time<1),-(SUM(B172)*output_kgyear*$E98*percnt_var*start_time+SUM(B172)*output_kgyear*$E98*(1-start_time)),IF($C98<=start_time,-SUM(B172)*output_kgyear*$E98*percnt_var,-SUM(B172)*output_kgyear*$E98)))) -> -32209876.98 | C219: -285751882.4 | D219: 0 | E219: 0 | F219: 0 | G219: 0 | H219: 0 | I219: 0 | J219: 0 | K219: 0 | L219: 0 | M219: 0 | N219: 0
... 17 more rows

Sheet Energy Feed & Utility Prices
BW3: Further extrapolated to allow 2040 comission year using GCAM
A4: AEO_2009_Reference_Case | B4: ="Prices are in $(" & ref_year&")/GJ LHV" -> Prices are in $(2016)/GJ LHV | AH4: Except as noted,values are extrapolated based on PNNL mini-CAM model (see AEO Data tab)
A5: Year | B5: Source Data Year | C5: Reference year Conversion | D5: Display Units | E5: Use Category | F5: LHV (MJ/kg) | G5: HHV (MJ/kg) | H5: 2004 | I5: 2005 | J5: 2006 | K5: 2007 | L5: 2008 | M5: 2009 | N5: 2010 | O5: 2011 | P5: 2012 | Q5: 2013 | R5: 2014 | S5: 2015 | T5: 2016 | U5: 2017 | V5: 2018 | W5: 2019 | X5: 2020 | Y5: 2021 | Z5: 2022 | AA5: 2023 | AB5: 2024 | AC5: 2025 | AD5: 2026 | AE5: 2027 | AF5: 2028 | AG5: 2029 | AH5: 2030 | AI5: 2031 | AJ5: 2032 | AK5: 2033 | AL5: 2034 | AM5: 2035 | AN5: 2036 | AO5: 2037 | AP5: 2038 | AQ5: 2039 | AR5: 2040 | AS5: 2041 | AT5: 2042 | AU5: 2043 | AV5: 2044 | AW5: 2045 | AX5: 2046 | AY5: 2047 | AZ5: 2048 | BA5: 2049 | BB5: 2050 | BC5: 2051 | BD5: 2052 | BE5: 2053 | BF5: 2054 | BG5: 2055 | BH5: 2056 | BI5: 2057 | BJ5: 2058 | BK5: 2059 | BL5: 2060 | BM5: 2061 | BN5: 2062 | BO5: 2063 | BP5: 2064 | BQ5: 2065 | BR5: 2066 | BS5: 2067 | BT5: 2068 | BU5: 2069 | BV5: 2070 | BW5: =+BV5+1 -> 2071 | BX5: =+BW5+1 -> 2072 | BY5: =+BX5+1 -> 2073 | BZ5: =+BY5+1 -> 2074 | CA5: =+BZ5+1 -> 2075 | CB5: =+CA5+1 -> 2076 | CC5: =+CB5+1 -> 2077 | CD5: =+CC5+1 -> 2078 | CE5: =+CD5+1 -> 2079 | CF5: =+CE5+1 -> 2080 | CG5: =+CF5+1 -> 2081 | CH5: =+CG5+1 -> 2082 | CI5: =+CH5+1 -> 2083 | CJ5: =+CI5+1 -> 2084 | CK5: =+CJ5+1 -> 2085 | CL5: =+CK5+1 -> 2086 | CM5: =+CL5+1 -> 2087 | CN5: =+CM5+1 -> 2088 | CO5: =+CN5+1 -> 2089 | CP5: =+CO5+1 -> 2090 | CQ5: =+CP5+1 -> 2091 | CR5: =+CQ5+1 -> 2092 | CS5: =+CR5+1 -> 2093 | CT5: =+CS5+1 -> 2094 | CU5: =+CT5+1 -> 2095 | CV5: =+CU5+1 -> 2096 | CW5: =+CV5+1 -> 2097 | CX5: =+CW5+1 -> 2098 | CY5: =+CX5+1 -> 2099 | CZ5: =+CY5+1 -> 2100
A6: Feedstock Type
A7: ='HyARC Physical Property Data'!A73 -> Residential Natural Gas | B7: 2007 | C7: =VLOOKUP(ref_year,DeflatorTable,2,FALSE)/VLOOKUP(B7,DeflatorTable,2,FALSE) -> 1.141397159 | D7: ='HyARC Physical Property Data'!H73 -> mmBtu | E7: Feed Utility | F7: ='HyARC Physical Property Data'!$E$6 -> 47.14126905 | G7: ='HyARC Physical Property Data'!$I$6 -> 52.22466124 | H7: =((13.7000589370728/(mmBTU_to_GJ))*($C$7))*($G$7/$F$7) -> 16.42030142 | I7: =((13.7000589370728/(mmBTU_to_GJ))*($C$7))*($G$7/$F$7) -> 16.42030142 | J7: =((13.7000589370728/(mmBTU_to_GJ))*($C$7))*($G$7/$F$7) -> 16.42030142 | K7: =((12.6911582946777/(mmBTU_to_GJ))*($C$7))*($G$7/$F$7) -> 15.2110765 | L7: =((12.9778490066528/(mmBTU_to_GJ))*($C$7))*($G$7/$F$7) -> 15.55469166 | M7: =((10.7176141738892/(mmBTU_to_GJ))*($C$7))*($G$7/$F$7) -> 12.8456714 | N7: =((11.192774772644/(mmBTU_to_GJ))*($C$7))*($G$7/$F$7) -> 13.41517845 | O7: =((11.4872808456421/(mmBTU_to_GJ))*($C$7))*($G$7/$F$7) -> 13.76816077 | P7: =((11.3991556167603/(mmBTU_to_GJ))*($C$7))*($G$7/$F$7) -> 13.66253766 | Q7: =((11.3077983856201/(mmBTU_to_GJ))*($C$7))*($G$7/$F$7) -> 13.55304081 | R7: =((11.2896461486816/(mmBTU_to_GJ))*($C$7))*($G$7/$F$7) -> 13.53128432 | S7: =((11.3454151153564/(mmBTU_to_GJ))*($C$7))*($G$7/$F$7) -> 13.5981266 | T7: =((11.5382986068726/(mmBTU_to_GJ))*($C$7))*($G$7/$F$7) -> 13.82930846 | U7: =((11.7583208084106/(mmBTU_to_GJ))*($C$7))*($G$7/$F$7) -> 14.09301761 | V7: =((11.9751005172729/(mmBTU_to_GJ))*($C$7))*($G$7/$F$7) -> 14.35284044 | W7: =((12.23952293396/(mmBTU_to_GJ))*($C$7))*($G$7/$F$7) -> 14.66976578 | X7: =((12.557071685791/(mmBTU_to_GJ))*($C$7))*($G$7/$F$7) -> 15.05036606 | Y7: =((12.7957820892334/(mmBTU_to_GJ))*($C$7))*($G$7/$F$7) -> 15.33647408 | Z7: =((12.8716516494751/(mmBTU_to_GJ))*($C$7))*($G$7/$F$7) -> 15.42740807 | AA7: =((12.6602811813354/(mmBTU_to_GJ))*($C$7))*($G$7/$F$7) -> 15.17406852 | AB7: =((12.6240320205688/(mmBTU_to_GJ))*($C$7))*($G$7/$F$7) -> 15.13062183 | AC7: =((12.5992183685303/(mmBTU_to_GJ))*($C$7))*($G$7/$F$7) -> 15.10088126 | AD7: =((12.7868556976318/(mmBTU_to_GJ))*($C$7))*($G$7/$F$7) -> 15.32577529 | AE7: =((13.07555103302/(mmBTU_to_GJ))*($C$7))*($G$7/$F$7) -> 15.6717931 | AF7: =((13.407883644104/(mmBTU_to_GJ))*($C$7))*($G$7/$F$7) -> 16.07011268 | AG7: =((13.6725673675537/(mmBTU_to_GJ))*($C$7))*($G$7/$F$7) -> 16.3873512 | AH7: =((13.9620389938354/(mmBTU_to_GJ))*($C$7))*($G$7/$F$7) -> 16.73429945 | AI7: =($BB7-$AH7)/20+AH7 -> 16.87636443 | AJ7: =($BB7-$AH7)/20+AI7 -> 17.01842941 | AK7: 17.16049439 | AL7: 17.30255937 | AM7: 17.44462435 | AN7: 17.58668933 | AO7: 17.72875431 | AP7: 17.87081929 | AQ7: 18.01288427 | AR7: 18.15494925 | AS7: 18.29701423 | AT7: 18.43907921 | AU7: 18.58114419 | AV7: 18.72320917 | AW7: 18.86527415 | AX7: 19.00733913 | AY7: 19.14940411 | AZ7: =($BB7-$AH7)/20+AY7 -> 19.29146909 | BA7: 19.43353407 | BB7: =1.16978897829057*AH7 -> 19.57559905 | BC7: =($BQ7-$BB7)/15+BB7 -> 19.7694318 | BD7: =($BQ7-$BB7)/15+BC7 -> 19.96326456 | BE7: 20.15709731 | BF7: 20.35093006 | BG7: 20.54476281 | BH7: 20.73859556 | BI7: 20.93242832 | BJ7: 21.12626107 | BK7: 21.32009382 | BL7: 21.51392657 | BM7: 21.70775932 | BN7: 21.90159208 | BO7: 22.09542483 | BP7: 22.28925758 | BQ7: =1.14852629914794*BB7 -> 22.48309033 | BR7: =($BV7-$BQ7)/5+BQ7 -> 22.70571235 | BS7: =($BV7-$BQ7)/5+BR7 -> 22.92833436 | BT7: =($BV7-$BQ7)/5+BS7 -> 23.15095637 | BU7: =($BV7-$BQ7)/5+BT7 -> 23.37357839 | BV7: =1.04950876638265*BQ7 -> 23.5962004 | BW7: =+BV7*BW$133/BV$133 -> 23.67454672 | BX7: =+BW7*BX$133/BW$133 -> 23.75315318 | BY7: 23.83202063 | BZ7: 23.91114995 | CA7: 23.990542 | CB7: 24.04173609 | CC7: 24.09303943 | CD7: 24.14445225 | CE7: 24.19597478 | CF7: 24.24760725 | CG7: 24.26437199 | CH7: 24.28114832 | CI7: 24.29793624 | CJ7: 24.31473578 | CK7: 24.33154693 | CL7: 24.33724516 | CM7: 24.34294473 | CN7: 24.34864563 | CO7: 24.35434787 | CP7: 24.36005144 | CQ7: 24.36869575 | CR7: 24.37734313 | CS7: 24.38599358 | CT7: 24.3946471 | CU7: 24.40330369 | CV7: 24.41662622 | CW7: 24.42995602 | CX7: 24.4432931 | CY7: 24.45663745 | CZ7: 24.4699891
A8: ='HyARC Physical Property Data'!A71 -> Commercial Natural Gas | B8: 2007 | C8: =VLOOKUP(ref_year,DeflatorTable,2,FALSE)/VLOOKUP(B8,DeflatorTable,2,FALSE) -> 1.141397159 | D8: ='HyARC Physical Property Data'!H71 -> mmBtu | E8: Feed Utility | F8: ='HyARC Physical Property Data'!$E$6 -> 47.14126905 | G8: ='HyARC Physical Property Data'!$I$6 -> 52.22466124 | H8: =((11.8960943222046/(mmBTU_to_GJ))*($C$8))*($G$8/$F$8) -> 14.25814702 | I8: =((11.8960943222046/(mmBTU_to_GJ))*($C$8))*($G$8/$F$8) -> 14.25814702 | J8: =((11.8960943222046/(mmBTU_to_GJ))*($C$8))*($G$8/$F$8) -> 14.25814702 | K8: =((10.9898433685303/(mmBTU_to_GJ))*($C$8))*($G$8/$F$8) -> 13.1719536 | L8: =((11.3387994766235/(mmBTU_to_GJ))*($C$8))*($G$8/$F$8) -> 13.59019738 | M8: =((8.90759468078613/(mmBTU_to_GJ))*($C$8))*($G$8/$F$8) -> 10.67625988 | N8: =((9.46560573577881/(mmBTU_to_GJ))*($C$8))*($G$8/$F$8) -> 11.34506793 | O8: =((9.74632167816162/(mmBTU_to_GJ))*($C$8))*($G$8/$F$8) -> 11.68152198 | P8: =((9.72109222412109/(mmBTU_to_GJ))*($C$8))*($G$8/$F$8) -> 11.65128305 | Q8: =((9.67193412780762/(mmBTU_to_GJ))*($C$8))*($G$8/$F$8) -> 11.59236427 | R8: =((9.71388721466064/(mmBTU_to_GJ))*($C$8))*($G$8/$F$8) -> 11.64264743 | S8: =((9.83065605163574/(mmBTU_to_GJ))*($C$8))*($G$8/$F$8) -> 11.78260154 | T8: =((10.0382099151611/(mmBTU_to_GJ))*($C$8))*($G$8/$F$8) -> 12.03136667 | U8: =((10.2545003890991/(mmBTU_to_GJ))*($C$8))*($G$8/$F$8) -> 12.29060313 | V8: =((10.476261138916/(mmBTU_to_GJ))*($C$8))*($G$8/$F$8) -> 12.55639603 | W8: =((10.746561050415/(mmBTU_to_GJ))*($C$8))*($G$8/$F$8) -> 12.88036588 | X8: =((11.0803880691528/(mmBTU_to_GJ))*($C$8))*($G$8/$F$8) -> 13.28047658 | Y8: =((11.3143692016602/(mmBTU_to_GJ))*($C$8))*($G$8/$F$8) -> 13.56091631 | Z8: =((11.4017143249512/(mmBTU_to_GJ))*($C$8))*($G$8/$F$8) -> 13.66560441 | AA8: =((11.2125005722046/(mmBTU_to_GJ))*($C$8))*($G$8/$F$8) -> 13.43882095 | AB8: =((11.1975994110107/(mmBTU_to_GJ))*($C$8))*($G$8/$F$8) -> 13.42096106 | AC8: =((11.159740447998/(mmBTU_to_GJ))*($C$8))*($G$8/$F$8) -> 13.37558493 | AD8: =((11.3503875732422/(mmBTU_to_GJ))*($C$8))*($G$8/$F$8) -> 13.60408638 | AE8: =((11.6409521102905/(mmBTU_to_GJ))*($C$8))*($G$8/$F$8) -> 13.95234453 | AF8: =((11.9785671234131/(mmBTU_to_GJ))*($C$8))*($G$8/$F$8) -> 14.35699537 | AG8: =((12.2332496643066/(mmBTU_to_GJ))*($C$8))*($G$8/$F$8) -> 14.66224691 | AH8: =((12.5188312530518/(mmBTU_to_GJ))*($C$8))*($G$8/$F$8) -> 15.00453272 | AI8: =($BB8-$AH8)/20+AH8 -> 15.13191293 | AJ8: 15.25929315 | AK8: 15.38667336 | AL8: 15.51405357 | AM8: 15.64143379 | AN8: 15.768814 | AO8: 15.89619422 | AP8: 16.02357443 | AQ8: 16.15095464 | AR8: 16.27833486 | AS8: 16.40571507 | AT8: 16.53309529 | AU8: 16.6604755 | AV8: 16.78785571 | AW8: 16.91523593 | AX8: 17.04261614 | AY8: 17.16999636 | AZ8: 17.29737657 | BA8: 17.42475678 | BB8: =1.16978897829057*AH8 -> 17.552137 | BC8: =($BQ8-$BB8)/15+BB8 -> 17.72593393 | BD8: 17.89973086 | BE8: 18.07352779 | BF8: 18.24732472 | BG8: 18.42112165 | BH8: 18.59491858 | BI8: 18.76871551 | BJ8: 18.94251244 | BK8: 19.11630937 | BL8: 19.2901063 | BM8: 19.46390323 | BN8: 19.63770016 | BO8: 19.81149709 | BP8: 19.98529402 | BQ8: =1.14852629914794*BB8 -> 20.15909095 | BR8: =($BV8-$BQ8)/5+BQ8 -> 20.35870129 | BS8: 20.55831164 | BT8: 20.75792198 | BU8: 20.95753233 | BV8: =1.04950876638265*BQ8 -> 21.15714267 | BW8: =+BV8*BW$134/BV$134 -> 21.22739061 | BX8: =+BW8*BX$134/BW$134 -> 21.29787179 | BY8: 21.36858698 | BZ8: 21.43953698 | CA8: 21.51072254 | CB8: 21.55662488 | CC8: 21.60262517 | CD8: 21.64872362 | CE8: 21.69492045 | CF8: 21.74121585 | CG8: 21.75624767 | CH8: 21.77128989 | CI8: 21.78634251 | CJ8: 21.80140553 | CK8: 21.81647897 | CL8: 21.8215882 | CM8: 21.82669862 | CN8: 21.83181024 | CO8: 21.83692306 | CP8: 21.84203707 | CQ8: 21.84978785 | CR8: 21.85754138 | CS8: 21.86529766 | CT8: 21.8730567 | CU8: 21.88081849 | CV8: 21.89276391 | CW8: 21.90471585 | CX8: 21.91667432 | CY8: 21.92863932 | CZ8: 21.94061085
A9: ='HyARC Physical Property Data'!A72 -> Industrial Natural Gas | B9: 2007 | C9: =VLOOKUP(ref_year,DeflatorTable,2,FALSE)/VLOOKUP(B9,DeflatorTable,2,FALSE) -> 1.141397159 | D9: ='HyARC Physical Property Data'!H72 -> mmBtu | E9: Feed Utility | F9: ='HyARC Physical Property Data'!$E$6 -> 47.14126905 | G9: ='HyARC Physical Property Data'!$I$6 -> 52.22466124 | H9: =((7.95407009124756/(mmBTU_to_GJ))*($C$9))*($G$9/$F$9) -> 9.533406316 | I9: =((7.95407009124756/(mmBTU_to_GJ))*($C$9))*($G$9/$F$9) -> 9.533406316 | J9: =((7.95407009124756/(mmBTU_to_GJ))*($C$9))*($G$9/$F$9) -> 9.533406316 | K9: =((7.51525163650513/(mmBTU_to_GJ))*($C$9))*($G$9/$F$9) -> 9.007457389 | L9: =((8.80127239227294/(mmBTU_to_GJ))*($C$9))*($G$9/$F$9) -> 10.54882656 | M9: =((4.84856796264648/(mmBTU_to_GJ))*($C$9))*($G$9/$F$9) -> 5.811285028 | N9: =((5.49891996383666/(mmBTU_to_GJ))*($C$9))*($G$9/$F$9) -> 6.590768966 | O9: =((5.82616424560547/(mmBTU_to_GJ))*($C$9))*($G$9/$F$9) -> 6.982989888 | P9: =((5.87778615951538/(mmBTU_to_GJ))*($C$9))*($G$9/$F$9) -> 7.044861694 | Q9: =((5.95383930206299/(mmBTU_to_GJ))*($C$9))*($G$9/$F$9) -> 7.136015719 | R9: =((6.10985708236694/(mmBTU_to_GJ))*($C$9))*($G$9/$F$9) -> 7.323011921 | S9: =((6.32948446273804/(mmBTU_to_GJ))*($C$9))*($G$9/$F$9) -> 7.586247853 | T9: =((6.51258134841919/(mmBTU_to_GJ))*($C$9))*($G$9/$F$9) -> 7.805699905 | U9: =((6.70273017883301/(mmBTU_to_GJ))*($C$9))*($G$9/$F$9) -> 8.033604115 | V9: =((6.89887094497681/(mmBTU_to_GJ))*($C$9))*($G$9/$F$9) -> 8.268690002 | W9: =((7.15282821655273/(mmBTU_to_GJ))*($C$9))*($G$9/$F$9) -> 8.573072265 | X9: =((7.46860218048096/(mmBTU_to_GJ))*($C$9))*($G$9/$F$9) -> 8.951545357 | Y9: =((7.67867755889893/(mmBTU_to_GJ))*($C$9))*($G$9/$F$9) -> 9.203332671 | Z9: =((7.75380706787109/(mmBTU_to_GJ))*($C$9))*($G$9/$F$9) -> 9.293379669 | AA9: =((7.55847835540771/(mmBTU_to_GJ))*($C$9))*($G$9/$F$9) -> 9.059267075 | AB9: =((7.54617786407471/(mmBTU_to_GJ))*($C$9))*($G$9/$F$9) -> 9.044524235 | AC9: =((7.45927095413208/(mmBTU_to_GJ))*($C$9))*($G$9/$F$9) -> 8.940361351 | AD9: =((7.60022306442261/(mmBTU_to_GJ))*($C$9))*($G$9/$F$9) -> 9.109300488 | AE9: =((7.85960483551025/(mmBTU_to_GJ))*($C$9))*($G$9/$F$9) -> 9.420184323 | AF9: =((8.19417572021484/(mmBTU_to_GJ))*($C$9))*($G$9/$F$9) -> 9.821186596 | AG9: =((8.42161273956299/(mmBTU_to_GJ))*($C$9))*($G$9/$F$9) -> 10.09378283 | AH9: =((8.69355010986328/(mmBTU_to_GJ))*($C$9))*($G$9/$F$9) -> 10.41971526 | AI9: =($BB9-$AH9)/20+AH9 -> 10.5081729 | AJ9: 10.59663054 | AK9: 10.68508818 | AL9: 10.77354582 | AM9: 10.86200346 | AN9: 10.9504611 | AO9: 11.03891874 | AP9: 11.12737638 | AQ9: 11.21583403 | AR9: 11.30429167 | AS9: 11.39274931 | AT9: 11.48120695 | AU9: 11.56966459 | AV9: 11.65812223 | AW9: 11.74657987 | AX9: 11.83503751 | AY9: 11.92349515 | AZ9: 12.01195279 | BA9: 12.10041043 | BB9: =1.16978897829057*AH9 -> 12.18886807 | BC9: 12.30955923 | BD9: 12.4302504 | BE9: 12.55094156 | BF9: 12.67163273 | BG9: 12.79232389 | BH9: 12.91301506 | BI9: 13.03370622 | BJ9: 13.15439738 | BK9: 13.27508855 | BL9: 13.39577971 | BM9: 13.51647088 | BN9: 13.63716204 | BO9: 13.75785321 | BP9: 13.87854437 | BQ9: =1.14852629914794*BB9 -> 13.99923554 | BR9: 14.13785251 | BS9: 14.27646949 | BT9: 14.41508646 | BU9: 14.55370344 | BV9: =1.04950876638265*BQ9 -> 14.69232042 | BW9: =+BV9*BW$135/BV$135 -> 14.74110324 | BX9: =+BW9*BX$135/BW$135 -> 14.79004804 | BY9: 14.83915535 | BZ9: 14.88842571 | CA9: 14.93785966 | CB9: 14.96973598 | CC9: 15.00168032 | CD9: 15.03369283 | CE9: 15.06577365 | CF9: 15.09792293 | CG9: 15.1083616 | CH9: 15.11880748 | CI9: 15.12926059 | CJ9: 15.13972092 | CK9: 15.15018849 | CL9: 15.15373653 | CM9: 15.1572854 | CN9: 15.1608351 | CO9: 15.16438564 | CP9: 15.167937 | CQ9: 15.17331944 | CR9: 15.17870378 | CS9: 15.18409004 | CT9: 15.1894782 | CU9: 15.19486828 | CV9: 15.20316364 | CW9: 15.21146352 | CX9: 15.21976793 | CY9: 15.22807688 | CZ9: 15.23639037
A10: ='HyARC Physical Property Data'!A74 -> Electric Utility Natural Gas | B10: 2007 | C10: 1.141397159 | D10: ='HyARC Physical Property Data'!H74 -> mmBtu | E10: Feed Utility | F10: ='HyARC Physical Property Data'!$E$6 -> 47.14126905 | G10: ='HyARC Physical Property Data'!$I$6 -> 52.22466124 | H10: =((7.05463790893555/(mmBTU_to_GJ))*($C$10))*($G$10/$F$10) -> 8.455385585 | I10: =((7.05463790893555/(mmBTU_to_GJ))*($C$10))*($G$10/$F$10) -> 8.455385585 | J10: =((7.05463790893555/(mmBTU_to_GJ))*($C$10))*($G$10/$F$10) -> 8.455385585 | K10: =((7.01915979385375/(mmBTU_to_GJ))*($C$10))*($G$10/$F$10) -> 8.412863043 | L10: =((8.87161254882813/(mmBTU_to_GJ))*($C$10))*($G$10/$F$10) -> 10.63313324 | M10: =((4.55562210083008/(mmBTU_to_GJ))*($C$10))*($G$10/$F$10) -> 5.460172718 | N10: =((5.12931346893311/(mmBTU_to_GJ))*($C$10))*($G$10/$F$10) -> 6.147774518 | O10: =((5.45354604721069/(mmBTU_to_GJ))*($C$10))*($G$10/$F$10) -> 6.536385741 | P10: =((5.51876354217529/(mmBTU_to_GJ))*($C$10))*($G$10/$F$10) -> 6.614552626 | Q10: =((5.53977298736572/(mmBTU_to_GJ))*($C$10))*($G$10/$F$10) -> 6.639733643 | R10: =((5.68350362777709/(mmBTU_to_GJ))*($C$10))*($G$10/$F$10) -> 6.812003007 | S10: =((5.8920464515686/(mmBTU_to_GJ))*($C$10))*($G$10/$F$10) -> 7.061953466 | T10: =((6.08193254470825/(mmBTU_to_GJ))*($C$10))*($G$10/$F$10) -> 7.289542771 | U10: =((6.26939964294434/(mmBTU_to_GJ))*($C$10))*($G$10/$F$10) -> 7.514232772 | V10: =((6.47751331329346/(mmBTU_to_GJ))*($C$10))*($G$10/$F$10) -> 7.763668867 | W10: =((6.73541975021362/(mmBTU_to_GJ))*($C$10))*($G$10/$F$10) -> 8.07278443 | X10: =((7.02784395217896/(mmBTU_to_GJ))*($C$10))*($G$10/$F$10) -> 8.423271501 | Y10: =((7.25390911102295/(mmBTU_to_GJ))*($C$10))*($G$10/$F$10) -> 8.694223478 | Z10: =((7.3283839225769/(mmBTU_to_GJ))*($C$10))*($G$10/$F$10) -> 8.783485784 | AA10: =((7.15062761306763/(mmBTU_to_GJ))*($C$10))*($G$10/$F$10) -> 8.570434716 | AB10: =((7.19241189956665/(mmBTU_to_GJ))*($C$10))*($G$10/$F$10) -> 8.620515565 | AC10: =((7.13988399505615/(mmBTU_to_GJ))*($C$10))*($G$10/$F$10) -> 8.557557878 | AD10: =((7.28062534332275/(mmBTU_to_GJ))*($C$10))*($G$10/$F$10) -> 8.726244405 | AE10: =((7.5354790687561/(mmBTU_to_GJ))*($C$10))*($G$10/$F$10) -> 9.031701119 | AF10: =((7.86007928848267/(mmBTU_to_GJ))*($C$10))*($G$10/$F$10) -> 9.420752982 | AG10: =((8.07421207427979/(mmBTU_to_GJ))*($C$10))*($G$10/$F$10) -> 9.677403329 | AH10: =((8.33951759338379/(mmBTU_to_GJ))*($C$10))*($G$10/$F$10) -> 9.995387114 | AI10: =($BB10-$AH10)/20+AH10 -> 10.08024244 | AJ10: 10.16509777 | AK10: 10.2499531 | AL10: 10.33480843 | AM10: 10.41966376 | AN10: 10.50451908 | AO10: 10.58937441 | AP10: 10.67422974 | AQ10: 10.75908507 | AR10: 10.8439404 | AS10: 10.92879573 | AT10: 11.01365105 | AU10: 11.09850638 | AV10: 11.18336171 | AW10: 11.26821704 | AX10: 11.35307237 | AY10: 11.43792769 | AZ10: 11.52278302 | BA10: 11.60763835 | BB10: =1.16978897829057*AH10 -> 11.69249368 | BC10: 11.80826987 | BD10: 11.92404605 | BE10: 12.03982224 | BF10: 12.15559843 | BG10: 12.27137462 | BH10: 12.38715081 | BI10: 12.50292699 | BJ10: 12.61870318 | BK10: 12.73447937 | BL10: 12.85025556 | BM10: 12.96603174 | BN10: 13.08180793 | BO10: 13.19758412 | BP10: 13.31336031 | BQ10: =1.14852629914794*BB10 -> 13.42913649 | BR10: 13.56210849 | BS10: 13.69508049 | BT10: 13.82805248 | BU10: 13.96102448 | BV10: =1.04950876638265*BQ10 -> 14.09399648 | BW10: =+BV10*BW$136/BV$136 -> 14.14079269 | BX10: =+BW10*BX$136/BW$136 -> 14.18774428 | BY10: 14.23485176 | BZ10: 14.28211565 | CA10: 14.32953648 | CB10: 14.36011468 | CC10: 14.39075813 | CD10: 14.42146698 | CE10: 14.45224135 | CF10: 14.4830814 | CG10: 14.49309497 | CH10: 14.50311546 | CI10: 14.51314288 | CJ10: 14.52317723 | CK10: 14.53321852 | CL10: 14.53662207 | CM10: 14.54002642 | CN10: 14.54343156 | CO10: 14.54683751 | CP10: 14.55024425 | CQ10: 14.55540749 | CR10: 14.56057257 | CS10: 14.56573947 | CT10: 14.57090822 | CU10: 14.57607879 | CV10: 14.58403633 | CW10: 14.59199821 | CX10: 14.59996444 | CY10: 14.60793502 | CZ10: 14.61590995
A11: ='HyARC Physical Property Data'!A75 -> Bio Methane | B11: 2007 | C11: 1.141397159 | D11: ='HyARC Physical Property Data'!H75 -> mmBtu | E11: Feed Utility | F11: ='HyARC Physical Property Data'!$E$6 -> 47.14126905 | G11: ='HyARC Physical Property Data'!$I$6 -> 52.22466124 | H11: =13.11*($C$11/mmBTU_to_GJ) -> 14.18361777 | I11: 14.18361777 | J11: 14.18361777 | K11: 14.18361777 | L11: 14.18361777 | M11: 14.18361777 | N11: 14.18361777 | O11: 14.18361777 | P11: 14.18361777 | Q11: 14.18361777 | R11: 14.18361777 | S11: 14.18361777 | T11: 14.18361777 | U11: 14.18361777 | V11: 14.18361777 | W11: 14.18361777 | X11: 14.18361777 | Y11: 14.18361777 | Z11: 14.18361777 | AA11: 14.18361777 | AB11: 14.18361777 | AC11: 14.18361777 | AD11: 14.18361777 | AE11: 14.18361777 | AF11: 14.18361777 | AG11: 14.18361777 | AH11: 14.18361777 | AI11: 14.18361777 | AJ11: 14.18361777 | AK11: 14.18361777 | AL11: 14.18361777 | AM11: 14.18361777 | AN11: =13.11*($C$11/mmBTU_to_GJ) -> 14.18361777 | AO11: 14.18361777 | AP11: 14.18361777 | AQ11: 14.18361777 | AR11: 14.18361777 | AS11: 14.18361777 | AT11: 14.18361777 | AU11: 14.18361777 | AV11: 14.18361777 | AW11: 14.18361777 | AX11: 14.18361777 | AY11: 14.18361777 | AZ11: 14.18361777 | BA11: 14.18361777 | BB11: 14.18361777 | BC11: 14.18361777 | BD11: 14.18361777 | BE11: 14.18361777 | BF11: 14.18361777 | BG11: 14.18361777 | BH11: 14.18361777 | BI11: 14.18361777 | BJ11: 14.18361777 | BK11: 14.18361777 | BL11: 14.18361777 | BM11: 14.18361777 | BN11: 14.18361777 | BO11: 14.18361777 | BP11: 14.18361777 | BQ11: 14.18361777 | BR11: 14.18361777 | BS11: 14.18361777 | BT11: 14.18361777 | BU11: 14.18361777 | BV11: 14.18361777 | BW11: =+BV11*BW$136/BV$136 -> 14.23071156 | BX11: =+BW11*BX$136/BW$136 -> 14.2779617 | BY11: 14.32536873 | BZ11: 14.37293317 | CA11: 14.42065553 | CB11: 14.45142818 | CC11: 14.48226649 | CD11: 14.51317061 | CE11: 14.54414067 | CF11: 14.57517682 | CG11: 14.58525407 | CH11: 14.59533828 | CI11: 14.60542946 | CJ11: 14.61552762 | CK11: 14.62563276 | CL11: 14.62905795 | CM11: 14.63248395 | CN11: 14.63591074 | CO11: 14.63933835 | CP11: 14.64276675 | CQ11: 14.64796282 | CR11: 14.65316074 | CS11: 14.65836051 | CT11: 14.66356211 | CU11: 14.66876557 | CV11: 14.67677371 | CW11: 14.68478622 | CX11: 14.6928031 | CY11: 14.70082436 | CZ11: 14.70885
A12: ='HyARC Physical Property Data'!A85 -> Woody Biomass | B12: 2005 | C12: =VLOOKUP(ref_year,DeflatorTable,2,FALSE)/VLOOKUP(B12,DeflatorTable,2,FALSE) -> 1.208440716 | D12: =+'HyARC Physical Property Data'!$H$85 -> kg | E12: Feed | F12: ='HyARC Physical Property Data'!$E$45 -> 19.55106924 | G12: ='HyARC Physical Property Data'!$I$45 -> 20.58865638 | H12: =1.27*($C$12) -> 1.534719709 | I12: 1.534719709 | J12: 1.534719709 | K12: 1.534719709 | L12: 1.534719709 | M12: 1.534719709 | N12: 1.534719709 | O12: 1.534719709 | P12: =1.28*($C$12) -> 1.546804117 | Q12: =1.32*($C$12) -> 1.595141745 | R12: =1.32*($C$12) -> 1.595141745 | S12: =1.34*($C$12) -> 1.61931056 | T12: =1.34*($C$12) -> 1.61931056 | U12: =1.36*($C$12) -> 1.643479374 | V12: =1.36*($C$12) -> 1.643479374 | W12: =1.38*($C$12) -> 1.667648188 | X12: =1.4*($C$12) -> 1.691817003 | Y12: =1.46*($C$12) -> 1.764323446 | Z12: =1.48*($C$12) -> 1.78849226 | AA12: =1.48*($C$12) -> 1.78849226 | AB12: =1.51*($C$12) -> 1.824745481 | AC12: =1.52*($C$12) -> 1.836829889 | AD12: =1.62*($C$12) -> 1.95767396 | AE12: =1.72*($C$12) -> 2.078518032 | AF12: =1.82*($C$12) -> 2.199362103 | AG12: =1.91*($C$12) -> 2.308121768 | AH12: =2.01*($C$12) -> 2.428965839 | AI12: =2.11*($C$12) -> 2.549809911 | AJ12: =2.2*($C$12) -> 2.658569575 | AK12: =2.3*($C$12) -> 2.779413647 | AL12: =2.4*($C$12) -> 2.900257719 | AM12: =2.5*($C$12) -> 3.02110179 | AN12: =2.57*($C$12) -> 3.10569264 | AO12: =2.64*($C$12) -> 3.190283491 | AP12: =2.71*($C$12) -> 3.274874341 | AQ12: =2.78*($C$12) -> 3.359465191 | AR12: =2.85*($C$12) -> 3.444056041 | AS12: =2.92*($C$12) -> 3.528646891 | AT12: =2.99*($C$12) -> 3.613237741 | AU12: =3.07*($C$12) -> 3.709912999 | AV12: =3.14*($C$12) -> 3.794503849 | AW12: =3.21*($C$12) -> 3.879094699 | AX12: =3.28*($C$12) -> 3.963685549 | AY12: =3.35*($C$12) -> 4.048276399 | AZ12: =3.42*($C$12) -> 4.132867249 | BA12: =3.49*($C$12) -> 4.217458099 | BB12: =3.56*($C$12) -> 4.302048949 | BC12: =3.64*($C$12) -> 4.398724207 | BD12: =3.71*($C$12) -> 4.483315057 | BE12: =3.78*($C$12) -> 4.567905907 | BF12: =3.85*($C$12) -> 4.652496757 | BG12: =3.92*($C$12) -> 4.737087607 | BH12: =3.99*($C$12) -> 4.821678457 | BI12: =4.06*($C$12) -> 4.906269307 | BJ12: =4.14*($C$12) -> 5.002944565 | BK12: =4.21*($C$12) -> 5.087535415 | BL12: =4.28*($C$12) -> 5.172126265 | BM12: =4.35*($C$12) -> 5.256717115 | BN12: =4.42*($C$12) -> 5.341307965 | BO12: =4.49*($C$12) -> 5.425898815 | BP12: =4.56*($C$12) -> 5.510489666 | BQ12: =4.63*($C$12) -> 5.595080516 | BR12: =4.71*($C$12) -> 5.691755773 | BS12: =4.78*($C$12) -> 5.776346623 | BT12: =4.85*($C$12) -> 5.860937473 | BU12: =4.92*($C$12) -> 5.945528323 | BV12: =4.99*($C$12) -> 6.030119173 | BW12: =+BV12*BW$137/BV$137 -> 6.044613208 | BX12: =+BW12*BX$137/BW$137 -> 6.05914208 | BY12: 6.073705874 | BZ12: 6.088304673 | CA12: 6.102938562 | CB12: 6.115748568 | CC12: 6.128585462 | CD12: 6.1414493 | CE12: 6.15434014 | CF12: 6.167258037 | CG12: 6.183149548 | CH12: 6.199082008 | CI12: 6.215055522 | CJ12: 6.231070196 | CK12: 6.247126135 | CL12: 6.2604976 | CM12: 6.273897685 | CN12: 6.287326452 | CO12: 6.300783962 | CP12: 6.314270276 | CQ12: 6.326614173 | CR12: 6.3389822 | CS12: 6.351374406 | CT12: 6.363790838 | CU12: 6.376231543 | CV12: 6.390919363 | CW12: 6.405641018 | CX12: 6.420396584 | CY12: 6.43518614 | CZ12: 6.450009764
A13: ='HyARC Physical Property Data'!A86 -> Woody Biomass B2A | B13: 2007 | C13: =VLOOKUP(ref_year,DeflatorTable,2,FALSE)/VLOOKUP(B13,DeflatorTable,2,FALSE) -> 1.141397159 | D13: =+'HyARC Physical Property Data'!$H$86 -> kg | E13: Feed | F13: ='HyARC Physical Property Data'!$E$45 -> 19.55106924 | G13: ='HyARC Physical Property Data'!$I$45 -> 20.58865638 | H13: =3.80872262322035*($C$13) -> 4.347265181 | I13: =3.80872262322035*($C$13) -> 4.347265181 | J13: =3.80872262322035*($C$13) -> 4.347265181 | K13: =3.80872262322035*($C$13) -> 4.347265181 | L13: =3.58036841709093*($C$13) -> 4.086622339 | M13: =3.28153451771169*($C$13) -> 3.745534175 | N13: =3.05599949931226*($C$13) -> 3.488109146 | O13: =2.9206784882726*($C$13) -> 3.333654128 | P13: =2.85865635821276*($C$13) -> 3.262862245 | Q13: 3.262862245 | R13: 3.262862245 | S13: 3.262862245 | T13: 3.262862245 | U13: 3.262862245 | V13: 3.262862245 | W13: 3.262862245 | X13: 3.262862245 | Y13: 3.262862245 | Z13: 3.262862245 | AA13: 3.262862245 | AB13: 3.262862245 | AC13: 3.262862245 | AD13: 3.262862245 | AE13: 3.262862245 | AF13: 3.262862245 | AG13: 3.262862245 | AH13: 3.262862245 | AI13: 3.262862245 | AJ13: 3.262862245 | AK13: 3.262862245 | AL13: 3.262862245 | AM13: 3.262862245 | AN13: 3.262862245 | AO13: 3.262862245 | AP13: 3.262862245 | AQ13: 3.262862245 | AR13: 3.262862245 | AS13: 3.262862245 | AT13: 3.262862245 | AU13: 3.262862245 | AV13: 3.262862245 | AW13: 3.262862245 | AX13: 3.262862245 | AY13: 3.262862245 | AZ13: 3.262862245 | BA13: 3.262862245 | BB13: 3.262862245 | BC13: 3.262862245 | BD13: 3.262862245 | BE13: 3.262862245 | BF13: 3.262862245 | BG13: 3.262862245 | BH13: 3.262862245 | BI13: 3.262862245 | BJ13: 3.262862245 | BK13: 3.262862245 | BL13: 3.262862245 | BM13: 3.262862245 | BN13: 3.262862245 | BO13: 3.262862245 | BP13: 3.262862245 | BQ13: 3.262862245 | BR13: 3.262862245 | BS13: 3.262862245 | BT13: 3.262862245 | BU13: 3.262862245 | BV13: 3.262862245 | BW13: =+BV13*BW$137/BV$137 -> 3.270704883 | BX13: =+BW13*BX$137/BW$137 -> 3.27856637 | BY13: 3.286446754 | BZ13: 3.294346079 | CA13: 3.302264391 | CB13: 3.30919581 | CC13: 3.316141779 | CD13: 3.323102326 | CE13: 3.330077484 | CF13: 3.337067283 | CG13: 3.345666087 | CH13: 3.354287048 | CI13: 3.362930223 | CJ13: 3.371595669 | CK13: 3.380283444 | CL13: 3.387518665 | CM13: 3.394769373 | CN13: 3.4020356 | CO13: 3.40931738 | CP13: 3.416614747 | CQ13: 3.423293957 | CR13: 3.429986224 | CS13: 3.436691574 | CT13: 3.443410033 | CU13: 3.450141626 | CV13: 3.45808912 | CW13: 3.466054921 | CX13: 3.474039071 | CY13: 3.482041614 | CZ13: 3.49006259
A14: ='HyARC Physical Property Data'!$A$87 -> Woody Biomass MYPP | B14: 2007 | C14: =VLOOKUP(ref_year,DeflatorTable,2,FALSE)/VLOOKUP(B14,DeflatorTable,2,FALSE) -> 1.141397159 | D14: =+'HyARC Physical Property Data'!$H$87 -> kg | E14: Feed | F14: 18.608 | H14: =4.44432502149613*$C$14 -> 5.072739952 | I14: =4.44432502149613*$C$14 -> 5.072739952 | J14: 5.072739952 | K14: 5.072739952 | L14: 5.072739952 | M14: 5.072739952 | N14: 5.072739952 | O14: =N14-($N$14-$U$14)/7 -> 4.952427775 | P14: 4.832115597 | Q14: 4.71180342 | R14: 4.591491243 | S14: 4.471179065 | T14: 4.350866888 | U14: =3.70647033533964*$C$14 -> 4.23055471 | V14: =3.70647033533964*$C$14 -> 4.23055471 | W14: 4.23055471 | X14: 4.23055471 | Y14: 4.23055471 | Z14: 4.23055471 | AA14: 4.23055471 | AB14: 4.23055471 | AC14: 4.23055471 | AD14: 4.23055471 | AE14: 4.23055471 | AF14: 4.23055471 | AG14: 4.23055471 | AH14: 4.23055471 | AI14: 4.23055471 | AJ14: 4.23055471 | AK14: 4.23055471 | AL14: 4.23055471 | AM14: 4.23055471 | AN14: 4.23055471 | AO14: 4.23055471 | AP14: 4.23055471 | AQ14: 4.23055471 | AR14: 4.23055471 | AS14: 4.23055471 | AT14: 4.23055471 | AU14: 4.23055471 | AV14: 4.23055471 | AW14: 4.23055471 | AX14: 4.23055471 | AY14: 4.23055471 | AZ14: 4.23055471 | BA14: 4.23055471 | BB14: 4.23055471 | BC14: 4.23055471 | BD14: 4.23055471 | BE14: 4.23055471 | BF14: 4.23055471 | BG14: 4.23055471 | BH14: 4.23055471 | BI14: 4.23055471 | BJ14: 4.23055471 | BK14: 4.23055471 | BL14: 4.23055471 | BM14: 4.23055471 | BN14: 4.23055471 | BO14: 4.23055471 | BP14: 4.23055471 | BQ14: 4.23055471 | BR14: 4.23055471 | BS14: 4.23055471 | BT14: 4.23055471 | BU14: 4.23055471 | BV14: 4.23055471 | BW14: =+BV14*BW$137/BV$137 -> 4.240723299 | BX14: =+BW14*BX$137/BW$137 -> 4.25091633 | BY14: 4.26113386 | BZ14: 4.27137595 | CA14: 4.281642657 | CB14: 4.290629781 | CC14: 4.299635769 | CD14: 4.308660661 | CE14: 4.317704496 | CF14: 4.326767313 | CG14: 4.337916332 | CH14: 4.349094078 | CI14: 4.360300627 | CJ14: 4.371536052 | CK14: 4.382800428 | CL14: 4.392181455 | CM14: 4.401582562 | CN14: 4.411003791 | CO14: 4.420445185 | CP14: 4.429906788 | CQ14: 4.438566903 | CR14: 4.447243949 | CS14: 4.455937957 | CT14: 4.464648961 | CU14: 4.473376995 | CV14: 4.483681539 | CW14: 4.494009819 | CX14: 4.504361892 | CY14: 4.51473781 | CZ14: 4.52513763
A15: ='HyARC Physical Property Data'!A79 -> Electric Utility Steam Coal | B15: 2007 | C15: =VLOOKUP(ref_year,DeflatorTable,2,FALSE)/VLOOKUP(B15,DeflatorTable,2,FALSE) -> 1.141397159 | D15: =+'HyARC Physical Property Data'!$H$79 -> kg | E15: Feed | F15: ='HyARC Physical Property Data'!E42 -> 22.732203 | G15: ='HyARC Physical Property Data'!I42 -> 23.96761519 | H15: =1.73552525043488*($C$15/mmBTU_to_GJ*$G$15/$F$15) -> 1.979696256 | I15: =1.73552525043488*($C$15/mmBTU_to_GJ*$G$15/$F$15) -> 1.979696256 | J15: =1.73552525043488*($C$15/mmBTU_to_GJ*$G$15/$F$15) -> 1.979696256 | K15: =1.78000020980835*($C$15/mmBTU_to_GJ*$G$15/$F$15) -> 2.030428397 | L15: =1.9310736656189*($C$15/mmBTU_to_GJ*$G$15/$F$15) -> 2.202756373 | M15: =1.98230564594269*($C$15/mmBTU_to_GJ*$G$15/$F$15) -> 2.26119618 | N15: =1.86225914955139*($C$15/mmBTU_to_GJ*$G$15/$F$15) -> 2.124260345 | O15: =1.87335216999054*($C$15/mmBTU_to_GJ*$G$15/$F$15) -> 2.136914042 | P15: =1.85759365558624*($C$15/mmBTU_to_GJ*$G$15/$F$15) -> 2.118938463 | Q15: =1.88174879550934*($C$15/mmBTU_to_GJ*$G$15/$F$15) -> 2.146491989 | R15: =1.90431761741638*($C$15/mmBTU_to_GJ*$G$15/$F$15) -> 2.172236017 | S15: =1.90719401836395*($C$15/mmBTU_to_GJ*$G$15/$F$15) -> 2.175517099 | T15: =1.91704928874969*($C$15/mmBTU_to_GJ*$G$15/$F$15) -> 2.186758907 | U15: =1.92595064640045*($C$15/mmBTU_to_GJ*$G$15/$F$15) -> 2.196912597 | V15: =1.94080138206482*($C$15/mmBTU_to_GJ*$G$15/$F$15) -> 2.213852682 | W15: =1.94636797904968*($C$15/mmBTU_to_GJ*$G$15/$F$15) -> 2.220202443 | X15: =1.95628917217255*($C$15/mmBTU_to_GJ*$G$15/$F$15) -> 2.231519449 | Y15: =1.96225011348724*($C$15/mmBTU_to_GJ*$G$15/$F$15) -> 2.238319035 | Z15: =1.97535526752472*($C$15/mmBTU_to_GJ*$G$15/$F$15) -> 2.253267953 | AA15: =1.98115420341492*($C$15/mmBTU_to_GJ*$G$15/$F$15) -> 2.259882741 | AB15: =1.98549652099609*($C$15/mmBTU_to_GJ*$G$15/$F$15) -> 2.264835979 | AC15: =1.98988306522369*($C$15/mmBTU_to_GJ*$G$15/$F$15) -> 2.269839666 | AD15: =1.99634909629822*($C$15/mmBTU_to_GJ*$G$15/$F$15) -> 2.277215403 | AE15: =2.00744533538818*($C$15/mmBTU_to_GJ*$G$15/$F$15) -> 2.289872772 | AF15: =2.02021908760071*($C$15/mmBTU_to_GJ*$G$15/$F$15) -> 2.304443663 | AG15: =2.03361201286316*($C$15/mmBTU_to_GJ*$G$15/$F$15) -> 2.319720838 | AH15: =2.04451942443848*($C$15/mmBTU_to_GJ*$G$15/$F$15) -> 2.332162813 | AI15: =(($BB$15-$AH$15)/20+AH15) -> 2.337290945 | AJ15: =(($BB$15-$AH$15)/20+AI15) -> 2.342419076 | AK15: 2.347547208 | AL15: 2.352675339 | AM15: 2.357803471 | AN15: 2.362931602 | AO15: 2.368059734 | AP15: 2.373187865 | AQ15: 2.378315997 | AR15: 2.383444128 | AS15: 2.38857226 | AT15: 2.393700391 | AU15: 2.398828522 | AV15: 2.403956654 | AW15: 2.409084785 | AX15: 2.414212917 | AY15: 2.419341048 | AZ15: 2.42446918 | BA15: 2.429597311 | BB15: =(1.04397747398165*AH15) -> 2.434725443 | BC15: =(($BQ$15-$BB$15)/15+BB15) -> 2.439343082 | BD15: =(($BQ$15-$BB$15)/15+BC15) -> 2.44396072 | BE15: 2.448578359 | BF15: 2.453195998 | BG15: 2.457813637 | BH15: 2.462431275 | BI15: 2.467048914 | BJ15: 2.471666553 | BK15: 2.476284192 | BL15: 2.48090183 | BM15: 2.485519469 | BN15: 2.490137108 | BO15: 2.494754746 | BP15: 2.499372385 | BQ15: =(1.02844862093285*BB15) -> 2.503990024 | BR15: =(($BV$15-$BQ$15)/5+BQ15) -> 2.508739028 | BS15: =(($BV$15-$BQ$15)/5+BR15) -> 2.513488032 | BT15: =(($BV$15-$BQ$15)/5+BS15) -> 2.518237037 | BU15: =(($BV$15-$BQ$15)/5+BT15) -> 2.522986041 | BV15: =(1.00948287364428*BQ15) -> 2.527735045 | BW15: =+BV15*BW$138/BV$138 -> 2.536281204 | BX15: =+BW15*BX$138/BW$138 -> 2.544856257 | BY15: 2.553460302 | BZ15: 2.562093437 | CA15: 2.570755761 | CB15: 2.578116238 | CC15: 2.58549779 | CD15: 2.592900476 | CE15: 2.600324357 | CF15: 2.607769494 | CG15: 2.613453863 | CH15: 2.619150624 | CI15: 2.624859802 | CJ15: 2.630581425 | CK15: 2.63631552 | CL15: 2.640202758 | CM15: 2.644095728 | CN15: 2.647994438 | CO15: 2.651898897 | CP15: 2.655809112 | CQ15: 2.657118582 | CR15: 2.658428698 | CS15: 2.65973946 | CT15: 2.661050868 | CU15: 2.662362923 | CV15: 2.660477217 | CW15: 2.658592847 | CX15: 2.656709812 | CY15: 2.654828111 | CZ15: 2.652947742
A16: ='HyARC Physical Property Data'!A76 -> Commercial Electricity | B16: 2007 | C16: 1.141397159 | D16: ='HyARC Physical Property Data'!$H$76 -> kWh | E16: Feed Utility Byprod | H16: =(28.3762531280518/(mmBTU_to_GJ))*($C$16) -> 30.7000708 | I16: =(28.3762531280518/(mmBTU_to_GJ))*($C$16) -> 30.7000708 | J16: =(28.3762531280518/(mmBTU_to_GJ))*($C$16) -> 30.7000708 | K16: =(28.0297355651855/(mmBTU_to_GJ))*($C$16) -> 30.32517586 | L16: =(29.057315826416/(mmBTU_to_GJ))*($C$16) -> 31.4369078 | M16: =(27.6067714691162/(mmBTU_to_GJ))*($C$16) -> 29.86757395 | N16: =(24.8355846405029/(mmBTU_to_GJ))*($C$16) -> 26.86944621 | O16: =(25.5812511444092/(mmBTU_to_GJ))*($C$16) -> 27.67617761 | P16: =(25.4402256011963/(mmBTU_to_GJ))*($C$16) -> 27.52360305 | Q16: =(25.4701290130615/(mmBTU_to_GJ))*($C$16) -> 27.55595535 | R16: =(25.6722831726074/(mmBTU_to_GJ))*($C$16) -> 27.77466453 | S16: =(25.7632827758789/(mmBTU_to_GJ))*($C$16) -> 27.87311636 | T16: =(26.1006698608398/(mmBTU_to_GJ))*($C$16) -> 28.2381331 | U16: =(26.4680442810059/(mmBTU_to_GJ))*($C$16) -> 28.63559293 | V16: =(26.885612487793/(mmBTU_to_GJ))*($C$16) -> 29.08735707 | W16: =(27.1694507598877/(mmBTU_to_GJ))*($C$16) -> 29.39443972 | X16: =(27.6201095581055/(mmBTU_to_GJ))*($C$16) -> 29.88200434 | Y16: =(28.0024471282958/(mmBTU_to_GJ))*($C$16) -> 30.29565269 | Z16: =(28.2454071044922/(mmBTU_to_GJ))*($C$16) -> 30.5585094 | AA16: =(28.1863746643066/(mmBTU_to_GJ))*($C$16) -> 30.49464262 | AB16: =(28.2032489776611/(mmBTU_to_GJ))*($C$16) -> 30.51289882 | AC16: =(28.1397113800049/(mmBTU_to_GJ))*($C$16) -> 30.44415793 | AD16: =(28.178466796875/(mmBTU_to_GJ))*($C$16) -> 30.48608715 | AE16: =(28.4951820373535/(mmBTU_to_GJ))*($C$16) -> 30.82873916 | AF16: =(28.9155654907227/(mmBTU_to_GJ))*($C$16) -> 31.2835491 | AG16: =(29.2894115447998/(mmBTU_to_GJ))*($C$16) -> 31.68801054 | AH16: =(29.6516952514648/(mmBTU_to_GJ))*($C$16) -> 32.07996276 | AI16: =($BB16-$AH16)/20+AH16 -> 32.07050429 | AJ16: 32.06104582 | AK16: 32.05158734 | AL16: 32.04212887 | AM16: 32.03267039 | AN16: 32.02321192 | AO16: 32.01375345 | AP16: 32.00429497 | AQ16: 31.9948365 | AR16: 31.98537802 | AS16: 31.97591955 | AT16: 31.96646108 | AU16: 31.9570026 | AV16: 31.94754413 | AW16: 31.93808566 | AX16: 31.92862718 | AY16: 31.91916871 | AZ16: 31.90971023 | BA16: 31.90025176 | BB16: =0.994103189054944*AH16 -> 31.89079329 | BC16: =($BQ16-$BB16)/15+BB16 -> 31.91105183 | BD16: 31.93131038 | BE16: 31.95156892 | BF16: 31.97182747 | BG16: 31.99208602 | BH16: 32.01234456 | BI16: 32.03260311 | BJ16: 32.05286165 | BK16: 32.0731202 | BL16: 32.09337875 | BM16: 32.11363729 | BN16: 32.13389584 | BO16: 32.15415438 | BP16: 32.17441293 | BQ16: =1.00952871208344*BB16 -> 32.19467147 | BR16: =($BV16-$BQ16)/5+BQ16 -> 32.21512306 | BS16: 32.23557464 | BT16: 32.25602623 | BU16: 32.27647781 | BV16: =1.00317623736115*BQ16 -> 32.29692939 | BW16: =+BV16*BW$139/BV$139 -> 32.28270893 | BX16: =+BW16*BX$139/BW$139 -> 32.26849473 | BY16: 32.25428679 | BZ16: 32.24008511 | CA16: 32.22588968 | CB16: 32.20007725 | CC16: 32.17428549 | CD16: 32.14851439 | CE16: 32.12276393 | CF16: 32.0970341 | CG16: 32.06158981 | CH16: 32.02618466 | CI16: 31.99081862 | CJ16: 31.95549162 | CK16: 31.92020364 | CL16: 31.88173112 | CM16: 31.84330496 | CN16: 31.80492512 | CO16: 31.76659154 | CP16: 31.72830416 | CQ16: 31.68395737 | CR16: 31.63967257 | CS16: 31.59544967 | CT16: 31.55128857 | CU16: 31.5071892 | CV16: 31.46414037 | CW16: 31.42115035 | CX16: 31.37821907 | CY16: 31.33534645 | CZ16: 31.29253241
A17: ='HyARC Physical Property Data'!A77 -> Industrial Electricity | B17: 2007 | C17: 1.141397159 | D17: ='HyARC Physical Property Data'!$H$77 -> kWh | E17: Feed Utility Byprod | H17: =(18.4008941650391/(mmBTU_to_GJ))*($C$17) -> 19.90779936 | I17: =(18.4008941650391/(mmBTU_to_GJ))*($C$17) -> 19.90779936 | J17: =(18.4008941650391/(mmBTU_to_GJ))*($C$17) -> 19.90779936 | K17: =(18.6226921081543/(mmBTU_to_GJ))*($C$17) -> 20.14776101 | L17: =(20.3344097137451/(mmBTU_to_GJ))*($C$17) -> 21.99965637 | M17: =(19.1594867706299/(mmBTU_to_GJ))*($C$17) -> 20.72851542 | N17: =(16.8281726837158/(mmBTU_to_GJ))*($C$17) -> 18.20628293 | O17: =(17.2643089294434/(mmBTU_to_GJ))*($C$17) -> 18.6781357 | P17: =(17.1560707092285/(mmBTU_to_GJ))*($C$17) -> 18.56103352 | Q17: =(17.0836048126221/(mmBTU_to_GJ))*($C$17) -> 18.48263317 | R17: =(17.1988334655762/(mmBTU_to_GJ))*($C$17) -> 18.60729825 | S17: =(17.3181438446045/(mmBTU_to_GJ))*($C$17) -> 18.73637932 | T17: =(17.6150741577148/(mmBTU_to_GJ))*($C$17) -> 19.05762616 | U17: =(17.9101543426514/(mmBTU_to_GJ))*($C$17) -> 19.37687136 | V17: =(18.2101707458496/(mmBTU_to_GJ))*($C$17) -> 19.70145702 | W17: =(18.456880569458/(mmBTU_to_GJ))*($C$17) -> 19.96837066 | X17: =(18.8030014038086/(mmBTU_to_GJ))*($C$17) -> 20.34283638 | Y17: =(19.0852069854736/(mmBTU_to_GJ))*($C$17) -> 20.64815263 | Z17: =(19.30615234375/(mmBTU_to_GJ))*($C$17) -> 20.88719188 | AA17: =(19.3043308258057/(mmBTU_to_GJ))*($C$17) -> 20.88522119 | AB17: =(19.3253479003906/(mmBTU_to_GJ))*($C$17) -> 20.90795942 | AC17: =(19.3248138427734/(mmBTU_to_GJ))*($C$17) -> 20.90738163 | AD17: =(19.3542194366455/(mmBTU_to_GJ))*($C$17) -> 20.93919533 | AE17: =(19.6148834228516/(mmBTU_to_GJ))*($C$17) -> 21.22120589 | AF17: =(19.97239112854/(mmBTU_to_GJ))*($C$17) -> 21.60799099 | AG17: =(20.29469871521/(mmBTU_to_GJ))*($C$17) -> 21.95669332 | AH17: =(20.5609893798828/(mmBTU_to_GJ))*($C$17) -> 22.24479134 | AI17: 22.23823267 | AJ17: 22.231674 | AK17: 22.22511534 | AL17: 22.21855667 | AM17: 22.21199801 | AN17: 22.20543934 | AO17: 22.19888067 | AP17: 22.19232201 | AQ17: 22.18576334 | AR17: 22.17920467 | AS17: 22.17264601 | AT17: 22.16608734 | AU17: 22.15952867 | AV17: 22.15297001 | AW17: 22.14641134 | AX17: 22.13985267 | AY17: 22.13329401 | AZ17: 22.12673534 | BA17: 22.12017667 | BB17: =0.994103189054944*AH17 -> 22.11361801 | BC17: 22.12766563 | BD17: 22.14171325 | BE17: 22.15576087 | BF17: 22.16980849 | BG17: 22.18385611 | BH17: 22.19790373 | BI17: 22.21195135 | BJ17: 22.22599897 | BK17: 22.24004659 | BL17: 22.25409421 | BM17: 22.26814183 | BN17: 22.28218945 | BO17: 22.29623707 | BP17: 22.31028469 | BQ17: =1.00952871208344*BB17 -> 22.32433231 | BR17: 22.33851378 | BS17: 22.35269526 | BT17: 22.36687673 | BU17: 22.38105821 | BV17: =1.00317623736115*BQ17 -> 22.39523969 | BW17: =+BV17*BW$140/BV$140 -> 22.40200662 | BX17: =+BW17*BX$140/BW$140 -> 22.40877561 | BY17: 22.41554663 | BZ17: 22.42231971 | CA17: 22.42909483 | CB17: 22.42655827 | CC17: 22.424022 | CD17: 22.42148601 | CE17: 22.41895032 | CF17: 22.41641491 | CG17: 22.40624662 | CH17: 22.39608295 | CI17: 22.38592389 | CJ17: 22.37576943 | CK17: 22.36561959 | CL17: 22.35316781 | CM17: 22.34072296 | CN17: 22.32828505 | CO17: 22.31585406 | CP17: 22.30342998 | CQ17: 22.28640839 | CR17: 22.26939978 | CS17: 22.25240416 | CT17: 22.23542151 | CU17: 22.21845181 | CV17: 22.20249708 | CW17: 22.18655381 | CX17: 22.17062199 | CY17: 22.15470161 | CZ17: 22.13879265
A18: ='HyARC Physical Property Data'!A78 -> Residential Electricity | B18: 2007 | C18: 1.141397159 | D18: ='HyARC Physical Property Data'!$H$78 -> kWh | E18: Feed Utility Byprod | H18: =(31.2067794799805/(mmBTU_to_GJ))*($C$18) -> 33.76239757 | I18: =(31.2067794799805/(mmBTU_to_GJ))*($C$18) -> 33.76239757 | J18: =(31.2067794799805/(mmBTU_to_GJ))*($C$18) -> 33.76239757 | K18: =(31.181957244873/(mmBTU_to_GJ))*($C$18) -> 33.73554257 | L18: =(31.772819519043/(mmBTU_to_GJ))*($C$18) -> 34.37479235 | M18: =(30.736837387085/(mmBTU_to_GJ))*($C$18) -> 33.25397049 | N18: =(28.6163578033447/(mmBTU_to_GJ))*($C$18) -> 30.95983838 | O18: =(29.8736190795898/(mmBTU_to_GJ))*($C$18) -> 32.32006061 | P18: =(30.101655960083/(mmBTU_to_GJ))*($C$18) -> 32.56677212 | Q18: =(30.4253902435303/(mmBTU_to_GJ))*($C$18) -> 32.91701799 | R18: =(30.7938537597656/(mmBTU_to_GJ))*($C$18) -> 33.31565611 | S18: =(30.8830280303955/(mmBTU_to_GJ))*($C$18) -> 33.41213313 | T18: =(31.1491451263428/(mmBTU_to_GJ))*($C$18) -> 33.70004336 | U18: =(31.4898681640625/(mmBTU_to_GJ))*($C$18) -> 34.06866925 | V18: =(31.8156299591064/(mmBTU_to_GJ))*($C$18) -> 34.42110867 | W18: =(32.0206985473633/(mmBTU_to_GJ))*($C$18) -> 34.64297094 | X18: =(32.4303588867188/(mmBTU_to_GJ))*($C$18) -> 35.08617961 | Y18: =(32.7907905578613/(mmBTU_to_GJ))*($C$18) -> 35.47612813 | Z18: =(32.9940071105957/(mmBTU_to_GJ))*($C$18) -> 35.69598671 | AA18: =(32.9234657287598/(mmBTU_to_GJ))*($C$18) -> 35.61966848 | AB18: =(32.9201545715332/(mmBTU_to_GJ))*($C$18) -> 35.61608616 | AC18: =(32.902271270752/(mmBTU_to_GJ))*($C$18) -> 35.59673834 | AD18: =(32.9582405090332/(mmBTU_to_GJ))*($C$18) -> 35.65729107 | AE18: =(33.321102142334/(mmBTU_to_GJ))*($C$18) -> 36.04986854 | AF18: =(33.7343635559082/(mmBTU_to_GJ))*($C$18) -> 36.49697319 | AG18: =(34.1495399475098/(mmBTU_to_GJ))*($C$18) -> 36.94614964 | AH18: =(34.4904899597167/(mmBTU_to_GJ))*($C$18) -> 37.31502109 | AI18: 37.30401911 | AJ18: 37.29301712 | AK18: 37.28201514 | AL18: 37.27101316 | AM18: 37.26001118 | AN18: 37.2490092 | AO18: 37.23800722 | AP18: 37.22700524 | AQ18: 37.21600326 | AR18: 37.20500127 | AS18: 37.19399929 | AT18: 37.18299731 | AU18: 37.17199533 | AV18: 37.16099335 | AW18: 37.14999137 | AX18: 37.13898939 | AY18: 37.12798741 | AZ18: 37.11698542 | BA18: 37.10598344 | BB18: =0.994103189054944*AH18 -> 37.09498146 | BC18: 37.11854596 | BD18: 37.14211045 | BE18: 37.16567494 | BF18: 37.18923944 | BG18: 37.21280393 | BH18: 37.23636842 | BI18: 37.25993291 | BJ18: 37.28349741 | BK18: 37.3070619 | BL18: 37.33062639 | BM18: 37.35419089 | BN18: 37.37775538 | BO18: 37.40131987 | BP18: 37.42488437 | BQ18: =1.00952871208344*BB18 -> 37.44844886 | BR18: 37.47223789 | BS18: 37.49602693 | BT18: 37.51981596 | BU18: 37.54360499 | BV18: =1.00317623736115*BQ18 -> 37.56739402 | BW18: =+BV18*BW$141/BV$141 -> 37.55085296 | BX18: =+BW18*BX$141/BW$141 -> 37.53431918 | BY18: 37.51779267 | BZ18: 37.50127345 | CA18: 37.4847615 | CB18: 37.45473679 | CC18: 37.42473613 | CD18: 37.3947595 | CE18: 37.36480688 | CF18: 37.33487825 | CG18: 37.29364989 | CH18: 37.25246706 | CI18: 37.2113297 | CJ18: 37.17023778 | CK18: 37.12919123 | CL18: 37.08444045 | CM18: 37.03974362 | CN18: 36.99510066 | CO18: 36.9505115 | CP18: 36.90597609 | CQ18: 36.85439245 | CR18: 36.80288091 | CS18: 36.75144137 | CT18: 36.70007372 | CU18: 36.64877787 | CV18: 36.598704 | CW18: 36.54869853 | CX18: 36.49876139 | CY18: 36.44889248 | CZ18: 36.39909171
A22: AEO_2013_Reference_Case | B22: ="Prices are in $(" & ref_year&")/GJ LHV" -> Prices are in $(2016)/GJ LHV | AS22: Except as noted,values are extrapolated based on PNNL mini-CAM model (see AEO Data tab)
A23: Year | B23: Source Data Year | C23: Reference year Conversion | D23: Display Units | E23: Use Category | F23: LHV (MJ/kg) | G23: HHV (MJ/kg) | H23: 2004 | I23: 2005 | J23: 2006 | K23: 2007 | L23: 2008 | M23: 2009 | N23: 2010 | O23: 2011 | P23: 2012 | Q23: 2013 | R23: 2014 | S23: 2015 | T23: 2016 | U23: 2017 | V23: 2018 | W23: 2019 | X23: 2020 | Y23: 2021 | Z23: 2022 | AA23: 2023 | AB23: 2024 | AC23: 2025 | AD23: 2026 | AE23: 2027 | AF23: 2028 | AG23: 2029 | AH23: 2030 | AI23: 2031 | AJ23: 2032 | AK23: 2033 | AL23: 2034 | AM23: 2035 | AN23: 2036 | AO23: 2037 | AP23: 2038 | AQ23: 2039 | AR23: 2040 | AS23: 2041 | AT23: 2042 | AU23: 2043 | AV23: 2044 | AW23: 2045 | AX23: 2046 | AY23: 2047 | AZ23: 2048 | BA23: 2049 | BB23: 2050 | BC23: 2051 | BD23: 2052 | BE23: 2053 | BF23: 2054 | BG23: 2055 | BH23: 2056 | BI23: 2057 | BJ23: 2058 | BK23: 2059 | BL23: 2060 | BM23: 2061 | BN23: 2062 | BO23: 2063 | BP23: 2064 | BQ23: 2065 | BR23: 2066 | BS23: 2067 | BT23: 2068 | BU23: 2069 | BV23: 2070 | BW23: =+BV23+1 -> 2071 | BX23: =+BW23+1 -> 2072 | BY23: =+BX23+1 -> 2073 | BZ23: =+BY23+1 -> 2074 | CA23: =+BZ23+1 -> 2075 | CB23: =+CA23+1 -> 2076 | CC23: =+CB23+1 -> 2077 | CD23: =+CC23+1 -> 2078 | CE23: =+CD23+1 -> 2079 | CF23: =+CE23+1 -> 2080 | CG23: =+CF23+1 -> 2081 | CH23: =+CG23+1 -> 2082 | CI23: =+CH23+1 -> 2083 | CJ23: =+CI23+1 -> 2084 | CK23: =+CJ23+1 -> 2085 | CL23: =+CK23+1 -> 2086 | CM23: =+CL23+1 -> 2087 | CN23: =+CM23+1 -> 2088 | CO23: =+CN23+1 -> 2089 | CP23: =+CO23+1 -> 2090 | CQ23: =+CP23+1 -> 2091 | CR23: =+CQ23+1 -> 2092 | CS23: =+CR23+1 -> 2093 | CT23: =+CS23+1 -> 2094 | CU23: =+CT23+1 -> 2095 | CV23: =+CU23+1 -> 2096 | CW23: =+CV23+1 -> 2097 | CX23: =+CW23+1 -> 2098 | CY23: =+CX23+1 -> 2099 | CZ23: =+CY23+1 -> 2100
A24: Feedstock Type
A25: ='HyARC Physical Property Data'!A73 -> Residential Natural Gas | B25: 2011 | C25: =VLOOKUP(ref_year,DeflatorTable,2,FALSE)/VLOOKUP(B25,DeflatorTable,2,FALSE) -> 1.077176781 | D25: ='HyARC Physical Property Data'!H73 -> mmBtu | E25: Feed Utility | F25: ='HyARC Physical Property Data'!$E$6 -> 47.14126905 | G25: ='HyARC Physical Property Data'!$I$6 -> 52.22466124 | H25: 14.38614184 | I25: 14.38614184 | J25: 14.38614184 | K25: 13.32671663 | L25: 13.62776448 | M25: 11.25433973 | N25: =((N42/(mmBTU_to_GJ))*($C25))*($G25/$F25) -> 12.84882003 | O25: 12.21875196 | P25: 11.8364762 | Q25: 11.85177348 | R25: 11.59792741 | S25: 11.48775061 | T25: 12.06088712 | U25: 12.43158699 | V25: 12.89196662 | W25: 13.14916873 | X25: 13.32035025 | Y25: 13.52820496 | Z25: 13.80326632 | AA25: 14.06239359 | AB25: 14.2346214 | AC25: 14.33618924 | AD25: 14.52574581 | AE25: 14.62921732 | AF25: 14.80136708 | AG25: 14.9696846 | AH25: 15.12194813 | AI25: 15.32339052 | AJ25: 15.52101763 | AK25: 15.76317697 | AL25: 16.11725841 | AM25: 16.51303296 | AN25: 16.99361893 | AO25: 17.43723535 | AP25: 17.91952253 | AQ25: 18.16100092 | AR25: 18.50860784 | AS25: =($BB25-$AR25)/10+AR25 -> 18.5158394 | AT25: =($BB25-$AR25)/10+AS25 -> 18.52307095 | AU25: 18.53030251 | AV25: 18.53753407 | AW25: 18.54476563 | AX25: 18.55199719 | AY25: 18.55922875 | AZ25: 18.56646031 | BA25: 18.57369187 | BB25: ='AEO Data'!$B$30*AM25 -> 18.58092342 | BC25: =($BQ25-$BB25)/15+BB25 -> 18.73232694 | BD25: =($BQ25-$BB25)/15+BC25 -> 18.88373045 | BE25: 19.03513396 | BF25: 19.18653747 | BG25: 19.33794098 | BH25: 19.48934449 | BI25: 19.64074801 | BJ25: 19.79215152 | BK25: 19.94355503 | BL25: 20.09495854 | BM25: 20.24636205 | BN25: 20.39776557 | BO25: 20.54916908 | BP25: 20.70057259 | BQ25: ='AEO Data'!$C$30*BB25 -> 20.8519761 | BR25: =($BV25-$BQ25)/5+BQ25 -> 20.97116327 | BS25: =($BV25-$BQ25)/5+BR25 -> 21.09035045 | BT25: =($BV25-$BQ25)/5+BS25 -> 21.20953762 | BU25: =($BV25-$BQ25)/5+BT25 -> 21.32872479 | BV25: ='AEO Data'!$D$30*BQ25 -> 21.44791196 | BW25: =+BV25*BW$133/BV$133 -> 21.51912534 | BX25: =+BW25*BX$133/BW$133 -> 21.59057516 | BY25: 21.66226222 | BZ25: 21.7341873 | CA25: 21.80635119 | CB25: 21.85288438 | CC25: 21.89951687 | CD25: 21.94624886 | CE25: 21.99308058 | CF25: 22.04001224 | CG25: 22.05525065 | CH25: 22.0704996 | CI25: 22.08575909 | CJ25: 22.10102913 | CK25: 22.11630973 | CL25: 22.12148917 | CM25: 22.12666983 | CN25: 22.1318517 | CO25: 22.13703478 | CP25: 22.14221908 | CQ25: 22.15007638 | CR25: 22.15793647 | CS25: 22.16579935 | CT25: 22.17366502 | CU25: 22.18153348 | CV25: 22.19364307 | CW25: 22.20575928 | CX25: 22.2178821 | CY25: 22.23001153 | CZ25: 22.24214759
A26: ='HyARC Physical Property Data'!A71 -> Commercial Natural Gas | B26: 2011 | C26: =VLOOKUP(ref_year,DeflatorTable,2,FALSE)/VLOOKUP(B26,DeflatorTable,2,FALSE) -> 1.077176781 | D26: ='HyARC Physical Property Data'!H71 -> mmBtu | E26: Feed Utility | F26: ='HyARC Physical Property Data'!$E$6 -> 47.14126905 | G26: ='HyARC Physical Property Data'!$I$6 -> 52.22466124 | H26: 12.49183679 | I26: 12.49183679 | J26: 12.49183679 | K26: 11.54020185 | L26: 11.90663327 | M26: 9.353676585 | N26: =((N43/(mmBTU_to_GJ))*($C26))*($G26/$F26) -> 10.62911136 | O26: 9.995554915 | P26: 9.131305306 | Q26: 9.572372184 | R26: 9.315073935 | S26: 9.167010257 | T26: 9.683566988 | U26: 9.981902291 | V26: 10.37495423 | W26: 10.57689884 | X26: 10.70947295 | Y26: 10.87113383 | Z26: 11.10667837 | AA26: 11.32432406 | AB26: 11.46166471 | AC26: 11.53025134 | AD26: 11.6907415 | AE26: 11.75010158 | AF26: 11.87677124 | AG26: 11.99589859 | AH26: 12.09984631 | AI26: 12.25276249 | AJ26: 12.39097524 | AK26: 12.57634101 | AL26: 12.87600538 | AM26: 13.21336208 | AN26: 13.64254993 | AO26: 14.02736845 | AP26: 14.45744083 | AQ26: 14.64675987 | AR26: 14.94540736 | AS26: =($BB26-$AR26)/10+AR26 -> 14.93767083 | AT26: 14.92993431 | AU26: 14.92219778 | AV26: 14.91446125 | AW26: 14.90672472 | AX26: 14.89898819 | AY26: 14.89125167 | AZ26: 14.88351514 | BA26: 14.87577861 | BB26: ='AEO Data'!$B$30*AM26 -> 14.86804208 | BC26: =($BQ26-$BB26)/15+BB26 -> 14.98919181 | BD26: 15.11034153 | BE26: 15.23149126 | BF26: 15.35264099 | BG26: 15.47379071 | BH26: 15.59494044 | BI26: 15.71609017 | BJ26: 15.83723989 | BK26: 15.95838962 | BL26: 16.07953934 | BM26: 16.20068907 | BN26: 16.3218388 | BO26: 16.44298852 | BP26: 16.56413825 | BQ26: ='AEO Data'!$C$30*BB26 -> 16.68528798 | BR26: =($BV26-$BQ26)/5+BQ26 -> 16.7806589 | BS26: 16.87602983 | BT26: 16.97140076 | BU26: 17.06677168 | BV26: ='AEO Data'!$D$30*BQ26 -> 17.16214261 | BW26: =+BV26*BW$134/BV$134 -> 17.21912597 | BX26: =+BW26*BX$134/BW$134 -> 17.27629853 | BY26: 17.33366092 | BZ26: 17.39121377 | CA26: 17.44895772 | CB26: 17.48619254 | CC26: 17.52350682 | CD26: 17.56090073 | CE26: 17.59837443 | CF26: 17.6359281 | CG26: 17.64812153 | CH26: 17.6603234 | CI26: 17.67253371 | CJ26: 17.68475245 | CK26: 17.69697965 | CL26: 17.70112413 | CM26: 17.70526957 | CN26: 17.70941599 | CO26: 17.71356338 | CP26: 17.71771174 | CQ26: 17.72399898 | CR26: 17.73028845 | CS26: 17.73658015 | CT26: 17.74287408 | CU26: 17.74917025 | CV26: 17.75886007 | CW26: 17.76855519 | CX26: 17.7782556 | CY26: 17.78796131 | CZ26: 17.79767231
A27: ='HyARC Physical Property Data'!A72 -> Industrial Natural Gas | B27: 2011 | C27: =VLOOKUP(ref_year,DeflatorTable,2,FALSE)/VLOOKUP(B27,DeflatorTable,2,FALSE) -> 1.077176781 | D27: ='HyARC Physical Property Data'!H72 -> mmBtu | E27: Feed Utility | F27: ='HyARC Physical Property Data'!$E$6 -> 47.14126905 | G27: ='HyARC Physical Property Data'!$I$6 -> 52.22466124 | H27: 8.352400601 | I27: 8.352400601 | J27: 8.352400601 | K27: 7.891606632 | L27: 9.242029801 | M27: 5.091378565 | N27: =((N44/(mmBTU_to_GJ))*($C27))*($G27/$F27) -> 6.203019753 | O27: 5.530967882 | P27: 4.252658028 | Q27: 4.902262812 | R27: 4.948711146 | S27: 5.002420142 | T27: 5.504073229 | U27: 5.73245212 | V27: 6.018983049 | W27: 6.164378413 | X27: 6.254431443 | Y27: 6.380293487 | Z27: 6.591915958 | AA27: 6.798831837 | AB27: 6.911156631 | AC27: 6.957747485 | AD27: 7.076018579 | AE27: 7.120308735 | AF27: 7.235531459 | AG27: 7.336732813 | AH27: 7.421828142 | AI27: 7.552074409 | AJ27: 7.658968692 | AK27: 7.82282055 | AL27: 8.108724838 | AM27: 8.421661776 | AN27: 8.837676596 | AO27: 9.222772237 | AP27: 9.613301781 | AQ27: 9.772181233 | AR27: 10.04558664 | AS27: =($BB27-$AR27)/10+AR27 -> 9.988656753 | AT27: 9.931726868 | AU27: 9.874796983 | AV27: 9.817867097 | AW27: 9.760937212 | AX27: 9.704007326 | AY27: 9.647077441 | AZ27: 9.590147556 | BA27: 9.53321767 | BB27: ='AEO Data'!$B$30*AM27 -> 9.476287785 | BC27: 9.553503713 | BD27: 9.630719641 | BE27: 9.70793557 | BF27: 9.785151498 | BG27: 9.862367426 | BH27: 9.939583354 | BI27: 10.01679928 | BJ27: 10.09401521 | BK27: 10.17123114 | BL27: 10.24844707 | BM27: 10.325663 | BN27: 10.40287892 | BO27: 10.48009485 | BP27: 10.55731078 | BQ27: ='AEO Data'!$C$30*BB27 -> 10.63452671 | BR27: 10.69531227 | BS27: 10.75609784 | BT27: 10.81688341 | BU27: 10.87766897 | BV27: ='AEO Data'!$D$30*BQ27 -> 10.93845454 | BW27: =+BV27*BW$135/BV$135 -> 10.97477342 | BX27: =+BW27*BX$135/BW$135 -> 11.0112129 | BY27: 11.04777336 | BZ27: 11.08445522 | CA27: 11.12125887 | CB27: 11.14499084 | CC27: 11.16877345 | CD27: 11.19260681 | CE27: 11.21649103 | CF27: 11.24042622 | CG27: 11.24819782 | CH27: 11.2559748 | CI27: 11.26375715 | CJ27: 11.27154488 | CK27: 11.279338 | CL27: 11.28197952 | CM27: 11.28462166 | CN27: 11.28726442 | CO27: 11.2899078 | CP27: 11.2925518 | CQ27: 11.29655903 | CR27: 11.30056768 | CS27: 11.30457776 | CT27: 11.30858925 | CU27: 11.31260218 | CV27: 11.31877808 | CW27: 11.32495735 | CX27: 11.33114 | CY27: 11.33732603 | CZ27: 11.34351543
A28: ='HyARC Physical Property Data'!A74 -> Electric Utility Natural Gas | B28: 2011 | C28: 1.077176781 | D28: ='HyARC Physical Property Data'!H74 -> mmBtu | E28: Feed Utility | F28: ='HyARC Physical Property Data'!$E$6 -> 47.14126905 | G28: ='HyARC Physical Property Data'!$I$6 -> 52.22466124 | H28: 7.407925909 | I28: 7.407925909 | J28: 7.407925909 | K28: 7.370671092 | L28: 9.31589251 | M28: 4.783762318 | N28: =((N45/(mmBTU_to_GJ))*($C28))*($G28/$F28) -> 5.947618392 | O28: 5.40077704 | P28: 3.757306414 | Q28: 4.20271227 | R28: 4.250998675 | S28: 4.345845393 | T28: 4.84415715 | U28: 5.03198537 | V28: 5.319219856 | W28: 5.454525625 | X28: 5.538824645 | Y28: 5.663994443 | Z28: 5.8844849 | AA28: 6.095355176 | AB28: 6.241449573 | AC28: 6.309346214 | AD28: 6.457349942 | AE28: 6.516127489 | AF28: 6.636107706 | AG28: 6.747155465 | AH28: 6.846502912 | AI28: 6.994489674 | AJ28: 7.118342847 | AK28: 7.291059297 | AL28: 7.576638953 | AM28: 7.895725793 | AN28: 8.308275991 | AO28: 8.681292396 | AP28: 9.073826285 | AQ28: 9.224274365 | AR28: 9.476282364 | AS28: =($BB28-$AR28)/10+AR28 -> 9.417103128 | AT28: 9.357923892 | AU28: 9.298744657 | AV28: 9.239565421 | AW28: 9.180386185 | AX28: 9.12120695 | AY28: 9.062027714 | AZ28: 9.002848478 | BA28: 8.943669242 | BB28: ='AEO Data'!$B$30*AM28 -> 8.884490007 | BC28: 8.956883771 | BD28: 9.029277535 | BE28: 9.101671299 | BF28: 9.174065063 | BG28: 9.246458827 | BH28: 9.318852592 | BI28: 9.391246356 | BJ28: 9.46364012 | BK28: 9.536033884 | BL28: 9.608427648 | BM28: 9.680821412 | BN28: 9.753215176 | BO28: 9.825608941 | BP28: 9.898002705 | BQ28: ='AEO Data'!$C$30*BB28 -> 9.970396469 | BR28: 10.02738595 | BS28: 10.08437544 | BT28: 10.14136492 | BU28: 10.19835441 | BV28: ='AEO Data'!$D$30*BQ28 -> 10.25534389 | BW28: =+BV28*BW$136/BV$136 -> 10.28939465 | BX28: =+BW28*BX$136/BW$136 -> 10.32355846 | BY28: 10.35783571 | BZ28: 10.39222677 | CA28: 10.42673202 | CB28: 10.44898192 | CC28: 10.4712793 | CD28: 10.49362425 | CE28: 10.5160169 | CF28: 10.53845732 | CG28: 10.54574359 | CH28: 10.55303489 | CI28: 10.56033123 | CJ28: 10.56763262 | CK28: 10.57493905 | CL28: 10.57741561 | CM28: 10.57989275 | CN28: 10.58237046 | CO28: 10.58484876 | CP28: 10.58732764 | CQ28: 10.59108462 | CR28: 10.59484293 | CS28: 10.59860257 | CT28: 10.60236355 | CU28: 10.60612587 | CV28: 10.61191608 | CW28: 10.61770946 | CX28: 10.623506 | CY28: 10.6293057 | CZ28: 10.63510857
A29: ='HyARC Physical Property Data'!A75 -> Bio Methane | B29: 2007 | C29: 1.141397159 | D29: ='HyARC Physical Property Data'!H75 -> mmBtu | E29: Feed Utility | F29: ='HyARC Physical Property Data'!$E$6 -> 47.14126905 | G29: ='HyARC Physical Property Data'!$I$6 -> 52.22466124 | H29: 12.42654028 | I29: 12.42654028 | J29: 12.42654028 | K29: 12.42654028 | L29: 12.42654028 | M29: 12.42654028 | N29: =13.11*($C$29/mmBTU_to_GJ) -> 14.18361777 | O29: 14.18361777 | P29: 14.18361777 | Q29: 14.18361777 | R29: 14.18361777 | S29: 14.18361777 | T29: 14.18361777 | U29: 14.18361777 | V29: 14.18361777 | W29: 14.18361777 | X29: 14.18361777 | Y29: 14.18361777 | Z29: 14.18361777 | AA29: 14.18361777 | AB29: 14.18361777 | AC29: 14.18361777 | AD29: 14.18361777 | AE29: 14.18361777 | AF29: 14.18361777 | AG29: 14.18361777 | AH29: 14.18361777 | AI29: 14.18361777 | AJ29: 14.18361777 | AK29: 14.18361777 | AL29: 14.18361777 | AM29: 14.18361777 | AN29: =13.11*($C$29/mmBTU_to_GJ) -> 14.18361777 | AO29: 14.18361777 | AP29: 14.18361777 | AQ29: 14.18361777 | AR29: 14.18361777 | AS29: 14.18361777 | AT29: 14.18361777 | AU29: 14.18361777 | AV29: 14.18361777 | AW29: 14.18361777 | AX29: 14.18361777 | AY29: 14.18361777 | AZ29: 14.18361777 | BA29: 14.18361777 | BB29: 14.18361777 | BC29: 14.18361777 | BD29: 14.18361777 | BE29: 14.18361777 | BF29: 14.18361777 | BG29: 14.18361777 | BH29: 14.18361777 | BI29: 14.18361777 | BJ29: 14.18361777 | BK29: 14.18361777 | BL29: 14.18361777 | BM29: 14.18361777 | BN29: 14.18361777 | BO29: 14.18361777 | BP29: 14.18361777 | BQ29: 14.18361777 | BR29: 14.18361777 | BS29: 14.18361777 | BT29: 14.18361777 | BU29: 14.18361777 | BV29: 14.18361777 | BW29: =+BV29*BW$136/BV$136 -> 14.23071156 | BX29: =+BW29*BX$136/BW$136 -> 14.2779617 | BY29: 14.32536873 | BZ29: 14.37293317 | CA29: 14.42065553 | CB29: 14.45142818 | CC29: 14.48226649 | CD29: 14.51317061 | CE29: 14.54414067 | CF29: 14.57517682 | CG29: 14.58525407 | CH29: 14.59533828 | CI29: 14.60542946 | CJ29: 14.61552762 | CK29: 14.62563276 | CL29: 14.62905795 | CM29: 14.63248395 | CN29: 14.63591074 | CO29: 14.63933835 | CP29: 14.64276675 | CQ29: 14.64796282 | CR29: 14.65316074 | CS29: 14.65836051 | CT29: 14.66356211 | CU29: 14.66876557 | CV29: 14.67677371 | CW29: 14.68478622 | CX29: 14.6928031 | CY29: 14.70082436 | CZ29: 14.70885
A30: ='HyARC Physical Property Data'!A85 -> Woody Biomass | B30: 2005 | C30: =VLOOKUP(ref_year,DeflatorTable,2,FALSE)/VLOOKUP(B30,DeflatorTable,2,FALSE) -> 1.208440716 | D30: =+'HyARC Physical Property Data'!$H$85 -> kg | E30: Feed | F30: ='HyARC Physical Property Data'!$E$45 -> 19.55106924 | G30: ='HyARC Physical Property Data'!$I$45 -> 20.58865638 | H30: 1.343823884 | I30: 1.343823884 | J30: 1.343823884 | K30: 1.343823884 | L30: 1.343823884 | M30: 1.343823884 | N30: =1.27*($C$30) -> 1.534719709 | O30: =1.27*($C$30) -> 1.534719709 | P30: =1.28*($C$30) -> 1.546804117 | Q30: =1.32*($C$30) -> 1.595141745 | R30: =1.32*($C$30) -> 1.595141745 | S30: =1.34*($C$30) -> 1.61931056 | T30: =1.34*($C$30) -> 1.61931056 | U30: =1.36*($C$30) -> 1.643479374 | V30: =1.36*($C$30) -> 1.643479374 | W30: =1.38*($C$30) -> 1.667648188 | X30: =1.4*($C$30) -> 1.691817003 | Y30: =1.46*($C$30) -> 1.764323446 | Z30: =1.48*($C$30) -> 1.78849226 | AA30: =1.48*($C$30) -> 1.78849226 | AB30: =1.51*($C$30) -> 1.824745481 | AC30: =1.52*($C$30) -> 1.836829889 | AD30: =1.62*($C$30) -> 1.95767396 | AE30: =1.72*($C$30) -> 2.078518032 | AF30: =1.82*($C$30) -> 2.199362103 | AG30: =1.91*($C$30) -> 2.308121768 | AH30: =2.01*($C$30) -> 2.428965839 | AI30: =2.11*($C$30) -> 2.549809911 | AJ30: =2.2*($C$30) -> 2.658569575 | AK30: =2.3*($C$30) -> 2.779413647 | AL30: =2.4*($C$30) -> 2.900257719 | AM30: =2.5*($C$30) -> 3.02110179 | AN30: =2.57*($C$30) -> 3.10569264 | AO30: =2.64*($C$30) -> 3.190283491 | AP30: =2.71*($C$30) -> 3.274874341 | AQ30: =2.78*($C$30) -> 3.359465191 | AR30: =2.85*($C$30) -> 3.444056041 | AS30: =2.92*($C$30) -> 3.528646891 | AT30: =2.99*($C$30) -> 3.613237741 | AU30: =3.07*($C$30) -> 3.709912999 | AV30: =3.14*($C$30) -> 3.794503849 | AW30: =3.21*($C$30) -> 3.879094699 | AX30: =3.28*($C$30) -> 3.963685549 | AY30: =3.35*($C$30) -> 4.048276399 | AZ30: =3.42*($C$30) -> 4.132867249 | BA30: =3.49*($C$30) -> 4.217458099 | BB30: =3.56*($C$30) -> 4.302048949 | BC30: =3.64*($C$30) -> 4.398724207 | BD30: =3.71*($C$30) -> 4.483315057 | BE30: =3.78*($C$30) -> 4.567905907 | BF30: =3.85*($C$30) -> 4.652496757 | BG30: =3.92*($C$30) -> 4.737087607 | BH30: =3.99*($C$30) -> 4.821678457 | BI30: =4.06*($C$30) -> 4.906269307 | BJ30: =4.14*($C$30) -> 5.002944565 | BK30: =4.21*($C$30) -> 5.087535415 | BL30: =4.28*($C$30) -> 5.172126265 | BM30: =4.35*($C$30) -> 5.256717115 | BN30: =4.42*($C$30) -> 5.341307965 | BO30: =4.49*($C$30) -> 5.425898815 | BP30: =4.56*($C$30) -> 5.510489666 | BQ30: =4.63*($C$30) -> 5.595080516 | BR30: =4.71*($C$30) -> 5.691755773 | BS30: =4.78*($C$30) -> 5.776346623 | BT30: =4.85*($C$30) -> 5.860937473 | BU30: =4.92*($C$30) -> 5.945528323 | BV30: =4.99*($C$30) -> 6.030119173 | BW30: =+BV30*BW$137/BV$137 -> 6.044613208 | BX30: =+BW30*BX$137/BW$137 -> 6.05914208 | BY30: 6.073705874 | BZ30: 6.088304673 | CA30: 6.102938562 | CB30: 6.115748568 | CC30: 6.128585462 | CD30: 6.1414493 | CE30: 6.15434014 | CF30: 6.167258037 | CG30: 6.183149548 | CH30: 6.199082008 | CI30: 6.215055522 | CJ30: 6.231070196 | CK30: 6.247126135 | CL30: 6.2604976 | CM30: 6.273897685 | CN30: 6.287326452 | CO30: 6.300783962 | CP30: 6.314270276 | CQ30: 6.326614173 | CR30: 6.3389822 | CS30: 6.351374406 | CT30: 6.363790838 | CU30: 6.376231543 | CV30: 6.390919363 | CW30: 6.405641018 | CX30: 6.420396584 | CY30: 6.43518614 | CZ30: 6.450009764
A31: ='HyARC Physical Property Data'!$A$87 -> Woody Biomass MYPP | B31: 2007 | C31: =VLOOKUP(ref_year,DeflatorTable,2,FALSE)/VLOOKUP(B31,DeflatorTable,2,FALSE) -> 1.141397159 | D31: =+'HyARC Physical Property Data'!$H$87 -> kg | E31: Feed | F31: 18.608 | H31: 4.444325021 | I31: 4.444325021 | J31: 4.444325021 | K31: 4.444325021 | L31: 4.444325021 | M31: 4.444325021 | N31: =4.44432502149613*$C$31 -> 5.072739952 | O31: =N31-($N$31-$U$31)/7 -> 4.952427775 | P31: 4.832115597 | Q31: 4.71180342 | R31: 4.591491243 | S31: 4.471179065 | T31: 4.350866888 | U31: =3.70647033533964*$C$31 -> 4.23055471 | V31: =3.70647033533964*$C$31 -> 4.23055471 | W31: 4.23055471 | X31: 4.23055471 | Y31: 4.23055471 | Z31: 4.23055471 | AA31: 4.23055471 | AB31: 4.23055471 | AC31: 4.23055471 | AD31: 4.23055471 | AE31: 4.23055471 | AF31: 4.23055471 | AG31: 4.23055471 | AH31: 4.23055471 | AI31: 4.23055471 | AJ31: 4.23055471 | AK31: 4.23055471 | AL31: 4.23055471 | AM31: 4.23055471 | AN31: 4.23055471 | AO31: 4.23055471 | AP31: 4.23055471 | AQ31: 4.23055471 | AR31: 4.23055471 | AS31: 4.23055471 | AT31: 4.23055471 | AU31: 4.23055471 | AV31: 4.23055471 | AW31: 4.23055471 | AX31: 4.23055471 | AY31: 4.23055471 | AZ31: 4.23055471 | BA31: 4.23055471 | BB31: 4.23055471 | BC31: 4.23055471 | BD31: 4.23055471 | BE31: 4.23055471 | BF31: 4.23055471 | BG31: 4.23055471 | BH31: 4.23055471 | BI31: 4.23055471 | BJ31: 4.23055471 | BK31: 4.23055471 | BL31: 4.23055471 | BM31: 4.23055471 | BN31: 4.23055471 | BO31: 4.23055471 | BP31: 4.23055471 | BQ31: 4.23055471 | BR31: 4.23055471 | BS31: 4.23055471 | BT31: 4.23055471 | BU31: 4.23055471 | BV31: 4.23055471 | BW31: =+BV31*BW$137/BV$137 -> 4.240723299 | BX31: =+BW31*BX$137/BW$137 -> 4.25091633 | BY31: 4.26113386 | BZ31: 4.27137595 | CA31: 4.281642657 | CB31: 4.290629781 | CC31: 4.299635769 | CD31: 4.308660661 | CE31: 4.317704496 | CF31: 4.326767313 | CG31: 4.337916332 | CH31: 4.349094078 | CI31: 4.360300627 | CJ31: 4.371536052 | CK31: 4.382800428 | CL31: 4.392181455 | CM31: 4.401582562 | CN31: 4.411003791 | CO31: 4.420445185 | CP31: 4.429906788 | CQ31: 4.438566903 | CR31: 4.447243949 | CS31: 4.455937957 | CT31: 4.464648961 | CU31: 4.473376995 | CV31: 4.483681539 | CW31: 4.494009819 | CX31: 4.504361892 | CY31: 4.51473781 | CZ31: 4.52513763
A32: ='HyARC Physical Property Data'!A79 -> Electric Utility Steam Coal | B32: 2011 | C32: =VLOOKUP(ref_year,DeflatorTable,2,FALSE)/VLOOKUP(B32,DeflatorTable,2,FALSE) -> 1.077176781 | D32: =+'HyARC Physical Property Data'!$H$79 -> kg | E32: Feed | F32: ='HyARC Physical Property Data'!E42 -> 22.732203 | G32: ='HyARC Physical Property Data'!I42 -> 23.96761519 | H32: 1.73444996 | I32: 1.73444996 | J32: 1.73444996 | K32: 1.778897364 | L32: 1.929877218 | M32: 1.981077456 | N32: =N50*($C32/mmBTU_to_GJ*$G32/$F32) -> 2.473806731 | O32: 2.562092343 | P32: 2.589300041 | Q32: 2.51570663 | R32: 2.578256131 | S32: 2.579431679 | T32: 2.64638841 | U32: 2.661435858 | V32: 2.670025327 | W32: 2.673859853 | X32: 2.70855898 | Y32: 2.741283789 | Z32: 2.789729941 | AA32: 2.829150639 | AB32: 2.862865836 | AC32: 2.897578958 | AD32: 2.937343062 | AE32: 2.973187595 | AF32: 3.005604522 | AG32: 3.04465167 | AH32: 3.0864493 | AI32: 3.118647696 | AJ32: 3.147544438 | AK32: 3.180249869 | AL32: 3.216168682 | AM32: 3.262044129 | AN32: 3.301666134 | AO32: 3.338541963 | AP32: 3.374851548 | AQ32: 3.4125283 | AR32: 3.446492171 | AS32: =($BB32-$AR32)/10+AR32 -> 3.443779822 | AT32: 3.441067473 | AU32: 3.438355124 | AV32: 3.435642775 | AW32: 3.432930426 | AX32: 3.430218077 | AY32: 3.427505729 | AZ32: 3.42479338 | BA32: 3.422081031 | BB32: =('AEO Data'!$B$28*AM32) -> 3.419368682 | BC32: =(($BQ$32-$BB$32)/15+BB32) -> 3.431368739 | BD32: =(($BQ$32-$BB$32)/15+BC32) -> 3.443368796 | BE32: 3.455368854 | BF32: 3.467368911 | BG32: 3.479368968 | BH32: 3.491369026 | BI32: 3.503369083 | BJ32: 3.51536914 | BK32: 3.527369198 | BL32: 3.539369255 | BM32: 3.551369312 | BN32: 3.563369369 | BO32: 3.575369427 | BP32: 3.587369484 | BQ32: =('AEO Data'!$C$28*BB32) -> 3.599369541 | BR32: =(($BV$32-$BQ$32)/5+BQ32) -> 3.610908764 | BS32: =(($BV$32-$BQ$32)/5+BR32) -> 3.622447986 | BT32: =(($BV$32-$BQ$32)/5+BS32) -> 3.633987208 | BU32: =(($BV$32-$BQ$32)/5+BT32) -> 3.64552643 | BV32: =('AEO Data'!$D$28*BQ32) -> 3.657065652 | BW32: =+BV32*BW$138/BV$138 -> 3.669430027 | BX32: =+BW32*BX$138/BW$138 -> 3.681836206 | BY32: 3.69428433 | BZ32: 3.70677454 | CA32: 3.719306978 | CB32: 3.729955938 | CC32: 3.740635388 | CD32: 3.751345414 | CE32: 3.762086105 | CF32: 3.772857548 | CG32: 3.781081556 | CH32: 3.789323491 | CI32: 3.797583391 | CJ32: 3.805861296 | CK32: 3.814157245 | CL32: 3.819781207 | CM32: 3.825413461 | CN32: 3.83105402 | CO32: 3.836702896 | CP32: 3.842360101 | CQ32: 3.844254611 | CR32: 3.846150055 | CS32: 3.848046433 | CT32: 3.849943746 | CU32: 3.851841995 | CV32: 3.849113802 | CW32: 3.846387541 | CX32: 3.843663212 | CY32: 3.840940812 | CZ32: 3.83822034
A33: ='HyARC Physical Property Data'!A76 -> Commercial Electricity | B33: 2011 | C33: 1.077176781 | D33: ='HyARC Physical Property Data'!$H$76 -> kWh | E33: Feed Utility Byprod | H33: 26.8969224 | I33: 26.8969224 | J33: 26.8969224 | K33: 26.56846973 | L33: 27.54247946 | M33: 26.16755589 | N33: =(N51/(mmBTU_to_GJ))*($C33) -> 31.13355269 | O33: 30.61086466 | P33: 29.06178949 | Q33: 28.35424669 | R33: 28.42955615 | S33: 28.31698046 | T33: 28.82369258 | U33: 29.11722683 | V33: 29.24713333 | W33: 29.17751606 | X33: 29.16704651 | Y33: 29.27852767 | Z33: 29.26715861 | AA33: 29.23023135 | AB33: 29.23463808 | AC33: 29.08463279 | AD33: 28.97521 | AE33: 28.9660392 | AF33: 29.08169429 | AG33: 29.17804699 | AH33: 29.25459188 | AI33: 29.38606973 | AJ33: 29.52032782 | AK33: 29.69304265 | AL33: 29.88640967 | AM33: 30.28191631 | AN33: 30.73446125 | AO33: 31.1442632 | AP33: 31.5945333 | AQ33: 32.13821965 | AR33: 32.41449252 | AS33: =($BB33-$AR33)/10+AR33 -> 32.12574673 | AT33: 31.83700093 | AU33: 31.54825513 | AV33: 31.25950934 | AW33: 30.97076354 | AX33: 30.68201775 | AY33: 30.39327195 | AZ33: 30.10452616 | BA33: 29.81578036 | BB33: ='AEO Data'!$B$33*AM33 -> 29.52703456 | BC33: =($BQ33-$BB33)/15+BB33 -> 29.54423772 | BD33: 29.56144087 | BE33: 29.57864402 | BF33: 29.59584718 | BG33: 29.61305033 | BH33: 29.63025348 | BI33: 29.64745664 | BJ33: 29.66465979 | BK33: 29.68186294 | BL33: 29.6990661 | BM33: 29.71626925 | BN33: 29.7334724 | BO33: 29.75067556 | BP33: 29.76787871 | BQ33: ='AEO Data'!$C$33*BB33 -> 29.78508186 | BR33: =($BV33-$BQ33)/5+BQ33 -> 29.76502607 | BS33: 29.74497028 | BT33: 29.72491449 | BU33: 29.7048587 | BV33: ='AEO Data'!$D$33*BQ33 -> 29.68480291 | BW33: =+BV33*BW$139/BV$139 -> 29.67173258 | BX33: =+BW33*BX$139/BW$139 -> 29.658668 | BY33: 29.64560918 | BZ33: 29.6325561 | CA33: 29.61950878 | CB33: 29.59578401 | CC33: 29.57207825 | CD33: 29.54839148 | CE33: 29.52472368 | CF33: 29.50107484 | CG33: 29.46849723 | CH33: 29.4359556 | CI33: 29.40344991 | CJ33: 29.37098011 | CK33: 29.33854616 | CL33: 29.30318524 | CM33: 29.26786693 | CN33: 29.23259119 | CO33: 29.19735797 | CP33: 29.16216721 | CQ33: 29.12140713 | CR33: 29.08070402 | CS33: 29.04005779 | CT33: 28.99946838 | CU33: 28.9589357 | CV33: 28.91936859 | CW33: 28.87985554 | CX33: 28.84039648 | CY33: 28.80099133 | CZ33: 28.76164002
